Workbook

Sheet PROFORMA
A1: 1 | B1: Proforma | E1: AVISTA UTILITIES | J1: Idaho Jurisdiction | T1: Expense Page 1 | U1: AVISTA UTILITIES | Z1: =$J$1 -> Idaho Jurisdiction | AH1: Expense Page 1A | AI1: AVISTA UTILITIES | AM1: =$J$1 -> Idaho Jurisdiction | BG1: Expense Page 1B | BI1: =E1 -> AVISTA UTILITIES | BK1: =J1 -> Idaho Jurisdiction
A2: 2 | B2: Pro Forma Results of Operations | E2: Operation and Maintenance Expenses | J2: Electric Utility | T2: 2022-09-01 | U2: =$E2 -> Operation and Maintenance Expenses | Z2: =$J$2 -> Electric Utility | AH2: =$T$2 -> 2022-09-01 | AI2: =$E2 -> Operation and Maintenance Expenses | AM2: =$J$2 -> Electric Utility | BG2: =T2 -> 2022-09-01 | BI2: COS Proforma Transfer | BK2: =J2 -> Electric Utility
A3: 3 | B3: AVU-E-21-01 Company RY2 Settlement Case | E3: For the Twelve Months Ended December 31, 2019 | U3: =$E$3 -> For the Twelve Months Ended December 31, 2019 | AH3: =$T$3 ->  | AI3: =$E$3 -> For the Twelve Months Ended December 31, 2019 | BG3: =$T$3 ->  | BI3: =E3 -> For the Twelve Months Ended December 31, 2019 | BK3: COS Checker
A4: 4
A5: 5 | B5: =columnheader -> B | C5: =columnheader -> C | D5: D | E5: E | F5: F | G5: G | H5: H | I5: I | J5: J | K5: K | L5: L | M5: M | N5: N | O5: O | P5: P | Q5: Q | R5: R | S5: S | T5: T | U5: U | V5: V | W5: W | X5: X | Y5: Y | Z5: Z | AA5: AA | AB5: AB | AC5: AC | AD5: AD | AE5: AE | AF5: AF | AG5: AG | AH5: AH | AI5: AI | AJ5: AJ | AK5: AK | AL5: AL | AM5: AM | AN5: AN | AO5: AO | AP5: AP | AQ5: AQ | AR5: AR | AS5: AS | AT5: AT | AU5: AU | AV5: AV | AW5: AW | AX5: AX | AY5: AY | AZ5: AZ | BA5: BA | BB5: BB | BC5: BC | BD5: BD | BE5: BE | BF5: BF | BG5: BG | BI5: BI | BJ5: BJ | BK5: Checker
A6: 6 | E6: Notes | F6: Labor | G6: O&M Expense | H6: Deferred | I6: Deferred | J6: Working | K6: Restate Capital | L6: Eliminate | M6: Uncollectible | N6: Regulatory | O6: Injuries and | P6: FIT/DFIT/ | Q6: SIT/SITC | R6: Revenue | S6: Misc | T6: Restate | U6: Elim Idaho | V6: Nez Perce | W6: Colstrip | X6: Restate | Y6: Pro Forma | Z6: Pro Forma | AA6: Pro Forma | AB6: Pro Forma | AC6: Pro Forma | AD6: Pro Forma | AE6: Pro Forma | AF6: Pro Forma | AG6: Pro Forma | AH6: Planned Cap | AI6: Planned Cap | AJ6: Planned Cap | AK6: Pro Forma | AL6: Pro Forma | AM6: Restate 2019 | AN6: Pro Forma | AO6: Pro Forma | AP6: Pro Forma | AQ6: Remove 50% | AR6: Cost of | AS6: 9.2021 | AT6: Planned Cap | AU6: Planned Cap | AV6: Planned Cap | AW6: Pro Forma | AX6: Pro Forma | AY6: Pro Forma | AZ6: Pro Forma | BA6: Pro Forma | BB6: Pro Forma | BC6: Pro Forma | BD6: Remove 50% | BE6: 9.2022 | BF6: Net Total | BG6: Total | BH6: check | BI6: Transfer | BJ6: Transfer | BK6: Description | BL6: Amounts
A7: 7 | B7: Account | D7: Description | F7: Dollars | G7: Totals per Books | H7: FIT Rate Base | I7: Debits & Credits | J7: Capital Adj | K7: 2019 EOP | L7: B&O Taxes | M7: Expense | N7: Expense | O7: Damages | P7: ITC/PTC | Q7: Expense | R7: Normalization | S7: Restating | T7: Incentives | U7: PCA | V7: Settlement | W7: CS2 O&M | X7: Debt Interest | Y7: Power Supply | Z7: Transmission | AA7: Labor Non-Exec | AB7: Labor Exec | AC7: Empl Benefits | AD7: IS/IT Costs | AE7: Property Tax | AF7: Insurance Exp | AG7: ARAM DFIT | AH7: 2020 EOP | AI7: 08.2021 EOP | AJ7: 08.2022 AMA | AK7: O&M Offsets | AL7: Fee Free Amort | AM7: ADFIT | AN7: Colstrip Amort | AO7: Wildfire Expenses | AP7: Exclude EIM | AQ7: RY1 CXP projects | AR7: Service | AS7: FINAL | AT7: 08.2022 AMA | AU7: 08.2022 EOP | AV7: 08.2023 AMA | AW7: Property Tax | AX7: Labor Non-Exec | AY7: IS/IT Expenses | AZ7: Colstrip/CS2 Maint | BA7: Colstrip/CS2 Amort | BB7: Wildfire Expenses | BC7: ADD EIM | BD7: RY2 CXP projects | BE7: FINAL | BF7: All 2021 and 2022 | BG7: 2022 | BI7: 2021 Proforma | BJ7: Labor
A8: 8 | G8: E-ROO 1.00 | H8: E-DFIT 1.01 | I8: E-DDC 1.02 | J8: E-WC 1.03 | K8: E-RCAP 1.04 | L8: E-EBO 2.01 | M8: E-UE 2.02 | N8: E-RE 2.03 | O8: E-ID 2.04 | P8: E-FIT 2.05 | Q8: E-SIT 2.06 | R8: E-RN 2.07 | S8: E-MR 2.08 | T8: E-RI 2.09 | U8: E-PCA 2.10 | V8: E-NPS 2.11 | W8: E-CCOM 2.12 | X8: E-RDI 2.13 | Y8: E-PPS 3.00P | Z8: E-PTR 3.00T | AA8: E-PLE 3.01 | AB8: E-PEB 3.02 | AC8: E-PEB 3.03 | AD8: E-ISIT 3.04 | AE8: E-PPT 3.05 | AF8: E-Ins 3.06 | AG8: E-ARAM 3.07 | AH8: E-CAP20E 3.08 | AI8: E-CAP21E 3.09 | AJ8: E-CAP22A 3.10 | AK8: E-POFF 3.11 | AL8: E-PFee 3.12 | AM8: E-ADFIT 3.13 | AN8: E-Cols21 3.14 | AO8: E-PWF 3.15 | AP8: E-EIM Staff 1 | AQ8: E-CXP Staff 2 | AR8: Reclass | AS8: TOTAL | AT8: E-CAP 22A M3.10 | AU8: E-CAP22E 22.01 | AV8: E-CAP23A 22.02 | AW8: E-PPT22 22.03 | AX8: E-PLN22 22.04 | AY8: E-PLN22 22.05 | AZ8: E-CCOM22 22.06 | BA8: E-Cols22 22.07 | BB8: E-WF22 22.08 | BC8: E-EIM Staff1 | BD8: E-CXP Staff 2 | BE8: TOTAL | BF8: Adjustments | BI8: Totals | BJ8: Totals | BK8: Key Items for Checking
A9: 9 | B9: Operation & Maintenance Expenses
A10: 10 | C10: Production Expenses | BK10: Rate Base | BL10: =BI473 -> 869806000
A11: 11 | B11: 500-OP | C11: Steam | D11: Supervision & Engineering | F11: ='Labor Detail'!F11 -> 85350.02007 | G11: 155977 | AA11: ='Labor Detail'!H11 -> 403.2841484 | AC11: ='Labor Detail'!J11 -> -333.7698428 | AS11: =SUM(G11:AR11) -> 156046.5143 | AX11: ='Labor Detail'!K11 -> 2485.922915 | BE11: =SUM(AS11:BD11) -> 158532.4372 | BF11: =SUM(H11:AR11,AT11:BD11) -> 2555.43722 | BG11: =G11+BF11 -> 158532.4372 | BI11: =ROUND(BG11,-3) -> 159000 | BJ11: =F11 -> 85350.02007 | BK11: Expenses | BL11: =BI277 -> 228051000
A12: 12 | B12: 501-OP | C12: Steam | D12: Fuel | F12: ='Labor Detail'!F12 -> 323990.5277 | G12: 10600529 | Y12: =1090896-162000 -> 928896 | AA12: ='Labor Detail'!H12 -> 9850.365649 | AC12: ='Labor Detail'!J12 -> -1264.841559 | AS12: 11538010.52 | AX12: ='Labor Detail'!K12 -> 9436.617312 | BE12: =SUM(AS12:BD12) -> 11547447.14 | BF12: =SUM(H12:AR12,AT12:BD12) -> 946918.1414 | BG12: 11547447.14 | BI12: =ROUND(BG12,-3) -> 11547000 | BJ12: 323990.5277 | BK12: Revenue | BL12: =-BI293 -> 275418000
A13: 13 | B13: 502-OP | C13: Steam | D13: Steam Expenses | F13: ='Labor Detail'!F13 -> 198717.5887 | G13: 1347668 | AA13: ='Labor Detail'!H13 -> 6552.307072 | AC13: ='Labor Detail'!J13 -> -775.6504224 | AS13: 1353444.657 | AX13: ='Labor Detail'!K13 -> 5787.890934 | BE13: 1359232.548 | BF13: 11564.54758 | BG13: 1359232.548 | BI13: =ROUND(BG13,-3) -> 1359000 | BJ13: 198717.5887 | BK13: Income | BL13: =BI295 -> 47367000
A14: 14 | B14: 503-OP | C14: Steam | D14: From Other Sources | F14: ='Labor Detail'!F14 -> 0 | G14: 0 | AA14: ='Labor Detail'!H14 -> 0 | AC14: ='Labor Detail'!J14 -> 0 | AS14: 0 | AX14: ='Labor Detail'!K14 -> 0 | BE14: 0 | BF14: 0 | BG14: 0 | BI14: 0 | BJ14: 0 | BK14: Interest | BL14: =BI477 -> 20440000
A15: 15 | B15: 504-OP | C15: Steam | D15: Steam Transferred-CR | F15: ='Labor Detail'!F15 -> 0 | G15: 0 | AA15: ='Labor Detail'!H15 -> 0 | AC15: ='Labor Detail'!J15 -> 0 | AS15: 0 | AX15: ='Labor Detail'!K15 -> 0 | BE15: 0 | BF15: 0 | BG15: 0 | BI15: 0 | BJ15: 0 | BK15: SIT | BL15: =BI271 -> -1423000
A16: 16 | B16: 505-OP | C16: Steam | D16: Electric Expenses | F16: ='Labor Detail'!F16 -> 212848.3187 | G16: 365797 | AA16: ='Labor Detail'!H16 -> 7022.28748 | AC16: ='Labor Detail'!J16 -> -830.8055713 | AS16: 371988.4819 | AX16: ='Labor Detail'!K16 -> 6199.465594 | BE16: 378187.9475 | BF16: 12390.9475 | BG16: 378187.9475 | BI16: 378000 | BJ16: 212848.3187 | BK16: FIT | BL16: =BI272 -> 3506000
A17: 17 | B17: 506-OP | C17: Steam | D17: Miscellaneous Power Exp. | F17: ='Labor Detail'!F17 -> 99686.67157 | G17: 1098074 | AA17: ='Labor Detail'!H17 -> 2082.448086 | AC17: ='Labor Detail'!J17 -> -389.4171595 | AS17: 1099767.031 | AX17: ='Labor Detail'!K17 -> 2903.495288 | BE17: 1102670.526 | BF17: 4596.526215 | BG17: 1102670.526 | BI17: =ROUND(BG17,-3) -> 1103000 | BJ17: 99686.67157 | BK17: ITC | BL17: =BI274 -> -167000
A18: 18 | B18: 507-OP | C18: Steam | D18: Rents | F18: ='Labor Detail'!F18 -> 0 | G18: 5181 | AA18: ='Labor Detail'!H18 -> 0 | AC18: ='Labor Detail'!J18 -> 0 | AS18: 5181 | AX18: ='Labor Detail'!K18 -> 0 | BE18: 5181 | BF18: 0 | BG18: 5181 | BI18: =ROUND(BG18,-3) -> 5000 | BJ18: 0 | BK18: Deferred Tax | BL18: =BI275 -> 1739000
A19: 19 | C19: Total Steam Operation | F19: =SUM(F11:F18) -> 920593.1268 | G19: 13573226 | H19: 0 | I19: 0 | J19: 0 | K19: 0 | L19: =SUM(L11:L18) -> 0 | M19: 0 | N19: =SUM(N11:N18) -> 0 | O19: 0 | P19: 0 | Q19: 0 | R19: 0 | S19: 0 | T19: 0 | U19: 0 | V19: 0 | W19: 0 | X19: 0 | Y19: 928896 | Z19: 0 | AA19: 25910.69244 | AB19: 0 | AC19: -3594.484555 | AD19: 0 | AE19: 0 | AF19: =SUM(AF11:AF18) -> 0 | AG19: =SUM(AG11:AG18) -> 0 | AH19: 0 | AI19: 0 | AJ19: =SUM(AJ11:AJ18) -> 0 | AK19: 0 | AL19: 0 | AM19: =SUM(AM11:AM18) -> 0 | AN19: =SUM(AN11:AN18) -> 0 | AO19: =SUM(AO11:AO18) -> 0 | AP19: =SUM(AP11:AP18) -> 0 | AQ19: 0 | AR19: =SUM(AR11:AR18) -> 0 | AS19: =SUM(AS11:AS18) -> 14524438.21 | AT19: =SUM(AT11:AT18) -> 0 | AU19: 0 | AV19: 0 | AW19: 0 | AX19: 26813.39204 | AY19: 0 | AZ19: 0 | BA19: 0 | BB19: 0 | BC19: 0 | BD19: 0 | BE19: 14551251.6 | BF19: 978025.5999 | BG19: 14551251.6 | BH19: =IF(ROUND(SUM(G19:BD19)-AS19,0)=ROUND(BG19,0),"ok","error") -> ok | BI19: 14551000 | BK19: Gen Bus Revenue | BL19: =-BI280 -> 244590000
A20: 20 | B20: 510-MT | C20: Steam | D20: Supervision & Engineering | F20: ='Labor Detail'!F20 -> 32060.12615 | G20: 186640 | AA20: ='Labor Detail'!H20 -> 151.4860882 | AC20: ='Labor Detail'!J20 -> -125.3743497 | AS20: =SUM(G20:AR20) -> 186666.1117 | AX20: ='Labor Detail'!K20 -> 933.7900819 | BE20: =SUM(AS20:BD20) -> 187599.9018 | BF20: =SUM(H20:AR20,AT20:BD20) -> 959.9018205 | BG20: =G20+BF20 -> 187599.9018 | BI20: =ROUND(BG20,-3) -> 188000 | BJ20: =F20 -> 32060.12615 | BK20: Allocated Revenue | BL20: =-BI281 -> 0
A21: 21 | B21: 511-MT | C21: Steam | D21: Structures | F21: ='Labor Detail'!F21 -> 7552.229866 | G21: 263702 | AA21: ='Labor Detail'!H21 -> 252.3091233 | AC21: ='Labor Detail'!J21 -> -29.47761649 | AS21: =SUM(G21:AR21) -> 263924.8315 | AX21: ='Labor Detail'!K21 -> 219.9678602 | BE21: 264144.7994 | BF21: 442.799367 | BG21: =G21+BF21 -> 264144.7994 | BI21: 264000 | BJ21: =F21 -> 7552.229866 | BK21: Secondary Sales | BL21: =-BI282 -> 18081000
A22: 22 | B22: 512-MT | C22: Steam | D22: Boiler Plant | F22: ='Labor Detail'!F22 -> 305237.2733 | G22: 2094794 | AA22: ='Labor Detail'!H22 -> 10360.37526 | AC22: ='Labor Detail'!J22 -> -1191.349937 | AS22: =SUM(G22:AR22) -> 2103963.025 | AX22: ='Labor Detail'!K22 -> 8890.406017 | BE22: 2112853.431 | BF22: 18059.43133 | BG22: =G22+BF22 -> 2112853.431 | BI22: 2113000 | BJ22: =F22 -> 305237.2733 | BK22: MOPS Revenue | BL22: =-BI283 -> 0
A23: 23 | B23: 513-MT | C23: Steam | D23: Electric Plant | F23: ='Labor Detail'!F23 -> 103447.2862 | G23: 236673 | AA23: ='Labor Detail'!H23 -> 3372.611504 | AC23: ='Labor Detail'!J23 -> -403.7936789 | AS23: =SUM(G23:AR23) -> 239641.8178 | AX23: ='Labor Detail'!K23 -> 3013.027752 | BE23: 242654.8456 | BF23: 5981.845577 | BG23: =G23+BF23 -> 242654.8456 | BI23: 243000 | BJ23: =F23 -> 103447.2862 | BK23: Misc Rev | BL23: =-BI286 -> 128000
A24: 24 | B24: 514-MT | C24: Steam | D24: Miscellaneous Plant | F24: ='Labor Detail'!F24 -> 31248.08767 | G24: 432104 | AA24: ='Labor Detail'!H24 -> 895.0189724 | AC24: ='Labor Detail'!J24 -> -122.0051099 | AS24: =SUM(G24:AR24) -> 432877.0139 | AX24: ='Labor Detail'!K24 -> 910.1384758 | BE24: 433787.1523 | BF24: 1683.152338 | BG24: =G24+BF24 -> 433787.1523 | BI24: 434000 | BJ24: =F24 -> 31248.08767 | BK24: Water Sales | BL24: =-BI287 -> 118000
A25: 25 | C25: Total Steam Maintenance | F25: =SUM(F20:F24) -> 479545.0031 | G25: 3213913 | H25: 0 | I25: 0 | J25: 0 | K25: 0 | L25: 0 | M25: 0 | N25: 0 | O25: 0 | P25: 0 | Q25: 0 | R25: 0 | S25: 0 | T25: 0 | U25: 0 | V25: 0 | W25: 0 | X25: 0 | Y25: 0 | Z25: 0 | AA25: 15031.80094 | AB25: 0 | AC25: -1872.000692 | AD25: 0 | AE25: 0 | AF25: =SUM(AF20:AF24) -> 0 | AG25: =SUM(AG20:AG24) -> 0 | AH25: 0 | AI25: 0 | AJ25: =SUM(AJ20:AJ24) -> 0 | AK25: 0 | AL25: 0 | AM25: =SUM(AM20:AM24) -> 0 | AN25: =SUM(AN20:AN24) -> 0 | AO25: =SUM(AO20:AO24) -> 0 | AP25: =SUM(AP20:AP24) -> 0 | AQ25: 0 | AR25: =SUM(AR20:AR24) -> 0 | AS25: =SUM(AS20:AS24) -> 3227072.8 | AT25: =SUM(AT20:AT24) -> 0 | AU25: 0 | AV25: 0 | AW25: 0 | AX25: 13967.33019 | AY25: 0 | AZ25: 0 | BA25: 0 | BB25: 0 | BC25: =SUM(BC20:BC24) -> 0 | BD25: 0 | BE25: 3241040.13 | BF25: 27127.13044 | BG25: 3241040.13 | BH25: =IF(ROUND(SUM(G25:BD25)-AS25,0)=ROUND(BG25,0),"ok","error") -> ok | BI25: =SUM(BI20:BI24) -> 3242000 | BK25: Rent | BL25: =-BI288 -> 1268000
A26: 26 | C26: Total Steam Generation | F26: =F19+F25 -> 1400138.13 | G26: 16787139 | H26: 0 | I26: 0 | J26: 0 | K26: 0 | L26: 0 | M26: 0 | N26: 0 | O26: 0 | P26: 0 | Q26: 0 | R26: 0 | S26: 0 | T26: 0 | U26: 0 | V26: 0 | W26: 0 | X26: 0 | Y26: 928896 | Z26: 0 | AA26: 40942.49338 | AB26: 0 | AC26: -5466.485247 | AD26: 0 | AE26: 0 | AF26: =AF19+AF25 -> 0 | AG26: =AG19+AG25 -> 0 | AH26: 0 | AI26: 0 | AJ26: =AJ19+AJ25 -> 0 | AK26: 0 | AL26: 0 | AM26: =AM19+AM25 -> 0 | AN26: =AN19+AN25 -> 0 | AO26: =AO19+AO25 -> 0 | AP26: =AP19+AP25 -> 0 | AQ26: 0 | AR26: =AR19+AR25 -> 0 | AS26: =AS19+AS25 -> 17751511.01 | AT26: =AT19+AT25 -> 0 | AU26: 0 | AV26: 0 | AW26: 0 | AX26: 40780.72223 | AY26: 0 | AZ26: 0 | BA26: 0 | BB26: 0 | BC26: =BC19+BC25 -> 0 | BD26: 0 | BE26: 17792291.73 | BF26: 1005152.73 | BG26: 17792291.73 | BH26: ok | BI26: =BI19+BI25 -> 17793000 | BK26: Wheeling Revenue | BL26: =-BI289 -> 11233000
A27: 27 | BK27: Other Rev | BL27: =-BI290 -> 0
A28: 28 | B28: 535-OP | C28: Hydro | D28: Supervision & Engineering | F28: ='Labor Detail'!F28 -> 586334.0682 | G28: 1176128 | AA28: ='Labor Detail'!H28 -> 2870.077751 | AC28: ='Labor Detail'!J28 -> -2292.892565 | AS28: =SUM(G28:AR28) -> 1176705.185 | AX28: ='Labor Detail'!K28 -> 17077.69131 | BE28: =SUM(AS28:BD28) -> 1193782.876 | BF28: =SUM(H28:AR28,AT28:BD28) -> 17654.87649 | BG28: =G28+BF28 -> 1193782.876 | BI28: =ROUND(BG28,-3) -> 1194000 | BJ28: =F28 -> 586334.0682
A29: 29 | B29: 536-OP | C29: Hydro | D29: Water For Power | F29: ='Labor Detail'!F29 -> 5016.808215 | G29: 321374 | AA29: ='Labor Detail'!H29 -> 23.70473056 | AC29: ='Labor Detail'!J29 -> -19.6187334 | AS29: 321378.086 | AX29: ='Labor Detail'!K29 -> 146.1206276 | BE29: 321524.2066 | BF29: 150.2066248 | BG29: 321524.2066 | BI29: =ROUND(BG29,-3) -> 322000 | BJ29: 5016.808215
A30: 30 | B30: 537-OP | C30: Hydro | D30: Hydraulic Expenses | F30: ='Labor Detail'!F30 -> 191809.5221 | G30: 3378832 | Y30: 9719 | AA30: ='Labor Detail'!H30 -> 1542.661879 | AC30: ='Labor Detail'!J30 -> -749.9255284 | AS30: 3389343.736 | AX30: ='Labor Detail'!K30 -> 5586.68511 | BE30: 3394930.421 | BF30: 16098.42146 | BG30: 3394930.421 | BI30: =ROUND(BG30,-3) -> 3395000 | BJ30: 191809.5221
A31: 31 | B31: 538-OP | C31: Hydro | D31: Electric Expenses | F31: ='Labor Detail'!F31 -> 1927935.344 | G31: 2641294 | AA31: ='Labor Detail'!H31 -> 65397.87295 | AC31: ='Labor Detail'!J31 -> -7524.798023 | AS31: 2699167.075 | AX31: ='Labor Detail'!K31 -> 56153.45663 | BE31: 2755320.532 | BF31: 114026.5316 | BG31: 2755320.532 | BI31: 2755000 | BJ31: 1927935.344
A32: 32 | B32: 539-OP | C32: Hydro | D32: Miscellaneous Power Exp. | F32: ='Labor Detail'!F32 -> 61302.67372 | G32: 386393 | AA32: ='Labor Detail'!H32 -> 1739.11855 | AC32: ='Labor Detail'!J32 -> -239.3546459 | AS32: 387892.7639 | AX32: ='Labor Detail'!K32 -> 1785.514768 | BE32: 389678.2787 | BF32: 3285.278672 | BG32: 389678.2787 | BI32: 390000 | BJ32: 61302.67372
A33: 33 | B33: 540-OP | C33: Hydro | D33: Rents | F33: ='Labor Detail'!F33 -> 81.36476868 | G33: =496423+1724809 -> 2221232 | I33: 11916 | AA33: ='Labor Detail'!H33 -> 2.761686104 | AC33: ='Labor Detail'!J33 -> -0.3175690539 | AS33: 2233150.444 | AX33: ='Labor Detail'!K33 -> 2.369847631 | BE33: 2233152.814 | BF33: 11920.81396 | BG33: 2233152.814 | BI33: 2233000 | BJ33: 81.36476868
A34: 34 | C34: Total Hydraulic Operation | F34: =SUM(F28:F33) -> 2772479.781 | G34: 10125253 | H34: 0 | I34: 11916 | J34: 0 | K34: 0 | L34: =SUM(L28:L33) -> 0 | M34: 0 | N34: =SUM(N28:N33) -> 0 | O34: 0 | P34: 0 | Q34: 0 | R34: 0 | S34: 0 | T34: 0 | U34: 0 | V34: 0 | W34: 0 | X34: 0 | Y34: 9719 | Z34: 0 | AA34: 71576.19755 | AB34: 0 | AC34: -10826.90707 | AD34: 0 | AE34: 0 | AF34: =SUM(AF28:AF33) -> 0 | AG34: =SUM(AG28:AG33) -> 0 | AH34: 0 | AI34: 0 | AJ34: =SUM(AJ28:AJ33) -> 0 | AK34: 0 | AL34: 0 | AM34: =SUM(AM28:AM33) -> 0 | AN34: =SUM(AN28:AN33) -> 0 | AO34: =SUM(AO28:AO33) -> 0 | AP34: =SUM(AP28:AP33) -> 0 | AQ34: 0 | AR34: =SUM(AR28:AR33) -> 0 | AS34: =SUM(AS28:AS33) -> 10207637.29 | AT34: =SUM(AT28:AT33) -> 0 | AU34: 0 | AV34: 0 | AW34: 0 | AX34: 80751.83829 | AY34: 0 | AZ34: 0 | BA34: 0 | BB34: 0 | BC34: 0 | BD34: 0 | BE34: 10288389.13 | BF34: 163136.1288 | BG34: 10288389.13 | BH34: =IF(ROUND(SUM(G34:BD34)-AS34,0)=ROUND(BG34,0),"ok","error") -> ok | BI34: 10289000
A35: 35 | B35: 541-MT | C35: Hydro | D35: Supervision & Engineering | F35: ='Labor Detail'!F35 -> 192267.9335 | G35: 346581 | AA35: ='Labor Detail'!H35 -> 2658.940781 | AC35: ='Labor Detail'!J35 -> -751.4294689 | AS35: =SUM(G35:AR35) -> 348488.5113 | AX35: ='Labor Detail'!K35 -> 5600.036899 | BE35: =SUM(AS35:BD35) -> 354088.5482 | BF35: =SUM(H35:AR35,AT35:BD35) -> 7507.548211 | BG35: =G35+BF35 -> 354088.5482 | BI35: 354000 | BJ35: =F35 -> 192267.9335
A36: 36 | B36: 542-MT | C36: Hydro | D36: Structures | F36: ='Labor Detail'!F36 -> 78547.45006 | G36: 254176 | AA36: ='Labor Detail'!H36 -> 2498.286805 | AC36: ='Labor Detail'!J36 -> -306.6164563 | AS36: =SUM(G36:AR36) -> 256367.6703 | AX36: ='Labor Detail'!K36 -> 2287.789808 | BE36: 258655.4602 | BF36: 4479.460156 | BG36: =G36+BF36 -> 258655.4602 | BI36: =ROUND(BG36,-3) -> 259000 | BJ36: =F36 -> 78547.45006
A37: 37 | B37: 543-MT | C37: Hydro | D37: Reservoirs, Dams & Waterways | F37: ='Labor Detail'!F37 -> 204539.9579 | G37: 632319 | AA37: ='Labor Detail'!H37 -> 6262.981739 | AC37: ='Labor Detail'!J37 -> -798.5014913 | AS37: =SUM(G37:AR37) -> 637783.4802 | AX37: ='Labor Detail'!K37 -> 5957.474501 | BE37: 643740.9547 | BF37: 11421.95475 | BG37: =G37+BF37 -> 643740.9547 | BI37: 644000 | BJ37: =F37 -> 204539.9579
A38: 38 | B38: 544-MT | C38: Hydro | D38: Electric Plant | F38: ='Labor Detail'!F38 -> 701525.5203 | G38: 1216322 | AA38: ='Labor Detail'!H38 -> 21277.17498 | AC38: ='Labor Detail'!J38 -> -2738.731165 | AS38: =SUM(G38:AR38) -> 1234860.444 | AX38: ='Labor Detail'!K38 -> 20432.78214 | BE38: 1255293.226 | BF38: 38971.22596 | BG38: =G38+BF38 -> 1255293.226 | BI38: =ROUND(BG38,-3) -> 1255000 | BJ38: =F38 -> 701525.5203
A39: 39 | B39: 545-MT | C39: Hydro | D39: Miscellaneous Plant | F39: ='Labor Detail'!F39 -> 195731.0806 | G39: 392282 | K39: 478080 | AA39: ='Labor Detail'!H39 -> 5402.963278 | AC39: ='Labor Detail'!J39 -> -764.2655785 | AS39: =SUM(G39:AR39) -> 875000.6977 | AX39: ='Labor Detail'!K39 -> 5700.905261 | BE39: 880701.603 | BF39: 488419.603 | BG39: =G39+BF39 -> 880701.603 | BI39: 881000 | BJ39: =F39 -> 195731.0806
A40: 40 | C40: Total Hydraulic Maintenance | F40: =SUM(F35:F39) -> 1372611.942 | G40: 2841680 | H40: 0 | I40: 0 | J40: 0 | K40: 478080 | L40: 0 | M40: 0 | N40: 0 | O40: 0 | P40: 0 | Q40: 0 | R40: 0 | S40: 0 | T40: 0 | U40: 0 | V40: 0 | W40: 0 | X40: 0 | Y40: 0 | Z40: 0 | AA40: 38100.34759 | AB40: 0 | AC40: -5359.54416 | AD40: 0 | AE40: 0 | AF40: =SUM(AF35:AF39) -> 0 | AG40: =SUM(AG35:AG39) -> 0 | AH40: 0 | AI40: 0 | AJ40: =SUM(AJ35:AJ39) -> 0 | AK40: 0 | AL40: 0 | AM40: =SUM(AM35:AM39) -> 0 | AN40: =SUM(AN35:AN39) -> 0 | AO40: =SUM(AO35:AO39) -> 0 | AP40: =SUM(AP35:AP39) -> 0 | AQ40: 0 | AR40: =SUM(AR35:AR39) -> 0 | AS40: =SUM(AS35:AS39) -> 3352500.803 | AT40: =SUM(AT35:AT39) -> 0 | AU40: 0 | AV40: 0 | AW40: 0 | AX40: 39978.98861 | AY40: 0 | AZ40: 0 | BA40: 0 | BB40: 0 | BC40: =SUM(BC35:BC39) -> 0 | BD40: 0 | BE40: 3392479.792 | BF40: 550799.792 | BG40: 3392479.792 | BH40: =IF(ROUND(SUM(G40:BD40)-AS40,0)=ROUND(BG40,0),"ok","error") -> ok | BI40: =SUM(BI35:BI39) -> 3393000
A41: 41 | C41: Total Hydraulic Generation | F41: =F34+F40 -> 4145091.724 | G41: 12966933 | H41: 0 | I41: 11916 | J41: 0 | K41: 478080 | L41: 0 | M41: 0 | N41: 0 | O41: 0 | P41: 0 | Q41: 0 | R41: 0 | S41: 0 | T41: 0 | U41: 0 | V41: 0 | W41: 0 | X41: 0 | Y41: 9719 | Z41: 0 | AA41: 109676.5451 | AB41: 0 | AC41: -16186.45123 | AD41: 0 | AE41: 0 | AF41: =AF34+AF40 -> 0 | AG41: =AG34+AG40 -> 0 | AH41: 0 | AI41: 0 | AJ41: =AJ34+AJ40 -> 0 | AK41: 0 | AL41: 0 | AM41: =AM34+AM40 -> 0 | AN41: =AN34+AN40 -> 0 | AO41: =AO34+AO40 -> 0 | AP41: =AP34+AP40 -> 0 | AQ41: 0 | AR41: =AR34+AR40 -> 0 | AS41: =AS34+AS40 -> 13560138.09 | AT41: =AT34+AT40 -> 0 | AU41: 0 | AV41: 0 | AW41: 0 | AX41: 120730.8269 | AY41: 0 | AZ41: 0 | BA41: 0 | BB41: 0 | BC41: =BC34+BC40 -> 0 | BD41: 0 | BE41: 13680868.92 | BF41: 713935.9208 | BG41: 13680868.92 | BH41: =IF(ROUND(SUM(G41:BD41)-AS41,0)=ROUND(BG41,0),"ok","error") -> ok | BI41: =BI34+BI40 -> 13682000
A42: 42
A43: 43 | B43: 546-OP | C43: Other | D43: Supervision & Engineering | F43: ='Labor Detail'!F43 -> 43113.63288 | G43: 95408 | AA43: ='Labor Detail'!H43 -> 214.6663739 | AC43: ='Labor Detail'!J43 -> -168.597362 | AS43: =SUM(G43:AR43) -> 95454.06901 | AX43: ='Labor Detail'!K43 -> 1255.73688 | BE43: =SUM(AS43:BD43) -> 96709.80589 | BF43: =SUM(H43:AR43,AT43:BD43) -> 1301.805892 | BG43: =G43+BF43 -> 96709.80589 | BI43: =ROUND(BG43,-3) -> 97000 | BJ43: =F43 -> 43113.63288
A44: 44 | B44: 547-OP | C44: Other | D44: Fuel | F44: ='Labor Detail'!F44 -> 5.797589922e-13 | G44: 24567728 | Y44: =5019236-1573000 -> 3446236 | AA44: ='Labor Detail'!H44 -> 1.060323937e-14 | AC44: ='Labor Detail'!J44 -> -2.265167961e-15 | AS44: =SUM(G44:AR44) -> 28013964 | AX44: ='Labor Detail'!K44 -> 1.688618424e-14 | BE44: 28013964 | BF44: 3446236 | BG44: =G44+BF44 -> 28013964 | BI44: =ROUND(BG44,-3) -> 28014000 | BJ44: =F44 -> 5.797589922e-13
A45: 45 | B45: 548-OP | C45: Other | D45: Generation Expenses | F45: ='Labor Detail'!F45 -> 134439.5354 | G45: 814456 | AA45: ='Labor Detail'!H45 -> 4561.201292 | AC45: ='Labor Detail'!J45 -> -524.7219143 | AS45: =SUM(G45:AR45) -> 818492.4794 | AX45: ='Labor Detail'!K45 -> 3915.714622 | BE45: 822408.194 | BF45: 7952.194 | BG45: =G45+BF45 -> 822408.194 | BI45: =ROUND(BG45,-3) -> 822000 | BJ45: =F45 -> 134439.5354
A46: 46 | B46: 549-OP | C46: Other | D46: Miscellaneous Power Exp. | F46: ='Labor Detail'!F46 -> 82667.39945 | G46: 462470 | AA46: ='Labor Detail'!H46 -> 727.1270658 | AC46: ='Labor Detail'!J46 -> -323.1919758 | AS46: =SUM(G46:AR46) -> 462873.9351 | AX46: ='Labor Detail'!K46 -> 2407.788334 | BE46: 465281.7234 | BF46: 2811.723424 | BG46: =G46+BF46 -> 465281.7234 | BI46: =ROUND(BG46,-3) -> 465000 | BJ46: =F46 -> 82667.39945
A47: 47 | B47: 550-OP | C47: Other | D47: Rents | F47: ='Labor Detail'!F47 -> 0 | G47: 16164 | AA47: ='Labor Detail'!H47 -> 0 | AC47: ='Labor Detail'!J47 -> 0 | AS47: =SUM(G47:AR47) -> 16164 | AX47: ='Labor Detail'!K47 -> 0 | BE47: 16164 | BF47: 0 | BG47: =G47+BF47 -> 16164 | BI47: =ROUND(BG47,-3) -> 16000 | BJ47: =F47 -> 0
A48: 48 | C48: Total Other Operation | F48: =SUM(F43:F47) -> 260220.5677 | G48: 25956226 | H48: 0 | I48: 0 | J48: 0 | K48: 0 | L48: =SUM(L43:L47) -> 0 | M48: 0 | N48: =SUM(N43:N47) -> 0 | O48: 0 | P48: 0 | Q48: 0 | R48: 0 | S48: 0 | T48: 0 | U48: 0 | V48: 0 | W48: 0 | X48: 0 | Y48: 3446236 | Z48: 0 | AA48: 5502.994732 | AB48: 0 | AC48: -1016.511252 | AD48: 0 | AE48: 0 | AF48: =SUM(AF43:AF47) -> 0 | AG48: =SUM(AG43:AG47) -> 0 | AH48: 0 | AI48: 0 | AJ48: =SUM(AJ43:AJ47) -> 0 | AK48: 0 | AL48: 0 | AM48: =SUM(AM43:AM47) -> 0 | AN48: =SUM(AN43:AN47) -> 0 | AO48: =SUM(AO43:AO47) -> 0 | AP48: =SUM(AP43:AP47) -> 0 | AQ48: 0 | AR48: =SUM(AR43:AR47) -> 0 | AS48: =SUM(AS43:AS47) -> 29406948.48 | AT48: =SUM(AT43:AT47) -> 0 | AU48: 0 | AV48: 0 | AW48: 0 | AX48: 7579.239836 | AY48: 0 | AZ48: 0 | BA48: 0 | BB48: 0 | BC48: 0 | BD48: 0 | BE48: 29414527.72 | BF48: 3458301.723 | BG48: 29414527.72 | BH48: =IF(ROUND(SUM(G48:BD48)-AS48,0)=ROUND(BG48,0),"ok","error") -> ok | BI48: 29414000
A49: 49 | B49: 551-MT | C49: Other | D49: Supervision & Engineering | F49: ='Labor Detail'!F49 -> 132767.3141 | G49: 273791 | AA49: ='Labor Detail'!H49 -> 1287.851987 | AC49: ='Labor Detail'!J49 -> -519.0287691 | AS49: =SUM(G49:AR49) -> 274559.8232 | AX49: ='Labor Detail'!K49 -> 3867.009149 | BE49: 278426.8324 | BF49: =SUM(H49:AR49,AT49:BD49) -> 4635.832368 | BG49: =G49+BF49 -> 278426.8324 | BI49: =ROUND(BG49,-3) -> 278000 | BJ49: =F49 -> 132767.3141
A50: 50 | B50: 552-MT | C50: Other | D50: Structures | F50: ='Labor Detail'!F50 -> 3145.683813 | G50: 46230 | AA50: ='Labor Detail'!H50 -> 98.02576568 | AC50: ='Labor Detail'!J50 -> -12.27996155 | AS50: =SUM(G50:AR50) -> 46315.7458 | AX50: ='Labor Detail'!K50 -> 91.62185864 | BE50: 46407.36766 | BF50: 177.3676628 | BG50: =G50+BF50 -> 46407.36766 | BI50: =ROUND(BG50,-3) -> 46000 | BJ50: =F50 -> 3145.683813
A51: 51 | B51: 553-MT | C51: Other | D51: Generating & Electric Plant | F51: ='Labor Detail'!F51 -> 184288.4506 | G51: 2484593 | AA51: ='Labor Detail'!H51 -> 5739.638999 | AC51: ='Labor Detail'!J51 -> -719.4167608 | AS51: =SUM(G51:AR51) -> 2489613.222 | AX51: ='Labor Detail'!K51 -> 5367.624775 | BE51: 2494980.847 | BF51: 10387.84701 | BG51: =G51+BF51 -> 2494980.847 | BI51: =ROUND(BG51,-3) -> 2495000 | BJ51: =F51 -> 184288.4506
A52: 52 | B52: 554-MT | C52: Other | D52: Miscellaneous Plant | F52: ='Labor Detail'!F52 -> 45906.90666 | G52: 163115 | AA52: ='Labor Detail'!H52 -> 1439.801238 | AC52: ='Labor Detail'!J52 -> -179.2066656 | AS52: =SUM(G52:AR52) -> 164375.5946 | AX52: ='Labor Detail'!K52 -> 1337.094369 | BE52: 165712.6889 | BF52: 2597.688941 | BG52: =G52+BF52 -> 165712.6889 | BI52: =ROUND(BG52,-3)+1000 -> 167000 | BJ52: =F52 -> 45906.90666
A53: 53 | C53: Total Other Maintenance | F53: =SUM(F49:F52) -> 366108.3552 | G53: 2967729 | H53: 0 | I53: 0 | J53: 0 | K53: 0 | L53: =SUM(L49:L52) -> 0 | M53: 0 | N53: =SUM(N49:N52) -> 0 | O53: 0 | P53: 0 | Q53: 0 | R53: 0 | S53: 0 | T53: 0 | U53: 0 | V53: 0 | W53: 0 | X53: 0 | Y53: 0 | Z53: 0 | AA53: 8565.31799 | AB53: 0 | AC53: -1429.932157 | AD53: 0 | AE53: 0 | AF53: =SUM(AF49:AF52) -> 0 | AG53: =SUM(AG49:AG52) -> 0 | AH53: 0 | AI53: 0 | AJ53: =SUM(AJ49:AJ52) -> 0 | AK53: 0 | AL53: 0 | AM53: =SUM(AM49:AM52) -> 0 | AN53: =SUM(AN49:AN52) -> 0 | AO53: =SUM(AO49:AO52) -> 0 | AP53: =SUM(AP49:AP52) -> 0 | AQ53: 0 | AR53: =SUM(AR49:AR52) -> 0 | AS53: =SUM(AS49:AS52) -> 2974864.386 | AT53: =SUM(AT49:AT52) -> 0 | AU53: 0 | AV53: 0 | AW53: 0 | AX53: 10663.35015 | AY53: 0 | AZ53: 0 | BA53: 0 | BB53: 0 | BC53: =SUM(BC49:BC52) -> 0 | BD53: 0 | BE53: 2985527.736 | BF53: 17798.73598 | BG53: 2985527.736 | BH53: =IF(ROUND(SUM(G53:BD53)-AS53,0)=ROUND(BG53,0),"ok","error") -> ok | BI53: =SUM(BI49:BI52) -> 2986000
A54: 54 | C54: Total Other Generation | F54: =F48+F53 -> 626328.9229 | G54: =G48+G53 -> 28923955 | H54: 0 | I54: 0 | J54: 0 | K54: 0 | L54: 0 | M54: 0 | N54: 0 | O54: 0 | P54: 0 | Q54: 0 | R54: 0 | S54: 0 | T54: 0 | U54: 0 | V54: 0 | W54: 0 | X54: 0 | Y54: 3446236 | Z54: 0 | AA54: 14068.31272 | AB54: 0 | AC54: -2446.443409 | AD54: 0 | AE54: 0 | AF54: =AF48+AF53 -> 0 | AG54: =AG48+AG53 -> 0 | AH54: 0 | AI54: 0 | AJ54: =AJ48+AJ53 -> 0 | AK54: 0 | AL54: 0 | AM54: =AM48+AM53 -> 0 | AN54: =AN48+AN53 -> 0 | AO54: =AO48+AO53 -> 0 | AP54: =AP48+AP53 -> 0 | AQ54: 0 | AR54: =AR48+AR53 -> 0 | AS54: =AS48+AS53 -> 32381812.87 | AT54: =AT48+AT53 -> 0 | AU54: 0 | AV54: 0 | AW54: 0 | AX54: 18242.58999 | AY54: 0 | AZ54: 0 | BA54: 0 | BB54: 0 | BC54: =BC48+BC53 -> 0 | BD54: 0 | BE54: 32400055.46 | BF54: 3476100.459 | BG54: 32400055.46 | BH54: =IF(ROUND(SUM(G54:BD54)-AS54,0)=ROUND(BG54,0),"ok","error") -> ok | BI54: =BI48+BI53 -> 32400000
A55: 55
A56: 56 | B56: 555-OP | C56: Total Purchased Power | F56: ='Labor Detail'!F56 -> 0 | G56: 55230889 | R56: -8728000 | Y56: =-9278915-565909-10750000 -> -20594824 | AA56: ='Labor Detail'!H56 -> 0 | AC56: ='Labor Detail'!J56 -> 0 | AS56: =SUM(G56:AR56) -> 25908065 | AX56: ='Labor Detail'!K56 -> 0 | BE56: =SUM(AS56:BD56) -> 25908065 | BF56: =SUM(H56:AR56,AT56:BD56) -> -29322824 | BG56: =G56+BF56 -> 25908065 | BI56: =ROUND(BG56,-3) -> 25908000 | BJ56: =F56 -> 0
A57: 57 | B57: 556-OP | C57: Total System Control & Load Dispatching | F57: ='Labor Detail'!F57 -> 101142.3717 | G57: 264267 | AA57: ='Labor Detail'!H57 -> 477.9039911 | AC57: ='Labor Detail'!J57 -> -395.527423 | AS57: =SUM(G57:AR57) -> 264349.3766 | AX57: ='Labor Detail'!K57 -> 2945.894321 | BE57: 267295.2709 | BF57: 3028.270889 | BG57: =G57+BF57 -> 267295.2709 | BI57: =ROUND(BG57,-3) -> 267000 | BJ57: =F57 -> 101142.3717
A58: 58 | B58: 557-OP | C58: Total Other Expenses | F58: ='Labor Detail'!F58 -> 1558933.994 | G58: 12382127 | R58: -461000 | U58: 7886000 | V58: -35000 | Y58: =-16867960-2000 -> -16869960 | AA58: ='Labor Detail'!H58 -> 7114.081789 | AC58: ='Labor Detail'!J58 -> -5887.823683 | AS58: =SUM(G58:AR58) -> 2903393.258 | AX58: ='Labor Detail'!K58 -> 43852.60121 | BE58: 2947245.859 | BF58: -9434881.141 | BG58: =G58+BF58 -> 2947245.859 | BI58: =ROUND(BG58,-3) -> 2947000 | BJ58: =F58 -> 1558933.994
A59: 59 | D59: Total Production Expenses | F59: =F26+F41+F54+F56+F57+F58 -> 7831635.142 | G59: 126555310 | H59: 0 | I59: 11916 | J59: 0 | K59: 478080 | L59: 0 | M59: 0 | N59: 0 | O59: 0 | P59: 0 | Q59: 0 | R59: -9189000 | S59: 0 | T59: 0 | U59: 7886000 | V59: -35000 | W59: 0 | X59: 0 | Y59: -33079933 | Z59: 0 | AA59: 172279.337 | AB59: 0 | AC59: -30382.73099 | AD59: 0 | AE59: 0 | AF59: =AF26+AF41+AF54+AF56+AF57+AF58 -> 0 | AG59: =AG26+AG41+AG54+AG56+AG57+AG58 -> 0 | AH59: 0 | AI59: 0 | AJ59: =AJ26+AJ41+AJ54+AJ56+AJ57+AJ58 -> 0 | AK59: 0 | AL59: 0 | AM59: =AM26+AM41+AM54+AM56+AM57+AM58 -> 0 | AN59: =AN26+AN41+AN54+AN56+AN57+AN58 -> 0 | AO59: =AO26+AO41+AO54+AO56+AO57+AO58 -> 0 | AP59: =AP26+AP41+AP54+AP56+AP57+AP58 -> 0 | AQ59: 0 | AR59: =AR26+AR41+AR54+AR56+AR57+AR58 -> 0 | AS59: =AS26+AS41+AS54+AS56+AS57+AS58 -> 92769269.61 | AT59: =AT26+AT41+AT54+AT56+AT57+AT58 -> 0 | AU59: 0 | AV59: 0 | AW59: 0 | AX59: 226552.6347 | AY59: 0 | AZ59: 0 | BA59: 0 | BB59: 0 | BC59: 0 | BD59: 0 | BE59: 92995822.24 | BF59: -33559487.76 | BG59: 92995822.24 | BH59: =IF(ROUND(SUM(G59:BD59)-AS59,0)=ROUND(BG59,0),"ok","error") -> ok | BI59: 92997000
A60: 60
A61: 61 | B61: Proforma | E61: AVISTA UTILITIES | J61: =$J$1 -> Idaho Jurisdiction | T61: Expense Page 2 | U61: AVISTA UTILITIES | Z61: =$Z$1 -> Idaho Jurisdiction | AH61: Expense Page 2A | AI61: AVISTA UTILITIES | AM61: =$J$1 -> Idaho Jurisdiction | AX61: Expense Page 2A | BG61: Expense Page 2B
A62: 62 | B62: =$B$2 -> Pro Forma Results of Operations | E62: Operation and Maintenance Expenses | J62: =$J$2 -> Electric Utility | T62: =$T$2 -> 2022-09-01 | U62: =$E62 -> Operation and Maintenance Expenses | Z62: =$Z$2 -> Electric Utility | AH62: =$T$2 -> 2022-09-01 | AI62: =$E62 -> Operation and Maintenance Expenses | AM62: =$J$2 -> Electric Utility | AX62: =$T$2 -> 43343 | BG62: =$T$2 -> 2022-09-01
A63: 63 | B63: =$B$3 -> AVU-E-21-01 Company RY2 Settlement Case | E63: =$E$3 -> For the Twelve Months Ended December 31, 2019 | T63: =$T$3 ->  | U63: =$E$3 -> For the Twelve Months Ended December 31, 2019 | AH63: =$T$3 ->  | AI63: =$E$3 -> For the Twelve Months Ended December 31, 2019 | AX63: =$T$3 ->  | BG63: =$T$3 -> 
A64: 64
A65: 65 | B65: (a) | C65: (b) | E65: =E$5 -> E | F65: F | G65: G | H65: H | I65: I | J65: J | K65: K | L65: L | M65: M | N65: N | O65: =P$5 -> P | P65: P | Q65: Q | R65: R | S65: S | T65: T | U65: U | V65: V | W65: W | X65: X | Y65: Y | Z65: Z | AA65: AA | AB65: =AB$5 -> AB | AC65: =AC$5 -> AC | AD65: =AD$5 -> AD | AE65: =AE$5 -> AE | AF65: =AF$5 -> AF | AG65: =AG$5 -> AG | AH65: AH | AI65: AI | AJ65: =AJ$5 -> AJ | AK65: AK | AL65: AL | AM65: =AM$5 -> AM | AN65: AN | AO65: =AO$5 -> AO | AP65: AP | AQ65: AQ | AR65: AR | AS65: =AS$5 -> AS | AT65: =AT$5 -> AT | AU65: AU | AV65: AV | AW65: AW | AX65: AX | AY65: AY | AZ65: AZ | BA65: BA | BB65: BB | BC65: BC | BD65: BD | BE65: BE | BF65: BF | BG65: BG | BI65: =BI$5 -> BI | BJ65: =BJ$5 -> BJ
A66: 66 | E66: =E$6 -> Notes | F66: Labor | G66: O&M Expense | H66: Deferred | I66: Deferred | J66: Working | K66: Restate Capital | L66: Eliminate | M66: Uncollectible | N66: Regulatory | O66: Injuries and | P66: FIT/DFIT/ | Q66: SIT/SITC | R66: Revenue | S66: Misc | T66: Restate | U66: Elim Idaho | V66: Nez Perce | W66: Colstrip | X66: Restate | Y66: Pro Forma | Z66: Pro Forma | AA66: Pro Forma | AB66: Pro Forma | AC66: Pro Forma | AD66: Pro Forma | AE66: Pro Forma | AF66: =AF$6 -> Pro Forma | AG66: =AG$6 -> Pro Forma | AH66: Planned Cap | AI66: Planned Cap | AJ66: =AJ$6 -> Planned Cap | AK66: Pro Forma | AL66: Pro Forma | AM66: =AM$6 -> Restate 2019 | AN66: Pro Forma | AO66: =AO$6 -> Pro Forma | AP66: =AP$6 -> Pro Forma | AQ66: Remove 50% | AR66: Cost of | AS66: =AS$6 -> 9.2021 | AT66: =AT$6 -> Planned Cap | AU66: Planned Cap | AV66: Planned Cap | AW66: Pro Forma | AX66: Pro Forma | AY66: Pro Forma | AZ66: Pro Forma | BA66: Pro Forma | BB66: Pro Forma | BC66: Pro Forma | BD66: Remove 50% | BE66: 9.2022 | BF66: Net Total | BG66: Total | BI66: =BI$6 -> Transfer | BJ66: =BJ$6 -> Transfer
A67: 67 | B67: Account | C67: Description | E67: =E$7 -> 0 | F67: Dollars | G67: Totals per Books | H67: FIT Rate Base | I67: Debits & Credits | J67: Capital Adj | K67: 2019 EOP | L67: B&O Taxes | M67: Expense | N67: Expense | O67: Damages | P67: ITC/PTC | Q67: Expense | R67: Normalization | S67: Restating | T67: Incentives | U67: PCA | V67: Settlement | W67: CS2 O&M | X67: Debt Interest | Y67: Power Supply | Z67: Transmission | AA67: Labor Non-Exec | AB67: Labor Exec | AC67: Empl Benefits | AD67: IS/IT Costs | AE67: Property Tax | AF67: =AF$7 -> Insurance Exp | AG67: =AG$7 -> ARAM DFIT | AH67: 2020 EOP | AI67: 08.2021 EOP | AJ67: =AJ$7 -> 08.2022 AMA | AK67: O&M Offsets | AL67: Fee Free Amort | AM67: =AM$7 -> ADFIT | AN67: Colstrip Amort | AO67: =AO$7 -> Wildfire Expenses | AP67: =AP$7 -> Exclude EIM | AQ67: RY1 CXP projects | AR67: Service | AS67: =AS$7 -> FINAL | AT67: =AT$7 -> 08.2022 AMA | AU67: 08.2022 EOP | AV67: 08.2023 AMA | AW67: Property Tax | AX67: Labor Non-Exec | AY67: IS/IT Expenses | AZ67: Colstrip/CS2 Maint | BA67: Colstrip/CS2 Amort | BB67: Wildfire Expenses | BC67: ADD EIM | BD67: RY2 CXP projects | BE67: FINAL | BF67: All 2021 and 2022 | BG67: 2022 | BH67: 0 | BI67: 2021 Proforma | BJ67: Labor
A68: 68 | E68: =E$8 -> 0 | F68: 0 | G68: E-ROO 1.00 | H68: E-DFIT 1.01 | I68: E-DDC 1.02 | J68: E-WC 1.03 | K68: E-RCAP 1.04 | L68: E-EBO 2.01 | M68: E-UE 2.02 | N68: E-RE 2.03 | O68: E-ID 2.04 | P68: E-FIT 2.05 | Q68: E-SIT 2.06 | R68: E-RN 2.07 | S68: E-MR 2.08 | T68: E-RI 2.09 | U68: E-PCA 2.10 | V68: E-NPS 2.11 | W68: E-CCOM 2.12 | X68: E-RDI 2.13 | Y68: E-PPS 3.00P | Z68: E-PTR 3.00T | AA68: E-PLE 3.01 | AB68: E-PEB 3.02 | AC68: E-PEB 3.03 | AD68: E-ISIT 3.04 | AE68: E-PPT 3.05 | AF68: =AF$8 -> E-Ins 3.06 | AG68: =AG$8 -> E-ARAM 3.07 | AH68: E-CAP20E 3.08 | AI68: E-CAP21E 3.09 | AJ68: =AJ$8 -> E-CAP22A 3.10 | AK68: E-POFF 3.11 | AL68: E-PFee 3.12 | AM68: =AM$8 -> E-ADFIT 3.13 | AN68: E-Cols21 3.14 | AO68: =AO$8 -> E-PWF 3.15 | AP68: =AP$8 -> E-EIM Staff 1 | AQ68: E-CXP Staff 2 | AR68: Reclass | AS68: =AS$8 -> TOTAL | AT68: =AT$8 -> E-CAP 22A M3.10 | AU68: E-CAP22E 22.01 | AV68: E-CAP23A 22.02 | AW68: E-PPT22 22.03 | AX68: E-PLN22 22.04 | AY68: E-PLN22 22.05 | AZ68: E-CCOM22 22.06 | BA68: E-Cols22 22.07 | BB68: E-WF22 22.08 | BC68: E-EIM Staff1 | BD68: E-CXP Staff 2 | BE68: TOTAL | BF68: Adjustments | BG68: =BG$11 -> 158532.4372 | BH68: =BH$8 -> 0 | BI68: =BI$8 -> Totals | BJ68: =BJ$8 -> Totals
A69: 69 | C69: Transmission Expenses | BH69: =BH$9 -> 0
A70: 70 | B70: 560-OP | C70: Supervision & Engineering | F70: ='Labor Detail'!F70 -> 505559.0757 | G70: 864248 | AA70: ='Labor Detail'!H70 -> 2492.962895 | AC70: ='Labor Detail'!J70 -> -1975.606515 | AS70: =SUM(G70:AR70) -> 864765.3564 | AX70: ='Labor Detail'!K70 -> 14714.552 | BE70: =SUM(AS70:BD70) -> 879479.9084 | BF70: =SUM(H70:AR70,AT70:BD70) -> 15231.90838 | BG70: =G70+BF70 -> 879479.9084 | BI70: =ROUND(BG70,-3) -> 879000 | BJ70: =F70 -> 505559.0757
A71: 71 | B71: 561-OP | C71: Load Dispatching | F71: ='Labor Detail'!F71 -> 809441.3563 | G71: 1299328 | AA71: ='Labor Detail'!H71 -> 3917.981633 | AC71: ='Labor Detail'!J71 -> -3165.377699 | AS71: 1300080.604 | AX71: ='Labor Detail'!K71 -> 23575.96183 | BE71: 1323656.566 | BF71: 24328.56577 | BG71: 1323656.566 | BI71: =ROUND(BG71,-3) -> 1324000 | BJ71: 809441.3563
A72: 72 | B72: 562-OP | C72: Station Expenses | F72: ='Labor Detail'!F72 -> 84728.00856 | G72: 198400 | AA72: ='Labor Detail'!H72 -> 2617.930586 | AC72: ='Labor Detail'!J72 -> -330.7627146 | AS72: 200687.1679 | AX72: ='Labor Detail'!K72 -> 2467.806075 | BE72: 203154.9739 | BF72: 4754.973946 | BG72: 203154.9739 | BI72: =ROUND(BG72,-3) -> 203000 | BJ72: 84728.00856
A73: 73 | B73: 563-OP | C73: Overhead Line Expenses | F73: ='Labor Detail'!F73 -> 17137.05686 | G73: 132400 | AA73: ='Labor Detail'!H73 -> 538.4402355 | AC73: ='Labor Detail'!J73 -> -66.8976325 | AS73: 132871.5426 | AX73: ='Labor Detail'!K73 -> 499.1375783 | BE73: 133370.6802 | BF73: 970.6801814 | BG73: 133370.6802 | BI73: =ROUND(BG73,-3) -> 133000 | BJ73: 17137.05686
A74: 74 | B74: 564-OP | C74: Underground Line Expenses | F74: ='Labor Detail'!F74 -> 0 | G74: 0 | AA74: ='Labor Detail'!H74 -> 0 | AC74: ='Labor Detail'!J74 -> 0 | AS74: 0 | AX74: ='Labor Detail'!K74 -> 0 | BE74: 0 | BF74: 0 | BG74: 0 | BI74: 0 | BJ74: 0
A75: 75 | B75: 565-OP | C75: Transmission of Electricity By Others | F75: ='Labor Detail'!F75 -> 0 | G75: 5928069 | Y75: =390316-381000 -> 9316 | AA75: ='Labor Detail'!H75 -> 0 | AC75: ='Labor Detail'!J75 -> 0 | AS75: 5937385 | AX75: ='Labor Detail'!K75 -> 0 | BE75: 5937385 | BF75: 9316 | BG75: 5937385 | BI75: =ROUND(BG75,-3) -> 5937000 | BJ75: 0
A76: 76 | B76: 566-OP | C76: Miscellaneous Expenses | F76: ='Labor Detail'!F76 -> 366785.866 | G76: 1102308 | Z76: =(-524000*0.3436)-(157000*0.3436) -> -233991.6 | AA76: ='Labor Detail'!H76 -> 7056.407453 | AC76: ='Labor Detail'!J76 -> -1432.973497 | AK76: -9243 | AO76: =513000-168000 -> 345000 | AS76: 1209696.834 | AX76: ='Labor Detail'!K76 -> 10683.08348 | BB76: 37000 | BE76: 1257379.917 | BF76: 155071.9174 | BG76: 1257379.917 | BI76: =ROUND(BG76,-3) -> 1257000 | BJ76: 366785.866
A77: 77 | B77: 567-OP | C77: Rents | F77: ='Labor Detail'!F77 -> 5782.666402 | G77: 61081 | AA77: ='Labor Detail'!H77 -> 101.8677802 | AC77: ='Labor Detail'!J77 -> -22.59438067 | AS77: 61160.2734 | AX77: ='Labor Detail'!K77 -> 168.4271767 | BE77: 61328.70058 | BF77: 247.7005763 | BG77: 61328.70058 | BI77: =ROUND(BG77,-3) -> 61000 | BJ77: 5782.666402
A78: 78 | C78: Total Transmission Operation | F78: =SUM(F70:F77) -> 1789434.03 | G78: 9585834 | H78: 0 | I78: 0 | J78: 0 | K78: 0 | L78: =SUM(L70:L77) -> 0 | M78: 0 | N78: =SUM(N70:N77) -> 0 | O78: 0 | P78: 0 | Q78: 0 | R78: 0 | S78: 0 | T78: 0 | U78: 0 | V78: 0 | W78: 0 | X78: 0 | Y78: 9316 | Z78: -233991.6 | AA78: 16725.59058 | AB78: 0 | AC78: -6994.212438 | AD78: 0 | AE78: 0 | AF78: =SUM(AF70:AF77) -> 0 | AG78: =SUM(AG70:AG77) -> 0 | AH78: 0 | AI78: 0 | AJ78: =SUM(AJ70:AJ77) -> 0 | AK78: -9243 | AL78: 0 | AM78: =SUM(AM70:AM77) -> 0 | AN78: =SUM(AN70:AN77) -> 0 | AO78: =SUM(AO70:AO77) -> 345000 | AP78: =SUM(AP70:AP77) -> 0 | AQ78: 0 | AR78: =SUM(AR70:AR77) -> 0 | AS78: =SUM(AS70:AS77) -> 9706646.778 | AT78: =SUM(AT70:AT77) -> 0 | AU78: 0 | AV78: 0 | AW78: 0 | AX78: 52108.96814 | AY78: 0 | AZ78: 0 | BA78: 0 | BB78: 37000 | BC78: 0 | BD78: 0 | BE78: 9795755.746 | BF78: 209921.7463 | BG78: 9795755.746 | BH78: =IF(ROUND(SUM(G78:BD78)-AS78,0)=ROUND(BG78,0),"ok","error") -> ok | BI78: 9794000
A79: 79 | B79: 568-MT | C79: Supervision & Engineering | F79: ='Labor Detail'!F79 -> 136078.3726 | G79: 224815 | AA79: ='Labor Detail'!H79 -> 1742.339395 | AC79: ='Labor Detail'!J79 -> -531.86327 | AS79: =SUM(G79:AR79) -> 226025.4761 | AX79: ='Labor Detail'!K79 -> 3963.447745 | BE79: =SUM(AS79:BD79) -> 229988.9239 | BF79: =SUM(H79:AR79,AT79:BD79) -> 5173.923871 | BG79: =G79+BF79 -> 229988.9239 | BI79: =ROUND(BG79,-3) -> 230000 | BJ79: =F79 -> 136078.3726
A80: 80 | B80: 569-MT | C80: Structures | F80: ='Labor Detail'!F80 -> 123872.8781 | G80: 239771 | AA80: ='Labor Detail'!H80 -> 4204.153901 | AC80: ='Labor Detail'!J80 -> -483.4795281 | AS80: 243491.6744 | AX80: ='Labor Detail'!K80 -> 3607.947907 | BE80: 247099.6223 | BF80: 7328.622279 | BG80: 247099.6223 | BI80: =ROUND(BG80,-3) -> 247000 | BJ80: 123872.8781
A81: 81 | B81: 570-MT | C81: Station Equipment | F81: ='Labor Detail'!F81 -> 163873.1013 | G81: 339863 | AA81: ='Labor Detail'!H81 -> 5561.429658 | AC81: ='Labor Detail'!J81 -> -639.6016672 | AS81: 344784.828 | AX81: ='Labor Detail'!K81 -> 4773.00295 | BE81: 349557.8309 | BF81: 9694.83094 | BG81: 349557.8309 | BI81: 350000 | BJ81: 163873.1013
A82: 82 | B82: 571-MT | C82: Overhead Lines | F82: ='Labor Detail'!F82 -> 10217.2232 | G82: 357120 | AA82: ='Labor Detail'!H82 -> 318.7953814 | AC82: ='Labor Detail'!J82 -> -39.88537441 | AS82: 357398.91 | AX82: ='Labor Detail'!K82 -> 297.5890251 | BE82: 357696.499 | BF82: 576.4990321 | BG82: 357696.499 | BI82: 358000 | BJ82: 10217.2232
A83: 83 | B83: 572-MT | C83: Underground Lines | F83: ='Labor Detail'!F83 -> 0 | G83: 0 | AA83: ='Labor Detail'!H83 -> 0 | AC83: ='Labor Detail'!J83 -> 0 | AS83: 0 | AX83: ='Labor Detail'!K83 -> 0 | BE83: 0 | BF83: 0 | BG83: 0 | BI83: =ROUND(BG83,-3) -> 0 | BJ83: 0
A84: 84 | B84: 573-MT | C84: Miscellaneous Plant | F84: ='Labor Detail'!F84 -> 5053.659833 | G84: 26985 | AA84: ='Labor Detail'!H84 -> 167.5871658 | AC84: ='Labor Detail'!J84 -> -19.7256032 | AS84: 27132.86156 | AX84: ='Labor Detail'!K84 -> 147.1939757 | BE84: 27280.05554 | BF84: 295.0555383 | BG84: 27280.05554 | BI84: 27000 | BJ84: 5053.659833
A85: 85 | C85: Total Transmission Maintenance | F85: =SUM(F79:F84) -> 439095.235 | G85: 1188554 | H85: 0 | I85: 0 | J85: 0 | K85: 0 | L85: =SUM(L79:L84) -> 0 | M85: 0 | N85: =SUM(N79:N84) -> 0 | O85: 0 | P85: 0 | Q85: 0 | R85: 0 | S85: 0 | T85: 0 | U85: 0 | V85: 0 | W85: 0 | X85: 0 | Y85: 0 | Z85: 0 | AA85: 11994.3055 | AB85: 0 | AC85: -1714.555443 | AD85: 0 | AE85: 0 | AF85: =SUM(AF79:AF84) -> 0 | AG85: =SUM(AG79:AG84) -> 0 | AH85: 0 | AI85: 0 | AJ85: =SUM(AJ79:AJ84) -> 0 | AK85: 0 | AL85: 0 | AM85: =SUM(AM79:AM84) -> 0 | AN85: =SUM(AN79:AN84) -> 0 | AO85: =SUM(AO79:AO84) -> 0 | AP85: =SUM(AP79:AP84) -> 0 | AQ85: 0 | AR85: =SUM(AR79:AR84) -> 0 | AS85: =SUM(AS79:AS84) -> 1198833.75 | AT85: =SUM(AT79:AT84) -> 0 | AU85: 0 | AV85: 0 | AW85: 0 | AX85: 12789.1816 | AY85: 0 | AZ85: 0 | BA85: 0 | BB85: 0 | BC85: =SUM(BC79:BC84) -> 0 | BD85: 0 | BE85: 1211622.932 | BF85: 23068.93166 | BG85: 1211622.932 | BH85: =IF(ROUND(SUM(G85:BD85)-AS85,0)=ROUND(BG85,0),"ok","error") -> ok | BI85: =SUM(BI79:BI84) -> 1212000
A86: 86 | C86: Total Transmission Expenses | F86: =F78+F85 -> 2228529.265 | G86: =G78+G85 -> 10774388 | H86: 0 | I86: 0 | J86: 0 | K86: 0 | L86: 0 | M86: 0 | N86: 0 | O86: 0 | P86: 0 | Q86: 0 | R86: 0 | S86: 0 | T86: 0 | U86: 0 | V86: 0 | W86: 0 | X86: 0 | Y86: 9316 | Z86: -233991.6 | AA86: 28719.89608 | AB86: 0 | AC86: -8708.767881 | AD86: 0 | AE86: 0 | AF86: =AF78+AF85 -> 0 | AG86: =AG78+AG85 -> 0 | AH86: 0 | AI86: 0 | AJ86: =AJ78+AJ85 -> 0 | AK86: -9243 | AL86: 0 | AM86: =AM78+AM85 -> 0 | AN86: =AN78+AN85 -> 0 | AO86: =AO78+AO85 -> 345000 | AP86: =AP78+AP85 -> 0 | AQ86: 0 | AR86: =AR78+AR85 -> 0 | AS86: =AS78+AS85 -> 10905480.53 | AT86: =AT78+AT85 -> 0 | AU86: 0 | AV86: 0 | AW86: 0 | AX86: 64898.14974 | AY86: 0 | AZ86: 0 | BA86: 0 | BB86: 37000 | BC86: =BC78+BC85 -> 0 | BD86: 0 | BE86: 11007378.68 | BF86: 232990.6779 | BG86: 11007378.68 | BH86: =IF(ROUND(SUM(G86:BD86)-AS86,0)=ROUND(BG86,0),"ok","error") -> ok | BI86: =BI78+BI85 -> 11006000
A87: 87
A88: 88 | C88: Distribution Expenses
A89: 89 | B89: 580-OP | C89: Supervision & Engineering | F89: ='Labor Detail'!F89 -> 1110515.641 | G89: 1388741 | AA89: ='Labor Detail'!H89 -> 8803.539873 | AC89: ='Labor Detail'!J89 -> -4256.753088 | AS89: =SUM(G89:AR89) -> 1393287.787 | AX89: ='Labor Detail'!K89 -> 31711.42499 | BE89: =SUM(AS89:BD89) -> 1424999.212 | BF89: =SUM(H89:AR89,AT89:BD89) -> 36258.21178 | BG89: =G89+BF89 -> 1424999.212 | BI89: =ROUND(BG89,-3) -> 1425000 | BJ89: =F89 -> 1110515.641
A90: 90 | B90: 581-OP | C90: Load Dispatching | F90: ='Labor Detail'!F90 -> 0 | G90: 0 | AA90: ='Labor Detail'!H90 -> 0 | AC90: ='Labor Detail'!J90 -> 0 | AS90: 0 | AX90: ='Labor Detail'!K90 -> 0 | BE90: 0 | BF90: 0 | BG90: 0 | BI90: 0 | BJ90: 0
A91: 91 | B91: 582-OP | C91: Station Expenses | F91: ='Labor Detail'!F91 -> 253796.3215 | G91: 378600 | AA91: ='Labor Detail'!H91 -> 8207.304817 | AC91: ='Labor Detail'!J91 -> -990.6798997 | AS91: 385816.6249 | AX91: ='Labor Detail'!K91 -> 7392.12587 | BE91: 393208.7508 | BF91: 14608.75079 | BG91: 393208.7508 | BI91: =ROUND(BG91,-3) -> 393000 | BJ91: 253796.3215
A92: 92 | B92: 583-OP | C92: Overhead Line Expenses | F92: ='Labor Detail'!F92 -> 649848.1389 | G92: 939045 | AA92: ='Labor Detail'!H92 -> 17487.86018 | AC92: ='Labor Detail'!J92 -> -2537.56029 | AO92: =1682000-556000 -> 1126000 | AS92: 2079995.3 | AX92: ='Labor Detail'!K92 -> 18927.6157 | BB92: 326000 | BE92: 2424922.916 | BF92: 1485877.916 | BG92: 2424922.916 | BI92: =ROUND(BG92,-3) -> 2425000 | BJ92: 649848.1389
A93: 93 | B93: 584-OP | C93: Underground Line Expenses | F93: ='Labor Detail'!F93 -> 396829.2293 | G93: 765754 | AA93: ='Labor Detail'!H93 -> 13348.61486 | AC93: ='Labor Detail'!J93 -> -1548.867249 | AS93: 777553.7476 | AX93: ='Labor Detail'!K93 -> 11558.13289 | BE93: 789111.8805 | BF93: 23357.8805 | BG93: 789111.8805 | BI93: 789000 | BJ93: 396829.2293
A94: 94 | B94: 585-OP | C94: Street Lighting & Signal Systems | F94: ='Labor Detail'!F94 -> 4826.361373 | G94: 322 | AA94: ='Labor Detail'!H94 -> 24.61978151 | AC94: ='Labor Detail'!J94 -> -18.87350152 | AS94: 327.74628 | AX94: ='Labor Detail'!K94 -> 140.5736322 | BE94: 468.3199122 | BF94: 146.3199122 | BG94: 468.3199122 | BI94: =ROUND(BG94,-3) -> 0 | BJ94: 4826.361373
A95: 95 | B95: 586-OP | C95: Meter Expenses | F95: ='Labor Detail'!F95 -> 1111546.919 | G95: 345023 | AA95: ='Labor Detail'!H95 -> 35356.17364 | AC95: ='Labor Detail'!J95 -> -4339.014595 | AS95: 376040.159 | AX95: ='Labor Detail'!K95 -> 32375.15299 | BE95: 408415.312 | BF95: 63392.31203 | BG95: 408415.312 | BI95: 408000 | BJ95: 1111546.919
A96: 96 | B96: 587-OP | C96: Customer Installations Expenses | F96: ='Labor Detail'!F96 -> 346959.5994 | G96: 300719 | AA96: ='Labor Detail'!H96 -> 9175.266005 | AC96: ='Labor Detail'!J96 -> -1354.867504 | AS96: 308539.3985 | AX96: ='Labor Detail'!K96 -> 10105.6194 | BE96: 318645.0179 | BF96: 17926.0179 | BG96: 318645.0179 | BI96: =ROUND(BG96,-3) -> 319000 | BJ96: 346959.5994
A97: 97 | B97: 588-OP | C97: Miscellaneous Expenses | F97: ='Labor Detail'!F97 -> 2367668.906 | G97: 2860794 | AA97: ='Labor Detail'!H97 -> 62137.29476 | AC97: ='Labor Detail'!J97 -> -9245.803807 | AS97: 2913685.491 | AX97: ='Labor Detail'!K97 -> 68961.23027 | BE97: 2982646.721 | BF97: 121852.7212 | BG97: 2982646.721 | BI97: =ROUND(BG97,-3) -> 2983000 | BJ97: 2367668.906
A98: 98 | B98: 589-OP | C98: Rents | F98: ='Labor Detail'!F98 -> 8731.792788 | G98: 110870 | AA98: ='Labor Detail'!H98 -> 46.28820163 | AC98: ='Labor Detail'!J98 -> -34.14525092 | AS98: 110882.143 | AX98: ='Labor Detail'!K98 -> 254.3240618 | BE98: 111136.467 | BF98: 266.4670125 | BG98: 111136.467 | BI98: =ROUND(BG98,-3) -> 111000 | BJ98: 8731.792788
A99: 99 | C99: Total Distribution Operation | F99: =SUM(F89:F98) -> 6250722.909 | G99: 7089868 | H99: 0 | I99: 0 | J99: 0 | K99: 0 | L99: =SUM(L89:L98) -> 0 | M99: 0 | N99: =SUM(N89:N98) -> 0 | O99: 0 | P99: 0 | Q99: 0 | R99: 0 | S99: 0 | T99: 0 | U99: 0 | V99: 0 | W99: 0 | X99: 0 | Y99: 0 | Z99: 0 | AA99: 154586.9621 | AB99: 0 | AC99: -24326.56518 | AD99: 0 | AE99: 0 | AF99: =SUM(AF89:AF98) -> 0 | AG99: =SUM(AG89:AG98) -> 0 | AH99: 0 | AI99: 0 | AJ99: =SUM(AJ89:AJ98) -> 0 | AK99: 0 | AL99: 0 | AM99: =SUM(AM89:AM98) -> 0 | AN99: =SUM(AN89:AN98) -> 0 | AO99: =SUM(AO89:AO98) -> 1126000 | AP99: =SUM(AP89:AP98) -> 0 | AQ99: 0 | AR99: =SUM(AR89:AR98) -> 0 | AS99: =SUM(AS89:AS98) -> 8346128.397 | AT99: =SUM(AT89:AT98) -> 0 | AU99: 0 | AV99: 0 | AW99: 0 | AX99: 181426.1998 | AY99: 0 | AZ99: 0 | BA99: 0 | BB99: 326000 | BC99: 0 | BD99: 0 | BE99: 8853554.597 | BF99: 1763686.597 | BG99: 8853554.597 | BH99: =IF(ROUND(SUM(G99:BD99)-AS99,0)=ROUND(BG99,0),"ok","error") -> ok | BI99: 8853000
A100: 100 | B100: 590-MT | C100: Supervision & Engineering | F100: ='Labor Detail'!F100 -> 324299.391 | G100: 381056 | AA100: ='Labor Detail'!H100 -> 5541.814424 | AC100: ='Labor Detail'!J100 -> -1267.166344 | AS100: =SUM(G100:AR100) -> 385330.6481 | AX100: ='Labor Detail'!K100 -> 9445.61333 | BE100: =SUM(AS100:BD100) -> 394776.2614 | BF100: =SUM(H100:AR100,AT100:BD100) -> 13720.26141 | BG100: =G100+BF100 -> 394776.2614 | BI100: =ROUND(BG100,-3) -> 395000 | BJ100: =F100 -> 324299.391
A101: 101 | B101: 591-MT | C101: Structures | F101: ='Labor Detail'!F101 -> 167466.023 | G101: 212521 | AA101: ='Labor Detail'!H101 -> 5684.138186 | AC101: ='Labor Detail'!J101 -> -653.6247486 | AS101: 217551.5134 | AX101: ='Labor Detail'!K101 -> 4877.651155 | BE101: 222429.1646 | BF101: 9908.164592 | BG101: 222429.1646 | BI101: =ROUND(BG101,-3) -> 222000 | BJ101: 167466.023
A102: 102 | B102: 592-MT | C102: Station Equipment | F102: ='Labor Detail'!F102 -> 369714.2278 | G102: 239823 | AA102: ='Labor Detail'!H102 -> 12548.85452 | AC102: ='Labor Detail'!J102 -> -1443.005363 | AS102: 250928.8492 | AX102: ='Labor Detail'!K102 -> 10768.37557 | BE102: 261697.2247 | BF102: 21874.22473 | BG102: 261697.2247 | BI102: 262000 | BJ102: 369714.2278
A103: 103 | B103: 593-MT | C103: Overhead Lines | F103: ='Labor Detail'!F103 -> 1364486.322 | G103: 3278398 | AA103: ='Labor Detail'!H103 -> 46163.25213 | AC103: ='Labor Detail'!J103 -> -5325.668645 | AS103: 3319235.583 | AX103: ='Labor Detail'!K103 -> 39742.32007 | BE103: 3358977.904 | BF103: 80579.90355 | BG103: 3358977.904 | BI103: =ROUND(BG103,-3) -> 3359000 | BJ103: 1364486.322
A104: 104 | B104: 594-MT | C104: Underground Lines | F104: ='Labor Detail'!F104 -> 394210.1359 | G104: 286046 | AA104: ='Labor Detail'!H104 -> 13321.883 | AC104: ='Labor Detail'!J104 -> -1538.62874 | AS104: 297829.2543 | AX104: ='Labor Detail'!K104 -> 11481.84862 | BE104: 309311.1029 | BF104: 23265.10287 | BG104: 309311.1029 | BI104: =ROUND(BG104,-3) -> 309000 | BJ104: 394210.1359
A105: 105 | B105: 595-MT | C105: Line Transformers | F105: ='Labor Detail'!F105 -> 205955.9817 | G105: 84468 | AA105: ='Labor Detail'!H105 -> 6990.565844 | AC105: ='Labor Detail'!J105 -> -803.8521748 | AS105: 90654.71367 | AX105: ='Labor Detail'!K105 -> 5998.717915 | BE105: 96653.43158 | BF105: 12185.43158 | BG105: 96653.43158 | BI105: 97000 | BJ105: 205955.9817
A106: 106 | B106: 596-MT | C106: Street Lighting & Signal Systems | F106: ='Labor Detail'!F106 -> 90206.56446 | G106: 28298 | AA106: ='Labor Detail'!H106 -> 3027.053038 | AC106: ='Labor Detail'!J106 -> -352.0878428 | AS106: 30972.9652 | AX106: ='Labor Detail'!K106 -> 2627.375664 | BE106: 33600.34086 | BF106: 5302.340859 | BG106: 33600.34086 | BI106: 34000 | BJ106: 90206.56446
A107: 107 | B107: 597-MT | C107: Meters | F107: ='Labor Detail'!F107 -> 24152.26601 | G107: 7240 | AA107: ='Labor Detail'!H107 -> 819.7771409 | AC107: ='Labor Detail'!J107 -> -94.2669953 | AS107: 7965.510146 | AX107: ='Labor Detail'!K107 -> 703.4640587 | BE107: 8668.974204 | BF107: 1428.974204 | BG107: 8668.974204 | BI107: 9000 | BJ107: 24152.26601
A108: 108 | B108: 598-MT | C108: Miscellaneous Distribution Exp | F108: ='Labor Detail'!F108 -> 166261.1198 | G108: 195605 | AA108: ='Labor Detail'!H108 -> 4905.513208 | AC108: ='Labor Detail'!J108 -> -649.1131596 | AK108: -47235 | AS108: 152626.4 | AX108: ='Labor Detail'!K108 -> 4842.556888 | BE108: 157468.9569 | BF108: -38136.04306 | BG108: 157468.9569 | BI108: =ROUND(BG108,-3) -> 157000 | BJ108: 166261.1198
A109: 109 | C109: Total Distribution Maintenance | F109: =SUM(F100:F108) -> 3106752.032 | G109: 4713455 | H109: 0 | I109: 0 | J109: 0 | K109: 0 | L109: =SUM(L100:L108) -> 0 | M109: 0 | N109: =SUM(N100:N108) -> 0 | O109: 0 | P109: 0 | Q109: 0 | R109: 0 | S109: 0 | T109: 0 | U109: 0 | V109: 0 | W109: 0 | X109: 0 | Y109: 0 | Z109: 0 | AA109: 99002.85149 | AB109: 0 | AC109: -12127.41401 | AD109: 0 | AE109: 0 | AF109: =SUM(AF100:AF108) -> 0 | AG109: =SUM(AG100:AG108) -> 0 | AH109: 0 | AI109: 0 | AJ109: =SUM(AJ100:AJ108) -> 0 | AK109: -47235 | AL109: 0 | AM109: =SUM(AM100:AM108) -> 0 | AN109: =SUM(AN100:AN108) -> 0 | AO109: =SUM(AO100:AO108) -> 0 | AP109: =SUM(AP100:AP108) -> 0 | AQ109: 0 | AR109: =SUM(AR100:AR108) -> 0 | AS109: =SUM(AS100:AS108) -> 4753095.437 | AT109: =SUM(AT100:AT108) -> 0 | AU109: 0 | AV109: 0 | AW109: 0 | AX109: 90487.92327 | AY109: 0 | AZ109: 0 | BA109: 0 | BB109: 0 | BC109: =SUM(BC100:BC108) -> 0 | BD109: 0 | BE109: 4843583.361 | BF109: 130128.3607 | BG109: 4843583.361 | BH109: =IF(ROUND(SUM(G109:BD109)-AS109,0)=ROUND(BG109,0),"ok","error") -> ok | BI109: =SUM(BI100:BI108) -> 4844000
A110: 110 | C110: Total Distribution Expenses | F110: =F99+F109 -> 9357474.942 | G110: 11803323 | H110: 0 | I110: 0 | J110: 0 | K110: 0 | L110: 0 | M110: 0 | N110: 0 | O110: 0 | P110: 0 | Q110: 0 | R110: 0 | S110: 0 | T110: 0 | U110: 0 | V110: 0 | W110: 0 | X110: 0 | Y110: 0 | Z110: 0 | AA110: 253589.8136 | AB110: 0 | AC110: -36453.9792 | AD110: 0 | AE110: 0 | AF110: =AF99+AF109 -> 0 | AG110: =AG99+AG109 -> 0 | AH110: 0 | AI110: 0 | AJ110: =AJ99+AJ109 -> 0 | AK110: -47235 | AL110: 0 | AM110: =AM99+AM109 -> 0 | AN110: =AN99+AN109 -> 0 | AO110: =AO99+AO109 -> 1126000 | AP110: =AP99+AP109 -> 0 | AQ110: 0 | AR110: =AR99+AR109 -> 0 | AS110: =AS99+AS109 -> 13099223.83 | AT110: =AT99+AT109 -> 0 | AU110: 0 | AV110: 0 | AW110: 0 | AX110: 271914.1231 | AY110: 0 | AZ110: 0 | BA110: 0 | BB110: 326000 | BC110: =BC99+BC109 -> 0 | BD110: 0 | BE110: 13697137.96 | BF110: 1893814.957 | BG110: 13697137.96 | BH110: =IF(ROUND(SUM(G110:BD110)-AS110,0)=ROUND(BG110,0),"ok","error") -> ok | BI110: =BI99+BI109 -> 13697000
A111: 111
A112: 112 | C112: Customer Accounting Expenses
A113: 113 | B113: 901-OP | C113: Supervision | F113: ='Labor Detail'!F113 -> 42460.47324 | G113: 62163 | AA113: ='Labor Detail'!H113 -> 200.6283745 | AC113: ='Labor Detail'!J113 -> -166.0459537 | AS113: =SUM(G113:AR113) -> 62197.58242 | AX113: ='Labor Detail'!K113 -> 1236.712813 | BE113: =SUM(AS113:BD113) -> 63434.29523 | BF113: =SUM(H113:AR113,AT113:BD113) -> 1271.295234 | BG113: =G113+BF113 -> 63434.29523 | BI113: =ROUND(BG113,-3) -> 63000 | BJ113: =F113 -> 42460.47324
A114: 114 | B114: 902-OP | C114: Meter Reading | F114: ='Labor Detail'!F114 -> 1491570.613 | G114: 311067 | AA114: ='Labor Detail'!H114 -> 42272.11658 | AC114: ='Labor Detail'!J114 -> -5823.808558 | AS114: =SUM(G114:AR114) -> 347515.308 | AX114: ='Labor Detail'!K114 -> 43443.80425 | BE114: 390959.1123 | BF114: 79892.11227 | BG114: =G114+BF114 -> 390959.1123 | BI114: =ROUND(BG114,-3) -> 391000 | BJ114: =F114 -> 1491570.613
A115: 115 | B115: 903-OP | C115: Customer Records & Collections | F115: ='Labor Detail'!F115 -> 2139500.532 | G115: 3594689 | AA115: ='Labor Detail'!H115 -> 21691.20561 | AC115: ='Labor Detail'!J115 -> -8363.730671 | AL115: 89751 | AS115: =SUM(G115:AR115) -> 3697767.475 | AX115: ='Labor Detail'!K115 -> 62315.54947 | BE115: 3760083.024 | BF115: 165394.0244 | BG115: =G115+BF115 -> 3760083.024 | BI115: =ROUND(BG115,-3) -> 3760000 | BJ115: =F115 -> 2139500.532
A116: 116 | B116: 904-OP | C116: Uncollectible Accounts | F116: ='Labor Detail'!F116 -> 0 | G116: 71970 | M116: =427000-29000 -> 398000 | R116: -31734 | U116: 29000 | AA116: ='Labor Detail'!H116 -> 0 | AC116: ='Labor Detail'!J116 -> 0 | AS116: =SUM(G116:AR116) -> 467236 | AX116: ='Labor Detail'!K116 -> 0 | BE116: 467236 | BF116: 395266 | BG116: =G116+BF116 -> 467236 | BI116: =ROUND(BG116,-3) -> 467000 | BJ116: =F116 -> 0
A117: 117 | B117: 905-OP | C117: Misc Customer Accounts Expenses | F117: ='Labor Detail'!F117 -> 36535.00683 | G117: 74262 | AA117: ='Labor Detail'!H117 -> 456.1887742 | AC117: ='Labor Detail'!J117 -> -142.8003365 | AS117: =SUM(G117:AR117) -> 74575.38844 | AX117: ='Labor Detail'!K117 -> 1064.126413 | BE117: 75639.51485 | BF117: 1377.51485 | BG117: =G117+BF117 -> 75639.51485 | BI117: =ROUND(BG117,-3) -> 76000 | BJ117: =F117 -> 36535.00683
A118: 118 | C118: Total Customer Accounting Expenses | F118: =SUM(F113:F117) -> 3710066.624 | G118: 4114151 | H118: 0 | I118: 0 | J118: 0 | K118: 0 | L118: =SUM(L113:L117) -> 0 | M118: 398000 | N118: =SUM(N113:N117) -> 0 | O118: 0 | P118: 0 | Q118: 0 | R118: -31734 | S118: 0 | T118: 0 | U118: 29000 | V118: 0 | W118: 0 | X118: 0 | Y118: 0 | Z118: 0 | AA118: 64620.13934 | AB118: 0 | AC118: -14496.38552 | AD118: 0 | AE118: 0 | AF118: =SUM(AF113:AF117) -> 0 | AG118: =SUM(AG113:AG117) -> 0 | AH118: 0 | AI118: 0 | AJ118: =SUM(AJ113:AJ117) -> 0 | AK118: 0 | AL118: 89751 | AM118: =SUM(AM113:AM117) -> 0 | AN118: =SUM(AN113:AN117) -> 0 | AO118: =SUM(AO113:AO117) -> 0 | AP118: =SUM(AP113:AP117) -> 0 | AQ118: 0 | AR118: =SUM(AR113:AR117) -> 0 | AS118: =SUM(AS113:AS117) -> 4649291.754 | AT118: =SUM(AT113:AT117) -> 0 | AU118: 0 | AV118: 0 | AW118: 0 | AX118: 108060.1929 | AY118: 0 | AZ118: 0 | BA118: 0 | BB118: 0 | BC118: 0 | BD118: 0 | BE118: 4757351.947 | BF118: 643200.9468 | BG118: 4757351.947 | BH118: =IF(ROUND(SUM(G118:BD118)-AS118,0)=ROUND(BG118,0),"ok","error") -> ok | BI118: 4757000
A119: 119
A120: 120
A121: 121 | B121: Proforma | E121: AVISTA UTILITIES | J121: =$J$1 -> Idaho Jurisdiction | T121: Expense Page 3 | U121: AVISTA UTILITIES | Z121: =$Z$1 -> Idaho Jurisdiction | AH121: Expense Page 3A | AI121: AVISTA UTILITIES | AM121: =$J$1 -> Idaho Jurisdiction | AX121: Expense Page 3A | BG121: Expense Page 3B
A122: 122 | B122: =$B$2 -> Pro Forma Results of Operations | E122: Operation and Maintenance Expenses and Other Taxes | J122: =$J$2 -> Electric Utility | T122: =$T$2 -> 2022-09-01 | U122: =$E122 -> Operation and Maintenance Expenses and Other Taxes | Z122: =$Z$2 -> Electric Utility | AH122: =$T$2 -> 2022-09-01 | AI122: =$E122 -> Operation and Maintenance Expenses and Other Taxes | AM122: =$J$2 -> Electric Utility | AX122: =$T$2 -> 43343 | BG122: =$T$2 -> 2022-09-01
A123: 123 | B123: =$B$3 -> AVU-E-21-01 Company RY2 Settlement Case | E123: =$E$3 -> For the Twelve Months Ended December 31, 2019 | T123: =$T$3 ->  | U123: =$E$3 -> For the Twelve Months Ended December 31, 2019 | AH123: =$T$3 ->  | AI123: =$E$3 -> For the Twelve Months Ended December 31, 2019 | AX123: =$T$3 ->  | BG123: =$T$3 -> 
A124: 124
A125: 125 | B125: (a) | C125: (b) | E125: =E$5 -> E | F125: F | G125: G | H125: H | I125: I | J125: J | K125: K | L125: L | M125: M | N125: N | O125: O | P125: P | Q125: Q | R125: R | S125: S | T125: T | U125: U | V125: V | W125: W | X125: X | Y125: Y | Z125: Z | AA125: AA | AB125: AB | AC125: AC | AD125: AD | AE125: AE | AF125: =AF$5 -> AF | AG125: =AG$5 -> AG | AH125: AH | AI125: AI | AJ125: =AJ$5 -> AJ | AK125: AK | AL125: AL | AM125: =AM$5 -> AM | AN125: AN | AO125: =AO$5 -> AO | AP125: =AP$5 -> AP | AQ125: AQ | AR125: AR | AS125: =AS$5 -> AS | AT125: =AT$5 -> AT | AU125: AU | AV125: AV | AW125: AW | AX125: AX | AY125: AY | AZ125: AZ | BA125: BA | BB125: BB | BC125: BC | BD125: BD | BE125: BE | BF125: BF | BG125: BG
A126: 126 | E126: =E$6 -> Notes | F126: Labor | G126: O&M Expense | H126: Deferred | I126: Deferred | J126: Working | K126: Restate Capital | L126: Eliminate | M126: Uncollectible | N126: Regulatory | O126: Injuries and | P126: FIT/DFIT/ | Q126: SIT/SITC | R126: Revenue | S126: Misc | T126: Restate | U126: Elim Idaho | V126: Nez Perce | W126: Colstrip | X126: Restate | Y126: Pro Forma | Z126: Pro Forma | AA126: Pro Forma | AB126: Pro Forma | AC126: Pro Forma | AD126: Pro Forma | AE126: Pro Forma | AF126: =AF$6 -> Pro Forma | AG126: =AG$6 -> Pro Forma | AH126: Planned Cap | AI126: Planned Cap | AJ126: =AJ$6 -> Planned Cap | AK126: Pro Forma | AL126: Pro Forma | AM126: =AM$6 -> Restate 2019 | AN126: Pro Forma | AO126: =AO$6 -> Pro Forma | AP126: =AP$6 -> Pro Forma | AQ126: Remove 50% | AR126: Cost of | AS126: =AS$6 -> 9.2021 | AT126: =AT$6 -> Planned Cap | AU126: Planned Cap | AV126: Planned Cap | AW126: Pro Forma | AX126: Pro Forma | AY126: Pro Forma | AZ126: Pro Forma | BA126: Pro Forma | BB126: Pro Forma | BC126: Pro Forma | BD126: Remove 50% | BE126: 9.2022 | BF126: Net Total | BG126: Total
A127: 127 | B127: Account | C127: Description | E127: =E$7 -> 0 | F127: Dollars | G127: Totals per Books | H127: FIT Rate Base | I127: Debits & Credits | J127: Capital Adj | K127: 2019 EOP | L127: B&O Taxes | M127: Expense | N127: Expense | O127: Damages | P127: ITC/PTC | Q127: Expense | R127: Normalization | S127: Restating | T127: Incentives | U127: PCA | V127: Settlement | W127: CS2 O&M | X127: Debt Interest | Y127: Power Supply | Z127: Transmission | AA127: Labor Non-Exec | AB127: Labor Exec | AC127: Empl Benefits | AD127: IS/IT Costs | AE127: Property Tax | AF127: =AF$7 -> Insurance Exp | AG127: =AG$7 -> ARAM DFIT | AH127: 2020 EOP | AI127: 08.2021 EOP | AJ127: =AJ$7 -> 08.2022 AMA | AK127: O&M Offsets | AL127: Fee Free Amort | AM127: =AM$7 -> ADFIT | AN127: Colstrip Amort | AO127: =AO$7 -> Wildfire Expenses | AP127: =AP$7 -> Exclude EIM | AQ127: RY1 CXP projects | AR127: Service | AS127: =AS$7 -> FINAL | AT127: =AT$7 -> 08.2022 AMA | AU127: 08.2022 EOP | AV127: 08.2023 AMA | AW127: Property Tax | AX127: Labor Non-Exec | AY127: IS/IT Expenses | AZ127: Colstrip/CS2 Maint | BA127: Colstrip/CS2 Amort | BB127: Wildfire Expenses | BC127: ADD EIM | BD127: RY2 CXP projects | BE127: FINAL | BF127: All 2021 and 2022 | BG127: 2022 | BH127: 0 | BI127: 2021 Proforma | BJ127: Labor
A128: 128 | E128: =E$8 -> 0 | F128: 0 | G128: E-ROO 1.00 | H128: E-DFIT 1.01 | I128: E-DDC 1.02 | J128: E-WC 1.03 | K128: E-RCAP 1.04 | L128: E-EBO 2.01 | M128: E-UE 2.02 | N128: E-RE 2.03 | O128: E-ID 2.04 | P128: E-FIT 2.05 | Q128: E-SIT 2.06 | R128: E-RN 2.07 | S128: E-MR 2.08 | T128: E-RI 2.09 | U128: E-PCA 2.10 | V128: E-NPS 2.11 | W128: E-CCOM 2.12 | X128: E-RDI 2.13 | Y128: E-PPS 3.00P | Z128: E-PTR 3.00T | AA128: E-PLE 3.01 | AB128: E-PEB 3.02 | AC128: E-PEB 3.03 | AD128: E-ISIT 3.04 | AE128: E-PPT 3.05 | AF128: =AF$8 -> E-Ins 3.06 | AG128: =AG$8 -> E-ARAM 3.07 | AH128: E-CAP20E 3.08 | AI128: E-CAP21E 3.09 | AJ128: =AJ$8 -> E-CAP22A 3.10 | AK128: E-POFF 3.11 | AL128: E-PFee 3.12 | AM128: =AM$8 -> E-ADFIT 3.13 | AN128: E-Cols21 3.14 | AO128: =AO$8 -> E-PWF 3.15 | AP128: =AP$8 -> E-EIM Staff 1 | AQ128: E-CXP Staff 2 | AR128: Reclass | AS128: =AS$8 -> TOTAL | AT128: =AT$8 -> E-CAP 22A M3.10 | AU128: E-CAP22E 22.01 | AV128: E-CAP23A 22.02 | AW128: E-PPT22 22.03 | AX128: E-PLN22 22.04 | AY128: E-PLN22 22.05 | AZ128: E-CCOM22 22.06 | BA128: E-Cols22 22.07 | BB128: E-WF22 22.08 | BC128: E-EIM Staff1 | BD128: E-CXP Staff 2 | BE128: TOTAL | BF128: Adjustments | BG128: =BG$11 -> 158532.4372 | BH128: =BH$8 -> 0 | BI128: =BI$8 -> Totals | BJ128: =BJ$8 -> Totals
A129: 129 | C129: Customer Information Expenses | BH129: =BH$9 -> 0 | BI129: =BI$9 -> 0 | BJ129: =BJ$9 -> 0
A130: 130 | B130: 907-OP | C130: Supervision | F130: ='Labor Detail'!F130 -> 0 | G130: 0 | AA130: ='Labor Detail'!H130 -> 0 | AC130: ='Labor Detail'!J130 -> 0 | AS130: =SUM(G130:AR130) -> 0 | AX130: ='Labor Detail'!K130 -> 0 | BE130: =SUM(AS130:BD130) -> 0 | BF130: =SUM(H130:AR130,AT130:BD130) -> 0 | BG130: =G130+BF130 -> 0 | BI130: =ROUND(BG130,-3) -> 0 | BJ130: =F130 -> 0
A131: 131 | B131: 908-OP | C131: Customer Assistance Expenses | F131: ='Labor Detail'!F131 -> 205997.3897 | G131: 10463045 | R131: -10312000 | S131: 1308 | AA131: ='Labor Detail'!H131 -> 973.3504668 | AC131: ='Labor Detail'!J131 -> -805.5735231 | AS131: =SUM(G131:AR131) -> 152520.7769 | AX131: ='Labor Detail'!K131 -> 5999.923971 | BE131: 158520.7009 | BF131: -10304524.3 | BG131: =G131+BF131 -> 158520.7009 | BI131: =ROUND(BG131,-3)-1000 -> 158000 | BJ131: =F131 -> 205997.3897
A132: 132 | B132: 909-OP | C132: Advertising | F132: ='Labor Detail'!F132 -> 71287.03746 | G132: 412738 | AA132: ='Labor Detail'!H132 -> 336.8356817 | AC132: ='Labor Detail'!J132 -> -278.775134 | AS132: =SUM(G132:AR132) -> 412796.0605 | AX132: ='Labor Detail'!K132 -> 2076.321479 | BE132: 414872.382 | BF132: 2134.382027 | BG132: =G132+BF132 -> 414872.382 | BI132: =ROUND(BG132,-3) -> 415000 | BJ132: =F132 -> 71287.03746
A133: 133 | B133: 910-OP | C133: Misc Customer Service & Info Exp | F133: ='Labor Detail'!F133 -> 14155.54182 | G133: 94651 | AA133: ='Labor Detail'!H133 -> 66.88581471 | AC133: ='Labor Detail'!J133 -> -55.35667084 | AS133: =SUM(G133:AR133) -> 94662.52914 | AX133: ='Labor Detail'!K133 -> 412.2973345 | BE133: 95074.82648 | BF133: 423.8264784 | BG133: =G133+BF133 -> 95074.82648 | BI133: =ROUND(BG133,-3) -> 95000 | BJ133: =F133 -> 14155.54182
A134: 134 | C134: Total Customer Information Expenses | F134: =SUM(F130:F133) -> 291439.969 | G134: 10970434 | H134: 0 | I134: 0 | J134: 0 | K134: 0 | L134: =SUM(L130:L133) -> 0 | M134: 0 | N134: =SUM(N130:N133) -> 0 | O134: 0 | P134: 0 | Q134: 0 | R134: -10312000 | S134: 1308 | T134: 0 | U134: 0 | V134: 0 | W134: 0 | X134: 0 | Y134: 0 | Z134: 0 | AA134: 1377.071963 | AB134: 0 | AC134: -1139.705328 | AD134: 0 | AE134: 0 | AF134: =SUM(AF130:AF133) -> 0 | AG134: =SUM(AG130:AG133) -> 0 | AH134: 0 | AI134: 0 | AJ134: =SUM(AJ130:AJ133) -> 0 | AK134: 0 | AL134: 0 | AM134: =SUM(AM130:AM133) -> 0 | AN134: =SUM(AN130:AN133) -> 0 | AO134: =SUM(AO130:AO133) -> 0 | AP134: =SUM(AP130:AP133) -> 0 | AQ134: 0 | AR134: =SUM(AR130:AR133) -> 0 | AS134: =SUM(AS130:AS133) -> 659979.3666 | AT134: =SUM(AT130:AT133) -> 0 | AU134: 0 | AV134: 0 | AW134: 0 | AX134: 8488.542785 | AY134: 0 | AZ134: 0 | BA134: 0 | BB134: 0 | BC134: 0 | BD134: 0 | BE134: 668467.9094 | BF134: -10301966.09 | BG134: 668467.9094 | BH134: =IF(ROUND(SUM(G134:BD134)-AS134,0)=ROUND(BG134,0),"ok","error") -> ok | BI134: 668000
A135: 135
A136: 136 | C136: Sales Expenses
A137: 137 | B137: 911-OP | C137: Supervision | F137: ='Labor Detail'!F137 -> 0 | G137: 0 | AA137: ='Labor Detail'!H137 -> 0 | AC137: ='Labor Detail'!J137 -> 0 | AS137: =SUM(G137:AR137) -> 0 | AX137: ='Labor Detail'!K137 -> 0 | BE137: =SUM(AS137:BD137) -> 0 | BF137: =SUM(H137:AR137,AT137:BD137) -> 0 | BG137: =G137+BF137 -> 0 | BI137: =ROUND(BG137,-3) -> 0 | BJ137: =F137 -> 0
A138: 138 | B138: 912-OP | C138: Demonstrating & Selling Expenses | F138: ='Labor Detail'!F138 -> 0 | G138: 0 | AA138: ='Labor Detail'!H138 -> 0 | AC138: ='Labor Detail'!J138 -> 0 | AS138: =SUM(G138:AR138) -> 0 | AX138: ='Labor Detail'!K138 -> 0 | BE138: 0 | BF138: 0 | BG138: =G138+BF138 -> 0 | BI138: =ROUND(BG138,-3) -> 0 | BJ138: =F138 -> 0
A139: 139 | B139: 913-OP | C139: Advertising Expenses | F139: ='Labor Detail'!F139 -> 0 | G139: 0 | AA139: ='Labor Detail'!H139 -> 0 | AC139: ='Labor Detail'!J139 -> 0 | AS139: =SUM(G139:AR139) -> 0 | AX139: ='Labor Detail'!K139 -> 0 | BE139: 0 | BF139: 0 | BG139: =G139+BF139 -> 0 | BI139: =ROUND(BG139,-3) -> 0 | BJ139: =F139 -> 0
A140: 140 | B140: 916-OP | C140: Misc Sales Expenses | F140: ='Labor Detail'!F140 -> 0 | G140: 0 | AA140: ='Labor Detail'!H140 -> 0 | AC140: ='Labor Detail'!J140 -> 0 | AS140: =SUM(G140:AR140) -> 0 | AX140: ='Labor Detail'!K140 -> 0 | BE140: 0 | BF140: 0 | BG140: =G140+BF140 -> 0 | BI140: =ROUND(BG140,-3) -> 0 | BJ140: =F140 -> 0
A141: 141 | C141: Total Sales Expenses | F141: =SUM(F137:F140) -> 0 | G141: 0 | H141: 0 | I141: 0 | J141: 0 | K141: 0 | L141: =SUM(L137:L140) -> 0 | M141: 0 | N141: =SUM(N137:N140) -> 0 | O141: 0 | P141: 0 | Q141: 0 | R141: 0 | S141: 0 | T141: 0 | U141: 0 | V141: 0 | W141: 0 | X141: 0 | Y141: 0 | Z141: 0 | AA141: 0 | AB141: 0 | AC141: 0 | AD141: 0 | AE141: 0 | AF141: =SUM(AF137:AF140) -> 0 | AG141: =SUM(AG137:AG140) -> 0 | AH141: 0 | AI141: 0 | AJ141: =SUM(AJ137:AJ140) -> 0 | AK141: 0 | AL141: 0 | AM141: =SUM(AM137:AM140) -> 0 | AN141: =SUM(AN137:AN140) -> 0 | AO141: =SUM(AO137:AO140) -> 0 | AP141: =SUM(AP137:AP140) -> 0 | AQ141: 0 | AR141: =SUM(AR137:AR140) -> 0 | AS141: =SUM(AS137:AS140) -> 0 | AT141: =SUM(AT137:AT140) -> 0 | AU141: 0 | AV141: 0 | AW141: 0 | AX141: 0 | AY141: 0 | AZ141: 0 | BA141: 0 | BB141: 0 | BC141: =SUM(BC137:BC140) -> 0 | BD141: 0 | BE141: 0 | BF141: 0 | BG141: 0 | BH141: =IF(ROUND(SUM(G141:BD141)-AS141,0)=ROUND(BG141,0),"ok","error") -> ok | BI141: 0
A142: 142
A143: 143 | C143: Subtotal Expenses | F143: =F59+F86+F110+F118+F134+F141 -> 23419145.94 | G143: 164217606 | H143: 0 | I143: 11916 | J143: 0 | K143: 478080 | L143: 0 | M143: 398000 | N143: =N59+N86+N110+N118+N134+N141 -> 0 | O143: =O59+O86+O110+O118+O134+O141 -> 0 | P143: =P59+P86+P110+P118+P134+P141 -> 0 | Q143: =Q59+Q86+Q110+Q118+Q134+Q141 -> 0 | R143: -19532734 | S143: 1308 | T143: 0 | U143: 7915000 | V143: -35000 | W143: 0 | X143: 0 | Y143: -33070617 | Z143: -233991.6 | AA143: 520586.258 | AB143: 0 | AC143: -91181.56891 | AD143: 0 | AE143: 0 | AF143: =AF59+AF86+AF110+AF118+AF134+AF141 -> 0 | AG143: =AG59+AG86+AG110+AG118+AG134+AG141 -> 0 | AH143: 0 | AI143: 0 | AJ143: =AJ59+AJ86+AJ110+AJ118+AJ134+AJ141 -> 0 | AK143: -56478 | AL143: 89751 | AM143: =AM59+AM86+AM110+AM118+AM134+AM141 -> 0 | AN143: =AN59+AN86+AN110+AN118+AN134+AN141 -> 0 | AO143: =AO59+AO86+AO110+AO118+AO134+AO141 -> 1471000 | AP143: =AP59+AP86+AP110+AP118+AP134+AP141 -> 0 | AQ143: 0 | AR143: =AR59+AR86+AR110+AR118+AR134+AR141 -> 0 | AS143: =AS59+AS86+AS110+AS118+AS134+AS141 -> 122083245.1 | AT143: =AT59+AT86+AT110+AT118+AT134+AT141 -> 0 | AU143: 0 | AV143: 0 | AW143: 0 | AX143: 679913.6432 | AY143: 0 | AZ143: 0 | BA143: 0 | BB143: 363000 | BC143: =BC59+BC86+BC110+BC118+BC134+BC141 -> 0 | BD143: 0 | BE143: 123126158.7 | BF143: -41091447.27 | BG143: 123126158.7 | BH143: =IF(ROUND(SUM(G143:BD143)-AS143,0)=ROUND(BG143,0),"ok","error") -> ok | BI143: 123125000
A144: 144
A145: 145 | C145: Administrative & General Expenses
A146: 146 | B146: 920-OP | C146: Admin & General Salaries | F146: ='Labor Detail'!F146 -> 7073280.282 | G146: 10507028 | T146: =342000-342000 -> 0 | AA146: ='Labor Detail'!H146 -> 36132.33313 | AB146: ='Labor Detail'!I146 -> -206000 | AC146: ='Labor Detail'!J146 -> -25607.71858 | AS146: =SUM(G146:AR146) -> 10311552.61 | AX146: ='Labor Detail'!K146-2000 -> 188736.6981 | BE146: =SUM(AS146:BD146) -> 10500289.31 | BF146: =SUM(H146:AR146,AT146:BD146) -> -6738.68732 | BG146: =G146+BF146 -> 10500289.31 | BI146: =ROUND(BG146,-3) -> 10500000 | BJ146: =F146 -> 7073280.282
A147: 147 | B147: 921-OP | C147: Office Supplies & Expenses | F147: ='Labor Detail'!F147 -> 127916.2577 | G147: 1506359 | AA147: ='Labor Detail'!H147 -> 881.856134 | AC147: ='Labor Detail'!J147 -> -496.4514309 | AD147: =847000-86000 -> 761000 | AS147: 2267744.405 | AX147: ='Labor Detail'!K147 -> 3698.122033 | AY147: 200000 | BE147: 2471442.527 | BF147: 965083.5267 | BG147: 2471442.527 | BI147: =ROUND(BG147,-3)+1000 -> 2472000 | BJ147: 127916.2577
A148: 148 | B148: 922-OP | C148: Admin Expenses Transferred - CR | F148: ='Labor Detail'!F148 -> 0 | G148: -31533 | AA148: ='Labor Detail'!H148 -> 0 | AC148: ='Labor Detail'!J148 -> 0 | AS148: -31533 | AX148: ='Labor Detail'!K148 -> 0 | BE148: -31533 | BF148: 0 | BG148: -31533 | BI148: -32000 | BJ148: 0
A149: 149 | B149: 923-OP | C149: Outside Services Employed | F149: ='Labor Detail'!F149 -> 14049.60382 | G149: 3017109 | AA149: ='Labor Detail'!H149 -> 84.95253355 | AC149: ='Labor Detail'!J149 -> -54.9375779 | AS149: 3017139.015 | AX149: ='Labor Detail'!K149 -> 409.2117617 | BE149: 3017548.227 | BF149: 439.2267174 | BG149: 3017548.227 | BI149: 3018000 | BJ149: 14049.60382
A150: 150 | B150: 924-OP | C150: Property Insurance Premium | F150: ='Labor Detail'!F150 -> 0 | G150: 447340 | AA150: ='Labor Detail'!H150 -> 0 | AC150: ='Labor Detail'!J150 -> 0 | AF150: =340869.45+(1116142*0.3-340869.45) -> 334842.6 | AS150: 782182.6 | AX150: ='Labor Detail'!K150 -> 0 | BE150: 782182.6 | BF150: 334842.6 | BG150: 782182.6 | BI150: 782000 | BJ150: 0
A151: 151 | B151: 925-OP | C151: Injuries & Damages | F151: ='Labor Detail'!F151 -> -0.0061622 | G151: 982231 | O151: =-12000-4000 -> -16000 | AA151: ='Labor Detail'!H151 -> 0 | AC151: ='Labor Detail'!J151 -> 2.646909482e-05 | AF151: =794942.06+(1116142*0.7-794942.06) -> 781299.4 | AS151: 1747530.4 | AX151: ='Labor Detail'!K151 -> 0 | BE151: 1747530.4 | BF151: 765299.4 | BG151: 1747530.4 | BI151: 1748000 | BJ151: -0.0061622
A152: 152 | B152: 926-OP | C152: Employee Pension & Benefits | F152: ='Labor Detail'!F152 -> 124119.4116 | G152: 527264 | AA152: ='Labor Detail'!H152 -> 1996.951715 | AC152: ='Labor Detail'!J152 -> -485.0159226 | AS152: 528775.9358 | AX152: ='Labor Detail'!K152 -> 3615.128493 | BE152: 532391.0643 | BF152: 5127.064285 | BG152: 532391.0643 | BI152: 532000 | BJ152: 124119.4116
A153: 153 | B153: 927-OP | C153: Franchise Requirements | F153: ='Labor Detail'!F153 -> 0 | G153: 1200 | AA153: ='Labor Detail'!H153 -> 0 | AC153: ='Labor Detail'!J153 -> 0 | AS153: 1200 | AX153: ='Labor Detail'!K153 -> 0 | BE153: 1200 | BF153: 0 | BG153: 1200 | BI153: =ROUND(BG153,-3) -> 1000 | BJ153: 0
A154: 154 | B154: 928-OP | C154: Regulatory Commission Expenses | F154: ='Labor Detail'!F154 -> 811627.1331 | G154: 2429023 | N154: =-335000+199000 -> -136000 | R154: =-58000+14292 -> -43708 | U154: 18000 | AA154: ='Labor Detail'!H154 -> 3508.823293 | AC154: ='Labor Detail'!J154 -> -2902.683474 | AS154: 2267921.14 | AX154: ='Labor Detail'!K154 -> 21619.23417 | BE154: 2289540.374 | BF154: -139482.626 | BG154: 2289540.374 | BI154: 2290000 | BJ154: 811627.1331
A155: 155 | B155: 930-OP | C155: Miscellaneous & General Expense | F155: ='Labor Detail'!F155 -> 134426.8593 | G155: 1584398 | S155: =-28242-970000 -> -998242 | AA155: ='Labor Detail'!H155 -> 2345.202153 | AC155: ='Labor Detail'!J155 -> -436.8009662 | AS155: 588064.4012 | AX155: ='Labor Detail'!K155 -> 3256.807136 | BE155: 591321.2083 | BF155: -993076.7917 | BG155: 591321.2083 | BI155: =ROUND(BG155,-3) -> 591000 | BJ155: 134426.8593
A156: 156 | B156: 931-OP | C156: Rents | F156: ='Labor Detail'!F156 -> 3.834383414 | G156: 99635 | AA156: ='Labor Detail'!H156 -> 0.0181176999 | AC156: ='Labor Detail'!J156 -> -0.01499474222 | AS156: 99635.00312 | AX156: ='Labor Detail'!K156 -> 0.1116810703 | BE156: 99635.1148 | BF156: 0.114804028 | BG156: 99635.1148 | BI156: 100000 | BJ156: 3.834383414
A157: 157 | B157: 935-MT | C157: Maintenance of General Plant | F157: ='Labor Detail'!F157 -> 627915.431 | G157: 4047561 | AA157: ='Labor Detail'!H157 -> 13456.26311 | AC157: ='Labor Detail'!J157 -> -2452.808165 | AS157: 4058564.455 | AX157: ='Labor Detail'!K157 -> 18288.79896 | BE157: 4076853.254 | BF157: 29292.25391 | BG157: 4076853.254 | BI157: =ROUND(BG157,-3) -> 4077000 | BJ157: 627915.431
A158: 158 | C158: Total Administrative & General Expenses | F158: =SUM(F146:F157) -> 8913338.807 | G158: 25117615 | H158: 0 | I158: 0 | J158: 0 | K158: 0 | L158: =SUM(L146:L157) -> 0 | M158: 0 | N158: =SUM(N146:N157) -> -136000 | O158: -16000 | P158: 0 | Q158: 0 | R158: -43708 | S158: -998242 | T158: 0 | U158: 18000 | V158: 0 | W158: 0 | X158: 0 | Y158: 0 | Z158: 0 | AA158: 58406.40019 | AB158: -206000 | AC158: -32436.43109 | AD158: =SUM(AD146:AD157) -> 761000 | AE158: 0 | AF158: =SUM(AF146:AF157) -> 1116142 | AG158: =SUM(AG146:AG157) -> 0 | AH158: 0 | AI158: 0 | AJ158: =SUM(AJ146:AJ157) -> 0 | AK158: 0 | AL158: 0 | AM158: =SUM(AM146:AM157) -> 0 | AN158: =SUM(AN146:AN157) -> 0 | AO158: =SUM(AO146:AO157) -> 0 | AP158: =SUM(AP146:AP157) -> 0 | AQ158: 0 | AR158: =SUM(AR146:AR157) -> 0 | AS158: =SUM(AS146:AS157) -> 25638776.97 | AT158: =SUM(AT146:AT157) -> 0 | AU158: 0 | AV158: 0 | AW158: 0 | AX158: 239624.1124 | AY158: 200000 | AZ158: 0 | BA158: 0 | BB158: 0 | BC158: =SUM(BC146:BC157) -> 0 | BD158: 0 | BE158: 26078401.08 | BF158: 960786.0815 | BG158: 26078401.08 | BH158: =IF(ROUND(SUM(G158:BD158)-AS158,0)=ROUND(BG158,0),"ok","error") -> ok | BI158: =SUM(BI146:BI157) -> 26079000
A159: 159
A160: 160 | C160: Total Operating & Maintenance Expenses | F160: =F143+F158 -> 32332484.75 | G160: 189335221 | H160: 0 | I160: 11916 | J160: 0 | K160: 478080 | L160: 0 | M160: 398000 | N160: =N143+N158 -> -136000 | O160: =O143+O158 -> -16000 | P160: =P143+P158 -> 0 | Q160: =Q143+Q158 -> 0 | R160: -19576442 | S160: -996934 | T160: 0 | U160: 7933000 | V160: -35000 | W160: 0 | X160: 0 | Y160: -33070617 | Z160: -233991.6 | AA160: 578992.6582 | AB160: -206000 | AC160: -123618 | AD160: 761000 | AE160: 0 | AF160: =AF143+AF158 -> 1116142 | AG160: =AG143+AG158 -> 0 | AH160: 0 | AI160: 0 | AJ160: =AJ143+AJ158 -> 0 | AK160: -56478 | AL160: 89751 | AM160: =AM143+AM158 -> 0 | AN160: =AN143+AN158 -> 0 | AO160: =AO143+AO158 -> 1471000 | AP160: =AP143+AP158 -> 0 | AQ160: 0 | AR160: =AR143+AR158 -> 0 | AS160: =AS143+AS158 -> 147722022.1 | AT160: =AT143+AT158 -> 0 | AU160: 0 | AV160: 0 | AW160: 0 | AX160: 919537.7556 | AY160: 200000 | AZ160: 0 | BA160: 0 | BB160: 363000 | BC160: =BC143+BC158 -> 0 | BD160: 0 | BE160: 149204559.8 | BF160: -40130661.19 | BG160: 149204559.8 | BH160: =IF(ROUND(SUM(G160:BD160)-AS160,0)=ROUND(BG160,0),"ok","error") -> ok | BI160: =BI143+BI158 -> 149204000
A161: 161 | F161: =F160-'Labor Detail'!F160 -> 0
A162: 162 | B162: Taxes Other Than Income Taxes | AS162: =SUM(G162:AR162) -> 0 | BE162: =SUM(AS162:BD162) -> 0
A163: 163 | B163: Property | C163: -Production | G163: 6051291 | AE163: 279019 | AS163: 6330310 | AW163: 342460 | BE163: 6672770 | BF163: =SUM(H163:AR163,AT163:BD163) -> 621479 | BG163: =G163+BF163 -> 6672770 | BI163: =ROUND(BG163,-3) -> 6673000
A164: 164 | C164: -Transmission | G164: 2078347 | AE164: 198560 | AS164: 2276907 | AW164: 172759 | BE164: 2449666 | BF164: 371319 | BG164: 2449666 | BI164: =ROUND(BG164,-3)-1000 -> 2449000
A165: 165 | C165: -Distribution | G165: 3126692 | AE165: 308065 | AS165: 3434757 | AW165: 267061 | BE165: 3701818 | BF165: 575126 | BG165: 3701818 | BI165: =ROUND(BG165,-3) -> 3702000
A166: 166 | C166: -Administrative & General | G166: 0 | AS166: 0 | BE166: 0 | BF166: 0 | BG166: 0 | BI166: =ROUND(BG166,-3) -> 0
A167: 167 | B167: Open | G167: 0 | AS167: 0 | BE167: 0 | BF167: 0 | BG167: 0 | BI167: 0
A168: 168 | B168: Open | G168: 0 | AS168: 0 | BE168: 0 | BF168: 0 | BG168: 0 | BI168: 0
A169: 169 | B169: Open | G169: 0 | AS169: 0 | BE169: 0 | BF169: 0 | BG169: 0 | BI169: 0
A170: 170 | B170: Open | G170: 0 | AS170: 0 | BE170: 0 | BF170: 0 | BG170: 0 | BI170: 0
A171: 171 | B171: State Kwh Generation-Production | G171: 498388 | AS171: 498388 | BE171: 498388 | BF171: 0 | BG171: 498388 | BI171: =ROUND(BG171,-3) -> 498000
A172: 172 | B172: Open | G172: 0 | AS172: 0 | BE172: 0 | BF172: 0 | BG172: 0 | BI172: 0
A173: 173 | B173: Misc | C173: -Production | G173: 14769 | AS173: 14769 | BE173: 14769 | BF173: 0 | BG173: 14769 | BI173: 15000
A174: 174 | C174: -Distribution | G174: 101 | AS174: 101 | BE174: 101 | BF174: 0 | BG174: 101 | BI174: 0
A175: 175 | B175: B&O | C175: -Distribution | G175: 3543617 | L175: -3544000 | AS175: -383 | BE175: -383 | BF175: -3544000 | BG175: -383 | BI175: 0
A176: 176 | B176: Excise | C176: -Distribution | G176: 0 | AS176: 0 | BE176: 0 | BF176: 0 | BG176: 0 | BI176: 0
A177: 177 | AS177: 0 | BE177: 0
A178: 178 | AS178: 0 | BE178: 0
A179: 179 | AS179: 0 | BE179: 0
A180: 180 | C180: Total Taxes Other Than Income Taxes | G180: =SUM(G163:G176) -> 15313205 | H180: =SUM(H163:H176) -> 0 | I180: 0 | J180: 0 | K180: 0 | L180: =SUM(L163:L176) -> -3544000 | M180: 0 | N180: =SUM(N163:N176) -> 0 | O180: =SUM(O163:O176) -> 0 | P180: =SUM(P163:P176) -> 0 | Q180: =SUM(Q163:Q176) -> 0 | R180: 0 | S180: 0 | T180: 0 | U180: 0 | V180: 0 | W180: 0 | X180: 0 | Y180: 0 | Z180: 0 | AA180: 0 | AB180: 0 | AC180: 0 | AD180: 0 | AE180: 785644 | AF180: =SUM(AF163:AF176) -> 0 | AG180: =SUM(AG163:AG176) -> 0 | AH180: 0 | AI180: 0 | AJ180: =SUM(AJ163:AJ176) -> 0 | AK180: 0 | AL180: 0 | AM180: =SUM(AM163:AM176) -> 0 | AN180: =SUM(AN163:AN176) -> 0 | AO180: =SUM(AO163:AO176) -> 0 | AP180: =SUM(AP163:AP176) -> 0 | AQ180: 0 | AR180: =SUM(AR163:AR176) -> 0 | AS180: =SUM(AS163:AS176) -> 12554849 | AT180: =SUM(AT163:AT176) -> 0 | AU180: 0 | AV180: 0 | AW180: 782280 | AX180: 0 | AY180: 0 | AZ180: 0 | BA180: 0 | BB180: 0 | BC180: 0 | BD180: 0 | BE180: 13337129 | BF180: -1976076 | BG180: 13337129 | BH180: =IF(ROUND(SUM(G180:BD180)-AS180,0)=ROUND(BG180,0),"ok","error") -> ok | BI180: 13337000
A181: 181 | B181: Proforma | E181: AVISTA UTILITIES | J181: =$J$1 -> Idaho Jurisdiction | T181: Expense Page 4 | U181: AVISTA UTILITIES | Z181: =$Z$1 -> Idaho Jurisdiction | AH181: Expense Page 4A | AI181: AVISTA UTILITIES | AM181: =$J$1 -> Idaho Jurisdiction | AX181: Expense Page 4A | BG181: Expense Page 4B
A182: 182 | B182: =$B$2 -> Pro Forma Results of Operations | E182: Depreciation Expense | J182: =$J$2 -> Electric Utility | T182: =$T$2 -> 2022-09-01 | U182: =$E182 -> Depreciation Expense | Z182: =$Z$2 -> Electric Utility | AH182: =$T$2 -> 2022-09-01 | AI182: =$E182 -> Depreciation Expense | AM182: =$J$2 -> Electric Utility | AX182: =$T$2 -> 43343 | BG182: =$T$2 -> 2022-09-01
A183: 183 | B183: =$B$3 -> AVU-E-21-01 Company RY2 Settlement Case | E183: =$E$3 -> For the Twelve Months Ended December 31, 2019 | T183: =$T$3 ->  | U183: =$E$3 -> For the Twelve Months Ended December 31, 2019 | AH183: =$T$3 ->  | AI183: =$E$3 -> For the Twelve Months Ended December 31, 2019 | AX183: =$T$3 ->  | BG183: =$T$3 -> 
A184: 184
A185: 185 | B185: (a) | C185: (b) | E185: =E$5 -> E | F185: F | G185: G | H185: H | I185: I | J185: J | K185: K | L185: L | M185: M | N185: N | O185: O | P185: P | Q185: Q | R185: R | S185: S | T185: T | U185: U | V185: V | W185: W | X185: X | Y185: Y | Z185: Z | AA185: AA | AB185: AB | AC185: AC | AD185: AD | AE185: AE | AF185: =AF$5 -> AF | AG185: =AG$5 -> AG | AH185: AH | AI185: AI | AJ185: =AJ$5 -> AJ | AK185: AK | AL185: AL | AM185: =AM$5 -> AM | AN185: AN | AO185: =AO$5 -> AO | AP185: =AP$5 -> AP | AQ185: AQ | AR185: AR | AS185: =AS$5 -> AS | AT185: =AT$5 -> AT | AU185: AU | AV185: AV | AW185: AW | AX185: AX | AY185: AY | AZ185: AZ | BA185: BA | BB185: BB | BC185: BC | BD185: BD | BE185: BE | BF185: BF | BG185: BG | BI185: =BI$5 -> BI | BJ185: =BJ$5 -> BJ
A186: 186 | E186: =E$6 -> Notes | G186: Expense | H186: =H$6 -> Deferred | I186: Deferred | J186: Working | K186: Restate Capital | L186: Eliminate | M186: Uncollectible | N186: Regulatory | O186: Injuries and | P186: FIT/DFIT/ | Q186: SIT/SITC | R186: Revenue | S186: Misc | T186: Restate | U186: Elim Idaho | V186: Nez Perce | W186: Colstrip | X186: Restate | Y186: Pro Forma | Z186: Pro Forma | AA186: Pro Forma | AB186: Pro Forma | AC186: Pro Forma | AD186: Pro Forma | AE186: Pro Forma | AF186: =AF$6 -> Pro Forma | AG186: =AG$6 -> Pro Forma | AH186: Planned Cap | AI186: Planned Cap | AJ186: =AJ$6 -> Planned Cap | AK186: Pro Forma | AL186: Pro Forma | AM186: =AM$6 -> Restate 2019 | AN186: Pro Forma | AO186: =AO$6 -> Pro Forma | AP186: =AP$6 -> Pro Forma | AQ186: Remove 50% | AR186: Cost of | AS186: =AS$6 -> 9.2021 | AT186: =AT$6 -> Planned Cap | AU186: Planned Cap | AV186: Planned Cap | AW186: Pro Forma | AX186: Pro Forma | AY186: Pro Forma | AZ186: Pro Forma | BA186: Pro Forma | BB186: Pro Forma | BC186: Pro Forma | BD186: Remove 50% | BE186: 9.2022 | BF186: Net Total | BG186: Total | BI186: =BI$6 -> Transfer | BJ186: =BJ$6 -> Transfer
A187: 187 | B187: Account | C187: Description | E187: =E$7 -> 0 | G187: =G$7 -> Totals per Books | H187: FIT Rate Base | I187: Debits & Credits | J187: Capital Adj | K187: 2019 EOP | L187: B&O Taxes | M187: Expense | N187: Expense | O187: Damages | P187: ITC/PTC | Q187: Expense | R187: Normalization | S187: Restating | T187: Incentives | U187: PCA | V187: Settlement | W187: CS2 O&M | X187: Debt Interest | Y187: Power Supply | Z187: Transmission | AA187: Labor Non-Exec | AB187: Labor Exec | AC187: Empl Benefits | AD187: IS/IT Costs | AE187: Property Tax | AF187: =AF$7 -> Insurance Exp | AG187: =AG$7 -> ARAM DFIT | AH187: 2020 EOP | AI187: 08.2021 EOP | AJ187: =AJ$7 -> 08.2022 AMA | AK187: O&M Offsets | AL187: Fee Free Amort | AM187: =AM$7 -> ADFIT | AN187: Colstrip Amort | AO187: =AO$7 -> Wildfire Expenses | AP187: =AP$7 -> Exclude EIM | AQ187: RY1 CXP projects | AR187: Service | AS187: =AS$7 -> FINAL | AT187: =AT$7 -> 08.2022 AMA | AU187: 08.2022 EOP | AV187: 08.2023 AMA | AW187: Property Tax | AX187: Labor Non-Exec | AY187: IS/IT Expenses | AZ187: Colstrip/CS2 Maint | BA187: Colstrip/CS2 Amort | BB187: Wildfire Expenses | BC187: ADD EIM | BD187: RY2 CXP projects | BE187: FINAL | BF187: All 2021 and 2022 | BG187: 2022 | BH187: 0 | BI187: 2021 Proforma | BJ187: Labor
A188: 188 | E188: =E$8 -> 0 | G188: =G$8 -> E-ROO 1.00 | H188: E-DFIT 1.01 | I188: E-DDC 1.02 | J188: E-WC 1.03 | K188: E-RCAP 1.04 | L188: E-EBO 2.01 | M188: E-UE 2.02 | N188: E-RE 2.03 | O188: E-ID 2.04 | P188: E-FIT 2.05 | Q188: E-SIT 2.06 | R188: E-RN 2.07 | S188: E-MR 2.08 | T188: E-RI 2.09 | U188: E-PCA 2.10 | V188: E-NPS 2.11 | W188: E-CCOM 2.12 | X188: E-RDI 2.13 | Y188: E-PPS 3.00P | Z188: E-PTR 3.00T | AA188: E-PLE 3.01 | AB188: E-PEB 3.02 | AC188: E-PEB 3.03 | AD188: E-ISIT 3.04 | AE188: E-PPT 3.05 | AF188: =AF$8 -> E-Ins 3.06 | AG188: =AG$8 -> E-ARAM 3.07 | AH188: E-CAP20E 3.08 | AI188: E-CAP21E 3.09 | AJ188: =AJ$8 -> E-CAP22A 3.10 | AK188: E-POFF 3.11 | AL188: E-PFee 3.12 | AM188: =AM$8 -> E-ADFIT 3.13 | AN188: E-Cols21 3.14 | AO188: =AO$8 -> E-PWF 3.15 | AP188: =AP$8 -> E-EIM Staff 1 | AQ188: E-CXP Staff 2 | AR188: Reclass | AS188: =AS$8 -> TOTAL | AT188: =AT$8 -> E-CAP 22A M3.10 | AU188: E-CAP22E 22.01 | AV188: E-CAP23A 22.02 | AW188: E-PPT22 22.03 | AX188: E-PLN22 22.04 | AY188: E-PLN22 22.05 | AZ188: E-CCOM22 22.06 | BA188: E-Cols22 22.07 | BB188: E-WF22 22.08 | BC188: E-EIM Staff1 | BD188: E-CXP Staff 2 | BE188: TOTAL | BF188: Adjustments | BG188: =BG$11 -> 158532.4372 | BH188: =BH$8 -> 0 | BI188: =BI$8 -> Totals | BJ188: =BJ$8 -> Totals
A189: 189 | B189: Depreciation Expense | BH189: =BH$9 -> 0 | BI189: =BI$9 -> 0
A190: 190 | C190: Production Plant Depreciation Expense
A191: 191 | B191: 31X | C191: Steam Production Depr Exp | G191: =ROUND('Depreciation Detail'!D8,0)+152192 -> 4846302 | AH191: ='Depreciation Detail'!G8 -> 114000 | AI191: ='Depreciation Detail'!H8 -> -13000 | AJ191: ='Depreciation Detail'!I8-AT191 -> 0 | AS191: =SUM(G191:AR191) -> 4947302 | AT191: ='Depreciation Detail'!I8 -> -15000 | AU191: ='Depreciation Detail'!J8 -> 87000 | AV191: ='Depreciation Detail'!K8 -> 0 | BE191: =SUM(AS191:BD191) -> 5019302 | BF191: =SUM(H191:AR191,AT191:BD191) -> 173000 | BG191: =G191+BF191 -> 5019302 | BI191: =ROUND(BG191,-3) -> 5019000
A192: 192 | B192: 32X | C192: Nuclear Production Depr Exp | G192: =ROUND('Depreciation Detail'!D9,0) -> 0 | AI192: ='Depreciation Detail'!H9 -> 0 | AJ192: ='Depreciation Detail'!I9-AT192 -> 0 | AS192: =SUM(G192:AR192) -> 0 | AT192: ='Depreciation Detail'!I9 -> 0 | AU192: ='Depreciation Detail'!J9 -> 0 | AV192: ='Depreciation Detail'!K9 -> 0 | BE192: 0 | BF192: 0 | BG192: =G192+BF192 -> 0 | BI192: =ROUND(BG192,-3) -> 0
A193: 193 | B193: 33X | C193: Hydraulic Production Depr Exp | G193: =ROUND('Depreciation Detail'!D10,0) -> 4667359 | K193: -5000 | AH193: ='Depreciation Detail'!G10 -> 383000 | AI193: ='Depreciation Detail'!H10 -> 309000 | AJ193: ='Depreciation Detail'!I10-AT193 -> 0 | AS193: =SUM(G193:AR193) -> 5354359 | AT193: ='Depreciation Detail'!I10 -> -21000 | AU193: ='Depreciation Detail'!J10 -> 182400 | AV193: ='Depreciation Detail'!K10 -> 0 | BE193: 5515759 | BF193: 848400 | BG193: =G193+BF193 -> 5515759 | BI193: =ROUND(BG193,-3) -> 5516000
A194: 194 | B194: 34X | C194: Other Production Depr Exp | G194: =ROUND('Depreciation Detail'!D11,0) -> 3648095 | AH194: ='Depreciation Detail'!G11 -> -23000 | AI194: ='Depreciation Detail'!H11 -> 13000 | AJ194: ='Depreciation Detail'!I11-AT194 -> 0 | AS194: =SUM(G194:AR194) -> 3638095 | AT194: ='Depreciation Detail'!I11 -> -6000 | AU194: ='Depreciation Detail'!J11 -> 22800 | AV194: ='Depreciation Detail'!K11 -> 0 | BE194: 3654895 | BF194: 6800 | BG194: =G194+BF194 -> 3654895 | BI194: =ROUND(BG194,-3) -> 3655000
A195: 195 | C195: Total Production Plant Depreciation Expense | G195: =SUM(G191:G194) -> 13161756 | H195: 0 | I195: 0 | J195: 0 | K195: -5000 | L195: =SUM(L191:L194) -> 0 | M195: 0 | N195: =SUM(N191:N194) -> 0 | O195: 0 | P195: 0 | Q195: 0 | R195: 0 | S195: 0 | T195: 0 | U195: 0 | V195: 0 | W195: 0 | X195: 0 | Y195: 0 | Z195: 0 | AA195: 0 | AB195: 0 | AC195: 0 | AD195: =SUM(AD191:AD194) -> 0 | AE195: 0 | AF195: =SUM(AF191:AF194) -> 0 | AG195: =SUM(AG191:AG194) -> 0 | AH195: 474000 | AI195: 309000 | AJ195: =SUM(AJ191:AJ194) -> 0 | AK195: 0 | AL195: 0 | AM195: =SUM(AM191:AM194) -> 0 | AN195: =SUM(AN191:AN194) -> 0 | AO195: =SUM(AO191:AO194) -> 0 | AP195: =SUM(AP191:AP194) -> 0 | AQ195: 0 | AR195: =SUM(AR191:AR194) -> 0 | AS195: =SUM(AS191:AS194) -> 13939756 | AT195: -42000 | AU195: 292200 | AV195: 0 | AW195: 0 | AX195: 0 | AY195: 0 | AZ195: 0 | BA195: 0 | BB195: 0 | BC195: 0 | BD195: 0 | BE195: 14189956 | BF195: 1028200 | BG195: 14189956 | BH195: =IF(ROUND(SUM(G195:BD195)-AS195,0)=ROUND(BG195,0),"ok","error") -> ok | BI195: 14190000
A196: 196
A197: 197 | C197: Transmission Plant Depreciation Expense
A198: 198 | B198: 350 | C198: Land & Land Rights Depr Exp | G198: =ROUND('Depreciation Detail'!D15,0) -> 98317 | AH198: ='Depreciation Detail'!G15 -> 18143.5185 | AI198: ='Depreciation Detail'!H15 -> 4818.836198 | AJ198: ='Depreciation Detail'!I15-AT198 -> 0 | AS198: =SUM(G198:AR198) -> 121279.3547 | AT198: ='Depreciation Detail'!I15 -> -411.5731984 | AU198: ='Depreciation Detail'!J15 -> 5257.847609 | AV198: ='Depreciation Detail'!K15 -> 0 | BE198: =SUM(AS198:BD198) -> 126125.6291 | BF198: =SUM(H198:AR198,AT198:BD198) -> 27808.6291 | BG198: =G198+BF198 -> 126125.6291 | BI198: =ROUND(BG198,-3) -> 126000
A199: 199 | B199: 352 | C199: Structures & Improvements Depr Exp | G199: =ROUND('Depreciation Detail'!D16,0) -> 140101 | AH199: ='Depreciation Detail'!G16 -> 25854.33868 | AI199: ='Depreciation Detail'!H16 -> 6866.795056 | AJ199: ='Depreciation Detail'!I16-AT199 -> 0 | AS199: 172822.1337 | AT199: ='Depreciation Detail'!I16 -> -586.487834 | AU199: ='Depreciation Detail'!J16 -> 7492.382079 | AV199: ='Depreciation Detail'!K16 -> 0 | BE199: 179728.028 | BF199: 39627.02798 | BG199: 179728.028 | BI199: =ROUND(BG199,-3) -> 180000
A200: 200 | B200: 353 | C200: Station Equipment Depr Exp | G200: =ROUND('Depreciation Detail'!D17,0) -> 2337933 | AH200: ='Depreciation Detail'!G17 -> 431444.4312 | AI200: ='Depreciation Detail'!H17 -> 114589.6835 | AJ200: ='Depreciation Detail'!I17-AT200 -> 0 | AN200: 3000 | AP200: -14000 | AS200: 2872967.115 | AT200: ='Depreciation Detail'!I17 -> -9787.019232 | AU200: ='Depreciation Detail'!J17 -> 125029.1707 | AV200: ='Depreciation Detail'!K17 -> 0 | BC200: =-AP200 -> 14000 | BE200: 3002209.266 | BF200: 664276.2661 | BG200: 3002209.266 | BI200: 3002000
... 280 more rows

Sheet Reconcile Other Rate Base
A1: 301 | B1: Proforma | E1: AVISTA UTILITIES | AG1: UI Planner ROO Plant Detail | AH1: AMA | AI1: EB
A2: 302 | B2: Pro Forma Results of Operations | E2: Plant In Service | AG2: 2019 - Results of Operations - 12A | AH2: Idaho Electric | AI2: Idaho Electric
A3: 303 | B3: =PROFORMA!B3 -> AVU-E-21-01 Company RY2 Settlement Case | E3: =PROFORMA!E3 -> For the Twelve Months Ended December 31, 2019 | K3: Other Adjustment Detail from ROO
A4: 304 | O4: Plant | P4: Acc Depr | Q4: Balance | R4: ADFIT | S4: Rate Base | AG4: a-Dec 2019 | AH4: 0 | AI4: 0
A5: 305 | B5: (a) | C5: (b) | I5: G | AA5: =PROFORMA!AH6 -> Planned Cap | AB5: =PROFORMA!AI6 -> Planned Cap | AC5: =PROFORMA!AJ6 -> Planned Cap | AD5: =PROFORMA!AU6 -> Planned Cap | AE5: =PROFORMA!AV6 -> Planned Cap | AG5: T:[]
A6: 306 | E6: Notes | G6: ROO | H6: ROO | I6: Balance | K6: All Plant | L6: Reg Asset AFUDC | Q6: =924704-75488 -> 849216 | R6: 0 | S6: =Q6+R6 -> 849216 | W6: ROO | X6: Difference | Y6: Exclude | AA6: =PROFORMA!AH7 -> 2020 EOP | AB6: =PROFORMA!AI7 -> 08.2021 EOP | AC6: =PROFORMA!AJ7 -> 08.2022 AMA | AD6: =PROFORMA!AU7 -> 08.2022 EOP | AE6: =PROFORMA!AV7 -> 08.2023 AMA | AG6: U:[PLANT IN SERVICE]
A7: 307 | B7: Account | C7: Description | E7: 0 | F7: Check to ROO | G7: Net Electric Plant | H7: Other Rate Base | I7: Per Books | K7: Steam | L7: Colstrip 3 AFUDC Reallocation | O7: 7273650 | P7: =-7273650+65332 -> -7208318 | Q7: =O7+P7 -> 65332 | R7: 0 | S7: =Q7+R7 -> 65332 | W7: Ending Balance | X7: EOP> AMA | Y7: New Revenue & | AA7: =PROFORMA!AH8 -> E-CAP20E 3.08 | AB7: =PROFORMA!AI8 -> E-CAP21E 3.09 | AC7: =PROFORMA!AJ8 -> E-CAP22A 3.10 | AD7: =PROFORMA!AU8 -> E-CAP22E 22.01 | AE7: =PROFORMA!AV8 -> E-CAP23A 22.02 | AG7: V:[]
A8: 308 | E8: 0 | K8: Steam | L8: Colstrip Common AFUDC | O8: 2355642 | P8: -2187382 | Q8: =O8+P8 -> 168260 | R8: 0 | S8: 168260 | Y8: G.C. Crane Adj. | AG8: W:[INTANGIBLE PLANT]
A9: 309 | B9: Rate Base | K9: Steam | L9: Kettle Falls Disallowed Plant | O9: -1049714 | P9: 1047972 | Q9: -1742 | R9: 0 | S9: -1742 | AG9: X:[P-182324 CDA Lake CDR Fund - Allocated] | AH9: 2765979.87 | AI9: 2731619.86
A10: 310 | B10: Plant In Service | K10: Other | L10: Boulder Park | O10: -2600000 | P10: 1823395 | Q10: -776605 | R10: 163087 | S10: -613518 | AG10: Y:[P-182325 CDA Lake IPA Fund] | AH10: 687200 | AI10: 687200
A11: 311 | C11: Intangible Plant | K11: Hydro Relicensing | L11: CDA Settlement | O11: 315120 | P11: -276401 | Q11: 38719 | R11: -8131 | S11: 30588 | AG11: Z:[P-182333 CDA Settlement Costs] | AH11: 388331.11 | AI11: 382709.91
A12: 312 | B12: 303 | C12: Miscellaneous | G12: 5803358 | I12: =G12+H12 -> 5803358 | W12: 4971690 | X12: =W12-G12 -> -831668 | AG12: AA:[P-182381 CDA Settlement] | AH12: 10492785.11 | AI12: 10340899.2
A13: 313 | B13: 302.XX | C13: Franchises & Consents - Hydro Relicensing Costs | G13: 29469607 | H13: =ROUND(O11+O13+O14,-3) -> 644000 | I13: =G13+H13 -> 30113607 | K13: Hydro Relicensing | L13: Spokane River Relicensing | O13: 58860 | P13: =-58860+7246 -> -51614 | Q13: 7246 | R13: -1519 | S13: 5727 | W13: 29277740 | X13: =W13-G13 -> -191867 | AG13: AB:[P-302000 Franchises & Consents] | AH13: 15135311.32 | AI13: 15135311.32
A14: 314 | B14: 303.12x | C14: AMI/MDM Software | G14: 7041586 | I14: =G14+H14 -> 7041586 | K14: Hydro Relicensing | L14: Spokane River PM&Es | O14: 269959 | P14: =-269959+33744 -> -236215 | Q14: 33744 | R14: -7086 | S14: 26658 | W14: 6621973 | X14: -419613 | AG14: AC:[P-303000 Intangible Plant - (C-IPL)] | AH14: 5803358.22 | AI14: 4971689.8
A15: 315 | B15: 303.1X | C15: Miscellaneous - Computer Software | G15: 49060518 | I15: 49060518 | K15: Steam | L15: Colstrip Plant Adj & ARO | Q15: =-537452+1031963+2645307-3006384-3823586-192467+848337-149231+631341-482110 -> -3034282 | S15: -3034282 | W15: 51884915 | X15: 2824397 | AA15: =6383754-911754 -> 5472000 | AB15: =3225518+806482+378 -> 4032378 | AC15: =1809051+598000-51+489 -> 2407489 | AD15: =-53525+161125 -> 107600 | AE15: =697636-697636 -> 0 | AG15: AD:[P-303100 Misc Intangible Plant-Mainframe Software - (C-IPL)] | AH15: 27035615.01 | AI15: 29913441.45
A16: 316 | C16: Total Intangible Plant | F16: =PROFORMA!G316 -> 92019069 | G16: =SUM(G12:G15) -> 91375069 | H16: =SUM(H12:H15) -> 644000 | I16: 92019069 | K16: DSM | L16: Sandpoint Loans | Q16: 59355 | S16: 59355 | W16: =SUM(W12:W15) -> 92756318 | X16: 1381249 | AA16: =SUM(AA12:AA15) -> 5472000 | AB16: =SUM(AB12:AB15) -> 4032378 | AC16: =SUM(AC12:AC15) -> 2407489 | AD16: =SUM(AD12:AD15) -> 107600 | AE16: =SUM(AE12:AE15) -> 0 | AG16: AE:[P-303110 Misc Intangible Plant-PC Software - (C-IPL)] | AH16: 98365.04 | AI16: 44933.89
A17: 317 | K17: Cust Adv/Dep | L17: Customer Advances | Q17: -1176464 | S17: -1176464 | AG17: AF:[P-303115 Misc Intangible Plant-PC Software - (C-IPL)] | AH17: 21926539.27 | AI17: 21926539.27
A18: 318 | C18: Production Plant | K18: Cust Adv/Dep | L18: Customer Deposits | Q18: 0 | S18: 0 | AG18: AG:[P-303120 Misc Intangible Plant-Software 12.5 YR] | AH18: 6583912.8 | AI18: 6319921.99
A19: 319 | B19: 31X | C19: Steam Production | G19: 151017253 | H19: =ROUND(O7+O8+O9,-3) -> 8580000 | I19: =G19+H19 -> 159597253 | K19: Working Cap | L19: Working Capital | Q19: 21391932 | S19: 21391932 | W19: 151913476 | X19: =W19-G19 -> 896223 | AA19: =-1091000+1161000 -> 70000 | AB19: -511000 | AC19: -646000 | AD19: =-910000*0.6 -> -546000 | AE19: =4953000-4953000 -> 0 | AG19: AH:[P-303121 Misc. Intangible Plant - AMI Software] | AH19: 457673.34 | AI19: 302051.13
A20: 320 | B20: 32X | C20: Nuclear Production | G20: 0 | I20: 0 | K20: Tax Reform | L20: RB Reg Liab Non-plant Excess | Q20: 0 | S20: 0 | AG20: AI:[TOTAL INTANGIBLE PLANT] | AH20: 91375071.09 | AI20: 92756317.82
A21: 321 | B21: 33X | C21: Hydraulic Production | G21: 231399137 | I21: 231399137 | L21: Total | O21: =SUM(O6:O20) -> 6623517 | P21: =SUM(P6:P20) -> -7088563 | Q21: =SUM(Q6:Q20) -> 17624711 | R21: =SUM(R6:R20) -> 146351 | S21: =SUM(S6:S20) -> 17771062 | W21: 232464642 | X21: =W21-G21 -> 1065505 | Y21: -346000 | AA21: =3028000-543000 -> 2485000 | AB21: =3458000-333000-1117000+250 -> 2008250 | AC21: =13247000-114000+825237 -> 13958237 | AD21: =(13841000+349000)*0.6 -> 8514000 | AE21: =1791000-1791000 -> 0 | AG21: AJ:[]
A22: 322 | B22: 34X | C22: Other Production | G22: 105508313 | H22: =O10 -> -2600000 | I22: 102908313 | W22: 106052971 | X22: =W22-G22 -> 544658 | AA22: =718000-65000 -> 653000 | AB22: =408000-27000 -> 381000 | AC22: =261000-13000 -> 248000 | AD22: =(475000-4000)*0.6 -> 282600 | AE22: =464000-464000 -> 0 | AG22: AK:[PRODUCTION PLANT]
A23: 323 | C23: Total Production Plant | F23: =PROFORMA!G323 -> 493904703 | G23: =SUM(G19:G22) -> 487924703 | H23: 5980000 | I23: 493904703 | W23: =SUM(W19:W22) -> 490431089 | X23: 2506386 | AA23: =SUM(AA19:AA22) -> 3208000 | AB23: =SUM(AB19:AB22) -> 1878250 | AC23: =SUM(AC19:AC22) -> 13560237 | AD23: =SUM(AD19:AD22) -> 8250600 | AE23: =SUM(AE19:AE22) -> 0 | AG23: AL:[]
A24: 324 | AG24: AM:[STEAM PRODUCTION PLANT]
A25: 325 | C25: Transmission Plant | AG25: AN:[P-310XXX Land & Land Rights] | AH25: 1229562.87 | AI25: 1229562.87
A26: 326 | B26: 350 | C26: Land & Land Rights | G26: 9863044 | I26: =G26+H26 -> 9863044 | K26: Deferred Debits and Credits Adjustment Detail | W26: 10212155 | X26: =W26-G26 -> 349111 | AA26: =AA$35*$W26/$W$35 -> 766083.147 | AB26: =AB$35*$W26/$W$35 -> 523845.3144 | AC26: =AC$35*$W26/$W$35 -> 419526.2695 | AD26: =AD$35*$W26/$W$35 -> 114673.1519 | AE26: =AE$35*$W26/$W$35 -> 0 | AG26: AO:[P-311XXX Structures & Improvements] | AH26: 48209084.97 | AI26: 48313932.76
A27: 327 | B27: 352 | C27: Structures & Improvements | G27: 8876643 | I27: 8876643 | O27: Plant | P27: Acc Depr | Q27: Balance | R27: ADFIT | S27: Rate Base | W27: 8724011 | X27: -152632 | AA27: =AA$35*$W27/$W$35 -> 654447.3524 | AB27: 447509.0993 | AC27: 358391.7195 | AD27: 97962.65707 | AE27: 0 | AG27: AP:[P-312000 Boiler Plant] | AH27: 65952226.68 | AI27: 66622238.02
A28: 328 | B28: 353 | C28: Station Equipment | G28: 94931815 | I28: 94931815 | W28: 98548745 | X28: 3616930 | AA28: 7392811.087 | AB28: 5055181.626 | AC28: 4048488.038 | AD28: 1106612.189 | AE28: 0 | AG28: AQ:[P-313000 Generators] | AH28: 2569.23 | AI28: 2930.99
A29: 329 | B29: 354 | C29: Towers & Fixtures | G29: 5936434 | I29: 5936434 | K29: Gain on Ofc Bldg | L29: Gain on Sale of General Office Building | Q29: 0 | R29: 0 | S29: =Q29+R29 -> 0 | W29: 5942872 | X29: 6438 | AA29: 445815.2157 | AB29: 304847.0819 | AC29: 244139.5494 | AD29: 66733.01212 | AE29: 0 | AG29: AR:[P-314000 Turbogenerator Units] | AH29: 19630384.53 | AI29: 19784167.54
A30: 330 | B30: 355 | C30: Poles & Fixtures | G30: 92713353 | I30: 92713353 | K30: Steam | L30: Colstrip 3 AFUDC Reallocation | O30: =7273650-O7 -> 0 | P30: =-7208318-P7 -> 0 | Q30: =O30+P30 -> 0 | R30: =0-R7 -> 0 | S30: =Q30+R30 -> 0 | W30: 95799428 | X30: 3086075 | AA30: =AA$35*$W30/$W$35 -> 7186566.135 | AB30: 4914151.958 | AC30: 3935543.15 | AD30: 1075739.876 | AE30: 0 | AG30: AS:[P-315000 Accessory Electric Equipment] | AH30: 10151978.31 | AI30: 10207540.39
A31: 331 | B31: 356 | C31: Overhead Conductors & Devices | G31: 52094827 | I31: 52094827 | K31: Steam | L31: Colstrip Common AFUDC | O31: =2355642-O8 -> 0 | P31: =-2187382-P8 -> 0 | Q31: =O31+P31 -> 0 | R31: =0-R8 -> 0 | S31: 0 | W31: 54547530 | X31: 2452703 | AA31: 4091980.923 | AB31: 2798084.048 | AC31: 2240870.979 | AD31: 612518.826 | AE31: 0 | AG31: AT:[P-316000 Miscellaneous Power Plant Equipment] | AH31: 5841447.8 | AI31: 5753101.82
A32: 332 | B32: 357 | C32: Underground Conduit | G32: 1061689 | I32: 1061689 | K32: Steam | L32: Kettle Falls Disallowed Plant | O32: =-1049714-O9 -> 0 | P32: =1047972-P9 -> 0 | Q32: 0 | R32: =0-R9 -> 0 | S32: 0 | W32: 1117813 | X32: 56124 | AA32: 83854.74964 | AB32: 57339.62151 | AC32: 45920.95576 | AD32: 12552.01668 | AE32: 0 | AG32: AU:[TOTAL STEAM PRODUCTION PLANT] | AH32: 151017254.4 | AI32: 151913474.4
A33: 333 | B33: 358 | C33: Underground Conductors & Devices | G33: 837945 | I33: 837945 | K33: Other | L33: Boulder Park | O33: =-2600000-O10 -> 0 | P33: =1823395-P10 -> 0 | Q33: 0 | R33: =163087-R10 -> 0 | S33: 0 | W33: 894454 | X33: 56509 | AA33: 67099.07313 | AB33: 45882.14112 | AC33: 36745.12871 | AD33: 10043.89959 | AE33: 0 | AG33: AV:[]
A34: 334 | B34: 359 | C34: Roads & Trails | G34: 724901 | I34: 724901 | K34: Hydro Relicensing | L34: CDA Settlement | O34: =0-O11 -> -315120 | P34: 276401 | Q34: -38719 | R34: =0-R11 -> 8131 | S34: -30588 | W34: 724402 | X34: -499 | AA34: 54342.31696 | AB34: 37159.11024 | AC34: 29759.21034 | AD34: 8134.371301 | AE34: 0 | AG34: AW:[P-317000 ARO (Not Reported in ROO - Used in Check)] | AH34: 4983713.64 | AI34: 5898795.52
A35: 335 | C35: Total Transmission Plant | F35: =PROFORMA!G335 -> 267040651 | G35: =SUM(G26:G34) -> 267040651 | H35: =SUM(H26:H34) -> 0 | I35: 267040651 | O35: 0 | P35: 0 | Q35: 0 | R35: =0-R12 -> 0 | S35: 0 | W35: =SUM(W26:W34) -> 276511410 | X35: 9470759 | AA35: =26282277-5539277 -> 20743000 | AB35: =9267871+4916129 -> 14184000 | AC35: =14785571-3426186 -> 11359385 | AD35: =(6588449-1413499)*0.6 -> 3104970 | AE35: =18506711-18506711 -> 0 | AG35: AX:[]
A36: 336 | K36: Hydro Relicensing | L36: Spokane River Relicensing | O36: -58860 | P36: 51614 | Q36: -7246 | R36: =0-R13 -> 1519 | S36: -5727 | AG36: AY:[HYDRAULIC PRODUCTION PLANT:]
A37: 337 | C37: Distribution Plant | K37: Hydro Relicensing | L37: Spokane River PM&Es | O37: -269959 | P37: 236215 | Q37: -33744 | R37: =0-R14 -> 7086 | S37: -26658 | AG37: AZ:[P-330XXX Land & Land Rights] | AH37: 21968648.3 | AI37: 21995284.67
A38: 338 | B38: 360 | C38: Land & Land Rights | G38: 4128671 | I38: =G38+H38 -> 4128671 | K38: Steam | L38: Colstrip Plant Adj & ARO | Q38: =-3034282-Q15 -> 0 | R38: =-R15 -> 0 | S38: 0 | W38: 4322033 | X38: =W38-G38 -> 193362 | AA38: =AA$52*$W38/SUM($W$38:$W$45,$W$51) -> 188705.8144 | AB38: =AB$52*$W38/SUM($W$38:$W$45,$W$51) -> 155493.9749 | AC38: =AC$52*$W38/SUM($W$38:$W$45,$W$51) -> 110316.6994 | AD38: =AD$52*$W38/SUM($W$38:$W$45,$W$51) -> 61900.11321 | AE38: =AE$52*$W38/SUM($W$38:$W$45,$W$51) -> 0 | AG38: BA:[P-331XXX Structures & Improvements] | AH38: 31468694.76 | AI38: 33350642.54
A39: 339 | B39: 361 | C39: Structures & Improvements | G39: 6797811 | I39: 6797811 | K39: DSM | L39: Sandpoint Loans | Q39: =59355-Q16 -> 0 | S39: 0 | W39: 6794686 | X39: -3125 | AA39: =AA$52*$W39/SUM($W$38:$W$45,$W$51) -> 296665.1932 | AB39: 244452.7227 | AC39: 173429.3405 | AD39: 97313.42464 | AE39: 0 | AG39: BB:[P-332XXX Reservoirs, Dams, & Waterways] | AH39: 66770552.8 | AI39: 66209999.19
A40: 340 | B40: 362 | C40: Station Equipment | G40: 46057928 | I40: 46057928 | K40: Cust Adv/Dep | L40: Customer Advances | Q40: =-1176257-Q17 -> 207 | S40: 207 | W40: 46111264 | X40: 53336 | AA40: 2013280.238 | AB40: 1658947.011 | AC40: 1176955.949 | AD40: 660405.0598 | AE40: 0 | AG40: BC:[P-333000 Waterwheels, Turbines, & Generators] | AH40: 80831225.98 | AI40: 80457287.98
A41: 341 | B41: 363 | C41: Storage Battery Equipment | G41: 0 | I41: 0 | K41: Cust Adv/Dep | L41: Customer Deposits | Q41: =0-Q18 -> 0 | S41: 0 | W41: 0 | X41: 0 | AA41: 0 | AB41: 0 | AC41: 0 | AD41: 0 | AE41: 0 | AG41: BD:[P-334000 Accessory Electric Equipment] | AH41: 23900351.33 | AI41: 23979922.81
A42: 342 | B42: 364 | C42: Poles, Towers & Fixtures | G42: 147876196 | I42: 147876196 | K42: Working Cap | L42: Working Capital | Q42: =21391932-Q19 -> 0 | S42: 0 | W42: 151844143 | X42: 3967947 | Y42: =($Y$52-SUM($Y$46:$Y$48))*X42/SUM($X$42:$X$45) -> -1059593.333 | AA42: 6629720.936 | AB42: 5462903.536 | AC42: 3875709.574 | AD42: 2174710.291 | AE42: 0 | AG42: BE:[P-335XXX Miscellaneous Power Plant Equipment] | AH42: 4977111.14 | AI42: 5217390.45
A43: 343 | B43: 365 | C43: Overhead Conductors & Devices | G43: 98719360 | I43: 98719360 | K43: Tax Reform | L43: RB Reg Liab Non-plant Excess | Q43: =0-Q20 -> 0 | S43: 0 | W43: 100818443 | X43: =W43-G43 -> 2099083 | Y43: =($Y$52-SUM($Y$46:$Y$48))*X43/SUM($X$42:$X$45) -> -560535.2974 | AA43: 4401869.766 | AB43: 3627149.641 | AC43: 2573316.277 | AD43: 1443920.728 | AE43: 0 | AG43: BF:[P-336000 Roads, Railroads, & Bridges] | AH43: 1482553.22 | AI43: 1254113.81
A44: 344 | B44: 366 | C44: Underground Conduit | G44: 41848032 | I44: 41848032 | L44: Total | O44: =SUM(O29:O43) -> -643939 | P44: =SUM(P29:P43) -> 564230 | Q44: =SUM(Q29:Q43) -> -79502 | R44: =SUM(R29:R43) -> 16736 | S44: =SUM(S29:S43) -> -62766 | W44: 43170873 | X44: 1322841 | Y44: =($Y$52-SUM($Y$46:$Y$48))*X44/SUM($X$42:$X$45) -> -353249.0489 | AA44: 1884898.784 | AB44: 1553160.432 | AC44: 1101904.641 | AD44: 618292.8095 | AE44: 0 | AG44: BG:[TOTAL HYDRAULIC PRODUCTION PLANT] | AH44: 231399137.5 | AI44: 232464641.4
A45: 345 | B45: 367 | C45: Underground Conductors & Devices | G45: 72080774 | I45: 72080774 | W45: 74090735 | X45: 2009961 | Y45: -536736.321 | AA45: 3234901.836 | AB45: 2665565.693 | AC45: 1891111.276 | AD45: 1061126.762 | AE45: 0 | AG45: BH:[]
A46: 346 | B46: 368 | C46: Line Transformers | G46: 85380743 | I46: 85380743 | W46: 86895646 | X46: 1514903 | Y46: =-X46 -> -1514903 | AG46: BI:[OTHER PRODUCTION PLANT:]
A47: 347 | B47: 369 | C47: Services | G47: 60393573 | I47: 60393573 | W47: 61726743 | X47: 1333170 | Y47: =-X47 -> -1333170 | AG47: BJ:[P-304000 Land & Land Rights] | AH47: 0 | AI47: 0
A48: 348 | B48: 370 | C48: Meters | G48: 23136018 | I48: 23136018 | W48: 23988831 | X48: 852813 | Y48: =-X48 -> -852813 | AG48: BK:[P-340200 Land & Land Rights] | AH48: 311015.61 | AI48: 311015.61
A49: 349 | B49: 371 | C49: Installations on Customer Premises | G49: 0 | I49: 0 | W49: 0 | X49: 0 | AG49: BL:[P-341000 Structures & Improvements] | AH49: 5888404.97 | AI49: 5899409.41
A50: 350 | B50: 372 | C50: Leased Property on Customer Premises | G50: 0 | I50: 0 | W50: 0 | X50: 0 | AG50: BM:[P-342000 Fuel Holders, Producers, & Accessories] | AH50: 7349176.83 | AI50: 7349725.86
A51: 351 | B51: 373 | C51: Street Lights & Signal Systems | G51: 22481678 | I51: 22481678 | W51: 23246128 | X51: 764450 | AA51: 1014957.432 | AB51: 836326.9886 | AC51: 593340.2439 | AD51: 332930.8117 | AE51: 0 | AG51: BN:[P-343000 Prime Movers] | AH51: 8077359.87 | AI51: 8077133
A52: 352 | C52: Total Distribution Plant | F52: =PROFORMA!G352 -> 608900784 | G52: =SUM(G38:G51) -> 608900784 | H52: =SUM(H38:H51) -> 0 | I52: 608900784 | W52: =SUM(W38:W51) -> 623009525 | X52: 14108741 | Y52: -6211000 | AA52: =18700379+964621 -> 19665000 | AB52: =11300191+4903809 -> 16204000 | AC52: =10051538+1444546 -> 11496084 | AD52: =(10427658+323342)*0.6 -> 6450600 | AE52: =17149033-17149033 -> 0 | AG52: BO:[P-344000 Generators] | AH52: 75584920.26 | AI52: 76091509.06
A53: 353 | AG53: BP:[P-344010 Generators - Solar] | AH53: 57541.93 | AI53: 59151.23
A54: 354 | C54: General Plant | AG54: BQ:[P-345000 Accessory Electric Equipment] | AH54: 7640639.99 | AI54: 7668492.51
A55: 355 | B55: 389 | C55: Land & Land Rights | G55: 3082696 | I55: =G55+H55 -> 3082696 | W55: 3440921 | X55: =W55-G55 -> 358225 | AA55: =AA$75*$W55/$W$75 -> 71586.87799 | AB55: =AB$75*$W55/$W$75 -> 78942.34016 | AC55: =AC$75*$W55/$W$75 -> 112843.0508 | AD55: =AD$75*$W55/$W$75 -> 15642.67949 | AE55: =AE$75*$W55/$W$75 -> 0 | AG55: BR:[P-345010 Accessory Electric Equipment - Solar] | AH55: 11410.75 | AI55: 11410.75
A56: 356 | B56: 390 | C56: Structures & Improvements | G56: 36982750 | I56: 36982750 | W56: 39855477 | X56: 2872727 | AA56: =AA$75*$W56/$W$75 -> 829176.017 | AB56: 914372.8155 | AC56: 1307037.742 | AD56: 181185.9245 | AE56: 0 | AG56: BS:[P-346000 Miscellaneous Power Plant Equipment] | AH56: 587842.09 | AI56: 585123.39
A57: 357 | B57: 391 | C57: Office Furniture & Equipment | G57: 19386488 | I57: 19386488 | W57: 19357510 | X57: -28978 | AA57: 402724.6504 | AB57: 444104.1044 | AC57: 634818.5511 | AD57: 88000.66163 | AE57: 0 | AG57: BT:[TOTAL OTHER PRODUCTION PLANT] | AH57: 105508312.3 | AI57: 106052970.8
A58: 358 | B58: 392 | C58: Transportation Equipment | G58: 17385466 | I58: 17385466 | W58: 18238143 | X58: 852677 | AA58: 379436.7025 | AB58: 418423.349 | AC58: 598109.5458 | AD58: 82911.93706 | AE58: 0 | AG58: BU:[]
A59: 359 | B59: 393 | C59: Stores Equipment | G59: 1365135 | I59: 1365135 | W59: 1341943 | X59: -23192 | AA59: 27918.54559 | AB59: 30787.14123 | AC59: 44008.25885 | AD59: 6100.571399 | AE59: 0 | AG59: BV:[TOTAL PRODUCTION PLANT] | AH59: 487924704.2 | AI59: 490431086.7
A60: 360 | B60: 394 | C60: Tools, Shop & Garage Equipment | G60: 5378255 | I60: 5378255 | W60: 5530764 | X60: 152509 | AA60: 115065.1607 | AB60: 126887.962 | AC60: 181378.2655 | AD60: 25143.2592 | AE60: 0 | AG60: BW:[]
A61: 361 | B61: Proforma | I61: 0 | X61: 0 | AA61: 0 | AB61: 0 | AC61: 0 | AD61: 0 | AE61: 0 | AG61: BX:[P-347000 ARO (Not Reported in ROO - Used in Check)] | AH61: 120837.8 | AI61: 120837.8
A62: 362 | B62: Pro Forma Results of Operations | I62: 0 | X62: 0 | AA62: 0 | AB62: 0 | AC62: 0 | AD62: 0 | AE62: 0 | AG62: BY:[]
A63: 363 | B63: AVU-E-12-08 Company Case | I63: 0 | X63: 0 | AA63: 0 | AB63: 0 | AC63: 0 | AD63: 0 | AE63: 0 | AG63: BZ:[TRANSMISSION PLANT (E) / UNDERGROUND STORAGE PLANT (G):]
A64: 364 | I64: 0 | X64: 0 | AA64: 0 | AB64: 0 | AC64: 0 | AD64: 0 | AE64: 0 | AG64: CA:[P-350100 Land in Fee (G)] | AH64: 0 | AI64: 0
A65: 365 | B65: (a) | C65: (b) | G65: =G$5 -> 0 | I65: 0 | X65: 0 | AA65: 0 | AB65: 0 | AC65: 0 | AD65: 0 | AE65: 0 | AG65: CB:[P-350200 Land in Fee (E) / Storage Right-of-Way (G)] | AH65: 2356928.45 | AI65: 2466376.05
A66: 366 | G66: =G$306 -> 0 | I66: 0 | X66: 0 | AA66: 0 | AB66: 0 | AC66: 0 | AD66: 0 | AE66: 0 | AG66: CC:[P-350300 Removing Property of Others (E)] | AH66: 511127.65 | AI66: 511127.65
A67: 367 | B67: Account | C67: Description | G67: =G$307 -> 0 | I67: 0 | X67: 0 | AA67: 0 | AB67: 0 | AC67: 0 | AD67: 0 | AE67: 0 | AG67: CD:[P-350400 Land Easements (E)] | AH67: 6994987.44 | AI67: 7234651.91
A68: 368 | G68: =G$308 -> 0 | I68: 0 | X68: 0 | AA68: 0 | AB68: 0 | AC68: 0 | AD68: 0 | AE68: 0 | AG68: CE:[P-350XXX Land & Land Rights (E & G)] | AH68: 9863043.54 | AI68: 10212155.61
A69: 369 | B69: Plant In Service (continued) | I69: 0 | X69: 0 | AA69: 0 | AB69: 0 | AC69: 0 | AD69: 0 | AE69: 0 | AG69: CF:[P-351000 Energy Storage Eq (E)] | AH69: 0 | AI69: 0
A70: 370 | C70: General Plant (continued) | I70: 0 | X70: 0 | AA70: 0 | AB70: 0 | AC70: 0 | AD70: 0 | AE70: 0 | AG70: CG:[P-351100 S&I - Wells (G)] | AH70: 0 | AI70: 0
A71: 371 | B71: 395 | C71: Laboratory Equipment | G71: 708986 | I71: 708986 | W71: 778890 | X71: 69904 | AA71: 16204.47066 | AB71: 17869.45975 | AC71: 25543.25537 | AD71: 3540.891124 | AE71: 0 | AG71: CH:[P-351200 Computer Software (E) / S&I - Compress Station (G)] | AH71: 0 | AI71: 0
A72: 372 | B72: 396 | C72: Power Operated Equipment | G72: 12751839 | I72: 12751839 | W72: 12774347 | X72: 22508 | AA72: 265764.7822 | AB72: 293071.7811 | AC72: 418927.4578 | AD72: 58073.11931 | AE72: 0 | AG72: CI:[P-351300 S&I - Measuring/Regulating Station (G)] | AH72: 0 | AI72: 0
A73: 373 | B73: 397 | C73: Communication Equipment | G73: 34516649 | I73: 34516649 | W73: 32966375 | X73: -1550274 | AA73: 685851.2198 | AB73: 756321.5747 | AC73: 1081113.553 | AD73: 149867.561 | AE73: 0 | AG73: CJ:[P-351400 S&I - Office (G)] | AH73: 0 | AI73: 0
A74: 374 | B74: 398 | C74: Miscellaneous Equipment | G74: 200372 | I74: 200372 | W74: 205319 | X74: 4947 | AA74: 4271.57328 | AB74: 4710.472091 | AC74: 6733.320044 | AD74: 933.3952479 | AE74: 0 | AG74: CK:[P-351410 S&I Pump House (G)] | AH74: 0 | AI74: 0
A75: 375 | C75: Total General Plant | F75: =PROFORMA!G375 -> 131758636 | G75: =SUM(G55:G60)+SUM(G71:G74) -> 131758636 | H75: =SUM(H55:H60)+SUM(H71:H74) -> 0 | I75: 131758636 | W75: =SUM(W55:W60)+SUM(W71:W74) -> 134489689 | X75: 2731053 | AA75: =3315598-517598 -> 2798000 | AB75: =2589606+495394+491 -> 3085491 | AC75: =3929227+481286 -> 4410513 | AD75: =(967264+51736)*0.6 -> 611400 | AE75: =3604807-3604807 -> 0 | AG75: CL:[P-351XXX Structures & Improvements (E & G)] | AH75: 0 | AI75: 0
A76: 376 | AG76: CM:[P-352000 Structures & Improvements (E) / Wells (G)] | AH76: 8876643.26 | AI76: 8724010.37
A77: 377 | B77: Total Plant In Service | F77: =F75+F52+F35+F23+F16 -> 1593623843 | G77: =G16+G23+G35+G52+G75 -> 1586999843 | H77: 6624000 | I77: 1593623843 | W77: =W16+W23+W35+W52+W75 -> 1617198031 | X77: 30198188 | Y77: -6211000 | AA77: =AA16+AA23+AA35+AA52+AA75 -> 51886000 | AB77: 39384119 | AC77: =AC16+AC23+AC35+AC52+AC75 -> 43233708 | AD77: 18525170 | AE77: 0 | AG77: CN:[P-352100 Wells - Leases (G)] | AH77: 0 | AI77: 0
A78: 378 | F78: =F77-I77 -> 0 | AG78: CO:[P-352200 Well Reservoirs (G)] | AH78: 0 | AI78: 0
A79: 379 | AG79: CP:[P-352300 Well Non-Recoverable (G)] | AH79: 0 | AI79: 0
A80: 380 | AG80: CQ:[P-352XXX Structures & Improvements (E) / 352XXX Wells (G)] | AH80: 8876643.26 | AI80: 8724010.37
A81: 381 | AG81: CR:[P-353000 Station Equipment (E) / 353000 Lines (G)] | AH81: 94740066.42 | AI81: 98345872.45
A82: 382 | AG82: CS:[P-353100 Station Equipment (E)] | AH82: 191748.96 | AI82: 202872.78
A83: 383 | AG83: CT:[P-353XXX Station equipment (E) / 353XXX Lines (G)] | AH83: 94931815.38 | AI83: 98548745.23
A84: 384 | AG84: CU:[P-354000 Towers & Fixtures (E) / 354000 Compressor Station Equipment (G)] | AH84: 5936434.14 | AI84: 5942872.32
A85: 385 | B85: Accumulated Reserve For Depreciation | G85: AMA | W85: EB | AG85: CV:[P-355000 Poles & Fixtures (E) / 355000 Measuring & Regulating Equipment (G)] | AH85: 92713352.78 | AI85: 95799427.92
A86: 386 | C86: Production Plant Accumulated Depreciation | AG86: CW:[P-356000 Overhead Conductors & Devices (E) / 356000 Purification Equipment (G)] | AH86: 52094827.66 | AI86: 54547529.89
A87: 387 | B87: 31X | C87: Steam Production Accum Depr | F87: 107253211 | G87: =AH171 -> -107253210.2 | H87: =ROUND(P7+P8+P9,-3) -> -8348000 | I87: =G87+H87 -> -115601210.2 | W87: =AI171 -> -109682854.3 | X87: =W87-G87 -> -2429644.09 | AA87: =-3714000-678000 -> -4392000 | AB87: =-2692000-10000 -> -2702000 | AC87: =-1756000-7000 -> -1763000 | AD87: =(-1492000-7000)*0.6 -> -899400 | AE87: =-1639000+1639000 -> 0 | AG87: CX:[P-357000 Underground Conduit (E) / 357000 Other Equipment (G)] | AH87: 1061689.48 | AI87: 1117813.21
A88: 388 | B88: 32X | C88: Nuclear Production Accum Depr | G88: 0 | I88: 0 | X88: 0 | AG88: CY:[P-358000 Underground Conductors & Devices (E)] | AH88: 837944.62 | AI88: 894454.11
A89: 389 | B89: 33X | C89: Hydraulic Production Accum Depr | F89: 48412563 | G89: =AH184 -> -48412562.74 | I89: -48412562.74 | W89: =AI184 -> -49725352.64 | X89: -1312789.9 | Y89: -127000 | AA89: =-4360000-109000 -> -4469000 | AB89: =-1706000+12000+9000 -> -1685000 | AC89: =-1774000+12000+5000-426 -> -1757426 | AD89: =(-2299000+12000)*0.6 -> -1372200 | AE89: =-2386000+2386000 -> 0 | AG89: CZ:[P-359000 Roads & Trails (E)] | AH89: 724900.46 | AI89: 724401.3
A90: 390 | B90: 34X | C90: Other Production Accum Depr | F90: 45844202 | G90: =AH198 -> -45844201.84 | H90: =ROUND(P10,-3) -> 1823000 | I90: -44021201.84 | W90: =AI198 -> -47641568.23 | X90: -1797366.39 | AA90: =-3471000-93000 -> -3564000 | AB90: =-2134000+5000 -> -2129000 | AC90: =-1667000+3000 -> -1664000 | AD90: =(-1726000+4000)*0.6 -> -1033200 | AE90: =-1740000+1740000 -> 0 | AG90: DA:[TOTAL TRANSMISSION PLANT (E) / UNDERGROUND STORAGE PLANT (G)] | AH90: 267040651.3 | AI90: 276511410
A91: 391 | C91: Total Production Plant Accum Depr | F91: =SUM(F87:F90) -> 201509976 | G91: =SUM(G87:G90) -> -201509974.8 | H91: =SUM(H87:H90) -> -6525000 | I91: -208034974.8 | W91: =SUM(W87:W90) -> -207049775.2 | X91: -5539800.38 | AA91: =SUM(AA87:AA90) -> -12425000 | AB91: -6516000 | AC91: =SUM(AC87:AC90) -> -5184426 | AD91: -3304800 | AE91: 0 | AG91: DC:[TOTAL TRANSMISSION PLANT (E)] | AH91: 267040651.3 | AI91: 276511410
A92: 392 | F92: =F91+G91 -> 1.180000007 | AG92: DE:[TOTAL UNDERGROUND STORAGE PLANT (G)] | AH92: 0 | AI92: 0
A93: 393 | C93: Transmission Plant Accumulated Depreciation | AG93: DG:[]
A94: 394 | B94: 350 | C94: Land & Land Rights Accum Depr | G94: =AH212 -> -2142610.81 | I94: =G94+H94 -> -2142610.81 | W94: =AI212 -> -2192362.09 | X94: =W94-G94 -> -49751.28 | AA94: =AA$103*$W94/$W$103 -> -122304.5061 | AB94: =AB$103*$W94/$W$103 -> -76374.8797 | AC94: =AC$103*$W94/$W$103 -> -66503.04077 | AD94: =AD$103*$W94/$W$103 -> -43295.62986 | AE94: =AE$103*$W94/$W$103 -> 0 | AG94: DH:[DISTRIBUTION PLANT]
A95: 395 | B95: 352 | C95: Structures & Improvements Accum Depr | G95: =AH223 -> -2287061.95 | I95: -2287061.95 | W95: =AI223 -> -2335000.73 | X95: -47938.78 | AA95: =AA$103*$W95/$W$103 -> -130261.836 | AB95: -81343.95348 | AC95: -70829.83666 | AD95: -46112.51389 | AE95: 0 | AG95: DI:[]
A96: 396 | B96: 353 | C96: Station Equipment Accum Depr | G96: =AH226 -> -29391742.43 | I96: -29391742.43 | W96: =AI226 -> -30370407.3 | X96: -978664.87 | AA96: -1694262.861 | AB96: -1058007.806 | AC96: -921254.9533 | AD96: -599766.7626 | AE96: 0 | AG96: DJ:[ELECTRIC DISTRIBUTION PLANT:]
A97: 397 | B97: 354 | C97: Towers & Fixtures Accum Depr | G97: =AH227 -> -3413831.39 | I97: -3413831.39 | W97: =AI227 -> -3602753.29 | X97: -188921.9 | AA97: -200985.4868 | AB97: -125508.3959 | AC97: -109285.8018 | AD97: -71148.59066 | AE97: 0 | AG97: DK:[P-360200 Land & Land Rights] | AH97: 1470554.29 | AI97: 1470554.29
A98: 398 | B98: 355 | C98: Poles & Fixtures Accum Depr | G98: -22930507.18 | I98: -22930507.18 | W98: -23472306.36 | X98: -541799.18 | AA98: -1309441.014 | AB98: -817700.0427 | AC98: -712008.1824 | AD98: -463540.3489 | AE98: 0 | AG98: DL:[P-360400 Land Easements] | AH98: 2290267.12 | AI98: 2483628.89
A99: 399 | B99: 356 | C99: Overhead Conductors & Devices Accum Depr | G99: -16116143.72 | I99: -16116143.72 | W99: -16627237.64 | X99: -511093.92 | AA99: -927577.6557 | AB99: -579239.7526 | AC99: -504370.0891 | AD99: -328361.2364 | AE99: 0 | AG99: DM:[P-360500 Land Ease Perpetual] | AH99: 367850 | AI99: 367850
A100: 400 | B100: 357 | C100: Underground Conduit Accum Depr | G100: -271856.13 | I100: -271856.13 | W100: -280668.27 | X100: -8812.14 | AA100: -15657.53865 | AB100: -9777.584394 | AC100: -8513.78223 | AD100: -5542.747517 | AE100: 0 | AG100: DN:[P-361000 Structures & Improvements] | AH100: 6797810.88 | AI100: 6794685.84
A101: 401 | B101: 358 | C101: Underground Conductors & Devices Accum Depr | G101: -361781.99 | I101: -361781.99 | W101: -370536.67 | X101: -8754.68 | AA101: -20670.99437 | AB101: -12908.31187 | AC101: -11239.84737 | AD101: -7317.504068 | AE101: 0 | AG101: DO:[P-362000 Station Equipment] | AH101: 46057927.12 | AI101: 46111264.35
A102: 402 | B102: 359 | C102: Roads & Trails Accum Depr | G102: -314250.62 | I102: -314250.62 | W102: -319755.94 | X102: -5505.32 | AA102: =AA$103*$W102/$W$103 -> -17838.10827 | AB102: =AB$103*$W102/$W$103 -> -11139.27374 | AC102: =AC$103*$W102/$W$103 -> -9699.466348 | AD102: =AD$103*$W102/$W$103 -> -6314.666216 | AE102: =AE$103*$W102/$W$103 -> 0 | AG102: DP:[P-363000 Energy Storage Eq] | AH102: 0 | AI102: 0
A103: 403 | C103: Total Transmission Plant Accumulated Depreciation | F103: 77229786 | G103: =SUM(G94:G102) -> -77229786.22 | H103: =SUM(H94:H102) -> 0 | I103: -77229786.22 | W103: =SUM(W94:W102) -> -79571028.29 | X103: -2341242.07 | AA103: =-3242599-1196401 -> -4439000 | AB103: =-2818324+46324 -> -2772000 | AC103: =-2457769+44064 -> -2413705 | AD103: =(-2683164+64164)*0.6 -> -1571400 | AE103: =-2769147+2769147 -> 0 | AG103: DQ:[P-364000 Poles, Towers, & Fixtures] | AH103: 147876195.9 | AI103: 151844142.8
A104: 404 | F104: =F103+G103 -> -0.2199999988 | AG104: DR:[P-365000 Overhead Conductors & Devices] | AH104: 98719360.09 | AI104: 100818443
A105: 405 | C105: Distribution Plant Accumulated Depreciation | AG105: DS:[P-366000 Underground Conduit] | AH105: 41848031.85 | AI105: 43170873.04
A106: 406 | B106: 360 | C106: Land & Land Rights Accum Depr | G106: =AH238+AH239+AH240 -> -225211.44 | I106: =G106+H106 -> -225211.44 | W106: =AI238+AI239+AI240 -> -240821.74 | X106: =W106-G106 -> -15610.3 | AA106: =AA$120*$W106/$W$120 -> -12917.51168 | AB106: =AB$120*$W106/$W$120 -> -10203.22538 | AC106: =AC$120*$W106/$W$120 -> -7972.317653 | AD106: =AD$120*$W106/$W$120 -> -4902.530427 | AE106: =AE$120*$W106/$W$120 -> 0 | AG106: DT:[P-367000 Underground Conductors & Devices] | AH106: 72080774.25 | AI106: 74090735.03
A107: 407 | B107: 361 | C107: Structures & Improvements Accum Depr | G107: =AH241 -> -1890141.05 | I107: -1890141.05 | W107: =AI241 -> -1918583.65 | X107: -28442.6 | AA107: =AA$120*$W107/$W$120 -> -102911.5009 | AB107: -81287.26826 | AC107: -63514.02619 | AD107: -39057.58143 | AE107: 0 | AG107: DU:[P-368000 Line Transformers] | AH107: 85380743.33 | AI107: 86895646.25
A108: 408 | B108: 362 | C108: Station Equipment Accum Depr | G108: =AH242 -> -13665096.48 | I108: -13665096.48 | W108: =AI242 -> -14193734.42 | X108: -528637.94 | AA108: -761342.1036 | AB108: -601365.4382 | AC108: -469878.5063 | AD108: -288949.0578 | AE108: 0 | AG108: DV:[P-369XXX Services] | AH108: 60393573.32 | AI108: 61726743.25
A109: 409 | B109: 363 | C109: Storage Battery Equipment Accum Depr | G109: 0 | I109: 0 | W109: 0 | X109: 0 | AA109: 0 | AB109: 0 | AC109: 0 | AD109: 0 | AE109: 0 | AG109: DW:[P-370XXX Meters] | AH109: 23136018.44 | AI109: 23988831.32
A110: 410 | B110: 364 | C110: Poles, Towers & Fixtures Accum Depr | G110: -40042671.38 | I110: -40042671.38 | W110: -40949063.09 | X110: -906391.71 | Y110: =$Y$120*Y42/SUM($Y$42:$Y$48) -> 29001.91057 | AA110: -2196479.44 | AB110: -1734945.191 | AC110: -1355604.102 | AD110: -833620.8672 | AE110: 0 | AG110: DX:[P-371XXX Installations on Customers Premises] | AH110: 0 | AI110: 0
A111: 411 | B111: 365 | C111: Overhead Conductors & Devices Accum Depr | G111: -32949574.89 | I111: -32949574.89 | W111: -34072167.53 | X111: -1122592.64 | Y111: 15342.29602 | AA111: -1827607.516 | AB111: -1443582.313 | AC111: -1127946.932 | AD111: -693624.4129 | AE111: 0 | AG111: DY:[P-373XXX Street Light & Signal Systems] | AH111: 22481677.96 | AI111: 23246128.23
A112: 412 | B112: 366 | C112: Underground Conduit Accum Depr | G112: -14674233.63 | I112: -14674233.63 | W112: -15124449.87 | X112: -450216.24 | Y112: 9668.706861 | AA112: -811265.037 | AB112: -640798.3378 | AC112: -500689.5087 | AD112: -307896.1047 | AE112: 0 | AG112: DZ:[TOTAL ELECTRIC DISTRIBUTION PLANT] | AH112: 608900784.6 | AI112: 623009526.4
A113: 413 | B113: 367 | C113: Underground Conductors & Devices Accum Depr | G113: -35351184.32 | I113: -35351184.32 | W113: -36440572.43 | X113: -1089388.11 | Y113: 14690.89914 | AA113: -1954647.118 | AB113: -1543927.775 | AC113: -1206352.129 | AD113: -741839.2339 | AE113: 0 | AG113: EA:[]
A114: 414 | B114: 368 | C114: Line Transformers Accum Depr | G114: -39319259.86 | I114: -39319259.86 | W114: -40189036.56 | X114: -869776.7 | Y114: 41464.09757 | AA114: -2155712.143 | AB114: -1702744.103 | AC114: -1330443.695 | AD114: -818148.6213 | AE114: 0 | AG114: EB:[P-374000 ARO (Not Reported in ROO - Used in Check)] | AH114: 0 | AI114: 0
A115: 415 | B115: 369 | C115: Services Accum Depr | G115: -26208077.25 | I115: -26208077.25 | W115: -26839366.24 | X115: -631288.99 | Y115: 36489.92111 | AA115: -1439645.054 | AB115: -1137140.288 | AC115: -888507.6292 | AD115: -546382.6049 | AE115: 0 | AG115: EC:[]
A116: 416 | B116: 370 | C116: Meters Accum Depr | G116: -12388875.83 | I116: -12388875.83 | W116: -13310700.09 | X116: =W116-G116 -> -921824.26 | Y116: =$Y$120*Y48/SUM($Y$42:$Y$48) -> 23342.16873 | AA116: =AA$120*$W116/$W$120 -> -713976.7525 | AB116: =AB$120*$W116/$W$120 -> -563952.7101 | AC116: =AC$120*$W116/$W$120 -> -440645.9704 | AD116: =AD$120*$W116/$W$120 -> -270972.6796 | AE116: =AE$120*$W116/$W$120 -> 0 | AG116: ED:[GAS DISTRIBUTION PLANT:]
A117: 417 | B117: 371 | C117: Installations on Customer Premises Accum Depr | G117: 0 | I117: 0 | W117: 0 | X117: 0 | AA117: 0 | AB117: 0 | AC117: 0 | AD117: 0 | AE117: 0 | AG117: EE:[P-374200 Land & Land Rights] | AH117: 0 | AI117: 0
A118: 418 | B118: 372 | C118: Leased Property on Customer Premises Accum Depr | G118: 0 | I118: 0 | X118: 0 | AA118: 0 | AB118: 0 | AC118: 0 | AD118: 0 | AE118: 0 | AG118: EF:[P-374400 Land & Land Rights] | AH118: 0 | AI118: 0
A119: 419 | B119: 373 | C119: Street Lights & Signal Systems Accum Depr | G119: =AH252 -> -8543692.27 | I119: -8543692.27 | W119: =AI252 -> -8734188.32 | X119: -190496.05 | AA119: =AA$120*$W119/$W$120 -> -468495.8244 | AB119: =AB$120*$W119/$W$120 -> -370053.3511 | AC119: =AC$120*$W119/$W$120 -> -289142.1835 | AD119: =AD$120*$W119/$W$120 -> -177806.306 | AE119: =AE$120*$W119/$W$120 -> 0 | AG119: EG:[P-375000 Structures & Improvements] | AH119: 0 | AI119: 0
A120: 420 | C120: Total Distribution Plant Accumulated Depreciation | F120: 225258018 | G120: =SUM(G106:G119) -> -225258018.4 | H120: =SUM(H106:H119) -> 0 | I120: -225258018.4 | W120: =SUM(W106:W119) -> -232012683.9 | X120: -6754665.54 | Y120: 170000 | AA120: =-14115623+1670623 -> -12445000 | AB120: =-9709067-120933 -> -9830000 | AC120: =-7559463-121234 -> -7680697 | AD120: =(-7746502-125498)*0.6 -> -4723200 | AE120: =-7997693+7997693 -> 0 | AG120: EH:[P-376000 Mains] | AH120: 0 | AI120: 0
A121: 421 | B121: Proforma | AG121: EI:[P-378000 Measuring & Reg Station Equip-General] | AH121: 0 | AI121: 0
A122: 422 | B122: Pro Forma Results of Operations | AG122: EJ:[P-379000 Measuring & Reg Station Equip-City Gate] | AH122: 0 | AI122: 0
A123: 423 | B123: AVU-E-12-08 Company Case | AG123: EK:[P-380000 Services] | AH123: 0 | AI123: 0
A124: 424 | AG124: EL:[P-381XXX Meters] | AH124: 0 | AI124: 0
A125: 425 | B125: (a) | C125: (b) | G125: =G$5 -> 0 | AG125: EM:[The following three report lines are placeholders for future use:]
A126: 426 | G126: =G$6 -> ROO | AG126: EN:[P-382000 Meter Installations] | AH126: 0 | AI126: 0
A127: 427 | B127: Account | C127: Description | G127: =G$7 -> Net Electric Plant | AG127: EO:[P-383000 House Regulators] | AH127: 0 | AI127: 0
A128: 428 | E128: =E$8 -> 0 | F128: =F120+G120 -> -0.4000000358 | W128: 232012684 | AG128: EP:[P-384000 House Regulator Installations] | AH128: 0 | AI128: 0
A129: 429 | B129: Accumulated Reserve for Depreciation (continued) | AG129: EQ:[]
A130: 430 | C130: General Plant Accumulated Depreciation | AG130: ER:[P-385000 Industrial Measuring & Reg Sta Equip] | AH130: 0 | AI130: 0
A131: 431 | B131: 389 | C131: Land & Land Rights Accum Depr | G131: =AH278 -> -36091.19 | I131: =G131+H131 -> -36091.19 | W131: =AI278 -> -40265.51 | X131: =W131-G131 -> -4174.32 | AA131: =AA$141*$W131/$W$141 -> -1707.911316 | AB131: =AB$141*$W131/$W$141 -> -3754.617891 | AC131: =AC$141*$W131/$W$141 -> -2512.20168 | AD131: =AD$141*$W131/$W$141 -> -1235.862396 | AE131: =AE$141*$W131/$W$141 -> 0 | AG131: ES:[P-387000 Other Equipment] | AH131: 0 | AI131: 0
A132: 432 | B132: 390 | C132: Structures & Improvements Accum Depr | G132: =AH279+AH315 -> -4254311.68 | I132: -4254311.68 | W132: =AI279+AI315 -> -4500251.84 | X132: =W132-G132 -> -245940.16 | AA132: =AA$141*$W132/$W$141 -> -190883.7376 | AB132: -419632.7347 | AC132: -280774.7929 | AD132: -138125.4582 | AE132: 0 | AG132: ET:[TOTAL GAS DISTRIBUTION PLANT] | AH132: 0 | AI132: 0
A133: 433 | B133: 391 | C133: Office Furniture & Equipment Accum Depr | G133: =AH280 -> -11414401.3 | I133: -11414401.3 | W133: =AI280 -> -11483821.52 | X133: -69420.22 | AA133: -487100.4671 | AB133: -1070826.167 | AC133: -716486.0377 | AD133: -352470.9652 | AE133: 0 | AG133: EU:[]
A134: 434 | B134: 392 | C134: Transportation Equipment Accum Depr | G134: -6839372.46 | I134: -6839372.46 | W134: -7286529.75 | X134: -447157.29 | AA134: -309067.1549 | AB134: -679443.3987 | AC134: -454613.1982 | AD134: -223644.2085 | AE134: 0 | AG134: EV:[TOTAL DISTRIBUTION PLANT] | AH134: 608900784.6 | AI134: 623009526.4
A135: 435 | B135: 393 | C135: Stores Equipment Accum Depr | G135: -356291.14 | I135: -356291.14 | W135: -381588.62 | X135: -25297.48 | AA135: -16185.55241 | AB135: -35581.80338 | AC135: -23807.66001 | AD135: -11712.0341 | AE135: 0 | AG135: EW:[]
A136: 436 | B136: 394 | C136: Tools, Shop & Garage Equipment Accum Depr | G136: =AH283+AH284 -> -1693198.5 | I136: -1693198.5 | W136: =AI283+AI284 -> -1825444.21 | X136: -132245.71 | AA136: -77428.46977 | AB136: -170216.2841 | AC136: -113891.1195 | AD136: -56028.0462 | AE136: 0 | AG136: EX:[GENERAL PLANT]
A137: 437 | B137: 395 | C137: Laboratory Equipment Accum Depr | G137: =AH285 -> -256159.18 | I137: -256159.18 | W137: =AI285 -> -281383.75 | X137: -25224.57 | AA137: -11935.23914 | AB137: -26238.04994 | AC137: -17555.78731 | AD137: -8636.463201 | AE137: 0 | AG137: EY:[P-389XXX Land & Land Rights] | AH137: 3082695.84 | AI137: 3440921.33
A138: 438 | B138: 396 | C138: Power Operated Equipment Accum Depr | G138: =AH286+AH316 -> -7540426.5 | I138: -7540426.5 | W138: =AI286+AI316 -> -7807200.17 | X138: =W138-G138 -> -266773.67 | AA138: -331152.0336 | AB138: -727994.0932 | AC138: -487098.2979 | AD138: -239625.0564 | AE138: 0 | AG138: EZ:[P-390XXX Structures & Improvements] | AH138: 36982750.16 | AI138: 39855476.98
A139: 439 | B139: 397 | C139: Communication Equipment Accum Depr | G139: =AH287 -> -13750782.52 | I139: -13750782.52 | W139: =AI287 -> -12461965.42 | X139: 1288817.1 | AA139: -528589.6482 | AB139: -1162034.663 | AC139: -777513.3226 | AD139: -382492.9683 | AE139: 0 | AG139: FA:[P-391XXX Office Furniture & Equipment] | AH139: 19386488.35 | AI139: 19357510.23
A140: 440 | B140: 398 | C140: Miscellaneous Equipment Accum Depr | G140: =AH288 -> -152573.1 | I140: -152573.1 | W140: =AI288 -> -163847.31 | X140: -11274.21 | AA140: -6949.785931 | AB140: -15278.18825 | AC140: -10222.58224 | AD140: -5028.937398 | AE140: 0 | AG140: FB:[P-392XXX Transportation Equipment] | AH140: 17385466.54 | AI140: 18238143.36
A141: 441 | C141: Total General Plant Accumulated Depreciation | F141: =46241606+52002 -> 46293608 | G141: =SUM(G131:G140) -> -46293607.57 | H141: =SUM(H131:H140) -> 0 | I141: -46293607.57 | W141: =SUM(W131:W140) -> -46232298.1 | X141: 61309.47 | AA141: =-2258597+297597 -> -1961000 | AB141: =-4432928+121928 -> -4311000 | AC141: =-2911167+26692 -> -2884475 | AD141: =(-2361814-3186)*0.6 -> -1419000 | AE141: =-2625708+2625708 -> 0 | AG141: FC:[P-393000 Stores Equipment] | AH141: 1365134.89 | AI141: 1341943.06
A142: 442 | F142: =F141+G141 -> 0.4299999997 | W142: 46232298 | AG142: FD:[P-394000 Tools, Shop & Garage Equipment] | AH142: 5342618.96 | AI142: 5494774.86
A143: 443 | C143: Total Accumulated Reserve for Depreciation | F143: =F91+F103+F120+F141 -> 550291388 | G143: -550291387 | H143: -6525000 | I143: -556816387 | W143: =W91+W103+W120+W141 -> -564865785.5 | X143: -14574398.52 | Y143: 170000 | AA143: =AA91+AA103+AA120+AA141 -> -31270000 | AB143: -23429000 | AC143: =AC91+AC103+AC120+AC141 -> -18163303 | AD143: -11018400 | AE143: 0 | AG143: FE:[P-394100 Electric Charging Stations] | AH143: 35635.73 | AI143: 35988.51
A144: 444 | F144: =F143+G143 -> 0.9900000095 | AG144: FF:[P-395XXX Laboratory Equipment] | AH144: 708986.04 | AI144: 778889.95
A145: 445 | C145: Amortization | AG145: FG:[P-396XXX Power Operated Equipment] | AH145: 12751838.65 | AI145: 12774346.41
A146: 446 | B146: Accum Amortization of Limited Term Plant 303000 | G146: =AH302 -> -1466875.66 | I146: =G146+H146 -> -1466875.66 | W146: =AI302 -> -1566722.3 | X146: =W146-G146 -> -99846.64 | AA146: 0 | AB146: 0 | AC146: 0 | AD146: 0 | AE146: 0 | AG146: FH:[P-397XXX Communications Equipment] | AH146: 34516648.7 | AI146: 32966374.81
A147: 447 | B147: Accum Amortization of Intangible Plant-Software | G147: =AH303+AH304+AH305 -> -17706350.09 | I147: -17706350.09 | W147: =AI303+AI304+AI305 -> -20511744.76 | X147: =W147-G147 -> -2805394.67 | AA147: =-5229302+60302 -> -5169000 | AB147: =-4944515+144515 -> -4800000 | AC147: =-2852670-30828 -> -2883498 | AD147: =(-1776716-68284)*0.6 -> -1107000 | AE147: =-2976189+2976189 -> 0 | AG147: FI:[P-398000 Miscellaneous Equipment] | AH147: 200371.36 | AI147: 205318.37
A148: 448 | B148: Accum Amortization of Hydro Relicensing Costs 302000 | G148: =AH301 -> -4273474.99 | H148: =ROUND(P11+P13+P14,-3) -> -564000 | I148: -4837474.99 | W148: =AI301 -> -4431256.05 | X148: -157781.06 | AA148: 0 | AB148: 0 | AC148: 0 | AD148: 0 | AE148: 0 | AG148: FJ:[TOTAL GENERAL PLANT] | AH148: 131758635.2 | AI148: 134489687.9
A149: 449 | B149: Accum Amortization of AMI/MDM Software | G149: =AH306+AH307 -> -1041866.09 | I149: -1041866.09 | W149: =AI306+AI307 -> -1289926.47 | X149: -248060.38 | AG149: FK:[]
A150: 450 | C150: Total Amortization | F150: 24488567 | G150: =SUM(G146:G149) -> -24488566.83 | H150: =SUM(H146:H149) -> -564000 | I150: -25052566.83 | W150: =SUM(W146:W149) -> -27799649.58 | X150: -3311082.75 | AA150: =SUM(AA146:AA149) -> -5169000 | AB150: -4800000 | AC150: =SUM(AC146:AC149) -> -2883498 | AD150: -1107000 | AE150: 0 | AG150: FL:[P-399100 ARO (Not Reported in ROO - Used in Check)] | AH150: 0 | AI150: 0
A151: 451 | F151: =F150+G150 -> 0.1699999981 | W151: 27799650 | AG151: FM:[]
A152: 452 | B152: Total Accum Reserve for Depreciation & Amortization | F152: =F143+F150 -> 574779955 | G152: -574779953.8 | H152: -7089000 | I152: -581868953.8 | W152: =W143+W150 -> -592665435.1 | X152: -17885481.27 | Y152: 170000 | AA152: =AA143+AA150 -> -36439000 | AB152: -28229000 | AC152: =AC143+AC150 -> -21046801 | AD152: -12125400 | AE152: 0 | AG152: FN:[]
A153: 453 | AG153: FO:[TOTAL PLANT IN SERVICE] | AH153: 1586999846 | AI153: 1617198029
A154: 454 | B154: Total Net Plant | G154: =G77+G152 -> 1012219889 | H154: =H77+H152 -> -465000 | I154: 1011754889 | W154: =W77+W152 -> 1024532596 | X154: =X77+X152 -> 12312706.73 | Y154: =Y77+Y152 -> -6041000 | AA154: =AA77+AA152 -> 15447000 | AB154: =AB77+AB152 -> 11155119 | AC154: =AC77+AC152 -> 22186907 | AD154: =AD77+AD152 -> 6399770 | AE154: =AE77+AE152 -> 0 | AG154: FP:[107XXX CONSTRUCTION WORK IN PROGRESS] | AH154: 0 | AI154: 0
A155: 455 | AG155: FQ:[GROSS PLANT IN SERVICE] | AH155: 1586999846 | AI155: 1617198029
A156: 456 | B156: Total Customer Advances / Deposits | H156: =ROUND(Q17+Q18,-3) -> -1176000 | I156: =G156+H156 -> -1176000 | AG156: FR:[]
A157: 457 | AG157: FS:[PLANT ACCUMULATED DEPRECIATION/AMORTIZATION]
A158: 458 | B158: Total Accumulated Deferred Investment Tax Credits | G158: 0 | I158: =G158+H158 -> 0 | AG158: FT:[]
A159: 459 | AG159: FU:[ACCUMULATED DEPRECIATION]
A160: 460 | B160: Total Accumulated Deferred Income Taxes | G160: -201657849 | H160: =ROUND(R21,-3) -> 146000 | I160: =G160+H160 -> -201511849 | X160: -631000 | Y160: 777000 | AA160: =-481913+483913 -> 2000 | AB160: =165000+59000 -> 224000 | AC160: =-117366+86366 -> -31000 | AD160: =(-472000+91000)*0.6 -> -228600 | AE160: =-197978+197978 -> 0 | AG160: FV:[]
A161: 461 | AG161: FW:[ACCUMULATED DEPR - PRODUCTION PLANT]
A162: 462 | B162: Other Rate Base Items | AG162: FX:[]
A163: 463 | B163: Regulatory Asset AFUDC | H163: =ROUND(Q6,-3) -> 849000 | I163: =G163+H163 -> 849000 | AG163: FY:[ACCUMULATED DEPR - STEAM PRODUCTION PLANT]
A164: 464 | B164: Colstrip Pland Adjustment & ARO | H164: =ROUND(Q15,-3) -> -3034000 | I164: -3034000 | AG164: FZ:[A-310XXX Land & Land Rights] | AH164: -44652.61 | AI164: -44990.7
A165: 465 | B165: Weatherization and DSM Investment | H165: =ROUND(Q16,-3) -> 59000 | I165: 59000 | AG165: GA:[A-311XXX Structures & Improvements] | AH165: -38755988.92 | AI165: -39397371.36
A166: 466 | B166: Tax Reform Rate Base Adjustment | H166: =ROUND(Q20,-3) -> 0 | I166: 0 | AG166: GB:[A-312000 Boiler Plant] | AH166: -45689294.64 | AI166: -46735611.57
A167: 467 | B167: Open | G167: 0 | I167: =G167+H167 -> 0 | AG167: GC:[A-313000 Generators] | AH167: -620.84 | AI167: -742.03
A168: 468 | AG168: GD:[A-314000 Turbogenerator Units] | AH168: -11565105.85 | AI168: -12024197.95
A169: 469 | B169: Total Working Capital | G169: 0 | H169: =ROUND(Q19,-3) -> 21392000 | I169: =G169+H169 -> 21392000 | AG169: GE:[A-315000 Accessory Electric Equipment] | AH169: -6690198.67 | AI169: -6847381.4
A170: 470 | AG170: GF:[A-316000 Miscellaneous Power Plant Equipment] | AH170: -4507348.71 | AI170: -4632559.32
A171: 471 | B171: Total Miscellaneous Rate Base Items | G171: =SUM(G156:G169) -> -201657849 | H171: =SUM(H156:H169) -> 18236000 | I171: =SUM(I156:I169) -> -183421849 | K171: 20743601 | X171: =SUM(X156:X169) -> -631000 | Y171: 777000 | AA171: =SUM(AA156:AA169) -> 2000 | AB171: 224000 | AC171: =SUM(AC156:AC169) -> -31000 | AD171: -228600 | AE171: 0 | AG171: GG:[TOTAL ACCUMULATED DEPR - STEAM PRODUCTION PLANT] | AH171: -107253210.2 | AI171: -109682854.3
A172: 472 | AG172: GH:[TOTAL ACCUMULATED DEPR - STEAM PRODUCTION PLANT ($)] | AH172: 107253210.2 | AI172: 109682854.3
A173: 473 | B173: Total Rate Base | G173: =G154+G171 -> 810562040.2 | H173: =H154+H171 -> 17771000 | I173: 828333040.2 | K173: 803152280 | X173: =X154+X171 -> 11681706.73 | Y173: -5264000 | AA173: =AA154+AA171 -> 15449000 | AB173: 11379119 | AC173: =AC154+AC171 -> 22155907 | AD173: 6171170 | AE173: 0 | AG173: GI:[A-317000 ARO] | AH173: -371895.65 | AI173: -430688.02
AG174: GJ:[TOTAL ACCUMULATED DEPR STEAM PRODUCTION PLANT w/ARO] | AH174: -107625105.9 | AI174: -110113542.3
AG175: GK:[]
H176: =17771062-H173 -> 62 | AG176: GL:[ACCUMULATED DEPR - HYDRAULIC PRODUCTION PLANT]
AG177: GM:[A-330XXX Land & Land Rights] | AH177: -5021904.4 | AI177: -5169575.54
AG178: GN:[A-331XXX Structures & Improvements] | AH178: -6763457.72 | AI178: -6884732.75
AG179: GO:[A-332XXX Reservoirs, Dams, & Waterways] | AH179: -17080680.77 | AI179: -17333054.27
AG180: GP:[A-333000 Waterwheels, Turbines, & Generators] | AH180: -12295079.75 | AI180: -12788599.57
AG181: GQ:[A-334000 Accessory Electric Equipment] | AH181: -5122771.22 | AI181: -5374088.36
AG182: GR:[A-335XXX Miscellaneous Power Plant Equipment] | AH182: -1649181.34 | AI182: -1679162.13
AG183: GS:[A-336000 Roads, Railroads, & Bridges] | AH183: -479487.54 | AI183: -496140.02
AG184: GT:[TOTAL ACCUMULATED DEPR - HYDRAULIC PRODUCTION PLANT] | AH184: -48412562.74 | AI184: -49725352.64
AG185: GU:[TOTAL ACCUMULATED DEPR - HYDRAULIC PRODUCTION PLANT ($)] | AH185: 48412562.74 | AI185: 49725352.64
AG186: GV:[]
AG187: GW:[ACCUMULATED DEPR - OTHER PRODUCTION PLANT]
AG188: GX:[A-304000 Land & Land Rights] | AH188: 0 | AI188: 0
AG189: GY:[A-340200 Land & Land Rights] | AH189: 0 | AI189: 0
AG190: GZ:[A-341000 Structures & Improvements] | AH190: -2655319.64 | AI190: -2767547.42
AG191: HA:[A-342000 Fuel Holders, Producers, & Accessories] | AH191: -3436665.53 | AI191: -3530281.92
AG192: HB:[A-343000 Prime Movers] | AH192: -5987168.39 | AI192: -6111634.76
AG193: HC:[A-344000 Generators] | AH193: -29809389.1 | AI193: -31020628.41
AG194: HD:[A-344010 Generators - Solar] | AH194: -22469.76 | AI194: -24276.06
AG195: HE:[A-345000 Accessory Electric Equipment] | AH195: -3771502.69 | AI195: -4000037.5
AG196: HF:[A-345010 Accessory Electric Equipment - Solar] | AH196: -1694.24 | AI196: -2144.49
AG197: HG:[A-346000 Miscellaneous Power Plant Equipment] | AH197: -159992.49 | AI197: -185017.67
AG198: HH:[TOTAL ACCUMULATED DEPR - OTHER PRODUCTION PLANT] | AH198: -45844201.84 | AI198: -47641568.23
AG199: HI:[TOTAL ACCUMULATED DEPR - OTHER PRODUCTION PLANT ($)] | AH199: 45844201.84 | AI199: 47641568.23
AG200: HJ:[A-347000 ARO] | AH200: -32818.8 | AI200: -33409.2
... 125 more rows

Sheet Depreciation Detail
A1: AVISTA UTILITIES
A2: Depreciation Study Adjustment Summary by Plant Account | N2: ROO 12A Plant Detail | Q2: ROO 12E Plant Detail
A3: =PROFORMA!E3 -> For the Twelve Months Ended December 31, 2019
D4: 1.01 E-ROO | G4: 3.08 E-CAP20E | H4: 3.09 E-CAP21E | I4: 3.10 E-CAP22A | J4: 3.10 E-CAP22E | K4: 3.10 E-CAP23A | N4: 2019 - Results of Operations - 12A | O4: Idaho Electric | Q4: 2019 - Results of Operations - 12E | R4: Idaho Electric
D5: Per Results | G5: Adjustment | H5: Adjustment | I5: Adjustment | J5: Adjustment | K5: Adjustment
A6: Depreciation Expense | N6: NB:[PLANT DEPRECIATION/AMORTIZATION EXPENSES] | Q6: NB:[PLANT DEPRECIATION/AMORTIZATION EXPENSES]
B7: Production Plant Depreciation Expense | N7: NC:[] | Q7: NC:[]
A8: 31X | B8: Steam Production Depr Exp | D8: =O20 -> 4694109.8 | G8: =82000+32000 -> 114000 | H8: -13000 | I8: -15000 | J8: =145000*0.6 -> 87000 | K8: =-39000+39000 -> 0 | N8: ND:[DEPRECIATION EXPENSES] | Q8: ND:[DEPRECIATION EXPENSES]
A9: 32X | B9: Nuclear Production Depr Exp | G9: 0 | H9: 0 | I9: 0 | J9: 0 | K9: 0 | N9: NE:[] | Q9: NE:[]
A10: 33X | B10: Hydraulic Production Depr Exp | D10: =O30 -> 4667358.93 | G10: =415000-17000-15000 -> 383000 | H10: =302000-5000+12000 -> 309000 | I10: -21000 | J10: =(357000+7000)*0.6-36000 -> 182400 | K10: =-24000+24000 -> 0 | N10: NF:[DEPR EXPENSES - PRODUCTION PLANT] | Q10: NF:[DEPR EXPENSES - PRODUCTION PLANT]
A11: 34X | B11: Other Production Depr Exp | D11: =O43 -> 3648094.71 | G11: =-20000-3000 -> -23000 | H11: =14000-1000 -> 13000 | I11: -6000 | J11: =38000*0.6 -> 22800 | K11: =-8000+8000 -> 0 | N11: NG:[] | Q11: NG:[]
B12: Total Production Plant Depreciation Expense | D12: =SUM(D8:D11) -> 13009563.44 | G12: =SUM(G8:G11) -> 474000 | H12: =SUM(H8:H11) -> 309000 | I12: =SUM(I8:I11) -> -42000 | J12: =SUM(J8:J11) -> 292200 | K12: =SUM(K8:K11) -> 0 | N12: NH:[DEPR EXPENSES - STEAM PRODUCTION PLANT] | Q12: NH:[DEPR EXPENSES - STEAM PRODUCTION PLANT]
N13: NI:[D-310XXX Land & Land Rights] | O13: 688.58 | Q13: NI:[D-310XXX Land & Land Rights] | R13: 688.58
B14: Transmission Plant Depreciation Expense | N14: NJ:[D-311XXX Structures & Improvements] | O14: 1088831.61 | Q14: NJ:[D-311XXX Structures & Improvements] | R14: 1088831.61
A15: 350 | B15: Land & Land Rights Depr Exp | D15: =O52 -> 98317.01 | G15: =G$24*$D15/$D$24 -> 18143.5185 | H15: 4818.836198 | I15: -411.5731984 | J15: 5257.847609 | K15: 0 | N15: NK:[D-312000 Boiler Plant] | O15: 2044337.25 | Q15: NK:[D-312000 Boiler Plant] | R15: 2044337.25
A16: 352 | B16: Structures & Improvements Depr Exp | D16: =O63 -> 140100.79 | G16: 25854.33868 | H16: 6866.795056 | I16: =I$24*$D16/$D$24 -> -586.487834 | J16: 7492.382079 | K16: 0 | N16: NL:[D-313000 Generators] | O16: 201.55 | Q16: NL:[D-313000 Generators] | R16: 201.55
A17: 353 | B17: Station Equipment Depr Exp | D17: =O66 -> 2337932.77 | G17: =G$24*$D17/$D$24 -> 431444.4312 | H17: 114589.6835 | I17: -9787.019232 | J17: 125029.1707 | K17: 0 | N17: NM:[D-314000 Turbogenerator Units] | O17: 1040079.33 | Q17: NM:[D-314000 Turbogenerator Units] | R17: 1040079.33
A18: 354 | B18: Towers & Fixtures Depr Exp | D18: =O67 -> 311750.74 | G18: 57530.79062 | H18: 15279.91698 | I18: -1305.04629 | J18: 16671.96636 | K18: 0 | N18: NN:[D-315000 Accessory Electric Equipment] | O18: 316104.24 | Q18: NN:[D-315000 Accessory Electric Equipment] | R18: 316104.24
A19: 355 | B19: Poles & Fixtures Depr Exp | D19: =O68 -> 1647646.36 | G19: 304058.2927 | H19: 80756.50308 | I19: -6897.352576 | J19: 88113.67916 | K19: 0 | N19: NO:[D-316000 Miscellaneous Power Plant Equipment] | O19: 203867.24 | Q19: NO:[D-316000 Miscellaneous Power Plant Equipment] | R19: 203867.24
A20: 356 | B20: Overhead Conductors & Devices Depr Exp | D20: 1151328.15 | G20: 212467.2382 | H20: 56430.33453 | I20: -4819.6727 | J20: 61571.31875 | K20: 0 | N20: NP:[TOTAL DEPR EXPENSES - STEAM PRODUCTION PLANT] | O20: 4694109.8 | Q20: NP:[TOTAL DEPR EXPENSES - STEAM PRODUCTION PLANT] | R20: 4694109.8
A21: 357 | B21: Underground Conduit Depr Exp | D21: 17411.71 | G21: 3213.174225 | H21: 853.4044965 | I21: -72.88864027 | J21: 931.1523794 | K21: 0 | N21: NQ:[] | Q21: NQ:[]
A22: 358 | B22: Underground Conductors & Devices Depr Exp | D22: 17179.8 | G22: 3170.377324 | H22: 842.0378336 | I22: -71.91782209 | J22: 918.7501772 | K22: 0 | N22: NR:[DEPR EXPENSES - HYDRAULIC PRODUCTION PLANT:] | Q22: NR:[DEPR EXPENSES - HYDRAULIC PRODUCTION PLANT:]
A23: 359 | B23: Roads & Trails Depr Exp | D23: 11476.25 | G23: 2117.838552 | H23: 562.4883112 | I23: -48.04170629 | J23: 613.7327979 | K23: 0 | N23: NS:[D-330XXX Land & Land Rights] | O23: 298415.27 | Q23: NS:[D-330XXX Land & Land Rights] | R23: 298415.27
B24: Total Transmission Plant Depreciation Expense | D24: =SUM(D15:D23) -> 5733143.58 | G24: =1096000-38000 -> 1058000 | H24: =327000-46000 -> 281000 | I24: -24000 | J24: =(540000-29000)*0.6 -> 306600 | K24: =-48000+48000 -> 0 | N24: NT:[D-331XXX Structures & Improvements] | O24: 569452.23 | Q24: NT:[D-331XXX Structures & Improvements] | R24: 569452.23
N25: NU:[D-332XXX Reservoirs, Dams, & Waterways] | O25: 1223641.66 | Q25: NU:[D-332XXX Reservoirs, Dams, & Waterways] | R25: 1223641.66
B26: Distribution Plant Depreciation Expense | N26: NV:[D-333000 Waterwheels, Turbines, & Generators] | O26: 1783437.04 | Q26: NV:[D-333000 Waterwheels, Turbines, & Generators] | R26: 1783437.04
A27: 360 | B27: Land & Land Rights Depr Exp | D27: =O81 -> 30689.59 | G27: =G$41*$D27/SUM($D$27:$D$34,$D$40) -> 1822.653433 | H27: 1053.844094 | I27: -86.2949258 | J27: 1264.612913 | K27: 0 | N27: NW:[D-334000 Accessory Electric Equipment] | O27: 681969.76 | Q27: NW:[D-334000 Accessory Electric Equipment] | R27: 681969.76
A28: 361 | B28: Structures & Improvements Depr Exp | D28: =O83 -> 111266.89 | G28: 6608.135822 | H28: 3820.772936 | I28: -312.8672627 | J28: 4584.927523 | K28: 0 | N28: NX:[D-335XXX Miscellaneous Power Plant Equipment] | O28: 76969.95 | Q28: NX:[D-335XXX Miscellaneous Power Plant Equipment] | R28: 76969.95
A29: 362 | B29: Station Equipment Depr Exp | D29: =O84 -> 1140748.32 | G29: 67748.99376 | H29: 39171.94331 | I29: -3207.628112 | J29: 47006.33197 | K29: 0 | N29: NY:[D-336000 Roads, Railroads, & Bridges] | O29: 33473.02 | Q29: NY:[D-336000 Roads, Railroads, & Bridges] | R29: 33473.02
A30: 363 | B30: Storage Battery Equipment Depr Exp | D30: 0 | G30: 0 | H30: 0 | I30: 0 | J30: 0 | K30: 0 | N30: NZ:[TOTAL DEPR EXPENSES - HYDRAULIC PRODUCTION PLANT] | O30: 4667358.93 | Q30: NZ:[TOTAL DEPR EXPENSES - HYDRAULIC PRODUCTION PLANT] | R30: 4667358.93
A31: 364 | B31: Poles, Towers & Fixtures Depr Exp | D31: 3695336.72 | G31: 219465.8892 | H31: 126893.4768 | I31: -10390.78098 | J31: 152272.1722 | K31: 0 | N31: OA:[] | Q31: OA:[]
A32: 365 | B32: Overhead Conductors & Devices Depr Exp | D32: 2501371.68 | G32: 148556.3567 | H32: 85894.13451 | I32: -7033.514737 | J32: 103072.9614 | K32: 0 | N32: OB:[DEPR EXPENSES - OTHER PRODUCTION PLANT:] | Q32: OB:[DEPR EXPENSES - OTHER PRODUCTION PLANT:]
A33: 366 | B33: Underground Conduit Depr Exp | D33: 953294.73 | G33: 56616.1331 | H33: 32735.00953 | I33: -2680.534279 | J33: 39282.01143 | K33: 0 | N33: OC:[D-304000 Land & Land Rights] | O33: 0 | Q33: OC:[D-304000 Land & Land Rights] | R33: 0
A34: 367 | B34: Underground Conductors & Devices Depr Exp | D34: 2655561.46 | G34: 157713.6811 | H34: 91188.82855 | I34: -7467.07529 | J34: 109426.5943 | K34: 0 | N34: OD:[D-340200 Land & Land Rights] | O34: 0 | Q34: OD:[D-340200 Land & Land Rights] | R34: 0
A35: 368 | B35: Line Transformers Depr Exp | D35: 1833145.8 | N35: OE:[D-341000 Structures & Improvements] | O35: 209254.49 | Q35: OE:[D-341000 Structures & Improvements] | R35: 209254.49
A36: 369 | B36: Services Depr Exp | D36: 1340718.82 | N36: OF:[D-342000 Fuel Holders, Producers, & Accessories] | O36: 191307.45 | Q36: OF:[D-342000 Fuel Holders, Producers, & Accessories] | R36: 191307.45
A37: 370 | B37: Meters Depr Exp | D37: 2009294.31 | N37: OG:[D-343000 Prime Movers] | O37: 229483.38 | Q37: OG:[D-343000 Prime Movers] | R37: 229483.38
A38: 371 | B38: Installations on Customer Premises Depr Exp | D38: 0 | N38: OH:[D-344000 Generators] | O38: 2492516.01 | Q38: OH:[D-344000 Generators] | R38: 2492516.01
A39: 372 | B39: Leased Property on Customer Premises Depr Exp | N39: OI:[D-344010 Generators - Solar] | O39: 3441.52 | Q39: OI:[D-344010 Generators - Solar] | R39: 3441.52
A40: 373 | B40: Street Lights & Signal Systems Depr Exp | D40: =O94 -> 647721.58 | G40: =G$41*$D40/SUM($D$27:$D$34,$D$40) -> 38468.15684 | H40: =H$41*$D40/SUM($D$27:$D$34,$D$40) -> 22241.99025 | I40: =I$41*$D40/SUM($D$27:$D$34,$D$40) -> -1821.304413 | J40: =J$41*$D40/SUM($D$27:$D$34,$D$40) -> 26690.3883 | K40: =K$41*$D40/SUM($D$27:$D$34,$D$40) -> 0 | N40: OJ:[D-345000 Accessory Electric Equipment] | O40: 477521.93 | Q40: OJ:[D-345000 Accessory Electric Equipment] | R40: 477521.93
B41: Total Distribution Plant Depreciation Expense | D41: =SUM(D27:D40) -> 16919149.9 | G41: =540000+157000 -> 697000 | H41: =356000+47000 -> 403000 | I41: -33000 | J41: =(790000+16000)*0.6 -> 483600 | K41: =-63000+63000 -> 0 | N41: OK:[D-345010 Accessory Electric Equipment - Solar] | O41: 788.18 | Q41: OK:[D-345010 Accessory Electric Equipment - Solar] | R41: 788.18
N42: OL:[D-346000 Miscellaneous Power Plant Equipment] | O42: 43781.75 | Q42: OL:[D-346000 Miscellaneous Power Plant Equipment] | R42: 43781.75
B43: General Plant Depreciation Expense | N43: OM:[TOTAL DEPR EXPENSES - OTHER PRODUCTION PLANT] | O43: 3648094.71 | Q43: OM:[TOTAL DEPR EXPENSES - OTHER PRODUCTION PLANT] | R43: 3648094.71
N44: ON:[] | Q44: ON:[]
A45: 389 | B45: Land & Land Rights Depr Exp | D45: =O116 -> 7420.83 | G45: =G$55*$D45/SUM($D$45:$D$54) -> 786.9923263 | H45: 596.5379942 | I45: -132.4423804 | J45: 297.5028015 | K45: 0 | N45: OO:[TOTAL DEPR EXPENSES - PRODUCTION PLANT] | O45: 13009563.44 | Q45: OO:[TOTAL DEPR EXPENSES - PRODUCTION PLANT] | R45: 13009563.44
A46: 390 | B46: Structures & Improvements Depr Exp | D46: =O117+O149 -> 779096.04 | G46: 82624.53189 | H46: 62629.16534 | I46: -13904.82386 | J46: 31234.14154 | K46: 0 | N46: OP:[] | Q46: OP:[]
A47: 391 | B47: Office Furniture & Equipment Depr Exp | D47: =O118 -> 3574992.61 | G47: 379134.3759 | H47: 287382.8023 | I47: -63804.2552 | J47: 143322.2856 | K47: 0 | N47: OQ:[DEPR EXPENSES - TRANSMISSION PLANT (E) / UNDERGROUND STORAGE PLANT (G)] | Q47: OQ:[DEPR EXPENSES - TRANSMISSION PLANT (E) / UNDERGROUND STORAGE PLANT (G)]
A48: 392 | B48: Transportation Equipment Depr Exp | D48: =O119+O150 -> 4539.94 | G48: 481.4687767 | H48: 364.9519935 | I48: -81.02603891 | J48: 182.007251 | K48: 0 | N48: OS:[D-350100 Land in Fee (G)] | O48: 0 | Q48: OS:[D-350100 Land in Fee (G)] | R48: 0
A49: 393 | B49: Stores Equipment Depr Exp | D49: 55790.99 | G49: 5916.734517 | H49: 4484.868306 | I49: -995.7230551 | J49: 2236.673772 | K49: 0 | N49: OT:[D-350200 Land in Fee (E) / Storage Right-of-Way (G)] | O49: 0 | Q49: OT:[D-350200 Land in Fee (E) / Storage Right-of-Way (G)] | R49: 0
A50: 394 | B50: Tools, Shop & Garage Equipment Depr Exp | D50: =O121+O122 -> 268075.82 | G50: 28429.92135 | H50: 21549.8013 | I50: -4784.451297 | J50: 10747.22201 | K50: 0 | N50: OU:[D-350300 Removing Property of Others (E)] | O50: 5686.28 | Q50: OU:[D-350300 Removing Property of Others (E)] | R50: 5686.28
A51: 395 | B51: Laboratory Equipment Depr Exp | D51: =O123 -> 59529.68 | G51: 6313.229295 | H51: 4785.410245 | I51: -1062.44888 | J51: 2386.558724 | K51: 0 | N51: OV:[D-350400 Land Easements (E)] | O51: 92630.73 | Q51: OV:[D-350400 Land Easements (E)] | R51: 92630.73
A52: 396 | B52: Power Operated Equipment Depr Exp | D52: =O151 -> 0 | G52: 0 | H52: 0 | I52: 0 | J52: 0 | K52: 0 | N52: OW:[D-350XXX Land & Land Rights] | O52: 98317.01 | Q52: OW:[D-350XXX Land & Land Rights] | R52: 98317.01
A53: 397 | B53: Communication Equipment Depr Exp | D53: =O125 -> 2000197.51 | G53: 212124.5321 | H53: 160789.8053 | I53: -35698.28704 | J53: 80188.38362 | K53: 0 | N53: OX:[D-351000 Energy Storage Eq (E)] | O53: 0 | Q53: OX:[D-351000 Energy Storage Eq (E)] | R53: 0
A54: 398 | B54: Miscellaneous Equipment Depr Exp | D54: =O126 -> 30062.8 | G54: 3188.21384 | H54: 2416.657222 | I54: -536.5422456 | J54: 1205.224648 | K54: 0 | N54: OY:[D-351100 S&I - Wells (G)] | O54: 0 | Q54: OY:[D-351100 S&I - Wells (G)] | R54: 0
B55: Total General Plant Depreciation Expense | D55: =SUM(D44:D54) -> 6779706.22 | G55: =884000-165000 -> 719000 | H55: =409000+136000 -> 545000 | I55: -121000 | J55: =(454000-1000)*0.6 -> 271800 | K55: =-410000+410000 -> 0 | N55: OZ:[D-351200 Computer Software (E) / Storage Right-of-Way (G)] | O55: 0 | Q55: OZ:[D-351200 Computer Software (E) / Storage Right-of-Way (G)] | R55: 0
N56: PA:[D-351300 S&I - Measuring/Regulating Station (G)] | O56: 0 | Q56: PA:[D-351300 S&I - Measuring/Regulating Station (G)] | R56: 0
B57: Total Depreciation Expense | D57: =D12+D24+D41+D55 -> 42441563.14 | G57: =G12+G24+G41+G44+G55+G56 -> 2948000 | H57: =H12+H24+H41+H44+H55+H56 -> 1538000 | I57: =I12+I24+I41+I44+I55+I56 -> -220000 | J57: =J12+J24+J41+J44+J55+J56 -> 1354200 | K57: =K12+K24+K41+K44+K55+K56 -> 0 | N57: PB:[D-351400 S&I - Office (G)] | O57: 0 | Q57: PB:[D-351400 S&I - Office (G)] | R57: 0
A58: Proforma | N58: PC:[D-351410 S&I - Pump House (G)] | O58: 0 | Q58: PC:[D-351410 S&I - Pump House (G)] | R58: 0
A59: Pro Forma Results of Operations | N59: PD:[D-351XXX Structures & Improvements (E & G)] | O59: 0 | Q59: PD:[D-351XXX Structures & Improvements (E & G)] | R59: 0
A60: AVU-E-15xx Company Case | N60: PE:[D-352000 Structures & Improvements (E) / Wells (G)] | O60: 140100.79 | Q60: PE:[D-352000 Structures & Improvements (E) / Wells (G)] | R60: 140100.79
N61: PF:[D-352200 Well Reservoirs (G)] | O61: 0 | Q61: PF:[D-352200 Well Reservoirs (G)] | R61: 0
A62: (a) | B62: (b) | N62: PG:[D-352300 Well Non-Recoverable (G)] | O62: 0 | Q62: PG:[D-352300 Well Non-Recoverable (G)] | R62: 0
N63: PH:[D-352XXX Structures & Improvements (Except 352100)] | O63: 140100.79 | Q63: PH:[D-352XXX Structures & Improvements (Except 352100)] | R63: 140100.79
A64: Account | B64: Description | N64: PI:[D-353000 Station Equipment] | O64: 2333357.58 | Q64: PI:[D-353000 Station Equipment] | R64: 2333357.58
N65: PJ:[D-353100 Station Equipment] | O65: 4575.19 | Q65: PJ:[D-353100 Station Equipment] | R65: 4575.19
A66: Amortization | N66: PK:[D-353XXX Station Equipment] | O66: 2337932.77 | Q66: PK:[D-353XXX Station Equipment] | R66: 2337932.77
A67: Amortization of Misc Intangible Plant 303000 | D67: =O134 -> 225248.22 | N67: PL:[D-354000 Towers & Fixtures] | O67: 311750.74 | Q67: PL:[D-354000 Towers & Fixtures] | R67: 311750.74
A68: Amortization of Hydro Relicensing Costs 302000 & 182X | D68: =O133 -> 312533.36 | N68: PM:[D-355000 Poles & Fixtures] | O68: 1647646.36 | Q68: PM:[D-355000 Poles & Fixtures] | R68: 1647646.36
A69: Amortization of IT Intangible Plant 3031X | D69: =O141 -> 7372096.77 | G69: =3155000-146000 -> 3009000 | H69: =1095000+245000 -> 1340000 | I69: -233000 | J69: =(1472000+52000)*0.6 -> 914400 | K69: =-559000+559000 -> 0 | N69: PN:[D-356000 Overhead Conductors & Devices] | O69: 1151328.15 | Q69: PN:[D-356000 Overhead Conductors & Devices] | R69: 1151328.15
A70: Amortization of Steam Related Regulatory Deferrals | N70: PO:[D-357000 Underground Conduit] | O70: 17411.71 | Q70: PO:[D-357000 Underground Conduit] | R70: 17411.71
A71: Amortization of Transmission Related Regulatory Deferrals | N71: PP:[D-358000 Underground Conductors & Devices] | O71: 17179.8 | Q71: PP:[D-358000 Underground Conductors & Devices] | R71: 17179.8
B72: Total Amortization Expense | D72: =SUM(D67:D71) -> 7909878.35 | G72: =SUM(G67:G71) -> 3009000 | H72: =SUM(H67:H71) -> 1340000 | I72: =SUM(I67:I71) -> -233000 | J72: =SUM(J67:J71) -> 914400 | K72: =SUM(K67:K71) -> 0 | N72: PQ:[D-359000 Roads & Trails] | O72: 11476.25 | Q72: PQ:[D-359000 Roads & Trails] | R72: 11476.25
B73: Total Depreciation & Amortization Expense | D73: =D57+D72 -> 50351441.49 | G73: =G57+G72 -> 5957000 | H73: =H57+H72 -> 2878000 | I73: =I57+I72 -> -453000 | J73: =J57+J72 -> 2268600 | K73: =K57+K72 -> 0 | N73: PR:[TOTAL DEPR EXPENSES - TRANSMISSION PLANT (E) / UNDERGROUND STORAGE PLANT (G)] | O73: 5733143.58 | Q73: PR:[TOTAL DEPR EXPENSES - TRANSMISSION PLANT (E) / UNDERGROUND STORAGE PLANT (G)] | R73: 5733143.58
N74: PT:[TOTAL DEPR EXPENSES - TRANSMISSION PLANT (E)] | O74: 5733143.58 | Q74: PT:[TOTAL DEPR EXPENSES - TRANSMISSION PLANT (E)] | R74: 5733143.58
N75: PV:[TOTAL DEPR EXPENSES - UNDERGROUND STORAGE PLANT (G)] | O75: 0 | Q75: PV:[TOTAL DEPR EXPENSES - UNDERGROUND STORAGE PLANT (G)] | R75: 0
N76: PX:[] | Q76: PX:[]
N77: PY:[DEPR EXPENSES - DISTRIBUTION PLANT] | Q77: PY:[DEPR EXPENSES - DISTRIBUTION PLANT]
D78: =O155-D73 -> 0 | N78: PZ:[] | Q78: PZ:[]
N79: QA:[DEPR EXPENSES - ELECTRIC DISTRIBUTION PLANT] | Q79: QA:[DEPR EXPENSES - ELECTRIC DISTRIBUTION PLANT]
N80: QB:[D-360200 Land & Land Rights] | O80: 0 | Q80: QB:[D-360200 Land & Land Rights] | R80: 0
N81: QC:[D-360400 Land Easements] | O81: 30689.59 | Q81: QC:[D-360400 Land Easements] | R81: 30689.59
N82: QD:[D-360500 Land Ease Perpetual] | O82: 0 | Q82: QD:[D-360500 Land Ease Perpetual] | R82: 0
N83: QE:[D-361000 Structures & Improvements] | O83: 111266.89 | Q83: QE:[D-361000 Structures & Improvements] | R83: 111266.89
N84: QF:[D-362000 Station Equipment] | O84: 1140748.32 | Q84: QF:[D-362000 Station Equipment] | R84: 1140748.32
N85: QG:[D-363000 Energy Storage Eq] | O85: 0 | Q85: QG:[D-363000 Energy Storage Eq] | R85: 0
N86: QH:[D-364000 Poles, Towers, & Fixtures] | O86: 3695336.72 | Q86: QH:[D-364000 Poles, Towers, & Fixtures] | R86: 3695336.72
N87: QI:[D-365000 Overhead Conductors & Devices] | O87: 2501371.68 | Q87: QI:[D-365000 Overhead Conductors & Devices] | R87: 2501371.68
N88: QJ:[D-366000 Underground Conduit] | O88: 953294.73 | Q88: QJ:[D-366000 Underground Conduit] | R88: 953294.73
N89: QK:[D-367000 Underground Conductors & Devices] | O89: 2655561.46 | Q89: QK:[D-367000 Underground Conductors & Devices] | R89: 2655561.46
N90: QL:[D-368000 Line Transformers] | O90: 1833145.8 | Q90: QL:[D-368000 Line Transformers] | R90: 1833145.8
N91: QM:[D-369XXX Services] | O91: 1340718.82 | Q91: QM:[D-369XXX Services] | R91: 1340718.82
N92: QN:[D-370XXX Meters] | O92: 2009294.31 | Q92: QN:[D-370XXX Meters] | R92: 2009294.31
N93: QO:[D-371XXX Installations on Customers Premises] | O93: 0 | Q93: QO:[D-371XXX Installations on Customers Premises] | R93: 0
N94: QP:[D-373XXX Street Light & Signal Systems] | O94: 647721.58 | Q94: QP:[D-373XXX Street Light & Signal Systems] | R94: 647721.58
N95: QQ:[TOTAL DEPR EXPENSES - ELECTRIC DISTRIBUTION PLANT] | O95: 16919149.9 | Q95: QQ:[TOTAL DEPR EXPENSES - ELECTRIC DISTRIBUTION PLANT] | R95: 16919149.9
N96: QR:[] | Q96: QR:[]
N97: QS:[DEPR EXPENSES - GAS DISTRIBUTION PLANT] | Q97: QS:[DEPR EXPENSES - GAS DISTRIBUTION PLANT]
N98: QT:[D-374200 Land & Land Rights] | O98: 0 | Q98: QT:[D-374200 Land & Land Rights] | R98: 0
N99: QU:[D-374400 Land & Land Rights] | O99: 0 | Q99: QU:[D-374400 Land & Land Rights] | R99: 0
N100: QV:[D-375000 Structures & Improvements] | O100: 0 | Q100: QV:[D-375000 Structures & Improvements] | R100: 0
N101: QW:[D-376000 Mains] | O101: 0 | Q101: QW:[D-376000 Mains] | R101: 0
N102: QX:[D-378000 Measuring & Reg Station EquiA-General] | O102: 0 | Q102: QX:[D-378000 Measuring & Reg Station EquiA-General] | R102: 0
N103: QY:[D-379000 Measuring & Reg Station EquiA-City Gate] | O103: 0 | Q103: QY:[D-379000 Measuring & Reg Station EquiA-City Gate] | R103: 0
N104: QZ:[D-380000 Services] | O104: 0 | Q104: QZ:[D-380000 Services] | R104: 0
N105: RA:[D-381XXX Meters] | O105: 0 | Q105: RA:[D-381XXX Meters] | R105: 0
N106: RB:[D-382000 Meter Installations] | O106: 0 | Q106: RB:[D-382000 Meter Installations] | R106: 0
N107: RC:[D-383000 House Regulators] | O107: 0 | Q107: RC:[D-383000 House Regulators] | R107: 0
N108: RD:[D-384000 House Regulator Installations] | O108: 0 | Q108: RD:[D-384000 House Regulator Installations] | R108: 0
N109: RE:[D-385000 Industrial Measuring & Reg Sta Equip] | O109: 0 | Q109: RE:[D-385000 Industrial Measuring & Reg Sta Equip] | R109: 0
N110: RF:[D-387000 Other Equipment] | O110: 0 | Q110: RF:[D-387000 Other Equipment] | R110: 0
N111: RG:[TOTAL DEPR EXPENSES - GAS DISTRIBUTION PLANT] | O111: 0 | Q111: RG:[TOTAL DEPR EXPENSES - GAS DISTRIBUTION PLANT] | R111: 0
N112: RH:[] | Q112: RH:[]
N113: RI:[TOTAL DEPR EXPENSES - DISTRIBUTION PLANT] | O113: 16919149.9 | Q113: RI:[TOTAL DEPR EXPENSES - DISTRIBUTION PLANT] | R113: 16919149.9
N114: RJ:[] | Q114: RJ:[]
N115: RK:[DEPR EXPENSES - GENERAL PLANT] | Q115: RK:[DEPR EXPENSES - GENERAL PLANT]
N116: RL:[D-389XXX Land & Land Rights] | O116: 7420.83 | Q116: RL:[D-389XXX Land & Land Rights] | R116: 7420.83
N117: RM:[D-390XXX Structures & Improvements (Except 390200)] | O117: 764479.94 | Q117: RM:[D-390XXX Structures & Improvements (Except 390200)] | R117: 764479.94
N118: RN:[D-391XXX Office Furniture & Equipment] | O118: 3574992.61 | Q118: RN:[D-391XXX Office Furniture & Equipment] | R118: 3574992.61
N119: RO:[D-392XXX Transportation Equipment (Except 392200)] | O119: 4539.94 | Q119: RO:[D-392XXX Transportation Equipment (Except 392200)] | R119: 4539.94
N120: RP:[D-393000 Stores Equipment] | O120: 55790.99 | Q120: RP:[D-393000 Stores Equipment] | R120: 55790.99
N121: RQ:[D-394000 Tools, Shop & Garage Equipment] | O121: 264370.9 | Q121: RQ:[D-394000 Tools, Shop & Garage Equipment] | R121: 264370.9
N122: RR:[D-394100 Electric Charging Stations] | O122: 3704.92 | Q122: RR:[D-394100 Electric Charging Stations] | R122: 3704.92
N123: RS:[D-395XXX Laboratory Equipment] | O123: 59529.68 | Q123: RS:[D-395XXX Laboratory Equipment] | R123: 59529.68
N124: RT:[D-396XXX Power Operated Equipment (Except 396200)] | O124: 0 | Q124: RT:[D-396XXX Power Operated Equipment (Except 396200)] | R124: 0
N125: RU:[D-397XXX Communications Equipment] | O125: 2000197.51 | Q125: RU:[D-397XXX Communications Equipment] | R125: 2000197.51
N126: RV:[D-398000 Miscellaneous Equipment] | O126: 30062.8 | Q126: RV:[D-398000 Miscellaneous Equipment] | R126: 30062.8
N127: RW:[TOTAL DEPR EXPENSES - GENERAL PLANT] | O127: 6765090.12 | Q127: RW:[TOTAL DEPR EXPENSES - GENERAL PLANT] | R127: 6765090.12
N128: RX:[TOTAL DEPRECIATION EXPENSES] | O128: 42426947.04 | Q128: RX:[TOTAL DEPRECIATION EXPENSES] | R128: 42426947.04
N129: RY:[] | Q129: RY:[]
N130: RZ:[AMORTIZATION EXPENSES] | Q130: RZ:[AMORTIZATION EXPENSES]
N131: SA:[] | Q131: SA:[]
N132: SB:[AMORT EXPENSES - FRANCHISES/INTANGIBLE PLANT/MISC IT INTANGIBLE PLANT] | Q132: SB:[AMORT EXPENSES - FRANCHISES/INTANGIBLE PLANT/MISC IT INTANGIBLE PLANT]
N133: SC:[D-302000 Franchises & Consents] | O133: 312533.36 | Q133: SC:[D-302000 Franchises & Consents] | R133: 312533.36
N134: SD:[D-303000 Intangible Plant - (C-IPL)] | O134: 225248.22 | Q134: SD:[D-303000 Intangible Plant - (C-IPL)] | R134: 225248.22
N135: SE:[AMORT EXPENSES - MISC IT INTANGIBLE PLANT] | Q135: SE:[AMORT EXPENSES - MISC IT INTANGIBLE PLANT]
N136: SF:[D-303100 Misc Intangible Plt-Mainframe Software - (C-IPL)] | O136: 5299710.97 | Q136: SF:[D-303100 Misc Intangible Plt-Mainframe Software - (C-IPL)] | R136: 5299710.97
N137: SG:[D-303110 Misc Intangible Plant-PC Software - (C-IPL)] | O137: 12896.44 | Q137: SG:[D-303110 Misc Intangible Plant-PC Software - (C-IPL)] | R137: 12896.44
N138: SH:[D-303115 Misc Intangible Plant-PC Software - (C-IPL)] | O138: 1451355.93 | Q138: SH:[D-303115 Misc Intangible Plant-PC Software - (C-IPL)] | R138: 1451355.93
N139: SI:[D-303120 Misc Intangible Plant-Software-12.5 YR] | O139: 519464.93 | Q139: SI:[D-303120 Misc Intangible Plant-Software-12.5 YR] | R139: 519464.93
N140: SJ:[D-303121 Misc Intangible Plant-AMI Software] | O140: 88668.5 | Q140: SJ:[D-303121 Misc Intangible Plant-AMI Software] | R140: 88668.5
N141: SK:[TOTAL AMORT EXPENSES - MISC IT INTANGIBLE PLANT] | O141: 7372096.77 | Q141: SK:[TOTAL AMORT EXPENSES - MISC IT INTANGIBLE PLANT] | R141: 7372096.77
N142: SL:[TOTAL AMORT EXPENSES - FRANCHISES/INTANGIBLE PLANT/MISC IT INTANGIBLE PLANT] | O142: 7909878.35 | Q142: SL:[TOTAL AMORT EXPENSES - FRANCHISES/INTANGIBLE PLANT/MISC IT INTANGIBLE PLANT] | R142: 7909878.35
N143: SM:[] | Q143: SM:[]
N144: SN:[AMORT EXPENSES - UNDERGROUND STORAGE PLANT] | Q144: SN:[AMORT EXPENSES - UNDERGROUND STORAGE PLANT]
N145: SO:[D-352100 Wells - Leases (G)] | O145: 0 | Q145: SO:[D-352100 Wells - Leases (G)] | R145: 0
N146: SP:[TOTAL AMORT EXPENSES - UNDERGROUND STORAGE PLANT] | O146: 0 | Q146: SP:[TOTAL AMORT EXPENSES - UNDERGROUND STORAGE PLANT] | R146: 0
N147: SQ:[] | Q147: SQ:[]
N148: SR:[AMORT EXPENSES - GENERAL PLANT] | Q148: SR:[AMORT EXPENSES - GENERAL PLANT]
N149: SS:[D-390200 Structures & Improvements] | O149: 14616.1 | Q149: SS:[D-390200 Structures & Improvements] | R149: 14616.1
N150: ST:[D-392200 Transportation Equipment Leased] | O150: 0 | Q150: ST:[D-392200 Transportation Equipment Leased] | R150: 0
N151: SU:[D-396200 Power Operated Equipment Leased] | O151: 0 | Q151: SU:[D-396200 Power Operated Equipment Leased] | R151: 0
N152: SV:[TOTAL AMORT EXPENSES - GENERAL PLANT] | O152: 14616.1 | Q152: SV:[TOTAL AMORT EXPENSES - GENERAL PLANT] | R152: 14616.1
N153: SW:[TOTAL AMORTIZATION EXPENSES] | O153: 7924494.45 | Q153: SW:[TOTAL AMORTIZATION EXPENSES] | R153: 7924494.45
N154: SX:[] | Q154: SX:[]
N155: SY:[TOTAL PLANT DEPRECIATION/AMORTIZATION EXPENSES] | O155: 50351441.49 | Q155: SY:[TOTAL PLANT DEPRECIATION/AMORTIZATION EXPENSES] | R155: 50351441.49

Sheet Labor Detail
A1: 1 | B1: Proforma | Q1: Copied Values From EMA work papers for Labor Adjustments
A2: 2 | B2: Pro Forma Results of Operations | Q2: 2019 Non-Executive Labor Adjustment (2021 ID GRC) / Electric
A3: 3 | B3: =PROFORMA!B3 -> AVU-E-21-01 Company RY2 Settlement Case
A4: 4
A5: 5 | B5: =columnheader -> B | C5: =columnheader -> C | D5: D | H5: =PROFORMA!AA5 -> AA | I5: =PROFORMA!AB5 -> AB | J5: =PROFORMA!AC5 -> AC | K5: =PROFORMA!AX5 -> AX
A6: 6 | H6: =PROFORMA!AA6 -> Pro Forma | I6: =PROFORMA!AB6 -> Pro Forma | J6: =PROFORMA!AC6 -> Pro Forma | K6: =PROFORMA!AX6 -> Pro Forma
A7: 7 | B7: Account | D7: Description | F7: Labor $ | H7: =PROFORMA!AA7 -> Labor Non-Exec | I7: =PROFORMA!AB7 -> Labor Exec | J7: =PROFORMA!AC7 -> Empl Benefits | K7: =PROFORMA!AX7 -> Labor Non-Exec
A8: 8 | H8: =PROFORMA!AA8 -> E-PLE 3.01 | I8: =PROFORMA!AB8 -> E-PEB 3.02 | J8: =PROFORMA!AC8 -> E-PEB 3.03 | K8: =PROFORMA!AX8 -> E-PLN22 22.04
A9: 9 | B9: Operation & Maintenance Expenses
A10: 10 | C10: Production Expenses
A11: 11 | B11: 500-OP | C11: Steam | D11: Supervision & Engineering | F11: =SUMIF($P$28:$P$109,$N11,$AR$28:$AR$109) -> 85350.02007 | H11: =SUMIF($P$28:$P$109,$N11,$AO$28:$AO$109)+SUMIF($P$28:$P$109,$N11,$AU$28:$AU$109) -> 403.2841484 | I11: =SUMIF($P$28:$P$109,$N11,$AP$28:$AP$109) -> 0 | J11: =SUMIF($P$28:$P$109,$N11,$AT$28:$AT$109) -> -333.7698428 | K11: =SUMIF($P$28:$P$109,$N11,$AQ$28:$AQ$109)+SUMIF($P$28:$P$109,$N11,$AV$28:$AV$109) -> 2485.922915 | N11: =LEFT(B11,3) -> 500
A12: 12 | B12: 501-OP | C12: Steam | D12: Fuel | F12: =SUMIF($P$28:$P$109,$N12,$AR$28:$AR$109) -> 323990.5277 | H12: =SUMIF($P$28:$P$109,$N12,$AO$28:$AO$109)+SUMIF($P$28:$P$109,$N12,$AU$28:$AU$109) -> 9850.365649 | I12: =SUMIF($P$28:$P$109,$N12,$AP$28:$AP$109) -> 0 | J12: =SUMIF($P$28:$P$109,$N12,$AT$28:$AT$109) -> -1264.841559 | K12: =SUMIF($P$28:$P$109,$N12,$AQ$28:$AQ$109)+SUMIF($P$28:$P$109,$N12,$AV$28:$AV$109) -> 9436.617312 | N12: =LEFT(B12,3) -> 501
A13: 13 | B13: 502-OP | C13: Steam | D13: Steam Expenses | F13: =SUMIF($P$28:$P$109,$N13,$AR$28:$AR$109) -> 198717.5887 | H13: 6552.307072 | I13: =SUMIF($P$28:$P$109,$N13,$AP$28:$AP$109) -> 0 | J13: =SUMIF($P$28:$P$109,$N13,$AT$28:$AT$109) -> -775.6504224 | K13: 5787.890934 | N13: 502
A14: 14 | B14: 503-OP | C14: Steam | D14: From Other Sources | H14: 0 | K14: 0 | N14: 503
A15: 15 | B15: 504-OP | C15: Steam | D15: Steam Transferred-CR | H15: 0 | K15: 0 | N15: 504
A16: 16 | B16: 505-OP | C16: Steam | D16: Electric Expenses | F16: =SUMIF($P$28:$P$109,$N16,$AR$28:$AR$109) -> 212848.3187 | H16: 7022.28748 | I16: =SUMIF($P$28:$P$109,$N16,$AP$28:$AP$109) -> 0 | J16: =SUMIF($P$28:$P$109,$N16,$AT$28:$AT$109) -> -830.8055713 | K16: 6199.465594 | N16: 505
A17: 17 | B17: 506-OP | C17: Steam | D17: Miscellaneous Power Exp. | F17: =SUMIF($P$28:$P$109,$N17,$AR$28:$AR$109) -> 99686.67157 | H17: 2082.448086 | I17: =SUMIF($P$28:$P$109,$N17,$AP$28:$AP$109) -> 0 | J17: =SUMIF($P$28:$P$109,$N17,$AT$28:$AT$109) -> -389.4171595 | K17: 2903.495288 | N17: 506
A18: 18 | B18: 507-OP | C18: Steam | D18: Rents | H18: 0 | K18: 0 | N18: 507
A19: 19 | C19: Total Steam Operation | F19: =SUM(F11:F18) -> 920593.1268 | H19: =SUM(H11:H18) -> 25910.69244 | I19: =SUM(I11:I18) -> 0 | J19: =SUM(J11:J18) -> -3594.484555 | K19: =SUM(K11:K18) -> 26813.39204
A20: 20 | B20: 510-MT | C20: Steam | D20: Supervision & Engineering | F20: =SUMIF($P$28:$P$109,$N20,$AR$28:$AR$109) -> 32060.12615 | H20: 151.4860882 | I20: =SUMIF($P$28:$P$109,$N20,$AP$28:$AP$109) -> 0 | J20: =SUMIF($P$28:$P$109,$N20,$AT$28:$AT$109) -> -125.3743497 | K20: 933.7900819 | N20: 510
A21: 21 | B21: 511-MT | C21: Steam | D21: Structures | F21: =SUMIF($P$28:$P$109,$N21,$AR$28:$AR$109) -> 7552.229866 | H21: 252.3091233 | I21: =SUMIF($P$28:$P$109,$N21,$AP$28:$AP$109) -> 0 | J21: =SUMIF($P$28:$P$109,$N21,$AT$28:$AT$109) -> -29.47761649 | K21: 219.9678602 | N21: 511
A22: 22 | B22: 512-MT | C22: Steam | D22: Boiler Plant | F22: =SUMIF($P$28:$P$109,$N22,$AR$28:$AR$109) -> 305237.2733 | H22: 10360.37526 | I22: =SUMIF($P$28:$P$109,$N22,$AP$28:$AP$109) -> 0 | J22: =SUMIF($P$28:$P$109,$N22,$AT$28:$AT$109) -> -1191.349937 | K22: 8890.406017 | N22: 512
A23: 23 | B23: 513-MT | C23: Steam | D23: Electric Plant | F23: =SUMIF($P$28:$P$109,$N23,$AR$28:$AR$109) -> 103447.2862 | H23: 3372.611504 | I23: =SUMIF($P$28:$P$109,$N23,$AP$28:$AP$109) -> 0 | J23: =SUMIF($P$28:$P$109,$N23,$AT$28:$AT$109) -> -403.7936789 | K23: 3013.027752 | N23: 513
A24: 24 | B24: 514-MT | C24: Steam | D24: Miscellaneous Plant | F24: =SUMIF($P$28:$P$109,$N24,$AR$28:$AR$109) -> 31248.08767 | H24: 895.0189724 | I24: =SUMIF($P$28:$P$109,$N24,$AP$28:$AP$109) -> 0 | J24: =SUMIF($P$28:$P$109,$N24,$AT$28:$AT$109) -> -122.0051099 | K24: 910.1384758 | N24: 514
A25: 25 | C25: Total Steam Maintenance | F25: =SUM(F20:F24) -> 479545.0031 | H25: =SUM(H20:H24) -> 15031.80094 | I25: =SUM(I20:I24) -> 0 | J25: =SUM(J20:J24) -> -1872.000692 | K25: =SUM(K20:K24) -> 13967.33019 | R25: All Employee | S25: Less | T25: Total | V25: Allocation | Y25: Non-Union | AE25: Union | AL25: TOTAL LABOR COST | AO25: 2021 TOTAL NON-EXEC LABOR ADJ | AP25: 2021 TOTAL EXEC LABOR ADJ | AQ25: 2022 TOTAL NON-EXEC LABOR ADJ | AR25: TOTAL PF LABOR Dollars | AT25: Benefits Adjustment
A26: 26 | C26: Total Steam Generation | F26: =F25+F19 -> 1400138.13 | H26: =H25+H19 -> 40942.49338 | I26: =I25+I19 -> 0 | J26: =J25+J19 -> -5466.485247 | K26: =K25+K19 -> 40780.72223 | R26: Total | S26: Executives | T26: Test Period | V26: Union | W26: Non-Union | Y26: Test Period | Z26: 2019 | AA26: 2020 | AB26: 2021 | AC26: 2022 | AE26: Test Period | AF26: 2019 | AG26: 2020 | AH26: 2021 | AI26: 2022 | AL26: Total 2020 | AM26: 2021 | AU26: Exclude All 2021 and | AV26: Exclude 2022
A27: 27 | Q27: Row Labels | S27: See Adj. XX | Z27: 0.00519 | AA27: 0.03 | AB27: 0.03 | AC27: 0.03 | AF27: 0.00714 | AG27: 0.03 | AH27: 0.03 | AI27: 0.03 | AT27: Assign to Account | AU27: 2020 Non-Union | AV27: Add 2021
A28: 28 | B28: 535-OP | C28: Hydro | D28: Supervision & Engineering | F28: =SUMIF($P$28:$P$109,$N28,$AR$28:$AR$109) -> 586334.0682 | H28: =SUMIF($P$28:$P$109,$N28,$AO$28:$AO$109)+SUMIF($P$28:$P$109,$N28,$AU$28:$AU$109) -> 2870.077751 | I28: =SUMIF($P$28:$P$109,$N28,$AP$28:$AP$109) -> 0 | J28: =SUMIF($P$28:$P$109,$N28,$AT$28:$AT$109) -> -2292.892565 | K28: =SUMIF($P$28:$P$109,$N28,$AQ$28:$AQ$109)+SUMIF($P$28:$P$109,$N28,$AV$28:$AV$109) -> 17077.69131 | N28: 535 | P28: =LEFT(Q28,3) -> 500 | Q28: 500000 | R28: 77704.07484 | S28: 0 | T28: 77704.07484 | V28: 0 | W28: 1 | Y28: =T28*W28 -> 77704.07484 | Z28: =Y28*$Z$27 -> 403.2841484 | AA28: =(Y28+Z28)*$AA$27 -> 2343.22077 | AB28: =(Y28+Z28+AA28)*$AB$27 -> 2413.517393 | AC28: =(Y28+Z28+AA28+AB28)*$AC$27 -> 2485.922915 | AE28: =V28*T28 -> 0 | AF28: =AE28*$AF$27 -> 0 | AG28: =(AE28+AF28)*$AG$27 -> 0 | AH28: =(AE28+AF28+AG28)*$AH$27 -> 0 | AI28: =(AE28+AF28+AG28+AH28)*$AI$27 -> 0 | AL28: =T28+Z28+AA28+AF28+AG28 -> 80450.57976 | AM28: =AL28+AH28+AB28 -> 82864.09715 | AO28: =Z28+AA28+AB28+AF28+AG28+AH28 -> 5160.022311 | AQ28: =AC28+AI28 -> 2485.922915 | AR28: =R28+AO28+AP28+AQ28 -> 85350.02007 | AT28: =T28/T$110*$AT$122 -> -333.7698428 | AU28: =-AA28-AB28-AH28 -> -4756.738162 | AV28: =AB28+AH28-AB28-AH28 -> 0
A29: 29 | B29: 536-OP | C29: Hydro | D29: Water For Power | F29: 5016.808215 | H29: 23.70473056 | I29: 0 | J29: -19.6187334 | K29: 146.1206276 | N29: 536 | P29: =LEFT(Q29,3) -> 501 | Q29: 501200 | R29: 294464.42 | S29: 0 | T29: 294464.42 | V29: 0.878672642 | W29: 0.121327358 | Y29: =T29*W29 -> 35726.5901 | Z29: 185.4210026 | AA29: =(Y29+Z29)*$AA$27 -> 1077.360333 | AB29: =(Y29+Z29+AA29)*$AB$27 -> 1109.681143 | AC29: =(Y29+Z29+AA29+AB29)*$AC$27 -> 1142.971577 | AE29: =V29*T29 -> 258737.8299 | AF29: =AE29*$AF$27 -> 1847.388106 | AG29: =(AE29+AF29)*$AG$27 -> 7817.556541 | AH29: =(AE29+AF29+AG29)*$AH$27 -> 8052.083237 | AI29: =(AE29+AF29+AG29+AH29)*$AI$27 -> 8293.645734 | AL29: =T29+Z29+AA29+AF29+AG29+AH29 -> 313444.2292 | AM29: =AL29+AH29+AB29 -> 322605.9936 | AO29: =Z29+AA29+AB29+AF29+AG29+AH29 -> 20089.49036 | AQ29: =AC29+AI29 -> 9436.617312 | AR29: =R29+AO29+AP29+AQ29 -> 323990.5277 | AT29: =T29/T$110*$AT$122 -> -1264.841559 | AU29: =-AA29-AB29-AH29 -> -10239.12471 | AV29: =AB29+AH29-AB29-AH29 -> 0
A30: 30 | B30: 537-OP | C30: Hydro | D30: Hydraulic Expenses | F30: 191809.5221 | H30: 1542.661879 | I30: 0 | J30: -749.9255284 | K30: 5586.68511 | N30: 537 | P30: 502 | Q30: 502000 | R30: 180577.1246 | S30: 0 | T30: 180577.1246 | V30: 0.9667694545 | W30: 0.03323054551 | Y30: 6000.676356 | Z30: 31.14351029 | AA30: 180.954596 | AB30: 186.3832339 | AC30: 191.9747309 | AE30: 174576.4482 | AF30: =AE30*$AF$27 -> 1246.47584 | AG30: =(AE30+AF30)*$AG$27 -> 5274.687721 | AH30: =(AE30+AF30+AG30)*$AH$27 -> 5432.928353 | AI30: =(AE30+AF30+AG30+AH30)*$AI$27 -> 5595.916204 | AL30: =T30+Z30+AA30+AF30+AG30+AH30 -> 192743.3146 | AM30: =AL30+AH30+AB30 -> 198362.6262 | AO30: 12352.57325 | AQ30: 5787.890934 | AR30: 198717.5887 | AT30: -775.6504224 | AU30: -5800.266183 | AV30: 0
A31: 31 | B31: 538-OP | C31: Hydro | D31: Electric Expenses | F31: 1927935.344 | H31: 65397.87295 | I31: 0 | J31: -7524.798023 | K31: 56153.45663 | N31: 538 | P31: 505 | Q31: 505000 | R31: 193417.649 | S31: 0 | T31: 193417.649 | V31: 0.9674216323 | W31: 0.03257836767 | Y31: 6301.231283 | Z31: 32.70339036 | AA31: 190.0180402 | AB31: 195.7185814 | AC31: 201.5901388 | AE31: 187116.4177 | AF31: 1336.011222 | AG31: 5653.572867 | AH31: 5823.180053 | AI31: 5997.875455 | AL31: 206453.1345 | AM31: 212472.0332 | AO31: 13231.20416 | AQ31: 6199.465594 | AR31: 212848.3187 | AT31: -830.8055713 | AU31: -6208.916675 | AV31: 0
A32: 32 | B32: 539-OP | C32: Hydro | D32: Miscellaneous Power Exp. | F32: 61302.67372 | H32: 1739.11855 | I32: 0 | J32: -239.3546459 | K32: 1785.514768 | N32: 539 | P32: 506 | Q32: 506000 | R32: 90659.17955 | S32: 0 | T32: 90659.17955 | V32: 0.5527908125 | W32: 0.4472091875 | Y32: 40543.61803 | Z32: 210.4213776 | AA32: 1222.621182 | AB32: 1259.299818 | AC32: 1297.078812 | AE32: 50115.56152 | AF32: 357.8251093 | AG32: 1514.201599 | AH32: 1559.627647 | AI32: 1606.416476 | AL32: 95523.87646 | AM32: 98342.80393 | AO32: 6123.996732 | AQ32: 2903.495288 | AR32: 99686.67157 | AT32: -389.4171595 | AU32: -4041.548647 | AV32: 0
A33: 33 | B33: 540-OP | C33: Hydro | D33: Rents | F33: 81.36476868 | H33: 2.761686104 | I33: 0 | J33: -0.3175690539 | K33: 2.369847631 | N33: 540 | P33: 510 | Q33: 510000 | R33: 29188.07095 | S33: 0 | T33: 29188.07095 | V33: 0 | W33: 1 | Y33: 29188.07095 | Z33: 151.4860882 | AA33: 880.1867112 | AB33: 906.5923125 | AC33: 933.7900819 | AE33: 0 | AF33: 0 | AG33: 0 | AH33: 0 | AI33: 0 | AL33: 30219.74375 | AM33: 31126.33606 | AO33: 1938.265112 | AQ33: 933.7900819 | AR33: 32060.12615 | AT33: -125.3743497 | AU33: -1786.779024 | AV33: 0
A34: 34 | C34: Total Hydraulic Operation | H34: 0 | K34: 0 | P34: 511 | Q34: 511000 | R34: 6862.605976 | S34: 0 | T34: 6862.605976 | V34: 0.9817060272 | W34: 0.01829397281 | Y34: 125.5443271 | Z34: 0.6515750578 | AA34: 3.785877066 | AB34: 3.899453377 | AC34: 4.016436979 | AE34: 6737.061649 | AF34: 48.10262017 | AG34: 203.5549281 | AH34: 209.6615759 | AI34: 215.9514232 | AL34: 7328.362552 | AM34: 7541.923582 | AO34: 469.6560297 | AQ34: 219.9678602 | AR34: 7552.229866 | AT34: -29.47761649 | AU34: -217.3469064 | AV34: 0
A35: 35 | B35: 541-MT | C35: Hydro | D35: Supervision & Engineering | F35: =SUMIF($P$28:$P$109,$N35,$AR$28:$AR$109) -> 192267.9335 | H35: 2658.940781 | I35: =SUMIF($P$28:$P$109,$N35,$AP$28:$AP$109) -> 0 | J35: =SUMIF($P$28:$P$109,$N35,$AT$28:$AT$109) -> -751.4294689 | K35: 5600.036899 | N35: 541 | P35: 512 | Q35: 512000 | R35: 277355.0298 | S35: 0 | T35: 277355.0298 | V35: 1 | W35: 0 | Y35: 0 | Z35: 0 | AA35: 0 | AB35: 0 | AC35: 0 | AE35: 277355.0298 | AF35: 1980.314913 | AG35: 8380.060342 | AH35: 8631.462152 | AI35: 8890.406017 | AL35: 296346.8672 | AM35: 304978.3294 | AO35: 18991.83741 | AQ35: 8890.406017 | AR35: 305237.2733 | AT35: -1191.349937 | AU35: -8631.462152 | AV35: 0
A36: 36 | B36: 542-MT | C36: Hydro | D36: Structures | F36: =SUMIF($P$28:$P$109,$N36,$AR$28:$AR$109) -> 78547.45006 | H36: 2498.286805 | I36: =SUMIF($P$28:$P$109,$N36,$AP$28:$AP$109) -> 0 | J36: =SUMIF($P$28:$P$109,$N36,$AT$28:$AT$109) -> -306.6164563 | K36: 2287.789808 | N36: 542 | P36: 513 | Q36: 513000 | R36: 94006.13904 | S36: 0 | T36: 94006.13904 | V36: 0.9540577017 | W36: 0.04594229832 | Y36: 4318.858084 | Z36: 22.41487346 | AA36: 130.2381887 | AB36: 134.1453344 | AC36: 138.1696944 | AE36: 89687.28096 | AF36: 640.3671861 | AG36: 2709.829444 | AH36: 2791.124328 | AI36: 2874.858058 | AL36: 100300.1131 | AM36: 103225.3827 | AO36: 6428.119355 | AQ36: 3013.027752 | AR36: 103447.2862 | AT36: -403.7936789 | AU36: -3055.507851 | AV36: 0
A37: 37 | B37: 543-MT | C37: Hydro | D37: Reservoirs, Dams & Waterways | F37: =SUMIF($P$28:$P$109,$N37,$AR$28:$AR$109) -> 204539.9579 | H37: 6262.981739 | I37: =SUMIF($P$28:$P$109,$N37,$AP$28:$AP$109) -> 0 | J37: =SUMIF($P$28:$P$109,$N37,$AT$28:$AT$109) -> -798.5014913 | K37: 5957.474501 | N37: 543 | P37: 514 | Q37: 514000 | R37: 28403.68713 | S37: 0 | T37: 28403.68713 | V37: 0.818321661 | W37: 0.181678339 | Y37: 5160.3347 | Z37: 26.78213709 | AA37: 155.6135051 | AB37: 160.2819103 | AC37: 165.0903676 | AE37: 23243.35243 | AF37: 165.9575363 | AG37: 702.2792989 | AH37: 723.3476779 | AI37: 745.0481082 | AL37: 30177.66728 | AM37: 31061.29687 | AO37: 1934.262066 | AQ37: 910.1384758 | AR37: 31248.08767 | AT37: -122.0051099 | AU37: -1039.243093 | AV37: 0
A38: 38 | B38: 544-MT | C38: Hydro | D38: Electric Plant | F38: =SUMIF($P$28:$P$109,$N38,$AR$28:$AR$109) -> 701525.5203 | H38: 21277.17498 | I38: =SUMIF($P$28:$P$109,$N38,$AP$28:$AP$109) -> 0 | J38: =SUMIF($P$28:$P$109,$N38,$AT$28:$AT$109) -> -2738.731165 | K38: 20432.78214 | N38: 544 | P38: 535 | Q38: 535000 | R38: 533802.2574 | S38: 0 | T38: 533802.2574 | V38: 0.005803608995 | W38: 0.994196391 | Y38: 530704.2778 | Z38: 2754.355202 | AA38: 16003.75899 | AB38: 16483.87176 | AC38: 16978.38791 | AE38: 3097.979582 | AF38: 22.11957422 | AG38: 93.6029747 | AH38: 96.41106394 | AI38: 99.30339586 | AL38: 552772.5052 | AM38: 569352.788 | AO38: 35454.11956 | AQ38: 17077.69131 | AR38: 586334.0682 | AT38: -2292.892565 | AU38: -32584.04181 | AV38: 2.700062396e-13
A39: 39 | B39: 545-MT | C39: Hydro | D39: Miscellaneous Plant | F39: =SUMIF($P$28:$P$109,$N39,$AR$28:$AR$109) -> 195731.0806 | H39: 5402.963278 | I39: =SUMIF($P$28:$P$109,$N39,$AP$28:$AP$109) -> 0 | J39: =SUMIF($P$28:$P$109,$N39,$AT$28:$AT$109) -> -764.2655785 | K39: 5700.905261 | N39: 545 | P39: 536 | Q39: 536000 | R39: 4567.385464 | S39: 0 | T39: 4567.385464 | V39: 0 | W39: 1 | Y39: 4567.385464 | Z39: 23.70473056 | AA39: 137.7327058 | AB39: 141.864687 | AC39: 146.1206276 | AE39: 0 | AF39: 0 | AG39: 0 | AH39: 0 | AI39: 0 | AL39: 4728.8229 | AM39: 4870.687587 | AO39: 303.3021234 | AQ39: 146.1206276 | AR39: 5016.808215 | AT39: -19.6187334 | AU39: -279.5973928 | AV39: 0
A40: 40 | C40: Total Hydraulic Maintenance | H40: 0 | K40: 0 | P40: 537 | Q40: 537000 | R40: 174588.18 | S40: 0 | T40: 174588.18 | V40: 0.1133559711 | W40: 0.8866440289 | Y40: 154797.5673 | Z40: 803.3993743 | AA40: 4668.029 | AB40: 4808.06987 | AC40: 4952.311967 | AE40: 19790.61269 | AF40: 141.3049746 | AG40: 597.9575299 | AH40: 615.8962558 | AI40: 634.3731435 | AL40: 181414.7671 | AM40: 186838.7333 | AO40: 11634.65701 | AQ40: 5586.68511 | AR40: 191809.5221 | AT40: -749.9255284 | AU40: -10091.99513 | AV40: 0
A41: 41 | C41: Total Hydraulic Generation | F41: =SUM(F28:F39) -> 4145091.724 | H41: =SUM(H28:H39) -> 109676.5451 | I41: =SUM(I28:I39) -> 0 | J41: =SUM(J28:J39) -> -16186.45123 | K41: =SUM(K28:K39) -> 120730.8269 | P41: 538 | Q41: 538000 | R41: 1751828.337 | S41: 0 | T41: 1751828.337 | V41: 0.999285255 | W41: 0.0007147449562 | Y41: 1252.110468 | Z41: 6.49845333 | AA41: 37.75826765 | AB41: 38.89101568 | AC41: 40.05774615 | AE41: 1750576.227 | AF41: 12499.11426 | AG41: 52892.26024 | AH41: 54479.02804 | AI41: 56113.39888 | AL41: 1871742.997 | AM41: 1926260.916 | AO41: 119953.5503 | AQ41: 56153.45663 | AR41: 1927935.344 | AT41: -7524.798023 | AU41: -54555.67733 | AV41: 0
A42: 42 | P42: 539 | Q42: 539000 | R42: 55723.52242 | S42: 0 | T42: 55723.52242 | V42: 0.8089669307 | W42: 0.1910330693 | Y42: 10645.03552 | Z42: 55.24773435 | AA42: 321.0084976 | AB42: 330.6387526 | AC42: 340.5579151 | AE42: 45078.4869 | AF42: 321.8603964 | AG42: 1362.010419 | AH42: 1402.870731 | AI42: 1444.956853 | AL42: 59186.52019 | AM42: 60920.02968 | AO42: 3793.636531 | AQ42: 1785.514768 | AR42: 61302.67372 | AT42: -239.3546459 | AU42: -2054.517982 | AV42: 0
A43: 43 | B43: 546-OP | C43: Other | D43: Supervision & Engineering | F43: =SUMIF($P$28:$P$109,$N43,$AR$28:$AR$109) -> 43113.63288 | H43: =SUMIF($P$28:$P$109,$N43,$AO$28:$AO$109)+SUMIF($P$28:$P$109,$N43,$AU$28:$AU$109) -> 214.6663739 | I43: =SUMIF($P$28:$P$109,$N43,$AP$28:$AP$109) -> 0 | J43: =SUMIF($P$28:$P$109,$N43,$AT$28:$AT$109) -> -168.597362 | K43: =SUMIF($P$28:$P$109,$N43,$AQ$28:$AQ$109)+SUMIF($P$28:$P$109,$N43,$AV$28:$AV$109) -> 1255.73688 | N43: 546 | P43: 540 | Q43: 540000 | R43: 73.932412 | S43: 0 | T43: 73.932412 | V43: 1 | W43: 0 | Y43: 0 | Z43: 0 | AA43: 0 | AB43: 0 | AC43: 0 | AE43: 73.932412 | AF43: 0.5278774217 | AG43: 2.233808683 | AH43: 2.300822943 | AI43: 2.369847631 | AL43: 78.99492105 | AM43: 81.29574399 | AO43: 5.062509047 | AQ43: 2.369847631 | AR43: 81.36476868 | AT43: -0.3175690539 | AU43: -2.300822943 | AV43: 0
A44: 44 | B44: 547-OP | C44: Other | D44: Fuel | F44: =SUMIF($P$28:$P$109,$N44,$AR$28:$AR$109) -> 5.797589922e-13 | H44: 1.060323937e-14 | I44: =SUMIF($P$28:$P$109,$N44,$AP$28:$AP$109) -> 0 | J44: =SUMIF($P$28:$P$109,$N44,$AT$28:$AT$109) -> -2.265167961e-15 | K44: 1.688618424e-14 | N44: 547 | P44: 541 | Q44: 541000 | R44: 174938.3084 | S44: 0 | T44: 174938.3084 | V44: 0.3111939806 | W44: 0.6888060194 | Y44: 120498.5598 | Z44: 625.3875256 | AA44: 3633.718421 | AB44: 3742.729974 | AC44: 3855.011873 | AE44: 54439.74856 | AF44: 388.6998047 | AG44: 1644.853451 | AH44: 1694.199054 | AI44: 1745.025026 | AL44: 182925.1667 | AM44: 188362.0957 | AO44: 11729.58823 | AQ44: 5600.036899 | AR44: 192267.9335 | AT44: -751.4294689 | AU44: -9070.647449 | AV44: 0
A45: 45 | B45: 548-OP | C45: Other | D45: Generation Expenses | F45: =SUMIF($P$28:$P$109,$N45,$AR$28:$AR$109) -> 134439.5354 | H45: 4561.201292 | I45: =SUMIF($P$28:$P$109,$N45,$AP$28:$AP$109) -> 0 | J45: =SUMIF($P$28:$P$109,$N45,$AT$28:$AT$109) -> -524.7219143 | K45: 3915.714622 | N45: 548 | P45: 542 | Q45: 542000 | R45: 71382.56671 | S45: 0 | T45: 71382.56671 | V45: 0.9267619482 | W45: 0.07323805179 | Y45: 5227.920118 | Z45: 27.13290541 | AA45: 157.6515907 | AB45: 162.3811384 | AC45: 167.2525726 | AE45: 66154.64659 | AF45: 472.3441767 | AG45: 1998.809723 | AH45: 2058.774015 | AI45: 2120.537235 | AL45: 76097.27912 | AM45: 78318.43427 | AO45: 4877.093549 | AQ45: 2287.789808 | AR45: 78547.45006 | AT45: -306.6164563 | AU45: -2378.806744 | AV45: 0
A46: 46 | B46: 549-OP | C46: Other | D46: Miscellaneous Power Exp. | F46: =SUMIF($P$28:$P$109,$N46,$AR$28:$AR$109) -> 82667.39945 | H46: 727.1270658 | I46: =SUMIF($P$28:$P$109,$N46,$AP$28:$AP$109) -> 0 | J46: =SUMIF($P$28:$P$109,$N46,$AT$28:$AT$109) -> -323.1919758 | K46: 2407.788334 | N46: 549 | P46: 543 | Q46: 543000 | R46: 185897.0215 | S46: 0 | T46: 185897.0215 | V46: 0.8860968891 | W46: 0.1139031109 | Y46: 21174.24906 | Z46: 109.8943526 | AA46: 638.5243025 | AB46: 657.6800316 | AC46: 677.4104326 | AE46: 164722.7724 | AF46: 1176.120595 | AG46: 4976.966791 | AH46: 5126.275795 | AI46: 5280.064069 | AL46: 197924.8033 | AM46: 203708.7592 | AO46: 12685.46187 | AQ46: 5957.474501 | AR46: 204539.9579 | AT46: -798.5014913 | AU46: -6422.480129 | AV46: 0
A47: 47 | B47: 550-OP | C47: Other | D47: Rents | F47: =SUMIF($P$28:$P$109,$N47,$AR$28:$AR$109) -> 0 | H47: 0 | I47: =SUMIF($P$28:$P$109,$N47,$AP$28:$AP$109) -> 0 | J47: =SUMIF($P$28:$P$109,$N47,$AT$28:$AT$109) -> 0 | K47: 0 | N47: 550 | P47: 544 | Q47: 544000 | R47: 637596.7632 | S47: 0 | T47: 637596.7632 | V47: 0.8761572039 | W47: 0.1238427961 | Y47: 78961.76593 | Z47: 409.8115652 | AA47: 2381.147325 | AB47: 2452.581745 | AC47: 2526.159197 | AE47: 558634.9973 | AF47: 3988.653881 | AG47: 16878.70954 | AH47: 17385.07082 | AI47: 17906.62295 | AL47: 678640.1564 | AM47: 698477.8089 | AO47: 43495.97487 | AQ47: 20432.78214 | AR47: 701525.5203 | AT47: -2738.731165 | AU47: -22218.79989 | AV47: 0
A48: 48 | C48: Total Other Operation | H48: 0 | K48: 0 | P48: 545 | Q48: 545000 | R48: 176908.8338 | S48: 0 | T48: 176908.8338 | V48: 0.7814910878 | W48: 0.2185089122 | Y48: 38656.15682 | Z48: 200.6254539 | AA48: 1165.703468 | AB48: 1200.674572 | AC48: 1236.694809 | AE48: 138252.677 | AF48: 987.1241135 | AG48: 4177.194032 | AH48: 4302.509853 | AI48: 4431.585149 | AL48: 187741.9907 | AM48: 193245.1751 | AO48: 12033.83149 | AQ48: 5668.279958 | AR48: 194610.9452 | AT48: -759.8936575 | AU48: -6668.887894 | AV48: 0
A49: 49 | B49: 551-MT | C49: Other | D49: Supervision & Engineering | F49: =SUMIF($P$28:$P$109,$N49,$AR$28:$AR$109) -> 132767.3141 | H49: 1287.851987 | I49: =SUMIF($P$28:$P$109,$N49,$AP$28:$AP$109) -> 0 | J49: =SUMIF($P$28:$P$109,$N49,$AT$28:$AT$109) -> -519.0287691 | K49: 3867.009149 | N49: 551 | P49: 545 | Q49: 545300 | R49: 1017.815356 | S49: 0 | T49: 1017.815356 | V49: 1 | W49: 0 | Y49: 0 | Z49: 0 | AA49: 0 | AB49: 0 | AC49: 0 | AE49: 1017.815356 | AF49: 7.267201642 | AG49: 30.75247673 | AH49: 31.67505103 | AI49: 32.62530256 | AL49: 1087.510085 | AM49: 1119.185136 | AO49: 69.6947294 | AQ49: 32.62530256 | AR49: 1120.135388 | AT49: -4.371920933 | AU49: -31.67505103 | AV49: 0
A50: 50 | B50: 552-MT | C50: Other | D50: Structures | F50: =SUMIF($P$28:$P$109,$N50,$AR$28:$AR$109) -> 3145.683813 | H50: 98.02576568 | I50: =SUMIF($P$28:$P$109,$N50,$AP$28:$AP$109) -> 0 | J50: =SUMIF($P$28:$P$109,$N50,$AT$28:$AT$109) -> -12.27996155 | K50: 91.62185864 | N50: 552 | P50: 546 | Q50: 546000 | R50: 39250.70619 | S50: 0 | T50: 39250.70619 | V50: 0.008677616001 | W50: 0.991322384 | Y50: 38910.10364 | Z50: 201.9434379 | AA50: 1173.361412 | AB50: 1208.562255 | AC50: 1244.819122 | AE50: 340.6025561 | AF50: 2.431902251 | AG50: 10.29103375 | AH50: 10.59976476 | AI50: 10.91775771 | AL50: 40649.33374 | AM50: 41868.49576 | AO50: 2607.189805 | AQ50: 1255.73688 | AR50: 43113.63288 | AT50: -168.597362 | AU50: -2392.523432 | AV50: 9.059419881e-14
A51: 51 | B51: 553-MT | C51: Other | D51: Generating & Electric Plant | F51: =SUMIF($P$28:$P$109,$N51,$AR$28:$AR$109) -> 184288.4506 | H51: 5739.638999 | I51: =SUMIF($P$28:$P$109,$N51,$AP$28:$AP$109) -> 0 | J51: =SUMIF($P$28:$P$109,$N51,$AT$28:$AT$109) -> -719.4167608 | K51: 5367.624775 | N51: 553 | P51: 547 | Q51: 547000 | R51: 5.273477655e-13 | S51: 0 | T51: 5.273477655e-13 | V51: 0.4637681159 | W51: 0.5362318841 | Y51: 2.827806858e-13 | Z51: 1.467631759e-15 | AA51: 8.527449528e-15 | AB51: 8.783273013e-15 | AC51: 9.046771204e-15 | AE51: 2.445670796e-13 | AF51: 1.746208949e-15 | AG51: 7.389398657e-15 | AH51: 7.611080617e-15 | AI51: 7.839413036e-15 | AL51: 5.54089535e-13 | AM51: 5.704838886e-13 | AO51: 3.552504252e-14 | AQ51: 1.688618424e-14 | AR51: 5.797589922e-13 | AT51: -2.265167961e-15 | AU51: -2.492180316e-14 | AV51: 0
A52: 52 | B52: 554-MT | C52: Other | D52: Miscellaneous Plant | F52: =SUMIF($P$28:$P$109,$N52,$AR$28:$AR$109) -> 45906.90666 | H52: 1439.801238 | I52: =SUMIF($P$28:$P$109,$N52,$AP$28:$AP$109) -> 0 | J52: =SUMIF($P$28:$P$109,$N52,$AT$28:$AT$109) -> -179.2066656 | K52: 1337.094369 | N52: 554 | P52: 548 | Q52: 548000 | R52: 122159.1219 | S52: 0 | T52: 122159.1219 | V52: 0.9995024426 | W52: 0.0004975574278 | Y52: 60.78117846 | Z52: 0.3154543162 | AA52: 1.832898983 | AB52: 1.887885953 | AC52: 1.944522531 | AE52: 122098.3407 | AF52: 871.7821525 | AG52: 3689.103685 | AH52: 3799.776796 | AI52: 3913.7701 | AL52: 130521.9329 | AM52: 134323.5975 | AO52: 8364.698873 | AQ52: 3915.714622 | AR52: 134439.5354 | AT52: -524.7219143 | AU52: -3803.497581 | AV52: 0
A53: 53 | C53: Total Other Maintenance | H53: 0 | P53: 549 | Q53: 549000 | R53: 75241.46959 | S53: 0 | T53: 75241.46959 | V53: 0.1390960652 | W53: 0.8609039348 | Y53: 64775.67723 | Z53: 336.1857648 | AA53: 1953.35589 | AB53: 2011.956567 | AC53: 2072.315264 | AE53: 10465.79236 | AF53: 74.72575744 | AG53: 316.2155435 | AH53: 325.7020098 | AI53: 335.4730701 | AL53: 78247.65455 | AM53: 80585.31313 | AO53: 5018.141532 | AQ53: 2407.788334 | AR53: 82667.39945 | AT53: -323.1919758 | AU53: -4291.014466 | AV53: 0
A54: 54 | C54: Total Other Generation | F54: =SUM(F43:F52) -> 626328.9229 | H54: =SUM(H43:H52) -> 14068.31272 | I54: =SUM(I43:I52) -> 0 | J54: =SUM(J43:J52) -> -2446.443409 | K54: =SUM(K43:K52) -> 18242.58999 | P54: 551 | Q54: 551000 | R54: 120833.7158 | S54: 0 | T54: 120833.7158 | V54: 0.1700042804 | W54: 0.8299957196 | Y54: 100291.4669 | Z54: 520.5127131 | AA54: 3024.359388 | AB54: 3115.09017 | AC54: 3208.542875 | AE54: 20542.2489 | AF54: 146.6716572 | AG54: 620.6676169 | AH54: 639.2876454 | AI54: 658.4662747 | AL54: 125785.2148 | AM54: 129539.5926 | AO54: 8066.58919 | AQ54: 3867.009149 | AR54: 132767.3141 | AT54: -519.0287691 | AU54: -6778.737203 | AV54: 0
A55: 55 | P55: 552 | Q55: 552000 | R55: 2858.865388 | S55: 0 | T55: 2858.865388 | V55: 0.9046811683 | W55: 0.09531883172 | Y55: 272.5037088 | Z55: 1.414294249 | AA55: 8.217540093 | AB55: 8.464066295 | AC55: 8.717988284 | AE55: 2586.361679 | AF55: 18.46662239 | AG55: 78.14484905 | AH55: 80.48919452 | AI55: 82.90387035 | AL55: 3045.597888 | AM55: 3134.551149 | AO55: 195.1965666 | AQ55: 91.62185864 | AR55: 3145.683813 | AT55: -12.27996155 | AU55: -97.17080091 | AV55: 0
A56: 56 | B56: 555-OP | C56: Total Purchased Power | F56: =SUMIF($P$28:$P$109,$N56,$AR$28:$AR$109) -> 0 | H56: =SUMIF($P$28:$P$109,$N56,$AO$28:$AO$109)+SUMIF($P$28:$P$109,$N56,$AU$28:$AU$109) -> 0 | I56: =SUMIF($P$28:$P$109,$N56,$AP$28:$AP$109) -> 0 | J56: =SUMIF($P$28:$P$109,$N56,$AT$28:$AT$109) -> 0 | K56: =SUMIF($P$28:$P$109,$N56,$AQ$28:$AQ$109)+SUMIF($P$28:$P$109,$N56,$AV$28:$AV$109) -> 0 | N56: 555 | P56: 553 | Q56: 553000 | R56: 167485.5144 | S56: 0 | T56: 167485.5144 | V56: 0.9040941526 | W56: 0.09590584744 | Y56: 16062.8402 | Z56: 83.36614062 | AA56: 484.3861901 | AB56: 498.9177758 | AC56: 513.8853091 | AE56: 151422.6742 | AF56: 1081.157894 | AG56: 4575.114964 | AH56: 4712.368413 | AI56: 4853.739466 | AL56: 178421.908 | AM56: 183633.1942 | AO56: 11435.31138 | AQ56: 5367.624775 | AR56: 184288.4506 | AT56: -719.4167608 | AU56: -5695.672379 | AV56: 0
A57: 57 | B57: 556-OP | C57: Total System Control & Load Dispatching | F57: =SUMIF($P$28:$P$109,$N57,$AR$28:$AR$109) -> 101142.3717 | H57: 477.9039911 | I57: =SUMIF($P$28:$P$109,$N57,$AP$28:$AP$109) -> 0 | J57: =SUMIF($P$28:$P$109,$N57,$AT$28:$AT$109) -> -395.527423 | K57: 2945.894321 | N57: 556 | P57: 554 | Q57: 554000 | R57: 41720.63012 | S57: 0 | T57: 41720.63012 | V57: 0.9115891059 | W57: 0.08841089408 | Y57: 3688.558211 | Z57: 19.14361711 | AA57: 111.2310548 | AB57: 114.5679865 | AC57: 118.0050261 | AE57: 38032.07191 | AF57: 271.5489935 | AG57: 1149.108627 | AH57: 1183.581886 | AI57: 1219.089343 | AL57: 44455.2443 | AM57: 45753.39418 | AO57: 2849.182165 | AQ57: 1337.094369 | AR57: 45906.90666 | AT57: -179.2066656 | AU57: -1409.380927 | AV57: 0
A58: 58 | B58: 557-OP | C58: Total Other Expenses | F58: =SUMIF($P$28:$P$109,$N58,$AR$28:$AR$109) -> 1558933.994 | H58: 7114.081789 | I58: =SUMIF($P$28:$P$109,$N58,$AP$28:$AP$109) -> 0 | J58: =SUMIF($P$28:$P$109,$N58,$AT$28:$AT$109) -> -5887.823683 | K58: 43852.60121 | N58: 557 | P58: 556 | Q58: 556000 | R58: 92081.69386 | S58: 0 | T58: 92081.69386 | V58: 0 | W58: 1 | Y58: 92081.69386 | Z58: 477.9039911 | AA58: 2776.787935 | AB58: 2860.091573 | AC58: 2945.894321 | AE58: 0 | AF58: 0 | AG58: 0 | AH58: 0 | AI58: 0 | AL58: 95336.38578 | AM58: 98196.47736 | AO58: 6114.7835 | AQ58: 2945.894321 | AR58: 101142.3717 | AT58: -395.527423 | AU58: -5636.879509 | AV58: 0
A59: 59 | D59: Total Production Expenses | F59: =F26+F41+F54+F57+F58 -> 7831635.142 | H59: =H26+H41+H54+H57+H58 -> 172279.337 | I59: =I26+I41+I54+I57+I58 -> 0 | J59: =J26+J41+J54+J57+J58 -> -30382.73099 | K59: =K26+K41+K54+K57+K58 -> 226552.6347 | P59: 557 | Q59: 557000 | R59: 1424056.687 | S59: -53328.01881 | T59: 1370728.668 | V59: 0 | W59: 1 | Y59: 1370728.668 | Z59: 7114.081789 | AA59: 41335.2825 | AB59: 42575.34098 | AC59: 43852.60121 | AE59: 0 | AF59: 0 | AG59: 0 | AH59: 0 | AI59: 0 | AL59: 1419178.033 | AM59: 1461753.374 | AO59: 91024.70527 | AQ59: 43852.60121 | AR59: 1558933.994 | AT59: -5887.823683 | AU59: -83910.62348 | AV59: 0
A60: 60 | P60: 560 | Q60: 560000 | R60: 460295.1878 | S60: -359.45714 | T60: 459935.7307 | V60: 0.007158326581 | W60: 0.9928416734 | Y60: 456643.3605 | Z60: 2369.979041 | AA60: 13770.40019 | AB60: 14183.51219 | AC60: 14609.01756 | AE60: 3292.370167 | AF60: 23.50752299 | AG60: 99.47633068 | AH60: 102.4606206 | AI60: 105.5344392 | AL60: 476301.5544 | AM60: 490587.5272 | AO60: 30549.33589 | AQ60: 14714.552 | AR60: 505559.0757 | AT60: -1975.606515 | AU60: -28056.373 | AV60: -1.98951966e-13
A61: 61 | B61: Proforma | N61: Pro | P61: 561 | Q61: 561000 | R61: 1595.912048 | S61: 0 | T61: 1595.912048 | V61: 0 | W61: 1 | Y61: 1595.912048 | Z61: 8.282783529 | AA61: 48.12584495 | AB61: 49.56962029 | AC61: 51.0567089 | AE61: 0 | AF61: 0 | AG61: 0 | AH61: 0 | AI61: 0 | AL61: 1652.320676 | AM61: =AL61+AH61+AB61 -> 1701.890297 | AO61: 105.9782488 | AQ61: 51.0567089 | AR61: 1752.947006 | AT61: -6.855075676 | AU61: -97.69546524 | AV61: 0
A62: 62 | B62: =$B$2 -> Pro Forma Results of Operations | N62: Pro | P62: 561 | Q62: 561110 | R62: 17688.53144 | S62: 0 | T62: 17688.53144 | V62: 0 | W62: 1 | Y62: 17688.53144 | Z62: 91.80347815 | AA62: 533.4100474 | AB62: 549.4123488 | AC62: 565.8947193 | AE62: 0 | AF62: 0 | AG62: 0 | AH62: 0 | AI62: 0 | AL62: 18313.74496 | AM62: 18863.15731 | AO62: 1174.625874 | AQ62: 565.8947193 | AR62: 19429.05203 | AT62: -75.97926323 | AU62: -1082.822396 | AV62: 0
A63: 63 | B63: =$B$3 -> AVU-E-21-01 Company RY2 Settlement Case | N63: AVU | P63: 561 | Q63: 561210 | R63: 223472.8323 | S63: 0 | T63: 223472.8323 | V63: 0 | W63: 1 | Y63: 223472.8323 | Z63: 1159.824 | AA63: 6738.97969 | AB63: 6941.14908 | AC63: 7149.383553 | AE63: 0 | AF63: 0 | AG63: 0 | AH63: 0 | AI63: 0 | AL63: 231371.636 | AM63: 238312.7851 | AO63: 14839.95277 | AQ63: 7149.383553 | AR63: 245462.1686 | AT63: -959.9045129 | AU63: -13680.12877 | AV63: 0
A64: 64 | P64: 561 | Q64: 561310 | R64: 298724.8607 | S64: 0 | T64: 298724.8607 | V64: 0.006597363216 | W64: 0.9934026368 | Y64: 296754.0643 | Z64: 1540.153594 | AA64: 8948.826538 | AB64: 9217.291334 | AC64: 9493.810074 | AE64: 1970.796408 | AF64: 14.07148635 | AG64: 59.54603683 | AH64: 61.33241794 | AI64: 63.17239048 | AL64: 309348.7908 | AM64: 318627.4146 | AO64: 19841.22141 | AQ64: 9556.982464 | AR64: 328123.0646 | AT64: -1283.141843 | AU64: -18227.45029 | AV64: -7.602807273e-13
A65: 65 | B65: (a) | C65: (b) | N65: (a) | P65: 561 | Q65: 561510 | R65: 195441.0785 | S65: 0 | T65: 195441.0785 | V65: 0.004766158999 | W65: 0.995233841 | Y65: 194509.5752 | Z65: 1009.504695 | AA65: 5865.572397 | AB65: 6041.539569 | AC65: 6222.785756 | AE65: 931.5032548 | AF65: 6.650933239 | AG65: 28.14462564 | AH65: 28.98896441 | AI65: 29.85863334 | AL65: 202379.9401 | AM65: 208450.4686 | AO65: 12980.40118 | AQ65: 6252.644389 | AR65: 214674.124 | AT65: -839.497004 | AU65: -11936.10093 | AV65: 3.659295089e-13
A66: 66 | P66: 561 | Q66: 561810 | R66: 1.953139872e-14 | S66: 0 | T66: 1.953139872e-14 | V66: 0 | W66: 1 | Y66: 1.953139872e-14 | Z66: 1.013679594e-16 | AA66: 5.889830004e-16 | AB66: 6.066524904e-16 | AC66: 6.248520651e-16 | AE66: 0 | AF66: 0 | AG66: 0 | AH66: 0 | AI66: 0 | AL66: 2.022174968e-14 | AM66: 2.082840217e-14 | AO66: 1.29700345e-15 | AQ66: 6.248520651e-16 | AR66: 2.145325424e-14 | AT66: -8.389510966e-17 | AU66: -1.195635491e-15 | AV66: 0
A67: 67 | B67: Account | C67: Description | N67: Acc | P67: 562 | Q67: 562000 | R67: 77003.99328 | S67: 0 | T67: 77003.99328 | V67: 0.8956335117 | W67: 0.1043664883 | Y67: 8036.636361 | Z67: 41.71014272 | AA67: 242.3503951 | AB67: 249.620907 | AC67: 257.1095342 | AE67: 68967.35691 | AF67: 492.4269284 | AG67: 2083.793515 | AH67: 2146.307321 | AI67: 2210.69654 | AL67: 82010.58158 | AM67: 84406.50981 | AO67: 5256.209209 | AQ67: 2467.806075 | AR67: 84728.00856 | AT67: -330.7627146 | AU67: -2638.278623 | AV67: 0
A68: 68 | P68: 563 | Q68: 563000 | R68: 15574.26099 | S68: 0 | T68: 15574.26099 | V68: 0.913513846 | W68: 0.08648615404 | Y68: 1346.957935 | Z68: 6.990711683 | AA68: 40.61845941 | AB68: 41.83701319 | AC68: 43.09212358 | AE68: 14227.30306 | AF68: 101.5829438 | AG68: 429.86658 | AH68: 442.7625774 | AI68: 456.0454547 | AL68: 16596.08226 | AM68: 17080.68185 | AO68: 1063.658286 | AQ68: 499.1375783 | AR68: 17137.05686 | AT68: -66.8976325 | AU68: -525.21805 | AV68: 0
A69: 69 | C69: Transmission Expenses | P69: 566 | Q69: 566000 | R69: 333606.772 | S69: 0 | T69: 333606.772 | V69: 0.4962620287 | W69: 0.5037379713 | Y69: 168050.3985 | Z69: 872.1815684 | AA69: 5067.677403 | AB69: 5219.707725 | AC69: 5376.298957 | AE69: 165556.3734 | AF69: 1182.072506 | AG69: 5002.153378 | AH69: 5152.21798 | AI69: 5306.784519 | AL69: 350883.0748 | AM69: 361255.0005 | AO69: 22496.01056 | AQ69: 10683.08348 | AR69: 366785.866 | AT69: -1432.973497 | AU69: -15439.60311 | AV69: 0
A70: 70 | B70: 560-OP | C70: Supervision & Engineering | F70: =SUMIF($P$28:$P$109,$N70,$AR$28:$AR$109) -> 505559.0757 | H70: =SUMIF($P$28:$P$109,$N70,$AO$28:$AO$109)+SUMIF($P$28:$P$109,$N70,$AU$28:$AU$109) -> 2492.962895 | I70: =SUMIF($P$28:$P$109,$N70,$AP$28:$AP$109) -> 0 | J70: =SUMIF($P$28:$P$109,$N70,$AT$28:$AT$109) -> -1975.606515 | K70: =SUMIF($P$28:$P$109,$N70,$AQ$28:$AQ$109)+SUMIF($P$28:$P$109,$N70,$AV$28:$AV$109) -> 14714.552 | N70: 560 | P70: 567 | Q70: 567000 | R70: 5260.13804 | S70: 0 | T70: 5260.13804 | V70: 0.4407381471 | W70: 0.5592618529 | Y70: 2941.794547 | Z70: 15.2679137 | AA70: 88.71187382 | AB70: 91.37323003 | AC70: 94.11442694 | AE70: 2318.343493 | AF70: 16.55297254 | AG70: 70.04689397 | AH70: 72.14830079 | AI70: 74.31274981 | AL70: 5522.865995 | AM70: 5686.387526 | AO70: 354.1011848 | AQ70: 168.4271767 | AR70: 5782.666402 | AT70: -22.59438067 | AU70: -252.2334046 | AV70: 0
A71: 71 | B71: 561-OP | C71: Load Dispatching | F71: 809441.3563 | H71: 3917.981633 | I71: 0 | J71: -3165.377699 | K71: 23575.96183 | N71: 561 | P71: 568 | Q71: 568000 | R71: 123821.682 | S71: 0 | T71: 123821.682 | V71: 0.2761256132 | W71: 0.7238743868 | Y71: 89631.34413 | Z71: 465.186676 | AA71: 2702.895924 | AB71: 2783.982802 | AC71: 2867.502286 | AE71: 34190.33788 | AF71: 244.1190124 | AG71: 1033.033707 | AH71: 1064.024718 | AI71: 1095.945459 | AL71: 129330.942 | AM71: 133178.9496 | AO71: 8293.242839 | AQ71: 3963.447745 | AR71: 136078.3726 | AT71: -531.86327 | AU71: -6550.903444 | AV71: 0
A72: 72 | B72: 562-OP | C72: Station Expenses | F72: 84728.00856 | H72: 2617.930586 | I72: 0 | J72: -330.7627146 | K72: 2467.806075 | N72: 562 | P72: 569 | Q72: 569000 | R72: 112557.591 | S72: 0 | T72: 112557.591 | V72: 0.9999047424 | W72: 9.525762988e-05 | Y72: 10.72196934 | Z72: 0.05564702087 | AA72: 0.3233284908 | AB72: 0.3330283455 | AC72: 0.3430191959 | AE72: 112546.869 | AF72: 803.5846446 | AG72: 3400.513609 | AH72: 3502.529017 | AI72: 3607.604888 | AL72: 120264.5972 | AM72: 123767.4592 | AO72: 7707.339275 | AQ72: 3607.947907 | AR72: 123872.8781 | AT72: -483.4795281 | AU72: -3503.185374 | AV72: 0
A73: 73 | B73: 563-OP | C73: Overhead Line Expenses | F73: 17137.05686 | H73: 538.4402355 | I73: 0 | J73: -66.8976325 | K73: 499.1375783 | N73: 563 | P73: 570 | Q73: 570000 | R73: 148903.9735 | S73: 0 | T73: 148903.9735 | V73: 0.9998414933 | W73: 0.0001585066985 | Y73: 23.60227723 | Z73: 0.1224958188 | AA73: 0.7117431915 | AB73: 0.7330954872 | AC73: 0.7550883518 | AE73: 148880.3712 | AF73: 1063.00585 | AG73: 4498.301312 | AH73: 4633.250351 | AI73: 4772.247861 | AL73: 159099.3652 | AM73: 163733.3487 | AO73: 10196.12485 | AQ73: 4773.00295 | AR73: 163873.1013 | AT73: -639.6016672 | AU73: -4634.69519 | AV73: 0
A74: 74 | B74: 564-OP | C74: Underground Line Expenses | F74: 0 | H74: 0 | I74: 0 | J74: 0 | K74: 0 | N74: 564 | P74: 571 | Q74: 571000 | R74: 9285.608588 | S74: 0 | T74: 9285.608588 | V74: 0.9060446428 | W74: 0.09395535719 | Y74: 872.4326716 | Z74: 4.527925566 | AA74: 26.30881792 | AB74: 27.09808245 | AC74: 27.91102493 | AE74: 8413.175916 | AF74: 60.07007604 | AG74: 254.1973798 | AH74: 261.8233012 | AI74: 269.6780002 | AL74: 9892.536088 | AM74: 10181.45747 | AO74: 634.0255829 | AQ74: 297.5890251 | AR74: 10217.2232 | AT74: -39.88537441 | AU74: -315.2302015 | AV74: 0
A75: 75 | B75: 565-OP | C75: Transmission of Electricity By Others | F75: 0 | H75: 0 | I75: 0 | J75: 0 | K75: 0 | N75: 565 | P75: 573 | Q75: 573000 | R75: 4592.26554 | S75: 0 | T75: 4592.26554 | V75: 0.973235854 | W75: 0.02676414603 | Y75: 122.9080655 | Z75: 0.6378928601 | AA75: 3.706378752 | AB75: 3.817570114 | AC75: 3.932097218 | AE75: 4469.357474 | AF75: 31.91121237 | AG75: 135.0380606 | AH75: 139.0892024 | AI75: 143.2618785 | AL75: 4902.648287 | AM75: 5045.55506 | AO75: 314.2003171 | AQ75: 147.1939757 | AR75: 5053.659833 | AT75: -19.7256032 | AU75: -146.6131513 | AV75: 0
A76: 76 | B76: 566-OP | C76: Miscellaneous Expenses | F76: 366785.866 | H76: 7056.407453 | I76: 0 | J76: -1432.973497 | K76: 10683.08348 | N76: =LEFT(B76,3) -> 566 | P76: 580 | Q76: 580000 | R76: 1012760.15 | S76: -21756.71602 | T76: 991003.4344 | V76: 0.1148314122 | W76: 0.8851685878 | Y76: 877205.1106 | Z76: 4552.694524 | AA76: 26452.73415 | AB76: 27246.31618 | AC76: 28063.70566 | AE76: 113798.3239 | AF76: 812.5200323 | AG76: 3438.325316 | AH76: 3541.475076 | AI76: 3647.719328 | AL76: 1029801.184 | AM76: 1060588.975 | AO76: 66044.06528 | AQ76: 31711.42499 | AR76: 1110515.641 | AT76: -4256.753088 | AU76: -57240.52541 | AV76: 0
A77: 77 | B77: 567-OP | C77: Rents | F77: 5782.666402 | H77: 101.8677802 | I77: 0 | J77: -22.59438067 | K77: 168.4271767 | N77: 567 | P77: 582 | Q77: 582000 | R77: 230637.5688 | S77: 0 | T77: 230637.5688 | V77: 0.9450037684 | W77: 0.05499623163 | Y77: 12684.19716 | Z77: 65.83098324 | AA77: 382.5008442 | AB77: 393.9758695 | AC77: 405.7951456 | AE77: 217953.3716 | AF77: 1556.187073 | AG77: 6585.286761 | AH77: 6782.845364 | AI77: 6986.330724 | AL77: 246010.2198 | AM77: 253187.041 | AO77: 15766.62689 | AQ77: 7392.12587 | AR77: 253796.3215 | AT77: -990.6798997 | AU77: -7559.322077 | AV77: 0
A78: 78 | C78: Total Transmission Operation | H78: 0 | K78: 0 | P78: 583 | Q78: 583000 | R78: 590762.7036 | S78: 0 | T78: 590762.7036 | V78: 0.7589858825 | W78: 0.2410141175 | Y78: 142382.1517 | Z78: 738.9633671 | AA78: 4293.633451 | AB78: 4422.442454 | AC78: 4555.115728 | AE78: 448380.552 | AF78: 3201.437141 | AG78: 13547.45967 | AH78: 13953.88346 | AI78: 14372.49997 | AL78: 626498.0807 | AM78: 644874.4067 | AO78: 40157.81955 | AQ78: 18927.6157 | AR78: 649848.1389 | AT78: -2537.56029 | AU78: -22669.95937 | AV78: 0
A79: 79 | B79: 568-MT | C79: Supervision & Engineering | F79: =SUMIF($P$28:$P$109,$N79,$AR$28:$AR$109) -> 136078.3726 | H79: 1742.339395 | I79: =SUMIF($P$28:$P$109,$N79,$AP$28:$AP$109) -> 0 | J79: =SUMIF($P$28:$P$109,$N79,$AT$28:$AT$109) -> -531.86327 | K79: 3963.447745 | N79: 568 | P79: 584 | Q79: 584000 | R79: 360587.69 | S79: 0 | T79: 360587.69 | V79: 0.9895801274 | W79: 0.01041987256 | Y79: 3757.277777 | Z79: 19.50027166 | AA79: 113.3033415 | AB79: 116.7024417 | AC79: 120.203515 | AE79: 356830.4122 | AF79: 2547.769143 | AG79: 10781.34544 | AH79: 11104.7858 | AI79: 11437.92938 | AL79: 385154.394 | AM79: 396375.8822 | AO79: 24683.40644 | AQ79: 11558.13289 | AR79: 396829.2293 | AT79: -1548.867249 | AU79: -11334.79159 | AV79: 0
A80: 80 | B80: 569-MT | C80: Structures | F80: 123872.8781 | H80: 4204.153901 | I80: 0 | J80: -483.4795281 | K80: 3607.947907 | N80: 569 | P80: 585 | Q80: 585000 | R80: 4393.89 | S80: 0 | T80: 4393.89 | V80: 0.01284613568 | W80: 0.9871538643 | Y80: 4337.445493 | Z80: 22.51134211 | AA80: 130.7987051 | AB80: 134.7226662 | AC80: 138.7643462 | AE80: 56.44450708 | AF80: 0.4030137806 | AG80: 1.705425626 | AH80: 1.756588395 | AI80: 1.809286047 | AL80: 4551.065075 | AM80: 4687.54433 | AO80: 291.8977412 | AQ80: 140.5736322 | AR80: 4826.361373 | AT80: -18.87350152 | AU80: -267.2779596 | AV80: 0
A81: 81 | B81: 570-MT | C81: Station Equipment | F81: 163873.1013 | H81: 5561.429658 | I81: 0 | J81: -639.6016672 | K81: 4773.00295 | N81: 570 | P81: 586 | Q81: 586000 | R81: 1010154.519 | S81: 0 | T81: 1010154.519 | V81: 0.9268303825 | W81: 0.07316961748 | Y81: 73912.61972 | Z81: 383.6064964 | AA81: 2228.886787 | AB81: 2295.75339 | AC81: 2364.625992 | AE81: 936241.8989 | AF81: 6684.767158 | AG81: 28287.79998 | AH81: 29136.43398 | AI81: 30010.527 | AL81: 1076876.013 | AM81: 1108308.2 | AO81: 69017.2478 | AQ81: 32375.15299 | AR81: 1111546.919 | AT81: -4339.014595 | AU81: -33661.07416 | AV81: 0
A82: 82 | B82: 571-MT | C82: Overhead Lines | F82: 10217.2232 | H82: 318.7953814 | I82: 0 | J82: -39.88537441 | K82: 297.5890251 | N82: 571 | P82: 587 | Q82: 587000 | R82: 315423.1223 | S82: 0 | T82: 315423.1223 | V82: 0.7430234625 | W82: 0.2569765375 | Y82: 81056.34181 | Z82: 420.682414 | AA82: 2444.310727 | AB82: 2517.640049 | AC82: 2593.16925 | AE82: 234366.7805 | AF82: 1673.378812 | AG82: 7081.204778 | AH82: 7293.640921 | AI82: 7512.450149 | AL82: 334336.3399 | AM82: 344147.6209 | AO82: 21430.8577 | AQ82: 10105.6194 | AR82: 346959.5994 | AT82: -1354.867504 | AU82: -12255.5917 | AV82: 0
A83: 83 | B83: 572-MT | C83: Underground Lines | F83: 0 | H83: 0 | I83: 0 | J83: 0 | K83: 0 | N83: 572 | P83: 588 | Q83: 588000 | R83: 2152491.145 | S83: 0 | T83: 2152491.145 | V83: 0.7361482402 | W83: 0.2638517598 | Y83: 567938.5766 | Z83: 2947.601213 | AA83: 17126.58533 | AB83: 17640.38289 | AC83: 18169.59438 | AE83: 1584552.568 | AF83: 11313.70534 | AG83: 47875.98821 | AH83: 49312.26785 | AI83: 50791.63589 | AL83: 2281067.293 | AM83: 2348019.944 | AO83: 146216.5308 | AQ83: 68961.23027 | AR83: 2367668.906 | AT83: -9245.803807 | AU83: -84079.23608 | AV83: 0
A84: 84 | B84: 573-MT | C84: Miscellaneous Plant | F84: 5053.659833 | H84: 167.5871658 | I84: 0 | J84: -19.7256032 | K84: 147.1939757 | N84: 573 | P84: 589 | Q84: 589000 | R84: 7949.26561 | S84: 0 | T84: 7949.26561 | V84: 0.01967881064 | W84: 0.9803211894 | Y84: 7792.833517 | Z84: 40.44480595 | AA84: 234.9983497 | AB84: 242.0483002 | AC84: 249.3097492 | AE84: 156.4320927 | AF84: 1.116925142 | AG84: 4.726470534 | AH84: 4.86826465 | AI84: 5.014312589 | AL84: 8235.420426 | AM84: 8482.33699 | AO84: 528.2031161 | AQ84: 254.3240618 | AR84: 8731.792788 | AT84: -34.14525092 | AU84: -481.9149145 | AV84: -1.065814104e-14
A85: 85 | C85: Total Transmission Maintenance | H85: 0 | P85: 590 | Q85: 590000 | R85: 295005.647 | S85: 0 | T85: 295005.647 | V85: 0.4226889525 | W85: 0.5773110475 | Y85: 170310.0191 | Z85: 883.9089991 | AA85: 5135.817843 | AB85: 5289.892378 | AC85: 5448.58915 | AE85: 124695.6279 | AF85: 890.3267834 | AG85: 3767.578641 | AH85: 3880.606 | AI85: 3997.02418 | AL85: 309563.8853 | AM85: 318734.3837 | AO85: 19848.13065 | AQ85: 9445.61333 | AR85: 324299.391 | AT85: -1267.166344 | AU85: -14306.31622 | AV85: 0
A86: 86 | C86: Total Transmission Expenses | F86: =SUM(F70:F84) -> 2228529.265 | H86: =SUM(H70:H84) -> 28719.89608 | I86: =SUM(I70:I84) -> 0 | J86: =SUM(J70:J84) -> -8708.767881 | K86: =SUM(K70:K84) -> 64898.14974 | P86: 591 | Q86: 591000 | R86: 152168.65 | S86: 0 | T86: 152168.65 | V86: 1 | W86: 0 | Y86: 0 | Z86: 0 | AA86: 0 | AB86: 0 | AC86: 0 | AE86: 152168.65 | AF86: 1086.484161 | AG86: 4597.654025 | AH86: 4735.583646 | AI86: 4877.651155 | AL86: 162588.3718 | AM86: 167323.9555 | AO86: 10419.72183 | AQ86: 4877.651155 | AR86: 167466.023 | AT86: -653.6247486 | AU86: -4735.583646 | AV86: 0
A87: 87 | P87: 592 | Q87: 592000 | R87: 335942.2642 | S87: 0 | T87: 335942.2642 | V87: 1 | W87: 0 | Y87: 0 | Z87: 0 | AA87: 0 | AB87: 0 | AC87: 0 | AE87: 335942.2642 | AF87: 2398.627766 | AG87: 10150.22676 | AH87: 10454.73356 | AI87: 10768.37557 | AL87: 358945.8523 | AM87: 369400.5858 | AO87: 23003.58809 | AQ87: 10768.37557 | AR87: 369714.2278 | AT87: -1443.005363 | AU87: -10454.73356 | AV87: 0
A88: 88 | C88: Distribution Expenses | P88: 593 | Q88: 593000 | R88: 1239854.84 | S88: 0 | T88: 1239854.84 | V88: 0.9962252371 | W88: 0.003774762861 | Y88: 4680.158003 | Z88: 24.29002004 | AA88: 141.1334407 | AB88: =(Y88+Z88+AA88)*$AB$27 -> 145.3674439 | AC88: 149.7284672 | AE88: 1235174.682 | AF88: 8819.147229 | AG88: 37319.81488 | AH88: 38439.40932 | AI88: 39592.5916 | AL88: 1324598.635 | AM88: 1363183.412 | AO88: 84889.16233 | AQ88: 39742.32007 | AR88: 1364486.322 | AT88: -5325.668645 | AU88: -38725.91021 | AV88: 0
A89: 89 | B89: 580-OP | C89: Supervision & Engineering | F89: =SUMIF($P$28:$P$109,$N89,$AR$28:$AR$109) -> 1110515.641 | H89: =SUMIF($P$28:$P$109,$N89,$AO$28:$AO$109)+SUMIF($P$28:$P$109,$N89,$AU$28:$AU$109) -> 8803.539873 | I89: =SUMIF($P$28:$P$109,$N89,$AP$28:$AP$109) -> 0 | J89: =SUMIF($P$28:$P$109,$N89,$AT$28:$AT$109) -> -4256.753088 | K89: =SUMIF($P$28:$P$109,$N89,$AQ$28:$AQ$109)+SUMIF($P$28:$P$109,$N89,$AV$28:$AV$109) -> 31711.42499 | N89: 580 | P89: 594 | Q89: 594000 | R89: 358204.09 | S89: 0 | T89: 358204.09 | V89: 0.9949186309 | W89: 0.005081369129 | Y89: 1820.167205 | Z89: 9.446667794 | AA89: 54.88841618 | AB89: 56.53506867 | AC89: 58.23112073 | AE89: 356383.9228 | AF89: 2544.581209 | AG89: 10767.85512 | AH89: 11090.89077 | AI89: 11423.6175 | AL89: 382671.7522 | AM89: 393819.178 | AO89: 24524.19726 | AQ89: 11481.84862 | AR89: 394210.1359 | AT89: -1538.62874 | AU89: -11202.31426 | AV89: 0
A90: 90 | B90: 581-OP | C90: Load Dispatching | F90: 0 | H90: 0 | I90: 0 | J90: 0 | K90: 0 | N90: 581 | P90: 595 | Q90: 595000 | R90: 187142.7 | S90: 0 | T90: 187142.7 | V90: 1 | W90: 0 | Y90: 0 | Z90: 0 | AA90: 0 | AB90: 0 | AC90: 0 | AE90: 187142.7 | AF90: 1336.198878 | AG90: 5654.366966 | AH90: 5823.997975 | AI90: 5998.717915 | AL90: 199957.2638 | AM90: 205781.2618 | AO90: 12814.56382 | AQ90: 5998.717915 | AR90: 205955.9817 | AT90: -803.8521748 | AU90: -5823.997975 | AV90: 0
A91: 91 | B91: 582-OP | C91: Station Expenses | F91: 253796.3215 | H91: 8207.304817 | I91: 0 | J91: -990.6798997 | K91: 7392.12587 | N91: 582 | P91: 596 | Q91: 596000 | R91: 81968.64 | S91: 0 | T91: 81968.64 | V91: 0.9867929 | W91: 0.01320709997 | Y91: 1082.568023 | Z91: 5.61852804 | AA91: 32.64559654 | AB91: 33.62496443 | AC91: 34.63371336 | AE91: 80886.07198 | AF91: 577.5265539 | AG91: 2443.907956 | AH91: 2517.225195 | AI91: 2592.74195 | AL91: 87545.56383 | AM91: 90096.41399 | AO91: 5610.548793 | AQ91: 2627.375664 | AR91: 90206.56446 | AT91: -352.0878428 | AU91: -2583.495756 | AV91: 0
A92: 92 | B92: 583-OP | C92: Overhead Line Expenses | F92: 649848.1389 | H92: 17487.86018 | I92: 0 | J92: -2537.56029 | K92: 18927.6157 | N92: 583 | P92: 597 | Q92: 597000 | R92: 21946.05 | S92: 0 | T92: 21946.05 | V92: 1 | W92: 0 | Y92: 0 | Z92: =Y92*$Z$27 -> 0 | AA92: 0 | AB92: 0 | AC92: 0 | AE92: 21946.05 | AF92: 156.694797 | AG92: 663.0823439 | AH92: 682.9748142 | AI92: 703.4640587 | AL92: 23448.80196 | AM92: =AL92+AH92+AB92 -> 24131.77677 | AO92: 1502.751955 | AQ92: 703.4640587 | AR92: 24152.26601 | AT92: -94.2669953 | AU92: -682.9748142 | AV92: 0
A93: 93 | B93: 584-OP | C93: Underground Line Expenses | F93: 396829.2293 | H93: 13348.61486 | I93: 0 | J93: -1548.867249 | K93: 11558.13289 | N93: 584 | P93: =LEFT(Q93,3) -> 598 | Q93: 598000 | R93: 151118.3189 | S93: 0 | T93: 151118.3189 | V93: 0.8478807708 | W93: 0.1521192292 | Y93: =T93*W93 -> 22988.00219 | Z93: 119.3077313 | AA93: =(Y93+Z93)*$AA$27 -> 693.2192975 | AB93: =(Y93+Z93+AA93)*$AB$27 -> 714.0158765 | AC93: =(Y93+Z93+AA93+AB93)*$AC$27 -> 735.4363528 | AE93: =V93*T93 -> 128130.3167 | AF93: 914.8504613 | AG93: 3871.355015 | AH93: 3987.495665 | AI93: 4107.120535 | AL93: 160704.5471 | AM93: 165406.0586 | AO93: =Z93+AA93+AB93+AF93+AG93+AH93 -> 10300.24405 | AQ93: =AC93+AI93 -> 4842.556888 | AR93: =R93+AO93+AP93+AQ93 -> 166261.1198 | AT93: =T93/T$110*$AT$122 -> -649.1131596 | AU93: =-AA93-AB93-AH93 -> -5394.730839 | AV93: =AB93+AH93-AB93-AH93 -> 0
A94: 94 | B94: 585-OP | C94: Street Lighting & Signal Systems | F94: 4826.361373 | H94: 24.61978151 | I94: 0 | J94: -18.87350152 | K94: 140.5736322 | N94: 585 | P94: 901 | Q94: 901000 | R94: 38656.71956 | S94: 0 | T94: 38656.71956 | V94: 0 | W94: 1 | Y94: 38656.71956 | Z94: 200.6283745 | AA94: 1165.720438 | AB94: 1200.692051 | AC94: 1236.712813 | AE94: 0 | AF94: =AE94*$AF$27 -> 0 | AG94: =(AE94+AF94)*$AG$27 -> 0 | AH94: =(AE94+AF94+AG94)*$AH$27 -> 0 | AI94: =(AE94+AF94+AG94+AH94)*$AI$27 -> 0 | AL94: =T94+Z94+AA94+AF94+AG94+AH94 -> 40023.06837 | AM94: 41223.76043 | AO94: 2567.040864 | AQ94: 1236.712813 | AR94: 42460.47324 | AT94: -166.0459537 | AU94: -2366.412489 | AV94: 0
A95: 95 | B95: 586-OP | C95: Meter Expenses | F95: 1111546.919 | H95: 35356.17364 | I95: 0 | J95: -4339.014595 | K95: 32375.15299 | N95: 586 | P95: 902 | Q95: 902000 | R95: 1355825.476 | S95: 0 | T95: 1355825.476 | V95: 0.8079834116 | W95: 0.1920165884 | Y95: 260340.9825 | Z95: 1351.169699 | AA95: 7850.764565 | AB95: 8086.287501 | AC95: 8328.876127 | AE95: 1095484.494 | AF95: 7821.759287 | AG95: 33099.1876 | AH95: 34092.16322 | AI95: 35114.92812 | AL95: 1440040.521 | AM95: 1482218.971 | AO95: 92301.33187 | AQ95: 43443.80425 | AR95: 1491570.613 | AT95: -5823.808558 | AU95: -50029.21529 | AV95: 0
A96: 96 | B96: 587-OP | C96: Customer Installations Expenses | F96: 346959.5994 | H96: 9175.266005 | I96: 0 | J96: -1354.867504 | K96: 10105.6194 | N96: 587 | P96: 903 | Q96: 903000 | R96: 1947138.03 | S96: 0 | T96: 1947138.03 | V96: 0.1849896833 | W96: 0.8150103167 | Y96: 1586937.582 | Z96: 8236.206051 | AA96: 47855.21365 | AB96: 49290.87006 | AC96: 50769.59616 | AE96: 360200.4475 | AF96: 2571.831195 | AG96: 10883.16836 | AH96: 11209.66341 | AI96: 11545.95331 | AL96: 2027894.112 | AM96: 2088394.646 | AO96: 130046.9527 | AQ96: 62315.54947 | AR96: 2139500.532 | AT96: -8363.730671 | AU96: -108355.7471 | AV96: 0
A97: 97 | B97: 588-OP | C97: Miscellaneous Expenses | F97: 2367668.906 | H97: 62137.29476 | I97: 0 | J97: -9245.803807 | K97: 68961.23027 | N97: 588 | P97: 905 | Q97: 905000 | R97: 33244.96887 | S97: 0 | T97: 33244.96887 | V97: 0.2652650912 | W97: 0.7347349088 | Y97: 24426.23917 | Z97: 126.7721813 | AA97: 736.5903405 | AB97: 758.6880507 | AC97: 781.4486922 | AE97: 8818.729698 | AF97: 62.96573004 | AG97: 266.4508628 | AH97: 274.4443887 | AI97: 282.6777204 | AL97: 34712.19237 | AM97: 35745.32481 | AO97: 2225.911554 | AQ97: 1064.126413 | AR97: 36535.00683 | AT97: -142.8003365 | AU97: -1769.72278 | AV97: 0
A98: 98 | B98: 589-OP | C98: Rents | F98: 8731.792788 | H98: 46.28820163 | I98: 0 | J98: -34.14525092 | K98: 254.3240618 | N98: 589 | P98: 908 | Q98: 908000 | R98: 187543.4425 | S98: 0 | T98: 187543.4425 | V98: 0 | W98: 1 | Y98: 187543.4425 | Z98: 973.3504668 | AA98: 5655.50379 | AB98: 5825.168904 | AC98: 5999.923971 | AE98: 0 | AF98: 0 | AG98: 0 | AH98: 0 | AI98: 0 | AL98: 194172.2968 | AM98: 199997.4657 | AO98: 12454.02316 | AQ98: 5999.923971 | AR98: 205997.3897 | AT98: -805.5735231 | AU98: -11480.67269 | AV98: 0
A99: 99 | C99: Total Distribution Operation | K99: 0 | P99: 909 | Q99: 909000 | R99: 64900.90207 | S99: 0 | T99: 64900.90207 | V99: 0 | W99: 1 | Y99: 64900.90207 | Z99: 336.8356817 | AA99: 1957.132132 | AB99: 2015.846096 | AC99: 2076.321479 | AE99: 0 | AF99: 0 | AG99: 0 | AH99: 0 | AI99: 0 | AL99: 67194.86988 | AM99: 69210.71598 | AO99: 4309.813911 | AQ99: 2076.321479 | AR99: 71287.03746 | AT99: -278.775134 | AU99: -3972.978229 | AV99: 0
A100: 100 | B100: 590-MT | C100: Supervision & Engineering | F100: =SUMIF($P$28:$P$109,$N100,$AR$28:$AR$109) -> 324299.391 | H100: 5541.814424 | I100: =SUMIF($P$28:$P$109,$N100,$AP$28:$AP$109) -> 0 | J100: =SUMIF($P$28:$P$109,$N100,$AT$28:$AT$109) -> -1267.166344 | K100: 9445.61333 | N100: 590 | P100: 910 | Q100: 910000 | R100: 12887.44021 | S100: 0 | T100: 12887.44021 | V100: 0 | W100: 1 | Y100: 12887.44021 | Z100: 66.88581471 | AA100: 388.6297809 | AB100: 400.2886743 | AC100: 412.2973345 | AE100: 0 | AF100: 0 | AG100: 0 | AH100: 0 | AI100: 0 | AL100: 13342.95581 | AM100: 13743.24448 | AO100: 855.8042699 | AQ100: 412.2973345 | AR100: 14155.54182 | AT100: -55.35667084 | AU100: -788.9184551 | AV100: 0
A101: 101 | B101: 591-MT | C101: Structures | F101: 167466.023 | H101: 5684.138186 | I101: 0 | J101: -653.6247486 | K101: 4877.651155 | N101: 591 | P101: 920 | Q101: 920000 | R101: 6627738.92 | S101: -666073.6461 | T101: 5961665.274 | V101: 0.0270729124 | W101: 0.9729270876 | Y101: 5800265.632 | Z101: 30103.37863 | AA101: 174911.0703 | AB101: 180158.4024 | AC101: 185563.1545 | AE101: 161399.6417 | AF101: 1152.393442 | AG101: 4876.561056 | AH101: 5022.857887 | AI101: 5173.543624 | AL101: 6177731.535 | AM101: 6362912.796 | AO101: 396224.6638 | AP101: =-141420 -> -141420 | AQ101: 190736.6981 | AR101: 7073280.282 | AT101: -25607.71858 | AU101: -360092.3306 | AV101: -1.000444172e-11
A102: 102 | B102: 592-MT | C102: Station Equipment | F102: 369714.2278 | H102: 12548.85452 | I102: 0 | J102: -1443.005363 | K102: 10768.37557 | N102: 592 | P102: 921 | Q102: 921000 | R102: 116524.9466 | S102: -947.4012768 | T102: 115577.5454 | V102: 0.07586059511 | W102: 0.9241394049 | Y102: 106809.764 | Z102: 554.3426751 | AA102: 3220.9232 | AB102: 3317.550896 | AC102: 3417.077423 | AE102: 8767.781373 | AF102: 62.601959 | AG102: 264.9114999 | AH102: 272.8588449 | AI102: 281.0446103 | AL102: 119953.1835 | AM102: 123543.5933 | AO102: 7693.189075 | AQ102: 3698.122033 | AR102: 127916.2577 | AT102: -496.4514309 | AU102: -6811.332941 | AV102: 0
A103: 103 | B103: 593-MT | C103: Overhead Lines | F103: 1364486.322 | H103: 46163.25213 | I103: 0 | J103: -5325.668645 | K103: 39742.32007 | N103: 593 | P103: 923 | Q103: 923000 | R103: 12789.87229 | S103: 0 | T103: 12789.87229 | V103: 0.04514871033 | W103: 0.9548512897 | Y103: 12212.42606 | Z103: 63.38249123 | AA103: 368.2742564 | AB103: 379.3224841 | AC103: 390.7021586 | AE103: 577.4462395 | AF103: 4.12296615 | AG103: 17.44707617 | AH103: 17.97048845 | AI103: 18.50960311 | AL103: 13261.06957 | AM103: 13658.36255 | AO103: 850.5197625 | AQ103: 409.2117617 | AR103: 14049.60382 | AT103: -54.9375779 | AU103: -765.567229 | AV103: 0
A104: 104 | B104: 594-MT | C104: Underground Lines | F104: 394210.1359 | H104: 13321.883 | I104: 0 | J104: -1538.62874 | K104: 11481.84862 | N104: 594 | P104: 925 | Q104: 925100 | R104: -0.0061622 | S104: 0 | T104: -0.0061622 | Y104: 0 | Z104: 0 | AA104: 0 | AB104: 0 | AC104: 0 | AE104: 0 | AF104: 0 | AG104: 0 | AH104: 0 | AI104: 0 | AL104: -0.0061622 | AM104: =AL104+AH104+AB104 -> -0.0061622 | AO104: 0 | AQ104: 0 | AR104: -0.0061622 | AT104: =T104/T$110*$AT$122 -> 2.646909482e-05 | AU104: 0 | AV104: 0
A105: 105 | B105: 595-MT | C105: Line Transformers | F105: 205955.9817 | H105: 6990.565844 | I105: 0 | J105: -803.8521748 | K105: 5998.717915 | N105: 595 | P105: 926 | Q105: 926100 | R105: 112915.2749 | S105: 0 | T105: 112915.2749 | V105: 0.3884877976 | W105: 0.6115122024 | Y105: 69049.06843 | Z105: 358.3646652 | AA105: 2082.222993 | AB105: 2144.689683 | AC105: 2209.030373 | AE105: 43866.20647 | AF105: 313.2047142 | AG105: 1325.382335 | AH105: 1365.143805 | AI105: 1406.09812 | AL105: 118359.5934 | AM105: 121869.4269 | AO105: 7589.008196 | AQ105: 3615.128493 | AR105: 124119.4116 | AT105: -485.0159226 | AU105: -5592.056481 | AV105: 0
A106: 106 | B106: 596-MT | C106: Street Lighting & Signal Systems | F106: 90206.56446 | H106: 3027.053038 | I106: 0 | J106: -352.0878428 | K106: 2627.375664 | N106: 596 | P106: 928 | Q106: 928000 | R106: 745132.8268 | S106: -69366.76 | T106: 675766.0668 | V106: 7.349305415e-05 | W106: 0.9999265069 | Y106: 675716.4027 | Z106: 3506.96813 | AA106: 20376.70112 | AB106: 20988.00216 | AC106: 21617.64222 | AE106: 49.66411214 | AF106: 0.3546017607 | AG106: 1.500561417 | AH106: 1.54557826 | AI106: 1.591945607 | AL106: 699653.1368 | AM106: 720642.6845 | AO106: 44875.07215 | AQ106: 21619.23417 | AR106: 811627.1331 | AT106: -2902.683474 | AU106: -41366.24886 | AV106: 1.19726451e-12
A107: 107 | B107: 597-MT | C107: Meters | F107: 24152.26601 | H107: 819.7771409 | I107: 0 | J107: -94.2669953 | K107: 703.4640587 | N107: 597 | P107: 930 | Q107: 930200 | R107: 124300.2926 | S107: -22609.81429 | T107: 101690.4783 | V107: 0.5556538232 | W107: 0.4443461768 | Y107: 45185.77527 | Z107: 234.5141737 | AA107: 1362.608683 | AB107: 1403.486944 | AC107: 1445.591552 | AE107: 56504.70307 | AF107: 403.4435799 | AG107: 1707.2444 | AH107: 1758.461732 | AI107: 1811.215583 | AL107: 107156.7509 | AM107: 110318.6996 | AO107: 6869.759512 | AQ107: 3256.807136 | AR107: 134426.8593 | AT107: -436.8009662 | AU107: -4524.557359 | AV107: 0
A108: 108 | B108: 598-MT | C108: Miscellaneous Plant | F108: 166261.1198 | H108: 4905.513208 | I108: 0 | J108: -649.1131596 | K108: 4842.556888 | N108: 598 | P108: 931 | Q108: 931000 | R108: 3.4908863 | S108: 0 | T108: 3.4908863 | V108: 0 | W108: 1 | Y108: 3.4908863 | Z108: 0.0181176999 | AA108: 0.10527012 | AB108: 0.1084282236 | AC108: 0.1116810703 | AE108: 0 | AF108: 0 | AG108: 0 | AH108: 0 | AI108: 0 | AL108: 3.61427412 | AM108: 3.722702343 | AO108: 0.2318160435 | AQ108: 0.1116810703 | AR108: 3.834383414 | AT108: -0.01499474222 | AU108: -0.2136983436 | AV108: 0
A109: 109 | C109: Total Distribution Maintenance | H109: 0 | P109: 935 | Q109: 935000 | R109: 571031.7853 | S109: 0 | T109: 571031.7853 | V109: 0.5712818378 | W109: 0.4287181622 | Y109: 244811.6976 | Z109: 1270.57271 | AA109: 7382.468108 | AB109: 7603.942152 | AC109: 7832.060416 | AE109: 326220.0877 | AF109: 2329.211427 | AG109: 9856.478975 | AH109: 10152.17334 | AI109: 10456.73854 | AL109: 602022.6899 | AM109: =AL109+AH109+AB109 -> 619778.8054 | AO109: 38594.84672 | AQ109: 18288.79896 | AR109: 627915.431 | AT109: -2452.808165 | AU109: -25138.5836 | AV109: 0
A110: 110 | C110: Total Distribution Expenses | F110: =SUM(F89:F108) -> 9357474.942 | H110: =SUM(H89:H108) -> 253589.8136 | I110: =SUM(I89:I108) -> 0 | J110: =SUM(J89:J108) -> -36453.9792 | K110: =SUM(K89:K108) -> 271914.1231 | Q110: Grand Total | R110: 29613621.63 | S110: -834441.8137 | T110: 28779179.82 | V110: 0.4096111132 | W110: 0.5903888868 | Y110: =SUM(Y28:Y109) -> 15421822.43 | Z110: =SUM(Z28:Z109) -> 80039.25839 | AA110: 465055.8506 | AB110: =SUM(AB28:AB109) -> 479007.5261 | AC110: =SUM(AC28:AC109) -> 493377.7519 | AE110: =SUM(AE28:AE109) -> 13357357.4 | AF110: =SUM(AF28:AF109) -> 95371.53183 | AG110: =SUM(AG28:AG109) -> 403581.8679 | AH110: =SUM(AH28:AH109) -> 415689.324 | AI110: =SUM(AI28:AI109) -> 428160.0037 | AL110: =SUM(AL28:AL109) -> 30238917.65 | AM110: =SUM(AM28:AM109) -> 31133614.5 | AO110: =SUM(AO28:AO109) -> 1938745.359 | AP110: =SUM(AP28:AP109) -> -141420 | AQ110: =SUM(AQ28:AQ109) -> 921537.7556 | AR110: =SUM(AR28:AR109) -> 32332484.75 | AT110: =SUM(AT28:AT109) -> -123618 | AU110: =SUM(AU28:AU109) -> -1359752.701 | AV110: =SUM(AV28:AV109) -> -9.050538097e-12
A111: 111
A112: 112 | C112: Customer Accounting Expenses | AE112: Adjustment | AF112: =Z110+AF110 -> 175410.7902 | AG112: =AA110+AG110 -> 868637.7185 | AH112: =AH110+AB110 -> 894696.8501 | AI112: =AI110+AC110 -> 921537.7556
A113: 113 | B113: 901-OP | C113: Supervision | F113: =SUMIF($P$28:$P$109,$N113,$AR$28:$AR$109) -> 42460.47324 | H113: =SUMIF($P$28:$P$109,$N113,$AO$28:$AO$109)+SUMIF($P$28:$P$109,$N113,$AU$28:$AU$109) -> 200.6283745 | I113: =SUMIF($P$28:$P$109,$N113,$AP$28:$AP$109) -> 0 | J113: =SUMIF($P$28:$P$109,$N113,$AT$28:$AT$109) -> -166.0459537 | K113: =SUMIF($P$28:$P$109,$N113,$AQ$28:$AQ$109)+SUMIF($P$28:$P$109,$N113,$AV$28:$AV$109) -> 1236.712813 | N113: 901
A114: 114 | B114: 902-OP | C114: Meter Reading | F114: =SUMIF($P$28:$P$109,$N114,$AR$28:$AR$109) -> 1491570.613 | H114: 42272.11658 | I114: =SUMIF($P$28:$P$109,$N114,$AP$28:$AP$109) -> 0 | J114: =SUMIF($P$28:$P$109,$N114,$AT$28:$AT$109) -> -5823.808558 | K114: 43443.80425 | N114: 902 | AG114: TOTAL | AH114: =AF112+AG112+AH112 -> 1938745.359 | AI114: =AI112 -> 921537.7556
A115: 115 | B115: 903-OP | C115: Customer Records & Collections | F115: =SUMIF($P$28:$P$109,$N115,$AR$28:$AR$109) -> 2139500.532 | H115: 21691.20561 | I115: =SUMIF($P$28:$P$109,$N115,$AP$28:$AP$109) -> 0 | J115: =SUMIF($P$28:$P$109,$N115,$AT$28:$AT$109) -> -8363.730671 | K115: 62315.54947 | N115: 903
A116: 116 | B116: 904-OP | C116: Uncollectible Accounts | F116: =SUMIF($P$28:$P$109,$N116,$AR$28:$AR$109) -> 0 | H116: 0 | I116: =SUMIF($P$28:$P$109,$N116,$AP$28:$AP$109) -> 0 | J116: =SUMIF($P$28:$P$109,$N116,$AT$28:$AT$109) -> 0 | K116: 0 | N116: 904 | AE116: Break- Out by Functional Area | AR116: By Function | AT116: Electric
A117: 117 | B117: 905-OP | C117: Misc Customer Accounts Expenses | F117: =SUMIF($P$28:$P$109,$N117,$AR$28:$AR$109) -> 36535.00683 | H117: 456.1887742 | I117: =SUMIF($P$28:$P$109,$N117,$AP$28:$AP$109) -> 0 | J117: =SUMIF($P$28:$P$109,$N117,$AT$28:$AT$109) -> -142.8003365 | K117: 1064.126413 | N117: 905 | AE117: Transmission & Production | AG117: 5000-579000 | AH117: =SUM(Z28:AB75)+SUM(AF28:AH75) -> 614237.6253 | AI117: =SUM(AB28:AB75)+SUM(AI28:AI75) -> 287425.2416 | AJ117: =SUM(AD28:AD75)+SUM(AJ28:AJ75) -> 0 | AK117: =AI117/$AI$122 -> 0.3168381056 | AR117: Transmission & Production | AS117: 0.31 | AT117: -38322
A118: 118 | C118: Total Customer Accounting Expenses | F118: =SUM(F113:F117) -> 3710066.624 | H118: =SUM(H113:H117) -> 64620.13934 | I118: =SUM(I113:I117) -> 0 | J118: =SUM(J113:J117) -> -14496.38552 | K118: =SUM(K113:K117) -> 108060.1929 | AE118: Distribution | AG118: 580000-598001 | AH118: =SUM(Z76:AB93)+SUM(AF76:AH93) -> 577049.5641 | AI118: =SUM(AB76:AB93)+SUM(AI76:AI93) -> 270076.6405 | AJ118: =SUM(AD76:AD93)+SUM(AJ76:AJ93) -> 0 | AK118: =AI118/$AI$122 -> 0.2977141836 | AR118: Distribution | AS118: 0.3 | AT118: -37085
A119: 119 | AE119: Customer Accounts | AG119: 901000-905001 | AH119: =SUM(Z94:AB97)+SUM(AF94:AH97) -> 227141.237 | AI119: =SUM(AB94:AB97)+SUM(AI94:AI97) -> 106280.0968 | AJ119: =SUM(AD94:AD97)+SUM(AJ94:AJ97) -> 0 | AK119: 0.1171559754 | AR119: Customer Accounts | AS119: 0.12 | AT119: -14834
A120: 120 | AE120: Customer Service | AG120: 908000-910001 | AH120: =SUM(Z98:AB100)+SUM(AE98:AH100) -> 17619.64134 | AI120: =SUM(AB98:AB100)+SUM(AI98:AI100) -> 8241.303675 | AJ120: =SUM(AD98:AD100)+SUM(AJ98:AJ100) -> 0 | AK120: 0.009084654603 | AR120: Customer Service | AS120: 0.01 | AT120: -1236
A121: 121 | B121: Proforma | N121: Pro | AE121: Admin and General | AG121: 920000-935001 | AH121: =SUM(Z101:AB109)+SUM(AF101:AH109) -> 502697.291 | AI121: =SUM(AB101:AB109)+SUM(AI101:AI109) -> 235144.2472 | AJ121: =SUM(AD101:AD109)+SUM(AJ101:AJ109) -> 0 | AK121: 0.2592070808 | AR121: Admin and General | AS121: 0.26 | AT121: -32141
A122: 122 | B122: =$B$2 -> Pro Forma Results of Operations | N122: Pro | AH122: =SUM(AH117:AH121) -> 1938745.359 | AI122: =SUM(AI117:AI121) -> 907167.5298 | AJ122: =SUM(AJ117:AJ121) -> 0 | AT122: =SUM(AT117:AT121) -> -123618
A123: 123 | B123: =$B$3 -> AVU-E-21-01 Company RY2 Settlement Case | N123: AVU
A124: 124
A125: 125 | B125: (a) | C125: (b) | N125: (a)
A126: 126
A127: 127 | B127: Account | C127: Description | N127: Acc
A128: 128
A129: 129 | C129: Customer Information Expenses
A130: 130 | B130: 907-OP | C130: Supervision | F130: =SUMIF($P$28:$P$109,$N130,$AR$28:$AR$109) -> 0 | H130: =SUMIF($P$28:$P$109,$N130,$AO$28:$AO$109)+SUMIF($P$28:$P$109,$N130,$AU$28:$AU$109) -> 0 | I130: =SUMIF($P$28:$P$109,$N130,$AP$28:$AP$109) -> 0 | J130: =SUMIF($P$28:$P$109,$N130,$AT$28:$AT$109) -> 0 | K130: =SUMIF($P$28:$P$109,$N130,$AQ$28:$AQ$109)+SUMIF($P$28:$P$109,$N130,$AV$28:$AV$109) -> 0 | N130: 907
A131: 131 | B131: 908-OP | C131: Customer Assistance Expenses | F131: =SUMIF($P$28:$P$109,$N131,$AR$28:$AR$109) -> 205997.3897 | H131: 973.3504668 | I131: =SUMIF($P$28:$P$109,$N131,$AP$28:$AP$109) -> 0 | J131: =SUMIF($P$28:$P$109,$N131,$AT$28:$AT$109) -> -805.5735231 | K131: 5999.923971 | N131: 908
A132: 132 | B132: 909-OP | C132: Advertising | F132: =SUMIF($P$28:$P$109,$N132,$AR$28:$AR$109) -> 71287.03746 | H132: 336.8356817 | I132: =SUMIF($P$28:$P$109,$N132,$AP$28:$AP$109) -> 0 | J132: =SUMIF($P$28:$P$109,$N132,$AT$28:$AT$109) -> -278.775134 | K132: 2076.321479 | N132: 909
A133: 133 | B133: 910-OP | C133: Misc Customer Service & Info Exp | F133: =SUMIF($P$28:$P$109,$N133,$AR$28:$AR$109) -> 14155.54182 | H133: 66.88581471 | I133: =SUMIF($P$28:$P$109,$N133,$AP$28:$AP$109) -> 0 | J133: =SUMIF($P$28:$P$109,$N133,$AT$28:$AT$109) -> -55.35667084 | K133: 412.2973345 | N133: 910
A134: 134 | C134: Total Customer Information Expenses | F134: =SUM(F131:F133) -> 291439.969 | H134: =SUM(H131:H133) -> 1377.071963 | I134: =SUM(I131:I133) -> 0 | J134: =SUM(J131:J133) -> -1139.705328 | K134: =SUM(K131:K133) -> 8488.542785
A135: 135
A136: 136 | C136: Sales Expenses
A137: 137 | B137: 911-OP | C137: Supervision | F137: =SUMIF($P$28:$P$109,$N137,$AR$28:$AR$109) -> 0 | H137: =SUMIF($P$28:$P$109,$N137,$AO$28:$AO$109)+SUMIF($P$28:$P$109,$N137,$AU$28:$AU$109) -> 0 | I137: =SUMIF($P$28:$P$109,$N137,$AP$28:$AP$109) -> 0 | J137: =SUMIF($P$28:$P$109,$N137,$AT$28:$AT$109) -> 0 | K137: =SUMIF($P$28:$P$109,$N137,$AQ$28:$AQ$109)+SUMIF($P$28:$P$109,$N137,$AV$28:$AV$109) -> 0 | N137: 911
A138: 138 | B138: 912-OP | C138: Demonstrating & Selling Expenses | F138: =SUMIF($P$28:$P$109,$N138,$AR$28:$AR$109) -> 0 | H138: 0 | I138: =SUMIF($P$28:$P$109,$N138,$AP$28:$AP$109) -> 0 | J138: =SUMIF($P$28:$P$109,$N138,$AT$28:$AT$109) -> 0 | K138: 0 | N138: 912
A139: 139 | B139: 913-OP | C139: Advertising Expenses | F139: =SUMIF($P$28:$P$109,$N139,$AR$28:$AR$109) -> 0 | H139: 0 | I139: =SUMIF($P$28:$P$109,$N139,$AP$28:$AP$109) -> 0 | J139: =SUMIF($P$28:$P$109,$N139,$AT$28:$AT$109) -> 0 | K139: 0 | N139: 913
A140: 140 | B140: 916-OP | C140: Misc Sales Expenses | F140: =SUMIF($P$28:$P$109,$N140,$AR$28:$AR$109) -> 0 | H140: 0 | I140: =SUMIF($P$28:$P$109,$N140,$AP$28:$AP$109) -> 0 | J140: =SUMIF($P$28:$P$109,$N140,$AT$28:$AT$109) -> 0 | K140: 0 | N140: =LEFT(B140,3) -> 916
A141: 141 | C141: Total Sales Expenses | F141: =SUM(F137:F140) -> 0 | H141: =SUM(H137:H140) -> 0 | I141: =SUM(I137:I140) -> 0 | J141: =SUM(J137:J140) -> 0 | K141: =SUM(K137:K140) -> 0
A142: 142
A143: 143 | C143: Subtotal Expenses
A144: 144
A145: 145 | C145: Administrative & General Expenses
A146: 146 | B146: 920-OP | C146: Admin & General Salaries | F146: =SUMIF($P$28:$P$109,$N146,$AR$28:$AR$109) -> 7073280.282 | H146: =SUMIF($P$28:$P$109,$N146,$AO$28:$AO$109)+SUMIF($P$28:$P$109,$N146,$AU$28:$AU$109) -> 36132.33313 | I146: =SUMIF($P$28:$P$109,$N146,$AP$28:$AP$109)-64580 -> -206000 | J146: =SUMIF($P$28:$P$109,$N146,$AT$28:$AT$109) -> -25607.71858 | K146: =SUMIF($P$28:$P$109,$N146,$AQ$28:$AQ$109)+SUMIF($P$28:$P$109,$N146,$AV$28:$AV$109) -> 190736.6981 | N146: 920
A147: 147 | B147: 921-OP | C147: Office Supplies & Expenses | F147: 127916.2577 | H147: 881.856134 | I147: =SUMIF($P$28:$P$109,$N147,$AP$28:$AP$109) -> 0 | J147: -496.4514309 | K147: 3698.122033 | N147: 921
A148: 148 | B148: 922-OP | C148: Admin Expenses Transferred - CR | F148: 0 | H148: 0 | I148: 0 | J148: 0 | K148: 0 | N148: 922
A149: 149 | B149: 923-OP | C149: Outside Services Employed | F149: 14049.60382 | H149: 84.95253355 | I149: 0 | J149: -54.9375779 | K149: 409.2117617 | N149: 923
A150: 150 | B150: 924-OP | C150: Property Insurance Premium | F150: 0 | H150: 0 | I150: 0 | J150: 0 | K150: 0 | N150: 924
A151: 151 | B151: 925-OP | C151: Injuries & Damages | F151: -0.0061622 | H151: 0 | I151: 0 | J151: 2.646909482e-05 | K151: 0 | N151: 925
A152: 152 | B152: 926-OP | C152: Employee Pension & Benefits | F152: 124119.4116 | H152: 1996.951715 | I152: 0 | J152: -485.0159226 | K152: 3615.128493 | N152: 926
A153: 153 | B153: 927-OP | C153: Franchise Requirements | F153: 0 | H153: 0 | I153: 0 | J153: 0 | K153: 0 | N153: 927
A154: 154 | B154: 928-OP | C154: Regulatory Commission Expenses | F154: 811627.1331 | H154: 3508.823293 | I154: 0 | J154: -2902.683474 | K154: 21619.23417 | N154: 928
A155: 155 | B155: 930-OP | C155: Miscellaneous & General Expense | F155: 134426.8593 | H155: 2345.202153 | I155: 0 | J155: -436.8009662 | K155: 3256.807136 | N155: 930
A156: 156 | B156: 931-OP | C156: Rents | F156: 3.834383414 | H156: 0.0181176999 | I156: 0 | J156: -0.01499474222 | K156: 0.1116810703 | N156: 931
A157: 157 | B157: 935-MT | C157: Maintenance of General Plant | F157: 627915.431 | H157: 13456.26311 | I157: 0 | J157: -2452.808165 | K157: 18288.79896 | N157: 935
A158: 158 | C158: Total Administrative & General Expenses | F158: =SUM(F146:F157) -> 8913338.807 | H158: =SUM(H146:H157) -> 58406.40019 | I158: =SUM(I146:I157) -> -206000 | J158: =SUM(J146:J157) -> -32436.43109 | K158: =SUM(K146:K157) -> 241624.1124
A159: 159
A160: 160 | C160: Total Operating & Maintenance Expenses | F160: =F59+F86+F110+F118+F134+F141+F158 -> 32332484.75 | H160: =H59+H86+H110+H118+H134+H141+H158 -> 578992.6582 | I160: =I59+I86+I110+I118+I134+I141+I158 -> -206000 | J160: =J59+J86+J110+J118+J134+J141+J158 -> -123618 | K160: =K59+K86+K110+K118+K134+K141+K158 -> 921537.7556
F161: =AR110-F160 -> 0 | H161: =AO110-H160 -> 1359752.701 | I161: =AP110-I160 -> 64580 | J161: =AT110-J160 -> 0 | K161: =AQ110-K160 -> 0

Sheet Rev Req
A1: AVISTA UTILITIES | I1: AVISTA UTILITIES | Q1: AVISTA UTILITIES
A2: Calculation of General Revenue Requirement | I2: Calculation of General Revenue Requirement | Q2: Revenue Conversion Factor
A3: IDAHO - Electric System | I3: Idaho - Electric System | Q3: Idaho - Electric System
A4: TWELVE MONTHS ENDED DECEMBER 31, 2019 | I4: Pro Forma Cost of Capital | Q4: =A4 -> TWELVE MONTHS ENDED DECEMBER 31, 2019
E5: RY1 | F5: RY2 | G5: Incremental RY2
E6: 2025-09-02 | F6: 2026-09-02 | G6: 2026-09-02 | Q6: Line
A7: Line | E7: (000's of | F7: (000's of | G7: (000's of | I7: Proposed: | Q7: No. | S7: Description | U7: Factor
A8: No. | C8: Description | E8: Dollars) | F8: Dollars) | G8: Dollars)
Q9: 1 | S9: Revenues | U9: 1
A10: 1 | C10: Pro Forma Rate Base | E10: =ROUND(PROFORMA!$AS$473/1000,0)-1 -> 836076 | F10: =ROUND(PROFORMA!$BE$473/1000,0) -> 869806 | M10: ProForma
K11: Capital | L11: ProForma | M11: Weighted | S11: Expenses:
A12: 2 | C12: Proposed Rate of Return | E12: =M18 -> 0.0705 | F12: =M18 -> 0.0705 | I12: Component | K12: Structure | L12: Cost | M12: Cost | Q12: 2 | S12: Uncollectibles | U12: ='[3]CF '!$E$12 -> 0.002401
A14: 3 | C14: Net Operating Income Requirement | E14: =ROUND(E10*E12,0) -> 58943 | F14: =ROUND(F10*F12,0) -> 61321 | I14: Total Debt | K14: =100%-K16 -> 0.5 | L14: ='[3]RR SUMMARY'!$M$10 -> 0.047 | M14: =ROUND(K14*L14,4) -> 0.0235 | Q14: 3 | S14: Commission Fees | U14: ='[3]CF '!$E$14 -> 0.001953
A16: 4 | C16: Pro Forma Net Operating Income | E16: =ROUND(PROFORMA!$AS$295/1000,0)+2.25 -> 50991.25 | F16: =ROUND(PROFORMA!$BE$295/1000,0)+2 -> 47367 | I16: Common | K16: ='[4]RR SUMMARY'!$L$12 -> 0.5 | L16: ='[3]RR SUMMARY'!$M$12 -> 0.094 | M16: =ROUND(K16*L16,4) -> 0.047 | Q16: 4 | S16: Idaho Income Tax | U16: ='[3]CF '!$E$16 -> 0.046024
A18: 5 | C18: Net Operating Income Deficiency | E18: =E14-E16 -> 7951.75 | F18: =F14-F16 -> 13954 | G18: =F18-E18 -> 6002.25 | I18: Total | K18: =SUM(K14:K16) -> 1 | M18: =SUM(M14:M16) -> 0.0705 | Q18: 5 | S18: Total Expenses | U18: =SUM(U12:U16) -> 0.050378
A20: 6 | C20: Conversion Factor | E20: =U24 -> 0.750201 | F20: =U24 -> 0.750201 | G20: =U24 -> 0.750201 | Q20: 6 | S20: Net Operating Income Before FIT | U20: =U9-U18 -> 0.949622
A22: 7 | C22: Revenue Requirement | E22: =ROUND(E18/E20,0) -> 10599 | F22: =ROUND(F18/F20,0)-1 -> 18599 | G22: =ROUND(G18/G20,0)-1 -> 8000 | Q22: 7 | S22: Federal Income Tax @ 21% | U22: =U20*0.21 -> 0.19942062
A24: 8 | C24: Total General Business Revenues | E24: =-PROFORMA!$BI$280/1000 -> 244590 | G24: =E22+E24 -> 255189 | Q24: 8 | S24: REVENUE CONVERSION FACTOR | U24: =ROUND(U20-U22,6) -> 0.750201
A26: 9 | C26: Percentage Revenue Increase | E26: =ROUND(E22/E24,4) -> 0.0433 | G26: =ROUND(G22/G24,4) -> 0.0313

Sheet ASSIGN
A1: =PROFORMA!A1 -> 1 | B1: =PROFORMA!B1 -> Proforma | F1: =PROFORMA!BI1 -> AVISTA UTILITIES | H1: =PROFORMA!BK1 -> Idaho Jurisdiction | I1: =PROFORMA!BG2 -> 2022-09-01 | J1: 1 | K1: Assign | N1: =$F$1 -> AVISTA UTILITIES | T1: =H2 -> Electric Utility | W1: =TransferP3 -> Idaho Jurisdiction | AH1: 1 | AI1: =$K$1 -> Assign | AM1: =$F$1 -> AVISTA UTILITIES | AR1: =$H$1 -> Idaho Jurisdiction | AU1: =$H$2 -> Electric Utility | BB1: 1 | BC1: =$K$1 -> Assign | BF1: =$F$1 -> AVISTA UTILITIES | BJ1: =$H$1 -> Idaho Jurisdiction | BM1: =$H$2 -> Electric Utility
A2: =PROFORMA!A2 -> 2 | B2: =PROFORMA!B2 -> Pro Forma Results of Operations | F2: =PROFORMA!BI2 -> COS Proforma Transfer | H2: =PROFORMA!BK2 -> Electric Utility | J2: 2 | K2: Scenario: | L2: =B3 -> AVU-E-21-01 Company RY2 Settlement Case | N2: Cost of Service Calculation | AB2: =I1 -> 2022-09-01 | AH2: 2 | AI2: =$K$2 -> Scenario: | AJ2: =$L$2 -> AVU-E-21-01 Company RY2 Settlement Case | AM2: Functional Allocation Tables | AY2: =$AB$2 -> 2022-09-01 | BB2: 2 | BC2: =$K$2 -> Scenario: | BD2: =$L$2 -> AVU-E-21-01 Company RY2 Settlement Case | BF2: Class Allocator Worksheet | BR2: =$AB$2 -> 2022-09-01
A3: =PROFORMA!A3 -> 3 | B3: =PROFORMA!B3 -> AVU-E-21-01 Company RY2 Settlement Case | F3: =PROFORMA!BI3 -> For the Twelve Months Ended December 31, 2019 | H3: =PROFORMA!BK3 -> COS Checker | J3: 3 | L3: Load Factor Peak Credit | N3: =$F$3 -> For the Twelve Months Ended December 31, 2019 | V3: Functionalization and Classification | AH3: 3 | AJ3: =$L$3 -> Load Factor Peak Credit | AM3: =$F$3 -> For the Twelve Months Ended December 31, 2019 | AY3: =$AC$3 ->  | BB3: 3 | BD3: =$L$3 -> Load Factor Peak Credit | BF3: =$F$3 -> For the Twelve Months Ended December 31, 2019 | BR3: =$AC$3 -> 
A4: =PROFORMA!A4 -> 4 | J4: 4 | L4: Transmission by Demand | AH4: 4 | AJ4: =$L$4 -> Transmission by Demand | BB4: 4 | BD4: =$L$4 -> Transmission by Demand
A5: =PROFORMA!A5 -> 5 | B5: =PROFORMA!B5 -> B | C5: =PROFORMA!C5 -> C | D5: =PROFORMA!D5 -> D | F5: =PROFORMA!BI5 -> BI | G5: =PROFORMA!BJ5 -> BJ | H5: =PROFORMA!BK5 -> Checker | J5: 5 | K5: ="(k)" -> (k) | L5: ="(l)" -> (l) | M5: ="(m)" -> (m) | N5: ="(n)" -> (n) | O5: ="(o)" -> (o) | P5: ="(p)" -> (p) | Q5: ="(q)" -> (q) | R5: ="(r)" -> (r) | S5: ="(s)" -> (s) | T5: ="(t)" -> (t) | U5: ="(u)" -> (u) | V5: ="(v)" -> (v) | W5: ="(w)" -> (w) | X5: ="(x)" -> (x) | Y5: ="(y)" -> (y) | Z5: ="(z)" -> (z) | AA5: ="(aa)" -> (aa) | AB5: (ab) | AC5: ="(ac)" -> (ac) | AH5: 5 | AI5: (ai) | AJ5: (aj) | AK5: (ak) | AL5: (al) | AM5: (am) | AN5: (an) | AO5: (ao) | AP5: (ap) | AQ5: (aq) | AR5: (ar) | AS5: (as) | AT5: (at) | AU5: (au) | AV5: (av) | AW5: (aw) | AX5: (ax) | AY5: (ay) | BB5: 5 | BC5: (bc) | BD5: (bd) | BE5: (be) | BF5: (bf) | BG5: (bg) | BH5: (bh) | BI5: (bi) | BJ5: (bj) | BK5: (bk) | BL5: (bl) | BM5: (bm) | BN5: (bn) | BO5: (bo) | BP5: (bp) | BQ5: (bq) | BR5: (br)
A6: =PROFORMA!A6 -> 6 | F6: =PROFORMA!BI6 -> Transfer | G6: =PROFORMA!BJ6 -> Transfer | H6: =PROFORMA!BK6 -> Description | I6: Amounts | J6: 6 | N6: Notes | O6: Functional | P6: Class | Q6: Proforma | R6: Functional | S6: =BG6 -> Residential | T6: General | U6: Large Gen | V6: Extra Large | W6: Extra Large | X6: Pumping | Y6: Street & | AH6: 6 | BB6: 6 | BC6: Class | BF6: Class | BG6: Residential | BH6: General | BI6: Large Gen | BJ6: Extra Large | BK6: Extra Large | BL6: Pumping | BM6: Street & | BR6: Source / Description
A7: =PROFORMA!A7 -> 7 | B7: =PROFORMA!B7 -> Account | C7: =PROFORMA!C7 -> 0 | D7: =PROFORMA!D7 -> Description | F7: =PROFORMA!BI7 -> 2021 Proforma | G7: =PROFORMA!BJ7 -> Labor | J7: 7 | K7: Account Description | O7: Allocation | P7: Allocator | Q7: Totals | R7: Totals | S7: Service | T7: Service | U7: Service | V7: Gen Service | W7: Service CP | X7: Service | Y7: Area Lights | AH7: 7 | BB7: 7 | BC7: Allocator | BF7: Allocator | BG7: Service | BH7: Service | BI7: Service | BJ7: Gen Service | BK7: Service CP | BL7: Service | BM7: Area Lights
A8: =PROFORMA!A8 -> 8 | B8: =PROFORMA!B8 -> 0 | C8: =PROFORMA!C8 -> 0 | D8: =PROFORMA!D8 -> 0 | F8: =PROFORMA!BI8 -> Totals | G8: =PROFORMA!BJ8 -> Totals | H8: =PROFORMA!BK8 -> Key Items for Checking | J8: 8 | S8: Sch 01 | T8: Sch 11-12 | U8: Sch 21-22 | V8: Sch 25 | W8: Sch 25P | X8: Sch 31-32 | Y8: Sch 41-49 | Z8: Open 2 | AA8: Open 3 | AB8: Open 4 | AC8: Open 5 | AH8: 8 | BB8: 8 | BC8: Name | BD8: Description | BF8: Total | BG8: Sch 01 | BH8: Sch 11-12 | BI8: Sch 21-22 | BJ8: Sch 25 | BK8: Sch 25P | BL8: Sch 31-32 | BM8: Sch 41-49 | BN8: Open 2 | BO8: Open 3 | BP8: Open 4 | BQ8: Open 5
A9: =PROFORMA!A9 -> 9 | B9: =PROFORMA!B9 -> Operation & Maintenance Expenses | C9: =PROFORMA!C9 -> 0 | D9: =PROFORMA!D9 -> 0 | F9: =PROFORMA!BI9 -> 0 | G9: =PROFORMA!BJ9 -> 0 | J9: 9 | K9: =B9 -> Operation & Maintenance Expenses | AH9: 9 | AI9: Production Function Factor Table (pfactor) | BB9: 9
A10: =PROFORMA!A10 -> 10 | B10: =PROFORMA!B10 -> 0 | C10: =PROFORMA!C10 -> Production Expenses | D10: =PROFORMA!D10 -> 0 | F10: =PROFORMA!BI10 -> 0 | G10: =PROFORMA!BJ10 -> 0 | H10: =PROFORMA!BK10 -> Rate Base | I10: =PROFORMA!BL10 -> 869806000 | J10: 10 | L10: =C10 -> Production Expenses | AH10: 10 | AI10: Class | AJ10: Factor Name | AK10: P01 | AL10: P02 | AM10: P03 | AN10: P04 | AO10: P05 | AP10: P06 | AQ10: P07 | AR10: P08 | AS10: P09 | AT10: P10 | BB10: 10 | BD10: Energy Allocators
A11: =PROFORMA!A11 -> 11 | B11: =PROFORMA!B11 -> 500-OP | C11: =PROFORMA!C11 -> Steam | D11: =PROFORMA!D11 -> Supervision & Engineering | F11: =PROFORMA!BI11 -> 159000 | G11: =PROFORMA!BJ11 -> 85350.02007 | H11: =PROFORMA!BK11 -> Expenses | I11: =PROFORMA!BL11 -> 228051000 | J11: 11 | K11: =B11 -> 500-OP | L11: =C11 -> Steam | M11: =D11 -> Supervision & Engineering | O11: P01 | P11: =IF(MATCH(O11,P_ref,0)>0,"","error matching functional allocator") ->  | Q11: =F11 -> 159000 | AH11: 11 | AJ11: Total Factor | AK11: =AK12+AK13+AK14+AK15 -> 100 | AL11: =AL12+AL13+AL14+AL15 -> 0 | AM11: =AM12+AM13+AM14+AM15 -> 0 | AN11: 0 | AO11: 0 | AP11: 0 | AQ11: 0 | AR11: 0 | AS11: 0 | AT11: 0 | BB11: 11 | BC11: E01 | BD11: Customer Level Consumption | BF11: =SUM(BG11:BQ11) -> 2966809.875 | BG11: 1175514.618 | BH11: 386398.0712 | BI11: 621475.7102 | BJ11: 322296.4138 | BK11: 389748.75 | BL11: 60323.8393 | BM11: 11052.47241 | BN11: 0 | BO11: 0 | BP11: 0 | BQ11: 0 | BR11: Energy Sales-MWH | BS11: Revenue Adj (total proforma kwhs)
A12: =PROFORMA!A12 -> 12 | B12: =PROFORMA!B12 -> 501-OP | C12: =PROFORMA!C12 -> Steam | D12: =PROFORMA!D12 -> Fuel | F12: =PROFORMA!BI12 -> 11547000 | G12: =PROFORMA!BJ12 -> 323990.5277 | H12: =PROFORMA!BK12 -> Revenue | I12: =PROFORMA!BL12 -> 275418000 | J12: 12 | L12: P | M12: =HLOOKUP("Factor Name",pfactor,3) -> Coincident Peak 12A | N12: =IF(MATCH(P12,ref,0)>0,"","matching error") ->  | O12: =HLOOKUP(O11,pfactor,3) -> 34.13 | P12: =HLOOKUP("Class",pfactor,3) -> D01 | R12: =Q11*O12/SUM(O12:O15) -> 54266.7 | S12: =$R12*(VLOOKUP($P12,class,5)/VLOOKUP($P12,class,4)) -> 24982.21595 | T12: =$R12*(VLOOKUP($P12,class,6)/VLOOKUP($P12,class,4)) -> 7125.825946 | U12: =$R12*(VLOOKUP($P12,class,7)/VLOOKUP($P12,class,4)) -> 11313.44984 | V12: =$R12*(VLOOKUP($P12,class,8)/VLOOKUP($P12,class,4)) -> 4945.142131 | W12: =$R12*(VLOOKUP($P12,class,9)/VLOOKUP($P12,class,4)) -> 5029.125675 | X12: =$R12*(VLOOKUP($P12,class,10)/VLOOKUP($P12,class,4)) -> 803.8424904 | Y12: =$R12*(VLOOKUP($P12,class,11)/VLOOKUP($P12,class,4)) -> 67.09796355 | Z12: =$R12*(VLOOKUP($P12,class,12)/VLOOKUP($P12,class,4)) -> 0 | AA12: =$R12*(VLOOKUP($P12,class,13)/VLOOKUP($P12,class,4)) -> 0 | AB12: =$R12*(VLOOKUP($P12,class,14)/VLOOKUP($P12,class,4)) -> 0 | AC12: =$R12*(VLOOKUP($P12,class,15)/VLOOKUP($P12,class,4)) -> 0 | AH12: 12 | AI12: D01 | AJ12: =VLOOKUP(AI12,class,2) -> Coincident Peak 12A | AK12: 34.13 | BB12: 12 | BE12: =IF(SUM(BG12:BQ12)=BF12,"","error") ->  | BF12: =BF11/$BF11 -> 1 | BG12: 0.3962217559 | BH12: 0.1302402538 | BI12: 0.2094760825 | BJ12: 0.1086339966 | BK12: 0.1313696416 | BL12: 0.0203328969 | BM12: 0.003725372664 | BN12: 0 | BO12: 0 | BP12: 0 | BQ12: 0
A13: =PROFORMA!A13 -> 13 | B13: =PROFORMA!B13 -> 502-OP | C13: =PROFORMA!C13 -> Steam | D13: =PROFORMA!D13 -> Steam Expenses | F13: =PROFORMA!BI13 -> 1359000 | G13: =PROFORMA!BJ13 -> 198717.5887 | H13: =PROFORMA!BK13 -> Income | I13: =PROFORMA!BL13 -> 47367000 | J13: 13 | L13: P | M13: =HLOOKUP("Factor Name",pfactor,4) -> Generation Level Consumption | N13: =IF(MATCH(P13,ref,0)>0,"","matching error") ->  | O13: =HLOOKUP(O11,pfactor,4) -> 65.87 | P13: =HLOOKUP("Class",pfactor,4) -> E02 | R13: =Q11*O13/SUM(O12:O15) -> 104733.3 | S13: =$R13*(VLOOKUP($P13,class,5)/VLOOKUP($P13,class,4)) -> 41628.44236 | T13: =$R13*(VLOOKUP($P13,class,6)/VLOOKUP($P13,class,4)) -> 13683.49622 | U13: =$R13*(VLOOKUP($P13,class,7)/VLOOKUP($P13,class,4)) -> 21986.4122 | V13: =$R13*(VLOOKUP($P13,class,8)/VLOOKUP($P13,class,4)) -> 11275.06258 | W13: =$R13*(VLOOKUP($P13,class,9)/VLOOKUP($P13,class,4)) -> 13632.24076 | X13: =$R13*(VLOOKUP($P13,class,10)/VLOOKUP($P13,class,4)) -> 2136.245196 | Y13: =$R13*(VLOOKUP($P13,class,11)/VLOOKUP($P13,class,4)) -> 391.4006759 | Z13: =$R13*(VLOOKUP($P13,class,12)/VLOOKUP($P13,class,4)) -> 0 | AA13: =$R13*(VLOOKUP($P13,class,13)/VLOOKUP($P13,class,4)) -> 0 | AB13: =$R13*(VLOOKUP($P13,class,14)/VLOOKUP($P13,class,4)) -> 0 | AC13: =$R13*(VLOOKUP($P13,class,15)/VLOOKUP($P13,class,4)) -> 0 | AH13: 13 | AI13: E02 | AJ13: =VLOOKUP(AI13,class,2) -> Generation Level Consumption | AK13: 65.87 | BB13: 13 | BC13: E02 | BD13: Generation Level Consumption | BF13: =SUM(BG13:BQ13) -> 3123104.954 | BG13: 1241343.437 | BH13: 408036.3632 | BI13: 655625.984 | BJ13: 336217.839 | BK13: 406507.946 | BL13: 63701.974 | BM13: 11671.411 | BN13: =BN11*1.08 -> 0 | BO13: 0 | BP13: 0 | BQ13: 0 | BR13: Energy Sales with Losses - MWH | BS13: Demand Study "Losses"
A14: =PROFORMA!A14 -> 14 | B14: =PROFORMA!B14 -> 503-OP | C14: =PROFORMA!C14 -> Steam | D14: =PROFORMA!D14 -> From Other Sources | F14: =PROFORMA!BI14 -> 0 | G14: =PROFORMA!BJ14 -> 0 | H14: =PROFORMA!BK14 -> Interest | I14: =PROFORMA!BL14 -> 20440000 | J14: 14 | L14: P | M14: =HLOOKUP("Factor Name",pfactor,5) -> Open | N14: =IF(MATCH(P14,ref,0)>0,"","matching error") ->  | O14: =HLOOKUP(O11,pfactor,5) -> 0 | P14: =HLOOKUP("Class",pfactor,5) -> xxx | R14: =Q11*O14/SUM(O12:O15) -> 0 | S14: =$R14*(VLOOKUP($P14,class,5)/VLOOKUP($P14,class,4)) -> 0 | T14: =$R14*(VLOOKUP($P14,class,6)/VLOOKUP($P14,class,4)) -> 0 | U14: =$R14*(VLOOKUP($P14,class,7)/VLOOKUP($P14,class,4)) -> 0 | V14: =$R14*(VLOOKUP($P14,class,8)/VLOOKUP($P14,class,4)) -> 0 | W14: =$R14*(VLOOKUP($P14,class,9)/VLOOKUP($P14,class,4)) -> 0 | X14: =$R14*(VLOOKUP($P14,class,10)/VLOOKUP($P14,class,4)) -> 0 | Y14: =$R14*(VLOOKUP($P14,class,11)/VLOOKUP($P14,class,4)) -> 0 | Z14: =$R14*(VLOOKUP($P14,class,12)/VLOOKUP($P14,class,4)) -> 0 | AA14: =$R14*(VLOOKUP($P14,class,13)/VLOOKUP($P14,class,4)) -> 0 | AB14: =$R14*(VLOOKUP($P14,class,14)/VLOOKUP($P14,class,4)) -> 0 | AC14: =$R14*(VLOOKUP($P14,class,15)/VLOOKUP($P14,class,4)) -> 0 | AH14: 14 | AI14: xxx | AJ14: =VLOOKUP(AI14,class,2) -> Open | AK14: 0 | AL14: 0 | AM14: 0 | AN14: 0 | AO14: 0 | AP14: =AL14+AL22 -> 0 | AQ14: 0 | AR14: 0 | AS14: 0 | AT14: 0 | BB14: 14 | BE14: =IF(SUM(BG14:BQ14)=BF14,"","error") ->  | BF14: =BF13/$BF13 -> 1 | BG14: 0.3974709319 | BH14: 0.1306508648 | BI14: 0.2099276181 | BJ14: 0.1076549921 | BK14: 0.1301614746 | BL14: 0.02039700072 | BM14: 0.003737117764 | BN14: 0 | BO14: 0 | BP14: 0 | BQ14: 0
A15: =PROFORMA!A15 -> 15 | B15: =PROFORMA!B15 -> 504-OP | C15: =PROFORMA!C15 -> Steam | D15: =PROFORMA!D15 -> Steam Transferred-CR | F15: =PROFORMA!BI15 -> 0 | G15: =PROFORMA!BJ15 -> 0 | H15: =PROFORMA!BK15 -> SIT | I15: =PROFORMA!BL15 -> -1423000 | J15: 15 | L15: P | M15: =HLOOKUP("Factor Name",pfactor,6) -> Open | N15: =IF(MATCH(P15,ref,0)>0,"","matching error") ->  | O15: =HLOOKUP(O11,pfactor,6) -> 0 | P15: =HLOOKUP("Class",pfactor,6) -> xxx | R15: =Q11*O15/SUM(O12:O15) -> 0 | S15: =$R15*(VLOOKUP($P15,class,5)/VLOOKUP($P15,class,4)) -> 0 | T15: =$R15*(VLOOKUP($P15,class,6)/VLOOKUP($P15,class,4)) -> 0 | U15: =$R15*(VLOOKUP($P15,class,7)/VLOOKUP($P15,class,4)) -> 0 | V15: =$R15*(VLOOKUP($P15,class,8)/VLOOKUP($P15,class,4)) -> 0 | W15: =$R15*(VLOOKUP($P15,class,9)/VLOOKUP($P15,class,4)) -> 0 | X15: =$R15*(VLOOKUP($P15,class,10)/VLOOKUP($P15,class,4)) -> 0 | Y15: =$R15*(VLOOKUP($P15,class,11)/VLOOKUP($P15,class,4)) -> 0 | Z15: =$R15*(VLOOKUP($P15,class,12)/VLOOKUP($P15,class,4)) -> 0 | AA15: =$R15*(VLOOKUP($P15,class,13)/VLOOKUP($P15,class,4)) -> 0 | AB15: =$R15*(VLOOKUP($P15,class,14)/VLOOKUP($P15,class,4)) -> 0 | AC15: =$R15*(VLOOKUP($P15,class,15)/VLOOKUP($P15,class,4)) -> 0 | AH15: 15 | AI15: xxx | AJ15: =VLOOKUP(AI15,class,2) -> Open | AK15: 0 | AL15: 0 | AM15: 0 | AN15: 0 | AO15: 0 | AP15: 0 | AQ15: 0 | AR15: 0 | AS15: 0 | AT15: 0 | BB15: 15 | BC15: E03 | BD15: Open | BF15: =SUM(BG15:BQ15) -> 0 | BG15: 0 | BH15: 0 | BI15: 0 | BJ15: 0 | BK15: 0 | BL15: 0 | BM15: 0 | BN15: 0 | BO15: 0 | BP15: 0 | BQ15: 0 | BR15: Open
A16: =PROFORMA!A16 -> 16 | B16: =PROFORMA!B16 -> 505-OP | C16: =PROFORMA!C16 -> Steam | D16: =PROFORMA!D16 -> Electric Expenses | F16: =PROFORMA!BI16 -> 378000 | G16: =PROFORMA!BJ16 -> 212848.3187 | H16: =PROFORMA!BK16 -> FIT | I16: =PROFORMA!BL16 -> 3506000 | J16: 16 | K16: =B12 -> 501-OP | L16: =C12 -> Steam | M16: =D12 -> Fuel | O16: P01 | P16: =IF(MATCH(O16,P_ref,0)>0,"","error matching functional allocator") ->  | Q16: =F12 -> 11547000 | AH16: 16 | AK16: LF Peak Cr | AL16: MWH Gen | AM16: Thermal PC | AN16: Hydro PC | AO16: Other PC | AP16: P01 + T01 | AQ16: CS Plt | AR16: CS A/D | AS16: CS Depr | AT16: CS O&M | BB16: 16
A17: =PROFORMA!A17 -> 17 | B17: =PROFORMA!B17 -> 506-OP | C17: =PROFORMA!C17 -> Steam | D17: =PROFORMA!D17 -> Miscellaneous Power Exp. | F17: =PROFORMA!BI17 -> 1103000 | G17: =PROFORMA!BJ17 -> 99686.67157 | H17: =PROFORMA!BK17 -> ITC | I17: =PROFORMA!BL17 -> -167000 | J17: 17 | L17: P | M17: =HLOOKUP("Factor Name",pfactor,3) -> Coincident Peak 12A | N17: =IF(MATCH(P17,ref,0)>0,"","matching error") ->  | O17: =HLOOKUP(O16,pfactor,3) -> 34.13 | P17: =HLOOKUP("Class",pfactor,3) -> D01 | R17: =Q16*O17/SUM(O17:O20) -> 3940991.1 | S17: =$R17*(VLOOKUP($P17,class,5)/VLOOKUP($P17,class,4)) -> 1814274.513 | T17: =$R17*(VLOOKUP($P17,class,6)/VLOOKUP($P17,class,4)) -> 517496.3032 | U17: =$R17*(VLOOKUP($P17,class,7)/VLOOKUP($P17,class,4)) -> 821612.6122 | V17: =$R17*(VLOOKUP($P17,class,8)/VLOOKUP($P17,class,4)) -> 359129.2842 | W17: =$R17*(VLOOKUP($P17,class,9)/VLOOKUP($P17,class,4)) -> 365228.391 | X17: =$R17*(VLOOKUP($P17,class,10)/VLOOKUP($P17,class,4)) -> 58377.16501 | Y17: =$R17*(VLOOKUP($P17,class,11)/VLOOKUP($P17,class,4)) -> 4872.831353 | Z17: =$R17*(VLOOKUP($P17,class,12)/VLOOKUP($P17,class,4)) -> 0 | AA17: =$R17*(VLOOKUP($P17,class,13)/VLOOKUP($P17,class,4)) -> 0 | AB17: =$R17*(VLOOKUP($P17,class,14)/VLOOKUP($P17,class,4)) -> 0 | AC17: =$R17*(VLOOKUP($P17,class,15)/VLOOKUP($P17,class,4)) -> 0 | AH17: 17 | AI17: Transmission Function Factor Table (tfactor) | BB17: 17 | BD17: Demand Allocators
A18: =PROFORMA!A18 -> 18 | B18: =PROFORMA!B18 -> 507-OP | C18: =PROFORMA!C18 -> Steam | D18: =PROFORMA!D18 -> Rents | F18: =PROFORMA!BI18 -> 5000 | G18: =PROFORMA!BJ18 -> 0 | H18: =PROFORMA!BK18 -> Deferred Tax | I18: =PROFORMA!BL18 -> 1739000 | J18: 18 | L18: P | M18: =HLOOKUP("Factor Name",pfactor,4) -> Generation Level Consumption | N18: =IF(MATCH(P18,ref,0)>0,"","matching error") ->  | O18: =HLOOKUP(O16,pfactor,4) -> 65.87 | P18: =HLOOKUP("Class",pfactor,4) -> E02 | R18: =Q16*O18/SUM(O17:O20) -> 7606008.9 | S18: =$R18*(VLOOKUP($P18,class,5)/VLOOKUP($P18,class,4)) -> 3023167.446 | T18: =$R18*(VLOOKUP($P18,class,6)/VLOOKUP($P18,class,4)) -> 993731.6407 | U18: =$R18*(VLOOKUP($P18,class,7)/VLOOKUP($P18,class,4)) -> 1596711.332 | V18: =$R18*(VLOOKUP($P18,class,8)/VLOOKUP($P18,class,4)) -> 818824.8278 | W18: =$R18*(VLOOKUP($P18,class,9)/VLOOKUP($P18,class,4)) -> 990009.334 | X18: =$R18*(VLOOKUP($P18,class,10)/VLOOKUP($P18,class,4)) -> 155139.769 | Y18: =$R18*(VLOOKUP($P18,class,11)/VLOOKUP($P18,class,4)) -> 28424.55097 | Z18: =$R18*(VLOOKUP($P18,class,12)/VLOOKUP($P18,class,4)) -> 0 | AA18: =$R18*(VLOOKUP($P18,class,13)/VLOOKUP($P18,class,4)) -> 0 | AB18: =$R18*(VLOOKUP($P18,class,14)/VLOOKUP($P18,class,4)) -> 0 | AC18: =$R18*(VLOOKUP($P18,class,15)/VLOOKUP($P18,class,4)) -> 0 | AH18: 18 | AI18: Class | AJ18: Factor Name | AK18: T01 | AL18: T02 | AM18: T03 | AN18: T04 | BB18: 18 | BC18: D01 | BD18: Coincident Peak 12A | BF18: =SUM(BG18:BQ18) -> 488496 | BG18: 224884 | BH18: 64145 | BI18: =94641+7200 -> 101841 | BJ18: =43977+538 -> 44515 | BK18: 45271 | BL18: 7236 | BM18: =396+208 -> 604 | BN18: 0 | BO18: 0 | BP18: 0 | BQ18: 0 | BR18: Coincident Peak 12 Month Average | BS18: Demand Study
A19: =PROFORMA!A19 -> 19 | B19: =PROFORMA!B19 -> 0 | C19: =PROFORMA!C19 -> Total Steam Operation | D19: =PROFORMA!D19 -> 0 | F19: =PROFORMA!BI19 -> 14551000 | G19: =PROFORMA!BJ19 -> 0 | H19: =PROFORMA!BK19 -> Gen Bus Revenue | I19: =PROFORMA!BL19 -> 244590000 | J19: 19 | L19: P | M19: =HLOOKUP("Factor Name",pfactor,5) -> Open | N19: =IF(MATCH(P19,ref,0)>0,"","matching error") ->  | O19: =HLOOKUP(O16,pfactor,5) -> 0 | P19: =HLOOKUP("Class",pfactor,5) -> xxx | R19: =Q16*O19/SUM(O17:O20) -> 0 | S19: =$R19*(VLOOKUP($P19,class,5)/VLOOKUP($P19,class,4)) -> 0 | T19: =$R19*(VLOOKUP($P19,class,6)/VLOOKUP($P19,class,4)) -> 0 | U19: =$R19*(VLOOKUP($P19,class,7)/VLOOKUP($P19,class,4)) -> 0 | V19: =$R19*(VLOOKUP($P19,class,8)/VLOOKUP($P19,class,4)) -> 0 | W19: =$R19*(VLOOKUP($P19,class,9)/VLOOKUP($P19,class,4)) -> 0 | X19: =$R19*(VLOOKUP($P19,class,10)/VLOOKUP($P19,class,4)) -> 0 | Y19: =$R19*(VLOOKUP($P19,class,11)/VLOOKUP($P19,class,4)) -> 0 | Z19: =$R19*(VLOOKUP($P19,class,12)/VLOOKUP($P19,class,4)) -> 0 | AA19: =$R19*(VLOOKUP($P19,class,13)/VLOOKUP($P19,class,4)) -> 0 | AB19: =$R19*(VLOOKUP($P19,class,14)/VLOOKUP($P19,class,4)) -> 0 | AC19: =$R19*(VLOOKUP($P19,class,15)/VLOOKUP($P19,class,4)) -> 0 | AH19: 19 | AJ19: Total Factor | AK19: =AK20+AK21+AK22 -> 100 | AL19: =AL20+AL21+AL22 -> 100 | AM19: =AM20+AM21+AM22 -> 0 | AN19: =AN20+AN21+AN22 -> 0 | BB19: 19 | BE19: =IF(SUM(BG19:BQ19)=BF19,"","error") ->  | BF19: =BF18/$BF18 -> 1 | BG19: 0.460359962 | BH19: 0.1313112083 | BI19: 0.2084786774 | BJ19: 0.09112664177 | BK19: 0.09267424912 | BL19: 0.01481281321 | BM19: 0.0012364482 | BN19: 0 | BO19: 0 | BP19: 0 | BQ19: 0
A20: =PROFORMA!A20 -> 20 | B20: =PROFORMA!B20 -> 510-MT | C20: =PROFORMA!C20 -> Steam | D20: =PROFORMA!D20 -> Supervision & Engineering | F20: =PROFORMA!BI20 -> 188000 | G20: =PROFORMA!BJ20 -> 32060.12615 | H20: =PROFORMA!BK20 -> Allocated Revenue | I20: =PROFORMA!BL20 -> 0 | J20: 20 | L20: P | M20: =HLOOKUP("Factor Name",pfactor,6) -> Open | N20: =IF(MATCH(P20,ref,0)>0,"","matching error") ->  | O20: =HLOOKUP(O16,pfactor,6) -> 0 | P20: =HLOOKUP("Class",pfactor,6) -> xxx | R20: =Q16*O20/SUM(O17:O20) -> 0 | S20: =$R20*(VLOOKUP($P20,class,5)/VLOOKUP($P20,class,4)) -> 0 | T20: =$R20*(VLOOKUP($P20,class,6)/VLOOKUP($P20,class,4)) -> 0 | U20: =$R20*(VLOOKUP($P20,class,7)/VLOOKUP($P20,class,4)) -> 0 | V20: =$R20*(VLOOKUP($P20,class,8)/VLOOKUP($P20,class,4)) -> 0 | W20: =$R20*(VLOOKUP($P20,class,9)/VLOOKUP($P20,class,4)) -> 0 | X20: =$R20*(VLOOKUP($P20,class,10)/VLOOKUP($P20,class,4)) -> 0 | Y20: =$R20*(VLOOKUP($P20,class,11)/VLOOKUP($P20,class,4)) -> 0 | Z20: =$R20*(VLOOKUP($P20,class,12)/VLOOKUP($P20,class,4)) -> 0 | AA20: =$R20*(VLOOKUP($P20,class,13)/VLOOKUP($P20,class,4)) -> 0 | AB20: =$R20*(VLOOKUP($P20,class,14)/VLOOKUP($P20,class,4)) -> 0 | AC20: =$R20*(VLOOKUP($P20,class,15)/VLOOKUP($P20,class,4)) -> 0 | AH20: 20 | AI20: D01 | AJ20: =VLOOKUP(AI20,class,2) -> Coincident Peak 12A | AK20: 100 | BB20: 20 | BC20: D02 | BD20: Coincident Peak Weighted 12 | BF20: =SUM(BG20:BQ20) -> 168497 | BG20: 79930 | BH20: 20774 | BI20: =31988+2462 -> 34450 | BJ20: =15101+185 -> 15286 | BK20: 15322 | BL20: 2492 | BM20: 243 | BN20: 0 | BO20: 0 | BP20: 0 | BQ20: 0 | BR20: Coincident Peak Weighted 12 Month Average | BS20: Demand Study
A21: =PROFORMA!A21 -> 21 | B21: =PROFORMA!B21 -> 511-MT | C21: =PROFORMA!C21 -> Steam | D21: =PROFORMA!D21 -> Structures | F21: =PROFORMA!BI21 -> 264000 | G21: =PROFORMA!BJ21 -> 7552.229866 | H21: =PROFORMA!BK21 -> Secondary Sales | I21: =PROFORMA!BL21 -> 18081000 | J21: 21 | K21: =B13 -> 502-OP | L21: =C13 -> Steam | M21: =D13 -> Steam Expenses | O21: P01 | P21: =IF(MATCH(O21,P_ref,0)>0,"","error matching functional allocator") ->  | Q21: =F13 -> 1359000 | AH21: 21 | AI21: E02 | AJ21: =VLOOKUP(AI21,class,2) -> Generation Level Consumption | AK21: 0 | AL21: 100 | BB21: 21 | BF21: 1 | BG21: 0.4743704636 | BH21: 0.1232900289 | BI21: 0.2044546787 | BJ21: 0.09071971608 | BK21: 0.09093336973 | BL21: 0.01478958082 | BM21: 0.001442162175 | BN21: 0 | BO21: 0 | BP21: 0 | BQ21: 0
A22: =PROFORMA!A22 -> 22 | B22: =PROFORMA!B22 -> 512-MT | C22: =PROFORMA!C22 -> Steam | D22: =PROFORMA!D22 -> Boiler Plant | F22: =PROFORMA!BI22 -> 2113000 | G22: =PROFORMA!BJ22 -> 305237.2733 | H22: =PROFORMA!BK22 -> MOPS Revenue | I22: =PROFORMA!BL22 -> 0 | J22: 22 | L22: P | M22: =HLOOKUP("Factor Name",pfactor,3) -> Coincident Peak 12A | N22: =IF(MATCH(P22,ref,0)>0,"","matching error") ->  | O22: =HLOOKUP(O21,pfactor,3) -> 34.13 | P22: =HLOOKUP("Class",pfactor,3) -> D01 | R22: =Q21*O22/SUM(O22:O25) -> 463826.7 | S22: =$R22*(VLOOKUP($P22,class,5)/VLOOKUP($P22,class,4)) -> 213527.242 | T22: =$R22*(VLOOKUP($P22,class,6)/VLOOKUP($P22,class,4)) -> 60905.64441 | U22: =$R22*(VLOOKUP($P22,class,7)/VLOOKUP($P22,class,4)) -> 96697.97696 | V22: =$R22*(VLOOKUP($P22,class,8)/VLOOKUP($P22,class,4)) -> 42266.96954 | W22: =$R22*(VLOOKUP($P22,class,9)/VLOOKUP($P22,class,4)) -> 42984.79115 | X22: =$R22*(VLOOKUP($P22,class,10)/VLOOKUP($P22,class,4)) -> 6870.578267 | Y22: =$R22*(VLOOKUP($P22,class,11)/VLOOKUP($P22,class,4)) -> 573.4976884 | Z22: =$R22*(VLOOKUP($P22,class,12)/VLOOKUP($P22,class,4)) -> 0 | AA22: =$R22*(VLOOKUP($P22,class,13)/VLOOKUP($P22,class,4)) -> 0 | AB22: =$R22*(VLOOKUP($P22,class,14)/VLOOKUP($P22,class,4)) -> 0 | AC22: =$R22*(VLOOKUP($P22,class,15)/VLOOKUP($P22,class,4)) -> 0 | AH22: 22 | AI22: xxx | AJ22: =VLOOKUP(AI22,class,2) -> Open | AK22: 0 | BB22: 22 | BC22: D03 | BD22: NCP-All | BF22: =SUM(BG22:BQ22) -> 586084.061 | BG22: 247308.208 | BH22: 73439.01 | BI22: =111412.712+9995.471 -> 121408.183 | BJ22: =49095.317+710.054 -> 49805.371 | BK22: 71734.063 | BL22: 19669.358 | BM22: =1782.483+937.385 -> 2719.868 | BN22: 0 | BO22: 0 | BP22: 0 | BQ22: 0 | BR22: Non-Coincident Peak All Sched.12 Mo Avg | BS22: Demand Study
A23: =PROFORMA!A23 -> 23 | B23: =PROFORMA!B23 -> 513-MT | C23: =PROFORMA!C23 -> Steam | D23: =PROFORMA!D23 -> Electric Plant | F23: =PROFORMA!BI23 -> 243000 | G23: =PROFORMA!BJ23 -> 103447.2862 | H23: =PROFORMA!BK23 -> Misc Rev | I23: =PROFORMA!BL23 -> 128000 | J23: 23 | L23: P | M23: =HLOOKUP("Factor Name",pfactor,4) -> Generation Level Consumption | N23: =IF(MATCH(P23,ref,0)>0,"","matching error") ->  | O23: =HLOOKUP(O21,pfactor,4) -> 65.87 | P23: =HLOOKUP("Class",pfactor,4) -> E02 | R23: =Q21*O23/SUM(O22:O25) -> 895173.3 | S23: =$R23*(VLOOKUP($P23,class,5)/VLOOKUP($P23,class,4)) -> 355805.3658 | T23: =$R23*(VLOOKUP($P23,class,6)/VLOOKUP($P23,class,4)) -> 116955.1658 | U23: =$R23*(VLOOKUP($P23,class,7)/VLOOKUP($P23,class,4)) -> 187921.5987 | V23: =$R23*(VLOOKUP($P23,class,8)/VLOOKUP($P23,class,4)) -> 96369.87451 | W23: =$R23*(VLOOKUP($P23,class,9)/VLOOKUP($P23,class,4)) -> 116517.0767 | X23: =$R23*(VLOOKUP($P23,class,10)/VLOOKUP($P23,class,4)) -> 18258.85045 | Y23: =$R23*(VLOOKUP($P23,class,11)/VLOOKUP($P23,class,4)) -> 3345.368041 | Z23: =$R23*(VLOOKUP($P23,class,12)/VLOOKUP($P23,class,4)) -> 0 | AA23: =$R23*(VLOOKUP($P23,class,13)/VLOOKUP($P23,class,4)) -> 0 | AB23: =$R23*(VLOOKUP($P23,class,14)/VLOOKUP($P23,class,4)) -> 0 | AC23: =$R23*(VLOOKUP($P23,class,15)/VLOOKUP($P23,class,4)) -> 0 | AH23: 23 | AK23: 100% Demand | AL23: 100% Energy | BB23: 23 | BE23: =IF(SUM(BG23:BQ23)=BF23,"","error") ->  | BF23: =BF22/$BF22 -> 1 | BG23: 0.421967128 | BH23: 0.1253045679 | BI23: 0.207151484 | BJ23: 0.08497991042 | BK23: 0.1223955193 | BL23: 0.0335606431 | BM23: 0.00464074726 | BN23: 0 | BO23: 0 | BP23: 0 | BQ23: 0
A24: =PROFORMA!A24 -> 24 | B24: =PROFORMA!B24 -> 514-MT | C24: =PROFORMA!C24 -> Steam | D24: =PROFORMA!D24 -> Miscellaneous Plant | F24: =PROFORMA!BI24 -> 434000 | G24: =PROFORMA!BJ24 -> 31248.08767 | H24: =PROFORMA!BK24 -> Water Sales | I24: =PROFORMA!BL24 -> 118000 | J24: 24 | L24: P | M24: =HLOOKUP("Factor Name",pfactor,5) -> Open | N24: =IF(MATCH(P24,ref,0)>0,"","matching error") ->  | O24: =HLOOKUP(O21,pfactor,5) -> 0 | P24: =HLOOKUP("Class",pfactor,5) -> xxx | R24: =Q21*O24/SUM(O22:O25) -> 0 | S24: =$R24*(VLOOKUP($P24,class,5)/VLOOKUP($P24,class,4)) -> 0 | T24: =$R24*(VLOOKUP($P24,class,6)/VLOOKUP($P24,class,4)) -> 0 | U24: =$R24*(VLOOKUP($P24,class,7)/VLOOKUP($P24,class,4)) -> 0 | V24: =$R24*(VLOOKUP($P24,class,8)/VLOOKUP($P24,class,4)) -> 0 | W24: =$R24*(VLOOKUP($P24,class,9)/VLOOKUP($P24,class,4)) -> 0 | X24: =$R24*(VLOOKUP($P24,class,10)/VLOOKUP($P24,class,4)) -> 0 | Y24: =$R24*(VLOOKUP($P24,class,11)/VLOOKUP($P24,class,4)) -> 0 | Z24: =$R24*(VLOOKUP($P24,class,12)/VLOOKUP($P24,class,4)) -> 0 | AA24: =$R24*(VLOOKUP($P24,class,13)/VLOOKUP($P24,class,4)) -> 0 | AB24: =$R24*(VLOOKUP($P24,class,14)/VLOOKUP($P24,class,4)) -> 0 | AC24: =$R24*(VLOOKUP($P24,class,15)/VLOOKUP($P24,class,4)) -> 0 | AH24: 24 | AI24: Distribution Function Factor Table (dfactor) | BB24: 24 | BC24: D04 | BD24: NCP-w/o DA | BF24: =SUM(BG24:BQ24) -> 464544.627 | BG24: =BG22 -> 247308.208 | BH24: =BH22 -> 73439.01 | BI24: =BI22 -> 121408.183 | BJ24: 0 | BK24: 0 | BL24: =BL22 -> 19669.358 | BM24: =BM22 -> 2719.868 | BN24: =BN22 -> 0 | BO24: =BO22 -> 0 | BP24: =BP22 -> 0 | BQ24: 0 | BR24: NCP w/o Sch 25/28 12 Mo Avg
A25: =PROFORMA!A25 -> 25 | B25: =PROFORMA!B25 -> 0 | C25: =PROFORMA!C25 -> Total Steam Maintenance | D25: =PROFORMA!D25 -> 0 | F25: =PROFORMA!BI25 -> 3242000 | G25: =PROFORMA!BJ25 -> 0 | H25: =PROFORMA!BK25 -> Rent | I25: =PROFORMA!BL25 -> 1268000 | J25: 25 | L25: P | M25: =HLOOKUP("Factor Name",pfactor,6) -> Open | N25: =IF(MATCH(P25,ref,0)>0,"","matching error") ->  | O25: =HLOOKUP(O21,pfactor,6) -> 0 | P25: =HLOOKUP("Class",pfactor,6) -> xxx | R25: =Q21*O25/SUM(O22:O25) -> 0 | S25: =$R25*(VLOOKUP($P25,class,5)/VLOOKUP($P25,class,4)) -> 0 | T25: =$R25*(VLOOKUP($P25,class,6)/VLOOKUP($P25,class,4)) -> 0 | U25: =$R25*(VLOOKUP($P25,class,7)/VLOOKUP($P25,class,4)) -> 0 | V25: =$R25*(VLOOKUP($P25,class,8)/VLOOKUP($P25,class,4)) -> 0 | W25: =$R25*(VLOOKUP($P25,class,9)/VLOOKUP($P25,class,4)) -> 0 | X25: =$R25*(VLOOKUP($P25,class,10)/VLOOKUP($P25,class,4)) -> 0 | Y25: =$R25*(VLOOKUP($P25,class,11)/VLOOKUP($P25,class,4)) -> 0 | Z25: =$R25*(VLOOKUP($P25,class,12)/VLOOKUP($P25,class,4)) -> 0 | AA25: =$R25*(VLOOKUP($P25,class,13)/VLOOKUP($P25,class,4)) -> 0 | AB25: =$R25*(VLOOKUP($P25,class,14)/VLOOKUP($P25,class,4)) -> 0 | AC25: =$R25*(VLOOKUP($P25,class,15)/VLOOKUP($P25,class,4)) -> 0 | AH25: 25 | AI25: Class | AJ25: Factor Name | AK25: X01 | AL25: X02 | AM25: X03 | AN25: X04 | AO25: X05 | AP25: X06 | AQ25: X07 | AR25: X08 | AS25: X09 | AT25: X10 | AU25: X11 | AV25: X12 | AW25: X13 | AX25: X14 | AY25: X15 | BB25: 25 | BE25: =IF(SUM(BG25:BQ25)=BF25,"","error") ->  | BF25: =BF24/$BF24 -> 1 | BG25: 0.5323669538 | BH25: 0.1580881701 | BI25: 0.2613488047 | BJ25: 0 | BK25: 0 | BL25: 0.04234115918 | BM25: 0.005854912191 | BN25: 0 | BO25: 0 | BP25: 0 | BQ25: 0
A26: =PROFORMA!A26 -> 26 | B26: =PROFORMA!B26 -> 0 | C26: =PROFORMA!C26 -> Total Steam Generation | D26: =PROFORMA!D26 -> 0 | F26: =PROFORMA!BI26 -> 17793000 | G26: =PROFORMA!BJ26 -> 0 | H26: =PROFORMA!BK26 -> Wheeling Revenue | I26: =PROFORMA!BL26 -> 11233000 | J26: 26 | K26: =B14 -> 503-OP | L26: =C14 -> Steam | M26: =D14 -> From Other Sources | O26: P01 | P26: =IF(MATCH(O26,P_ref,0)>0,"","error matching functional allocator") ->  | Q26: =F14 -> 0 | AH26: 26 | AJ26: Total Factor | AK26: =SUM(AK27:AK36) -> 100 | AL26: 6795.686 | AM26: 46111.264 | AN26: 0 | AO26: 100 | AP26: 100 | AQ26: 100 | AR26: =SUM(AR27:AR36) -> 100 | AS26: 100 | AT26: 100 | AU26: 100 | AV26: 100 | AW26: 0 | AX26: 0 | AY26: 0 | BB26: 26 | BC26: D05 | BD26: DA Sch 25 | BF26: =SUM(BG26:BQ26) -> 100 | BJ26: 100 | BR26: Direct Assigned to Schedule 25 Customers
A27: =PROFORMA!A27 -> 27 | B27: =PROFORMA!B27 -> 0 | C27: =PROFORMA!C27 -> 0 | D27: =PROFORMA!D27 -> 0 | F27: =PROFORMA!BI27 -> 0 | G27: =PROFORMA!BJ27 -> 0 | H27: =PROFORMA!BK27 -> Other Rev | I27: =PROFORMA!BL27 -> 0 | J27: 27 | L27: P | M27: =HLOOKUP("Factor Name",pfactor,3) -> Coincident Peak 12A | N27: =IF(MATCH(P27,ref,0)>0,"","matching error") ->  | O27: =HLOOKUP(O26,pfactor,3) -> 34.13 | P27: =HLOOKUP("Class",pfactor,3) -> D01 | R27: =Q26*O27/SUM(O27:O30) -> 0 | S27: =$R27*(VLOOKUP($P27,class,5)/VLOOKUP($P27,class,4)) -> 0 | T27: =$R27*(VLOOKUP($P27,class,6)/VLOOKUP($P27,class,4)) -> 0 | U27: =$R27*(VLOOKUP($P27,class,7)/VLOOKUP($P27,class,4)) -> 0 | V27: =$R27*(VLOOKUP($P27,class,8)/VLOOKUP($P27,class,4)) -> 0 | W27: =$R27*(VLOOKUP($P27,class,9)/VLOOKUP($P27,class,4)) -> 0 | X27: =$R27*(VLOOKUP($P27,class,10)/VLOOKUP($P27,class,4)) -> 0 | Y27: =$R27*(VLOOKUP($P27,class,11)/VLOOKUP($P27,class,4)) -> 0 | Z27: =$R27*(VLOOKUP($P27,class,12)/VLOOKUP($P27,class,4)) -> 0 | AA27: =$R27*(VLOOKUP($P27,class,13)/VLOOKUP($P27,class,4)) -> 0 | AB27: =$R27*(VLOOKUP($P27,class,14)/VLOOKUP($P27,class,4)) -> 0 | AC27: =$R27*(VLOOKUP($P27,class,15)/VLOOKUP($P27,class,4)) -> 0 | AH27: 27 | AI27: D03 | AJ27: =VLOOKUP(AI27,class,2) -> NCP-All | AK27: 100 | AL27: 0 | AM27: 0 | AO27: 0 | AP27: 0 | AQ27: 0 | AR27: 0 | AS27: 0 | BB27: 27 | BE27: =IF(SUM(BG27:BQ27)=BF27,"","error") ->  | BF27: =BF26/$BF26 -> 1 | BG27: 0 | BH27: 0 | BI27: 0 | BJ27: 1 | BK27: 0 | BL27: 0 | BM27: 0 | BN27: 0 | BO27: 0 | BP27: 0 | BQ27: 0
A28: =PROFORMA!A28 -> 28 | B28: =PROFORMA!B28 -> 535-OP | C28: =PROFORMA!C28 -> Hydro | D28: =PROFORMA!D28 -> Supervision & Engineering | F28: =PROFORMA!BI28 -> 1194000 | G28: =PROFORMA!BJ28 -> 586334.0682 | J28: 28 | L28: P | M28: =HLOOKUP("Factor Name",pfactor,4) -> Generation Level Consumption | N28: =IF(MATCH(P28,ref,0)>0,"","matching error") ->  | O28: =HLOOKUP(O26,pfactor,4) -> 65.87 | P28: =HLOOKUP("Class",pfactor,4) -> E02 | R28: =Q26*O28/SUM(O27:O30) -> 0 | S28: =$R28*(VLOOKUP($P28,class,5)/VLOOKUP($P28,class,4)) -> 0 | T28: =$R28*(VLOOKUP($P28,class,6)/VLOOKUP($P28,class,4)) -> 0 | U28: =$R28*(VLOOKUP($P28,class,7)/VLOOKUP($P28,class,4)) -> 0 | V28: =$R28*(VLOOKUP($P28,class,8)/VLOOKUP($P28,class,4)) -> 0 | W28: =$R28*(VLOOKUP($P28,class,9)/VLOOKUP($P28,class,4)) -> 0 | X28: =$R28*(VLOOKUP($P28,class,10)/VLOOKUP($P28,class,4)) -> 0 | Y28: =$R28*(VLOOKUP($P28,class,11)/VLOOKUP($P28,class,4)) -> 0 | Z28: =$R28*(VLOOKUP($P28,class,12)/VLOOKUP($P28,class,4)) -> 0 | AA28: =$R28*(VLOOKUP($P28,class,13)/VLOOKUP($P28,class,4)) -> 0 | AB28: =$R28*(VLOOKUP($P28,class,14)/VLOOKUP($P28,class,4)) -> 0 | AC28: =$R28*(VLOOKUP($P28,class,15)/VLOOKUP($P28,class,4)) -> 0 | AH28: 28 | AI28: D04 | AJ28: NCP-w/o DA | AK28: 0 | AL28: 5919.388 | AM28: 41203.952 | AO28: 93.82 | AP28: 94.72 | AQ28: 70.74 | AR28: 73.53 | AS28: 0 | BB28: 28 | BC28: D06 | BD28: DA Sch 25P | BF28: =SUM(BG28:BQ28) -> 100 | BK28: 100 | BR28: Direct Assigned to Schedule 25P Customers
A29: =PROFORMA!A29 -> 29 | B29: =PROFORMA!B29 -> 536-OP | C29: =PROFORMA!C29 -> Hydro | D29: =PROFORMA!D29 -> Water For Power | F29: =PROFORMA!BI29 -> 322000 | G29: =PROFORMA!BJ29 -> 5016.808215 | J29: 29 | L29: P | M29: =HLOOKUP("Factor Name",pfactor,5) -> Open | N29: =IF(MATCH(P29,ref,0)>0,"","matching error") ->  | O29: =HLOOKUP(O26,pfactor,5) -> 0 | P29: =HLOOKUP("Class",pfactor,5) -> xxx | R29: =Q26*O29/SUM(O27:O30) -> 0 | S29: =$R29*(VLOOKUP($P29,class,5)/VLOOKUP($P29,class,4)) -> 0 | T29: =$R29*(VLOOKUP($P29,class,6)/VLOOKUP($P29,class,4)) -> 0 | U29: =$R29*(VLOOKUP($P29,class,7)/VLOOKUP($P29,class,4)) -> 0 | V29: =$R29*(VLOOKUP($P29,class,8)/VLOOKUP($P29,class,4)) -> 0 | W29: =$R29*(VLOOKUP($P29,class,9)/VLOOKUP($P29,class,4)) -> 0 | X29: =$R29*(VLOOKUP($P29,class,10)/VLOOKUP($P29,class,4)) -> 0 | Y29: =$R29*(VLOOKUP($P29,class,11)/VLOOKUP($P29,class,4)) -> 0 | Z29: =$R29*(VLOOKUP($P29,class,12)/VLOOKUP($P29,class,4)) -> 0 | AA29: =$R29*(VLOOKUP($P29,class,13)/VLOOKUP($P29,class,4)) -> 0 | AB29: =$R29*(VLOOKUP($P29,class,14)/VLOOKUP($P29,class,4)) -> 0 | AC29: =$R29*(VLOOKUP($P29,class,15)/VLOOKUP($P29,class,4)) -> 0 | AH29: 29 | AI29: D05 | AJ29: DA Sch 25 | AK29: 0 | AL29: 802.929 | AM29: 2712.604 | AO29: 4.61 | AP29: 4.65 | AQ29: 2.81 | AR29: 3.4 | AS29: 0 | BB29: 29 | BE29: =IF(SUM(BG29:BQ29)=BF29,"","error") ->  | BF29: =BF28/$BF28 -> 1 | BG29: 0 | BH29: 0 | BI29: 0 | BJ29: 0 | BK29: 1 | BL29: 0 | BM29: 0 | BN29: 0 | BO29: 0 | BP29: 0 | BQ29: 0
A30: =PROFORMA!A30 -> 30 | B30: =PROFORMA!B30 -> 537-OP | C30: =PROFORMA!C30 -> Hydro | D30: =PROFORMA!D30 -> Hydraulic Expenses | F30: =PROFORMA!BI30 -> 3395000 | G30: =PROFORMA!BJ30 -> 191809.5221 | J30: 30 | L30: P | M30: =HLOOKUP("Factor Name",pfactor,6) -> Open | N30: =IF(MATCH(P30,ref,0)>0,"","matching error") ->  | O30: =HLOOKUP(O26,pfactor,6) -> 0 | P30: =HLOOKUP("Class",pfactor,6) -> xxx | R30: =Q26*O30/SUM(O27:O30) -> 0 | S30: =$R30*(VLOOKUP($P30,class,5)/VLOOKUP($P30,class,4)) -> 0 | T30: =$R30*(VLOOKUP($P30,class,6)/VLOOKUP($P30,class,4)) -> 0 | U30: =$R30*(VLOOKUP($P30,class,7)/VLOOKUP($P30,class,4)) -> 0 | V30: =$R30*(VLOOKUP($P30,class,8)/VLOOKUP($P30,class,4)) -> 0 | W30: =$R30*(VLOOKUP($P30,class,9)/VLOOKUP($P30,class,4)) -> 0 | X30: =$R30*(VLOOKUP($P30,class,10)/VLOOKUP($P30,class,4)) -> 0 | Y30: =$R30*(VLOOKUP($P30,class,11)/VLOOKUP($P30,class,4)) -> 0 | Z30: =$R30*(VLOOKUP($P30,class,12)/VLOOKUP($P30,class,4)) -> 0 | AA30: =$R30*(VLOOKUP($P30,class,13)/VLOOKUP($P30,class,4)) -> 0 | AB30: =$R30*(VLOOKUP($P30,class,14)/VLOOKUP($P30,class,4)) -> 0 | AC30: =$R30*(VLOOKUP($P30,class,15)/VLOOKUP($P30,class,4)) -> 0 | AH30: 30 | AI30: D08 | AJ30: DA Street and Area Lights | AK30: 0 | AL30: 0 | AM30: 0 | AO30: 0.95 | AP30: 0 | AQ30: 0 | AR30: 0 | AS30: 0 | BB30: 30 | BC30: D07 | BD30: NCP-Secondary | BF30: =SUM(BG30:BQ30) -> 454549.156 | BG30: =BG22 -> 247308.208 | BH30: =BH22 -> 73439.01 | BI30: 111412.712 | BJ30: 0 | BK30: 0 | BL30: =BL22 -> 19669.358 | BM30: =BM22 -> 2719.868 | BN30: 0 | BO30: 0 | BP30: 0 | BQ30: 0 | BR30: Non-Coincident Peak Secondary12 Mo Avg
A31: =PROFORMA!A31 -> 31 | B31: =PROFORMA!B31 -> 538-OP | C31: =PROFORMA!C31 -> Hydro | D31: =PROFORMA!D31 -> Electric Expenses | F31: =PROFORMA!BI31 -> 2755000 | G31: =PROFORMA!BJ31 -> 1927935.344 | J31: 31 | K31: =B15 -> 504-OP | L31: =C15 -> Steam | M31: =D15 -> Steam Transferred-CR | O31: P01 | P31: =IF(MATCH(O31,P_ref,0)>0,"","error matching functional allocator") ->  | Q31: =F15 -> 0 | AH31: 31 | AI31: C02 | AJ31: Avg Customers-Secondary | AK31: 0 | AL31: 0 | AM31: 0 | AO31: 0 | AP31: 0 | AQ31: 0 | AR31: 0 | AS31: 0 | AT31: 100 | BB31: 31 | BE31: =IF(SUM(BG31:BQ31)=BF31,"","error") ->  | BF31: =BF30/$BF30 -> 1 | BG31: 0.5440736271 | BH31: 0.1615645063 | BI31: 0.2451059705 | BJ31: 0 | BK31: 0 | BL31: 0.04327223523 | BM31: 0.005983660874 | BN31: 0 | BO31: 0 | BP31: 0 | BQ31: 0
A32: =PROFORMA!A32 -> 32 | B32: =PROFORMA!B32 -> 539-OP | C32: =PROFORMA!C32 -> Hydro | D32: =PROFORMA!D32 -> Miscellaneous Power Exp. | F32: =PROFORMA!BI32 -> 390000 | G32: =PROFORMA!BJ32 -> 61302.67372 | J32: 32 | L32: P | M32: =HLOOKUP("Factor Name",pfactor,3) -> Coincident Peak 12A | N32: =IF(MATCH(P32,ref,0)>0,"","matching error") ->  | O32: =HLOOKUP(O31,pfactor,3) -> 34.13 | P32: =HLOOKUP("Class",pfactor,3) -> D01 | R32: =Q31*O32/SUM(O32:O35) -> 0 | S32: =$R32*(VLOOKUP($P32,class,5)/VLOOKUP($P32,class,4)) -> 0 | T32: =$R32*(VLOOKUP($P32,class,6)/VLOOKUP($P32,class,4)) -> 0 | U32: =$R32*(VLOOKUP($P32,class,7)/VLOOKUP($P32,class,4)) -> 0 | V32: =$R32*(VLOOKUP($P32,class,8)/VLOOKUP($P32,class,4)) -> 0 | W32: =$R32*(VLOOKUP($P32,class,9)/VLOOKUP($P32,class,4)) -> 0 | X32: =$R32*(VLOOKUP($P32,class,10)/VLOOKUP($P32,class,4)) -> 0 | Y32: =$R32*(VLOOKUP($P32,class,11)/VLOOKUP($P32,class,4)) -> 0 | Z32: =$R32*(VLOOKUP($P32,class,12)/VLOOKUP($P32,class,4)) -> 0 | AA32: =$R32*(VLOOKUP($P32,class,13)/VLOOKUP($P32,class,4)) -> 0 | AB32: =$R32*(VLOOKUP($P32,class,14)/VLOOKUP($P32,class,4)) -> 0 | AC32: =$R32*(VLOOKUP($P32,class,15)/VLOOKUP($P32,class,4)) -> 0 | AH32: 32 | AI32: C04 | AJ32: Wt Customers-Meters | AK32: 0 | AL32: 0 | AM32: 0 | AO32: 0 | AP32: 0 | AQ32: 0 | AR32: 0 | AS32: 0 | AU32: 100 | BB32: 32 | BC32: D08 | BD32: DA Street and Area Lights | BF32: =SUM(BG32:BQ32) -> 100 | BM32: 100 | BR32: Direct Assigned to Street & Area Lights
A33: =PROFORMA!A33 -> 33 | B33: =PROFORMA!B33 -> 540-OP | C33: =PROFORMA!C33 -> Hydro | D33: =PROFORMA!D33 -> Rents | F33: =PROFORMA!BI33 -> 2233000 | G33: =PROFORMA!BJ33 -> 81.36476868 | J33: 33 | L33: P | M33: =HLOOKUP("Factor Name",pfactor,4) -> Generation Level Consumption | N33: =IF(MATCH(P33,ref,0)>0,"","matching error") ->  | O33: =HLOOKUP(O31,pfactor,4) -> 65.87 | P33: =HLOOKUP("Class",pfactor,4) -> E02 | R33: =Q31*O33/SUM(O32:O35) -> 0 | S33: =$R33*(VLOOKUP($P33,class,5)/VLOOKUP($P33,class,4)) -> 0 | T33: =$R33*(VLOOKUP($P33,class,6)/VLOOKUP($P33,class,4)) -> 0 | U33: =$R33*(VLOOKUP($P33,class,7)/VLOOKUP($P33,class,4)) -> 0 | V33: =$R33*(VLOOKUP($P33,class,8)/VLOOKUP($P33,class,4)) -> 0 | W33: =$R33*(VLOOKUP($P33,class,9)/VLOOKUP($P33,class,4)) -> 0 | X33: =$R33*(VLOOKUP($P33,class,10)/VLOOKUP($P33,class,4)) -> 0 | Y33: =$R33*(VLOOKUP($P33,class,11)/VLOOKUP($P33,class,4)) -> 0 | Z33: =$R33*(VLOOKUP($P33,class,12)/VLOOKUP($P33,class,4)) -> 0 | AA33: =$R33*(VLOOKUP($P33,class,13)/VLOOKUP($P33,class,4)) -> 0 | AB33: =$R33*(VLOOKUP($P33,class,14)/VLOOKUP($P33,class,4)) -> 0 | AC33: =$R33*(VLOOKUP($P33,class,15)/VLOOKUP($P33,class,4)) -> 0 | AH33: 33 | AI33: C05 | AJ33: DA Street & Area Lights | AK33: 0 | AL33: 0 | AM33: 0 | AO33: 0 | AP33: 0 | AQ33: 0 | AR33: 0 | AS33: 0 | AV33: 100 | BB33: 33 | BF33: =BF32/$BF32 -> 1 | BG33: 0 | BH33: 0 | BI33: 0 | BJ33: 0 | BK33: 0 | BL33: 0 | BM33: 1 | BN33: 0 | BO33: 0 | BP33: 0 | BQ33: 0
A34: =PROFORMA!A34 -> 34 | B34: =PROFORMA!B34 -> 0 | C34: =PROFORMA!C34 -> Total Hydraulic Operation | D34: =PROFORMA!D34 -> 0 | F34: =PROFORMA!BI34 -> 10289000 | G34: =PROFORMA!BJ34 -> 0 | J34: 34 | L34: P | M34: =HLOOKUP("Factor Name",pfactor,5) -> Open | N34: =IF(MATCH(P34,ref,0)>0,"","matching error") ->  | O34: =HLOOKUP(O31,pfactor,5) -> 0 | P34: =HLOOKUP("Class",pfactor,5) -> xxx | R34: =Q31*O34/SUM(O32:O35) -> 0 | S34: =$R34*(VLOOKUP($P34,class,5)/VLOOKUP($P34,class,4)) -> 0 | T34: =$R34*(VLOOKUP($P34,class,6)/VLOOKUP($P34,class,4)) -> 0 | U34: =$R34*(VLOOKUP($P34,class,7)/VLOOKUP($P34,class,4)) -> 0 | V34: =$R34*(VLOOKUP($P34,class,8)/VLOOKUP($P34,class,4)) -> 0 | W34: =$R34*(VLOOKUP($P34,class,9)/VLOOKUP($P34,class,4)) -> 0 | X34: =$R34*(VLOOKUP($P34,class,10)/VLOOKUP($P34,class,4)) -> 0 | Y34: =$R34*(VLOOKUP($P34,class,11)/VLOOKUP($P34,class,4)) -> 0 | Z34: =$R34*(VLOOKUP($P34,class,12)/VLOOKUP($P34,class,4)) -> 0 | AA34: =$R34*(VLOOKUP($P34,class,13)/VLOOKUP($P34,class,4)) -> 0 | AB34: =$R34*(VLOOKUP($P34,class,14)/VLOOKUP($P34,class,4)) -> 0 | AC34: =$R34*(VLOOKUP($P34,class,15)/VLOOKUP($P34,class,4)) -> 0 | AH34: 34 | AI34: D06 | AJ34: DA Sch 25P | AK34: 0 | AL34: 73.369 | AM34: 2194.708 | AO34: 0 | AP34: 0 | AQ34: 0 | AR34: 0 | AS34: 0 | BB34: 34 | BC34: D09 | BD34: NCP-Primary | BF34: =SUM(BG34:BQ34) -> 514349.998 | BG34: =BG22 -> 247308.208 | BH34: =BH22 -> 73439.01 | BI34: =BI22 -> 121408.183 | BJ34: =BJ22 -> 49805.371 | BK34: 0 | BL34: =BL22 -> 19669.358 | BM34: 2719.868 | BN34: 0 | BO34: 0 | BP34: 0 | BQ34: 0 | BR34: Non-Coincident Peak Primary 12 Mo Avg
A35: =PROFORMA!A35 -> 35 | B35: =PROFORMA!B35 -> 541-MT | C35: =PROFORMA!C35 -> Hydro | D35: =PROFORMA!D35 -> Supervision & Engineering | F35: =PROFORMA!BI35 -> 354000 | G35: =PROFORMA!BJ35 -> 192267.9335 | J35: 35 | L35: P | M35: =HLOOKUP("Factor Name",pfactor,6) -> Open | N35: =IF(MATCH(P35,ref,0)>0,"","matching error") ->  | O35: =HLOOKUP(O31,pfactor,6) -> 0 | P35: =HLOOKUP("Class",pfactor,6) -> xxx | R35: =Q31*O35/SUM(O32:O35) -> 0 | S35: =$R35*(VLOOKUP($P35,class,5)/VLOOKUP($P35,class,4)) -> 0 | T35: =$R35*(VLOOKUP($P35,class,6)/VLOOKUP($P35,class,4)) -> 0 | U35: =$R35*(VLOOKUP($P35,class,7)/VLOOKUP($P35,class,4)) -> 0 | V35: =$R35*(VLOOKUP($P35,class,8)/VLOOKUP($P35,class,4)) -> 0 | W35: =$R35*(VLOOKUP($P35,class,9)/VLOOKUP($P35,class,4)) -> 0 | X35: =$R35*(VLOOKUP($P35,class,10)/VLOOKUP($P35,class,4)) -> 0 | Y35: =$R35*(VLOOKUP($P35,class,11)/VLOOKUP($P35,class,4)) -> 0 | Z35: =$R35*(VLOOKUP($P35,class,12)/VLOOKUP($P35,class,4)) -> 0 | AA35: =$R35*(VLOOKUP($P35,class,13)/VLOOKUP($P35,class,4)) -> 0 | AB35: =$R35*(VLOOKUP($P35,class,14)/VLOOKUP($P35,class,4)) -> 0 | AC35: =$R35*(VLOOKUP($P35,class,15)/VLOOKUP($P35,class,4)) -> 0 | AH35: 35 | AI35: D07 | AJ35: NCP-Secondary | AK35: 0 | AL35: 0 | AM35: 0 | AO35: 0.62 | AP35: 0.63 | AQ35: 26.45 | AR35: 23.07 | AS35: 100 | BB35: 35 | BF35: =BF34/$BF34 -> 1 | BG35: 0.4808169709 | BH35: 0.142780228 | BI35: 0.2360419626 | BJ35: 0.09683167336 | BK35: 0 | BL35: 0.03824119389 | BM35: 0.005287971246 | BN35: 0 | BO35: 0 | BP35: 0 | BQ35: 0
A36: =PROFORMA!A36 -> 36 | B36: =PROFORMA!B36 -> 542-MT | C36: =PROFORMA!C36 -> Hydro | D36: =PROFORMA!D36 -> Structures | F36: =PROFORMA!BI36 -> 259000 | G36: =PROFORMA!BJ36 -> 78547.45006 | H36: Error Messages | J36: 36 | K36: =B16 -> 505-OP | L36: =C16 -> Steam | M36: =D16 -> Electric Expenses | O36: P01 | P36: =IF(MATCH(O36,P_ref,0)>0,"","error matching functional allocator") ->  | Q36: =F16 -> 378000 | AH36: 36 | AI36: D09 | AJ36: NCP-Primary | AL36: 0 | AM36: 0 | AO36: 0 | AP36: 0 | AQ36: 0 | AR36: 0 | AS36: 0 | BB36: 36
A37: =PROFORMA!A37 -> 37 | B37: =PROFORMA!B37 -> 543-MT | C37: =PROFORMA!C37 -> Hydro | D37: =PROFORMA!D37 -> Reservoirs, Dams & Waterways | F37: =PROFORMA!BI37 -> 644000 | G37: =PROFORMA!BJ37 -> 204539.9579 | H37: =IF(I10=ROUND(R1479,0),"Total Rate Base Matches Checker","ERROR! TOTAL RATE BASE DOES NOT MATCH CHECKER") -> Total Rate Base Matches Checker | I37: 1 | J37: 37 | L37: P | M37: =HLOOKUP("Factor Name",pfactor,3) -> Coincident Peak 12A | N37: =IF(MATCH(P37,ref,0)>0,"","matching error") ->  | O37: =HLOOKUP(O36,pfactor,3) -> 34.13 | P37: =HLOOKUP("Class",pfactor,3) -> D01 | R37: =Q36*O37/SUM(O37:O40) -> 129011.4 | S37: =$R37*(VLOOKUP($P37,class,5)/VLOOKUP($P37,class,4)) -> 59391.6832 | T37: =$R37*(VLOOKUP($P37,class,6)/VLOOKUP($P37,class,4)) -> 16940.64282 | U37: =$R37*(VLOOKUP($P37,class,7)/VLOOKUP($P37,class,4)) -> 26896.12604 | V37: =$R37*(VLOOKUP($P37,class,8)/VLOOKUP($P37,class,4)) -> 11756.37563 | W37: =$R37*(VLOOKUP($P37,class,9)/VLOOKUP($P37,class,4)) -> 11956.03462 | X37: =$R37*(VLOOKUP($P37,class,10)/VLOOKUP($P37,class,4)) -> 1911.02177 | Y37: =$R37*(VLOOKUP($P37,class,11)/VLOOKUP($P37,class,4)) -> 159.5159133 | Z37: =$R37*(VLOOKUP($P37,class,12)/VLOOKUP($P37,class,4)) -> 0 | AA37: =$R37*(VLOOKUP($P37,class,13)/VLOOKUP($P37,class,4)) -> 0 | AB37: =$R37*(VLOOKUP($P37,class,14)/VLOOKUP($P37,class,4)) -> 0 | AC37: =$R37*(VLOOKUP($P37,class,15)/VLOOKUP($P37,class,4)) -> 0 | AH37: 37 | AK37: #360 | AL37: #361 | AM37: #362 | AO37: #364 | AP37: #365 | AQ37: #366 | AR37: #367 | AS37: #368 | AT37: #369 | AU37: #370 | AV37: #373 | BB37: 37 | BD37: Customer Allocators
A38: =PROFORMA!A38 -> 38 | B38: =PROFORMA!B38 -> 544-MT | C38: =PROFORMA!C38 -> Hydro | D38: =PROFORMA!D38 -> Electric Plant | F38: =PROFORMA!BI38 -> 1255000 | G38: =PROFORMA!BJ38 -> 701525.5203 | H38: =IF(I11=ROUND(R822,0),"Total Operating Expense Matches Checker","ERROR! TOTAL OPERATING EXP DOES NOT MATCH CHECKER") -> Total Operating Expense Matches Checker | I38: 2 | J38: 38 | L38: P | M38: =HLOOKUP("Factor Name",pfactor,4) -> Generation Level Consumption | N38: =IF(MATCH(P38,ref,0)>0,"","matching error") ->  | O38: =HLOOKUP(O36,pfactor,4) -> 65.87 | P38: =HLOOKUP("Class",pfactor,4) -> E02 | R38: =Q36*O38/SUM(O37:O40) -> 248988.6 | S38: =$R38*(VLOOKUP($P38,class,5)/VLOOKUP($P38,class,4)) -> 98965.73089 | T38: =$R38*(VLOOKUP($P38,class,6)/VLOOKUP($P38,class,4)) -> 32530.57592 | U38: =$R38*(VLOOKUP($P38,class,7)/VLOOKUP($P38,class,4)) -> 52269.58373 | V38: =$R38*(VLOOKUP($P38,class,8)/VLOOKUP($P38,class,4)) -> 26804.86576 | W38: =$R38*(VLOOKUP($P38,class,9)/VLOOKUP($P38,class,4)) -> 32408.72333 | X38: =$R38*(VLOOKUP($P38,class,10)/VLOOKUP($P38,class,4)) -> 5078.620654 | Y38: =$R38*(VLOOKUP($P38,class,11)/VLOOKUP($P38,class,4)) -> 930.49972 | Z38: =$R38*(VLOOKUP($P38,class,12)/VLOOKUP($P38,class,4)) -> 0 | AA38: =$R38*(VLOOKUP($P38,class,13)/VLOOKUP($P38,class,4)) -> 0 | AB38: =$R38*(VLOOKUP($P38,class,14)/VLOOKUP($P38,class,4)) -> 0 | AC38: =$R38*(VLOOKUP($P38,class,15)/VLOOKUP($P38,class,4)) -> 0 | AH38: 38 | AI38: Customer Accounting Function Factor Table (afactor) | BB38: 38 | BC38: C01 | BD38: =BD58 -> Avg Customers-All | BF38: =SUM(BG38:BQ38) -> 134526.4167 | BG38: =BG58*BG$55 -> 109815.75 | BH38: 22031.41667 | BI38: 1059.833333 | BJ38: 10.33333333 | BK38: 1 | BL38: 1436.416667 | BM38: 171.6666667 | BN38: 0 | BO38: 0 | BP38: 0 | BQ38: 0 | BR38: =BR58 -> Unweighted
A39: =PROFORMA!A39 -> 39 | B39: =PROFORMA!B39 -> 545-MT | C39: =PROFORMA!C39 -> Hydro | D39: =PROFORMA!D39 -> Miscellaneous Plant | F39: =PROFORMA!BI39 -> 881000 | G39: =PROFORMA!BJ39 -> 195731.0806 | H39: =IF(I12=-ROUND(R850,0),"Total Operating Revenue Matches Checker","ERROR! TOTAL REVENUE DOES NOT MATCH CHECKER") -> Total Operating Revenue Matches Checker | I39: 3 | J39: 39 | L39: P | M39: =HLOOKUP("Factor Name",pfactor,5) -> Open | N39: =IF(MATCH(P39,ref,0)>0,"","matching error") ->  | O39: =HLOOKUP(O36,pfactor,5) -> 0 | P39: =HLOOKUP("Class",pfactor,5) -> xxx | R39: =Q36*O39/SUM(O37:O40) -> 0 | S39: =$R39*(VLOOKUP($P39,class,5)/VLOOKUP($P39,class,4)) -> 0 | T39: =$R39*(VLOOKUP($P39,class,6)/VLOOKUP($P39,class,4)) -> 0 | U39: =$R39*(VLOOKUP($P39,class,7)/VLOOKUP($P39,class,4)) -> 0 | V39: =$R39*(VLOOKUP($P39,class,8)/VLOOKUP($P39,class,4)) -> 0 | W39: =$R39*(VLOOKUP($P39,class,9)/VLOOKUP($P39,class,4)) -> 0 | X39: =$R39*(VLOOKUP($P39,class,10)/VLOOKUP($P39,class,4)) -> 0 | Y39: =$R39*(VLOOKUP($P39,class,11)/VLOOKUP($P39,class,4)) -> 0 | Z39: =$R39*(VLOOKUP($P39,class,12)/VLOOKUP($P39,class,4)) -> 0 | AA39: =$R39*(VLOOKUP($P39,class,13)/VLOOKUP($P39,class,4)) -> 0 | AB39: =$R39*(VLOOKUP($P39,class,14)/VLOOKUP($P39,class,4)) -> 0 | AC39: =$R39*(VLOOKUP($P39,class,15)/VLOOKUP($P39,class,4)) -> 0 | AH39: 39 | AI39: Class | AJ39: Factor Name | AK39: K01 | AL39: K02 | AM39: K03 | AN39: K04 | BB39: 39 | BE39: =IF(SUM(BG39:BQ39)=BF39,"","error") ->  | BF39: =BF38/$BF38 -> 1 | BG39: 0.8163136484 | BH39: 0.1637701889 | BI39: 0.007878254395 | BJ39: 7.681267062e-05 | BK39: 7.433484254e-06 | BL39: 0.01067758067 | BM39: 0.001276081464 | BN39: 0 | BO39: 0 | BP39: 0 | BQ39: 0
A40: =PROFORMA!A40 -> 40 | B40: =PROFORMA!B40 -> 0 | C40: =PROFORMA!C40 -> Total Hydraulic Maintenance | D40: =PROFORMA!D40 -> 0 | F40: =PROFORMA!BI40 -> 3393000 | G40: =PROFORMA!BJ40 -> 0 | H40: =IF(I13=-ROUND(R852,0),"Net Income Matches Checker","ERROR! NET INCOME DOES NOT MATCH CHECKER") -> Net Income Matches Checker | I40: 4 | J40: 40 | L40: P | M40: =HLOOKUP("Factor Name",pfactor,6) -> Open | N40: =IF(MATCH(P40,ref,0)>0,"","matching error") ->  | O40: =HLOOKUP(O36,pfactor,6) -> 0 | P40: =HLOOKUP("Class",pfactor,6) -> xxx | R40: =Q36*O40/SUM(O37:O40) -> 0 | S40: =$R40*(VLOOKUP($P40,class,5)/VLOOKUP($P40,class,4)) -> 0 | T40: =$R40*(VLOOKUP($P40,class,6)/VLOOKUP($P40,class,4)) -> 0 | U40: =$R40*(VLOOKUP($P40,class,7)/VLOOKUP($P40,class,4)) -> 0 | V40: =$R40*(VLOOKUP($P40,class,8)/VLOOKUP($P40,class,4)) -> 0 | W40: =$R40*(VLOOKUP($P40,class,9)/VLOOKUP($P40,class,4)) -> 0 | X40: =$R40*(VLOOKUP($P40,class,10)/VLOOKUP($P40,class,4)) -> 0 | Y40: =$R40*(VLOOKUP($P40,class,11)/VLOOKUP($P40,class,4)) -> 0 | Z40: =$R40*(VLOOKUP($P40,class,12)/VLOOKUP($P40,class,4)) -> 0 | AA40: =$R40*(VLOOKUP($P40,class,13)/VLOOKUP($P40,class,4)) -> 0 | AB40: =$R40*(VLOOKUP($P40,class,14)/VLOOKUP($P40,class,4)) -> 0 | AC40: =$R40*(VLOOKUP($P40,class,15)/VLOOKUP($P40,class,4)) -> 0 | AH40: 40 | AJ40: Total Factor | AK40: =AK41+AK42+AK43+AK44 -> 100 | AL40: =AL41+AL42+AL43+AL44 -> 100 | AM40: =AM41+AM42+AM43+AM44 -> 100 | AN40: =AN41+AN42+AN43+AN44 -> 0 | BB40: 40 | BC40: C02 | BD40: =BD59 -> Avg Customers-Secondary | BF40: =SUM(BG40:BQ40) -> 134319.4167 | BG40: =BG59*BG$55 -> 109815.75 | BH40: =BH59*BH$55 -> 22031.41667 | BI40: =BI59*(BI$55-24) -> 1035.833333 | BJ40: =BJ59*BJ$55 -> 0 | BK40: 0 | BL40: 1436.416667 | BM40: 0 | BN40: 0 | BO40: 0 | BP40: 0 | BQ40: 0 | BR40: =BR59 -> Unweighted Secondary w/o Lighting
A41: =PROFORMA!A41 -> 41 | B41: =PROFORMA!B41 -> 0 | C41: =PROFORMA!C41 -> Total Hydraulic Generation | D41: =PROFORMA!D41 -> 0 | F41: =PROFORMA!BI41 -> 13682000 | G41: =PROFORMA!BJ41 -> 0 | H41: =IF(I19=-ROUND(R826,0),"Retail Sales Revenue Matches Checker","ERROR! RETAIL SALES REVENUE DOES NOT MATCH CHECKER") -> Retail Sales Revenue Matches Checker | I41: 5 | J41: 41 | K41: =B17 -> 506-OP | L41: =C17 -> Steam | M41: =D17 -> Miscellaneous Power Exp. | O41: P01 | P41: =IF(MATCH(O41,P_ref,0)>0,"","error matching functional allocator") ->  | Q41: =F17 -> 1103000 | AH41: 41 | AI41: C01 | AJ41: =VLOOKUP(AI41,class,2) -> Avg Customers-All | AK41: 100 | AL41: 0 | AM41: 99.95 | BB41: 41 | BE41: =IF(SUM(BG41:BQ41)=BF41,"","error") ->  | BF41: =BF40/$BF40 -> 1 | BG41: 0.8175716715 | BH41: 0.1640225755 | BI41: 0.007711717033 | BJ41: 0 | BK41: 0 | BL41: 0.01069403592 | BM41: 0 | BN41: 0 | BO41: 0 | BP41: 0 | BQ41: 0
A42: =PROFORMA!A42 -> 42 | B42: =PROFORMA!B42 -> 0 | C42: =PROFORMA!C42 -> 0 | D42: =PROFORMA!D42 -> 0 | F42: =PROFORMA!BI42 -> 0 | G42: =PROFORMA!BJ42 -> 0 | I42: 6 | J42: 42 | L42: P | M42: =HLOOKUP("Factor Name",pfactor,3) -> Coincident Peak 12A | N42: =IF(MATCH(P42,ref,0)>0,"","matching error") ->  | O42: =HLOOKUP(O41,pfactor,3) -> 34.13 | P42: =HLOOKUP("Class",pfactor,3) -> D01 | R42: =Q41*O42/SUM(O42:O45) -> 376453.9 | S42: =$R42*(VLOOKUP($P42,class,5)/VLOOKUP($P42,class,4)) -> 173304.3031 | T42: =$R42*(VLOOKUP($P42,class,6)/VLOOKUP($P42,class,4)) -> 49432.61647 | U42: =$R42*(VLOOKUP($P42,class,7)/VLOOKUP($P42,class,4)) -> 78482.61118 | V42: =$R42*(VLOOKUP($P42,class,8)/VLOOKUP($P42,class,4)) -> 34304.97969 | W42: =$R42*(VLOOKUP($P42,class,9)/VLOOKUP($P42,class,4)) -> 34887.58251 | X42: =$R42*(VLOOKUP($P42,class,10)/VLOOKUP($P42,class,4)) -> 5576.341301 | Y42: =$R42*(VLOOKUP($P42,class,11)/VLOOKUP($P42,class,4)) -> 465.4657471 | Z42: =$R42*(VLOOKUP($P42,class,12)/VLOOKUP($P42,class,4)) -> 0 | AA42: =$R42*(VLOOKUP($P42,class,13)/VLOOKUP($P42,class,4)) -> 0 | AB42: =$R42*(VLOOKUP($P42,class,14)/VLOOKUP($P42,class,4)) -> 0 | AC42: =$R42*(VLOOKUP($P42,class,15)/VLOOKUP($P42,class,4)) -> 0 | AH42: 42 | AI42: C03 | AJ42: =VLOOKUP(AI42,class,2) -> Wt Customers-Meter Reading | AK42: 0 | AL42: 78.4 | AM42: 0 | BB42: 42 | BC42: C03 | BD42: =BD60 -> Wt Customers-Meter Reading | BF42: =SUM(BG42:BQ42) -> 134354.75 | BG42: =BG60*BG$55 -> 109815.75 | BH42: 22031.41667 | BI42: 1059.833333 | BJ42: 10.33333333 | BK42: 1 | BL42: 1436.416667 | BM42: 0 | BN42: 0 | BO42: 0 | BP42: 0 | BQ42: 0 | BR42: =BR60 -> Est. Meter Reading Time
A43: =PROFORMA!A43 -> 43 | B43: =PROFORMA!B43 -> 546-OP | C43: =PROFORMA!C43 -> Other | D43: =PROFORMA!D43 -> Supervision & Engineering | F43: =PROFORMA!BI43 -> 97000 | G43: =PROFORMA!BJ43 -> 43113.63288 | I43: 7 | J43: 43 | L43: P | M43: =HLOOKUP("Factor Name",pfactor,4) -> Generation Level Consumption | N43: =IF(MATCH(P43,ref,0)>0,"","matching error") ->  | O43: =HLOOKUP(O41,pfactor,4) -> 65.87 | P43: =HLOOKUP("Class",pfactor,4) -> E02 | R43: =Q41*O43/SUM(O42:O45) -> 726546.1 | S43: =$R43*(VLOOKUP($P43,class,5)/VLOOKUP($P43,class,4)) -> 288780.9555 | T43: =$R43*(VLOOKUP($P43,class,6)/VLOOKUP($P43,class,4)) -> 94923.87631 | U43: =$R43*(VLOOKUP($P43,class,7)/VLOOKUP($P43,class,4)) -> 152522.0922 | V43: =$R43*(VLOOKUP($P43,class,8)/VLOOKUP($P43,class,4)) -> 78216.31463 | W43: =$R43*(VLOOKUP($P43,class,9)/VLOOKUP($P43,class,4)) -> 94568.31172 | X43: =$R43*(VLOOKUP($P43,class,10)/VLOOKUP($P43,class,4)) -> 14819.36133 | Y43: =$R43*(VLOOKUP($P43,class,11)/VLOOKUP($P43,class,4)) -> 2715.188336 | Z43: =$R43*(VLOOKUP($P43,class,12)/VLOOKUP($P43,class,4)) -> 0 | AA43: =$R43*(VLOOKUP($P43,class,13)/VLOOKUP($P43,class,4)) -> 0 | AB43: =$R43*(VLOOKUP($P43,class,14)/VLOOKUP($P43,class,4)) -> 0 | AC43: =$R43*(VLOOKUP($P43,class,15)/VLOOKUP($P43,class,4)) -> 0 | AH43: 43 | AI43: C06 | AJ43: =VLOOKUP(AI43,class,2) -> DA Handbilled | AK43: 0 | AL43: 21.6 | AM43: 0.05 | BB43: 43 | BE43: =IF(SUM(BG43:BQ43)=BF43,"","error") ->  | BF43: =BF42/$BF42 -> 1 | BG43: 0.8173566621 | BH43: 0.16397944 | BI43: 0.007888320535 | BJ43: 7.691081509e-05 | BK43: 7.442982105e-06 | BL43: 0.01069122355 | BM43: 0 | BN43: 0 | BO43: 0 | BP43: 0 | BQ43: 0
A44: =PROFORMA!A44 -> 44 | B44: =PROFORMA!B44 -> 547-OP | C44: =PROFORMA!C44 -> Other | D44: =PROFORMA!D44 -> Fuel | F44: =PROFORMA!BI44 -> 28014000 | G44: =PROFORMA!BJ44 -> 5.797589922e-13 | H44: =IF(I21=-ROUND(R829,0),"Sales For Resale Revenue Matches Checker","ERROR! SALES FOR RESALE REV DOES NOT MATCH CHECKER") -> Sales For Resale Revenue Matches Checker | I44: 8 | J44: 44 | L44: P | M44: =HLOOKUP("Factor Name",pfactor,5) -> Open | N44: =IF(MATCH(P44,ref,0)>0,"","matching error") ->  | O44: =HLOOKUP(O41,pfactor,5) -> 0 | P44: =HLOOKUP("Class",pfactor,5) -> xxx | R44: =Q41*O44/SUM(O42:O45) -> 0 | S44: =$R44*(VLOOKUP($P44,class,5)/VLOOKUP($P44,class,4)) -> 0 | T44: =$R44*(VLOOKUP($P44,class,6)/VLOOKUP($P44,class,4)) -> 0 | U44: =$R44*(VLOOKUP($P44,class,7)/VLOOKUP($P44,class,4)) -> 0 | V44: =$R44*(VLOOKUP($P44,class,8)/VLOOKUP($P44,class,4)) -> 0 | W44: =$R44*(VLOOKUP($P44,class,9)/VLOOKUP($P44,class,4)) -> 0 | X44: =$R44*(VLOOKUP($P44,class,10)/VLOOKUP($P44,class,4)) -> 0 | Y44: =$R44*(VLOOKUP($P44,class,11)/VLOOKUP($P44,class,4)) -> 0 | Z44: =$R44*(VLOOKUP($P44,class,12)/VLOOKUP($P44,class,4)) -> 0 | AA44: =$R44*(VLOOKUP($P44,class,13)/VLOOKUP($P44,class,4)) -> 0 | AB44: =$R44*(VLOOKUP($P44,class,14)/VLOOKUP($P44,class,4)) -> 0 | AC44: =$R44*(VLOOKUP($P44,class,15)/VLOOKUP($P44,class,4)) -> 0 | AH44: 44 | AI44: xxx | AJ44: =VLOOKUP(AI44,class,2) -> Open | AK44: 0 | AL44: 0 | AM44: 0 | BB44: 44 | BC44: C04 | BD44: =BD61 -> Wt Customers-Meters | BF44: =SUM(BG44:BQ44) -> 169121.4092 | BG44: =BG61*BG$55 -> 109815.75 | BH44: 44283.1475 | BI44: 9347.73 | BJ44: 212.5566667 | BK44: 32.57 | BL44: 5429.655 | BM44: 0 | BN44: 0 | BO44: 0 | BP44: 0 | BQ44: 0 | BR44: =BR61 -> Proportion Installed Meter Costs
A45: =PROFORMA!A45 -> 45 | B45: =PROFORMA!B45 -> 548-OP | C45: =PROFORMA!C45 -> Other | D45: =PROFORMA!D45 -> Generation Expenses | F45: =PROFORMA!BI45 -> 822000 | G45: =PROFORMA!BJ45 -> 134439.5354 | H45: =IF(I24=-ROUND(R837,0),"Sales of Water Revenue Matches Checker","ERROR! SALES OF WATER REV DOES NOT MATCH CHECKER") -> Sales of Water Revenue Matches Checker | I45: 9 | J45: 45 | L45: P | M45: =HLOOKUP("Factor Name",pfactor,6) -> Open | N45: =IF(MATCH(P45,ref,0)>0,"","matching error") ->  | O45: =HLOOKUP(O41,pfactor,6) -> 0 | P45: =HLOOKUP("Class",pfactor,6) -> xxx | R45: =Q41*O45/SUM(O42:O45) -> 0 | S45: =$R45*(VLOOKUP($P45,class,5)/VLOOKUP($P45,class,4)) -> 0 | T45: =$R45*(VLOOKUP($P45,class,6)/VLOOKUP($P45,class,4)) -> 0 | U45: =$R45*(VLOOKUP($P45,class,7)/VLOOKUP($P45,class,4)) -> 0 | V45: =$R45*(VLOOKUP($P45,class,8)/VLOOKUP($P45,class,4)) -> 0 | W45: =$R45*(VLOOKUP($P45,class,9)/VLOOKUP($P45,class,4)) -> 0 | X45: =$R45*(VLOOKUP($P45,class,10)/VLOOKUP($P45,class,4)) -> 0 | Y45: =$R45*(VLOOKUP($P45,class,11)/VLOOKUP($P45,class,4)) -> 0 | Z45: =$R45*(VLOOKUP($P45,class,12)/VLOOKUP($P45,class,4)) -> 0 | AA45: =$R45*(VLOOKUP($P45,class,13)/VLOOKUP($P45,class,4)) -> 0 | AB45: =$R45*(VLOOKUP($P45,class,14)/VLOOKUP($P45,class,4)) -> 0 | AC45: =$R45*(VLOOKUP($P45,class,15)/VLOOKUP($P45,class,4)) -> 0 | AH45: 45 | AL45: Meter Reading | AM45: Billing | BB45: 45 | BE45: =IF(SUM(BG45:BQ45)=BF45,"","error") ->  | BF45: =BF44/$BF44 -> 1 | BG45: =BG44/$BF44 -> 0.6493308597 | BH45: 0.2618423517 | BI45: 0.05527230435 | BJ45: 0.001256828853 | BK45: 0.000192583542 | BL45: 0.03210507189 | BM45: 0 | BN45: 0 | BO45: 0 | BP45: 0 | BQ45: 0
A46: =PROFORMA!A46 -> 46 | B46: =PROFORMA!B46 -> 549-OP | C46: =PROFORMA!C46 -> Other | D46: =PROFORMA!D46 -> Miscellaneous Power Exp. | F46: =PROFORMA!BI46 -> 465000 | G46: =PROFORMA!BJ46 -> 82667.39945 | H46: =IF(I23=-ROUND(R835,0),"Misc. Service Revenue Matches Checker","ERROR! MISC SERVICE REV DOES NOT MATCH CHECKER") -> Misc. Service Revenue Matches Checker | I46: 10 | J46: 46 | K46: =B18 -> 507-OP | L46: =C18 -> Steam | M46: =D18 -> Rents | O46: P01 | P46: =IF(MATCH(O46,P_ref,0)>0,"","error matching functional allocator") ->  | Q46: =F18 -> 5000 | AH46: 46 | AI46: Customer Information Function Factor Table (ifactor) | BB46: 46 | BC46: C05 | BD46: =BD62 -> DA Street & Area Lights | BF46: =SUM(BG46:BQ46) -> 171.6666667 | BG46: =BG62*BG$55 -> 0 | BH46: 0 | BI46: 0 | BJ46: 0 | BK46: 0 | BL46: 0 | BM46: 171.6666667 | BN46: 0 | BO46: 0 | BP46: 0 | BQ46: 0 | BR46: =BR62 -> Direct Assigned to Street & Area Lights
A47: =PROFORMA!A47 -> 47 | B47: =PROFORMA!B47 -> 550-OP | C47: =PROFORMA!C47 -> Other | D47: =PROFORMA!D47 -> Rents | F47: =PROFORMA!BI47 -> 16000 | G47: =PROFORMA!BJ47 -> 0 | H47: =IF(I25=-ROUND(R839+R840+R841,0),"Rent Revenue Matches Checker","ERROR! RENT REVENUE DOES NOT MATCH CHECKER") -> Rent Revenue Matches Checker | I47: 11 | J47: 47 | L47: P | M47: =HLOOKUP("Factor Name",pfactor,3) -> Coincident Peak 12A | N47: =IF(MATCH(P47,ref,0)>0,"","matching error") ->  | O47: =HLOOKUP(O46,pfactor,3) -> 34.13 | P47: =HLOOKUP("Class",pfactor,3) -> D01 | R47: =Q46*O47/SUM(O47:O50) -> 1706.5 | S47: =$R47*(VLOOKUP($P47,class,5)/VLOOKUP($P47,class,4)) -> 785.6042752 | T47: =$R47*(VLOOKUP($P47,class,6)/VLOOKUP($P47,class,4)) -> 224.0825769 | U47: =$R47*(VLOOKUP($P47,class,7)/VLOOKUP($P47,class,4)) -> 355.768863 | V47: =$R47*(VLOOKUP($P47,class,8)/VLOOKUP($P47,class,4)) -> 155.5076142 | W47: =$R47*(VLOOKUP($P47,class,9)/VLOOKUP($P47,class,4)) -> 158.1486061 | X47: =$R47*(VLOOKUP($P47,class,10)/VLOOKUP($P47,class,4)) -> 25.27806574 | Y47: =$R47*(VLOOKUP($P47,class,11)/VLOOKUP($P47,class,4)) -> 2.109998854 | Z47: =$R47*(VLOOKUP($P47,class,12)/VLOOKUP($P47,class,4)) -> 0 | AA47: =$R47*(VLOOKUP($P47,class,13)/VLOOKUP($P47,class,4)) -> 0 | AB47: =$R47*(VLOOKUP($P47,class,14)/VLOOKUP($P47,class,4)) -> 0 | AC47: =$R47*(VLOOKUP($P47,class,15)/VLOOKUP($P47,class,4)) -> 0 | AH47: 47 | AI47: Class | AJ47: Factor Name | AK47: I01 | AL47: I02 | AM47: I03 | AN47: I04 | BB47: 47 | BE47: =IF(SUM(BG47:BQ47)=BF47,"","error") ->  | BF47: =BF46/$BF46 -> 1 | BG47: 0 | BH47: 0 | BI47: 0 | BJ47: 0 | BK47: 0 | BL47: 0 | BM47: 1 | BN47: 0 | BO47: 0 | BP47: 0 | BQ47: 0
A48: =PROFORMA!A48 -> 48 | B48: =PROFORMA!B48 -> 0 | C48: =PROFORMA!C48 -> Total Other Operation | D48: =PROFORMA!D48 -> 0 | F48: =PROFORMA!BI48 -> 29414000 | G48: =PROFORMA!BJ48 -> 0 | I48: 12 | J48: 48 | L48: P | M48: =HLOOKUP("Factor Name",pfactor,4) -> Generation Level Consumption | N48: =IF(MATCH(P48,ref,0)>0,"","matching error") ->  | O48: =HLOOKUP(O46,pfactor,4) -> 65.87 | P48: =HLOOKUP("Class",pfactor,4) -> E02 | R48: =Q46*O48/SUM(O47:O50) -> 3293.5 | S48: =$R48*(VLOOKUP($P48,class,5)/VLOOKUP($P48,class,4)) -> 1309.070514 | T48: =$R48*(VLOOKUP($P48,class,6)/VLOOKUP($P48,class,4)) -> 430.2986233 | U48: =$R48*(VLOOKUP($P48,class,7)/VLOOKUP($P48,class,4)) -> 691.3966102 | V48: =$R48*(VLOOKUP($P48,class,8)/VLOOKUP($P48,class,4)) -> 354.5617164 | W48: =$R48*(VLOOKUP($P48,class,9)/VLOOKUP($P48,class,4)) -> 428.6868165 | X48: =$R48*(VLOOKUP($P48,class,10)/VLOOKUP($P48,class,4)) -> 67.17752188 | Y48: =$R48*(VLOOKUP($P48,class,11)/VLOOKUP($P48,class,4)) -> 12.30819735 | Z48: =$R48*(VLOOKUP($P48,class,12)/VLOOKUP($P48,class,4)) -> 0 | AA48: =$R48*(VLOOKUP($P48,class,13)/VLOOKUP($P48,class,4)) -> 0 | AB48: =$R48*(VLOOKUP($P48,class,14)/VLOOKUP($P48,class,4)) -> 0 | AC48: =$R48*(VLOOKUP($P48,class,15)/VLOOKUP($P48,class,4)) -> 0 | AH48: 48 | AJ48: Total Factor | AK48: =AK49+AK50+AK51 -> 100 | AL48: =AL49+AL50+AL51 -> 100 | AM48: =AM49+AM50+AM51 -> 0 | AN48: =AN49+AN50+AN51 -> 0 | BB48: 48 | BC48: C06 | BD48: =BD63 -> DA Handbilled | BF48: =SUM(BG48:BQ48) -> 11.33333333 | BG48: =BG63*BG$55 -> 0 | BH48: 0 | BI48: 0 | BJ48: 10.33333333 | BK48: 1 | BL48: 0 | BM48: 0 | BN48: 0 | BO48: 0 | BP48: 0 | BQ48: 0 | BR48: =BR63 -> Direct Assigned to Handbilled Customers
A49: =PROFORMA!A49 -> 49 | B49: =PROFORMA!B49 -> 551-MT | C49: =PROFORMA!C49 -> Other | D49: =PROFORMA!D49 -> Supervision & Engineering | F49: =PROFORMA!BI49 -> 278000 | G49: =PROFORMA!BJ49 -> 132767.3141 | J49: 49 | L49: P | M49: =HLOOKUP("Factor Name",pfactor,5) -> Open | N49: =IF(MATCH(P49,ref,0)>0,"","matching error") ->  | O49: =HLOOKUP(O46,pfactor,5) -> 0 | P49: =HLOOKUP("Class",pfactor,5) -> xxx | R49: =Q46*O49/SUM(O47:O50) -> 0 | S49: =$R49*(VLOOKUP($P49,class,5)/VLOOKUP($P49,class,4)) -> 0 | T49: =$R49*(VLOOKUP($P49,class,6)/VLOOKUP($P49,class,4)) -> 0 | U49: =$R49*(VLOOKUP($P49,class,7)/VLOOKUP($P49,class,4)) -> 0 | V49: =$R49*(VLOOKUP($P49,class,8)/VLOOKUP($P49,class,4)) -> 0 | W49: =$R49*(VLOOKUP($P49,class,9)/VLOOKUP($P49,class,4)) -> 0 | X49: =$R49*(VLOOKUP($P49,class,10)/VLOOKUP($P49,class,4)) -> 0 | Y49: =$R49*(VLOOKUP($P49,class,11)/VLOOKUP($P49,class,4)) -> 0 | Z49: =$R49*(VLOOKUP($P49,class,12)/VLOOKUP($P49,class,4)) -> 0 | AA49: =$R49*(VLOOKUP($P49,class,13)/VLOOKUP($P49,class,4)) -> 0 | AB49: =$R49*(VLOOKUP($P49,class,14)/VLOOKUP($P49,class,4)) -> 0 | AC49: =$R49*(VLOOKUP($P49,class,15)/VLOOKUP($P49,class,4)) -> 0 | AH49: 49 | AI49: C01 | AJ49: =VLOOKUP(AI49,class,2) -> Avg Customers-All | AK49: 100 | AL49: 100 | BB49: 49 | BE49: =IF(SUM(BG49:BQ49)=BF49,"","error") ->  | BF49: =BF48/$BF48 -> 1 | BG49: 0 | BH49: 0 | BI49: 0 | BJ49: 0.9117647059 | BK49: 0.08823529412 | BL49: 0 | BM49: 0 | BN49: 0 | BO49: 0 | BP49: 0 | BQ49: 0
